Workbook

Sheet TN Changes
B2: Changes to AER model
A3: Tab: TN Changes
B4: Explain changes made to AER draft decision model
A6: Tab: Unsmoothed Prices Real $2018-19
B7: renamed tab Unsmoothed Prices Real $2019-20 to reflect prices for 2019-20
A9: Tab: X - factor
B10: removed tab as using AER x-factor
A12: Tab: Smoothed Prices Nominal
B13: removed tab as no longer using smoothing
A15: Tab: Smoothed Prices Real $2018-19
B16: removed tab as no longer using smoothing
A18: Tab: Revenue Data
B19: removed tab as duplicated data
A21: Tab: Table of Fees
B22: removed tab as duplicated data
A24: Tab: Cost buildup Yr1
B25: Took a copy of AER Cost buildup Yr1 and
B26: Insert row 6 to split "Site visit - no appointment" into 2 services
B27: Created "Site visit - no appointment - De-energisation, Re-energisation", amended cell G5 task time of 30 minutes as per AER recommendation
B28: Created "Site visit - no appointment - special reads"
B29: Removed unused columns and amended calculations to reflect AER's draft decision methodology (applying AER labour rates, benchmarked OH rates and vehicle allowance)
B30: Included direct market support costs based on back office timings as agreeed in the draft decision
B31: Applied the premiums services % agreed in the draft decision against the labour rates approved by the AER rather than at the $ level included in the initial proposal as used by the AER in their draft decision. This was done on the basis that the AER rates are reasonable and the AER agreed the premium rates were reasonable
A33: Tab: Cost buildup Yr2-5
B34: removed as buildup for subsequent years is no longer built up for each additional year with varying inputs
A36: Tab: Volumes - Report Summary
B37: Inserted row 10 and added % split of volumes to B9 and B10
B38: Applied formulae to split volumes to range C9:G10
A40: Tab: Volumes - Lookups & OH allocation
B41: Inserted rows 33-35, adding market support average labour rate calculation
B42: Amended same day premium rate from 15 to 10 % as agreed
B43: Updated material costs to $2018-19 in column D125:D138
A45: Tab: Volumes - Salary Calculation
B46: Inserted rows 3-5
B47: Added AER rates amended for Technical Specialist - Indoor and Outdoor (as explained below) in column H2-L14
A49: Tab: Back Office Time
B50: Amended cells E10, 11 & 12 to timings that were agreed in the 2017-19 Determination
B53: Summary of changes in revised proposal
B54: splitting out site visits between special reads and de-en re-ens
B55: direct market support costs included included as direct labour costs at the back office rates approved by the AER and applied at the calculated average market support rate (which is below the benchmarked administration rate allowed by the AER)
B56: increased administration rate in line with reproposed rate for quoted services for general administration
B57: created the labour catergory Technical Specialist - Indoor equal to the AER rate allowed for a Technical Specialist and added a Technical Specialist - Outdoor which includes a $20 vehicle allowance. This rate is applied to jobs that require an Technical Specialist - Outdoor

Sheet AER changes and input
A1: AER draft decision - changes to TN-Fee Based Services Model Distribution
A3: AER metholodogy
A4: Only proposed fees for 19-20 have been calculated. AER calculations are found in Column AQ and onwards of worksheet "AER Cost buildup Yr 1" and have been escalated to 2019-20 to compare against TN's proposed fees per its Tariff Structure Statement (2019-20 nominal figures)
A5: No changes have been made to TN cells, all AER calculations are stand-alone and rely on TN inputs unless otherwise listed in this worksheet
A7: Application of escalators
A8: All escalators accepted per TasNetwork's model at the $ level proposed by TasNetworks, except for the same day premium escalator which has been pro-rated to a $ value based on 10 per cent (agreed to by TN in response to Information Request #030).
A10: AER Inputs
A11: Relevant Marsden Jacob/AER Labour categories | B11: TN Labour category | C11: MJ recommended raw labours plus on-cost - 2018-19 | D11: MJ recommended total labour rate (raw plus on-cost plus overheads) / AER calculated maximum labour rate for After Hours - 2018-19 | E11: Source (MJ report) / comment
A12: Administration | B12: Market support officer | C12: 56.12 | D12: 90.36 | E12: Page 10, 25
A13: Field Worker | B13: Linesman | C13: 74.81 | D13: 140.45 | E13: Page 10. MJ recommends applying the Field Worker rate to certain benchmarked services including site visit; site visit - credit actions or site issues; and remove meter. We have therefore applied the Field Worker rate to all of these sets of services being 'De-energisation, re-energisation, special reads and retail contract terminations; and 'Supply abolishment'.
A14: Field Worker AH | D14: =C13*1.67+(D13-C13) -> 190.5727 | E14: MJ raw labour plus on-costs inflated by After Hours rate of 67 per cent (agreed in 17-19), static OH component from standard hours applied
A15: Technical Specialist | B15: Elec Technician | C15: 89.79 | D15: 144.56 | E15: Page 10, 25. MJ's table 17 map Technical Specialist to TasNetworks Elec Technician
A16: Technical Specialist AH | B16: Elec Technician AH | D16: =C15*1.67+(D15-C15) -> 204.7193 | E16: MJ raw labour plus on-costs inflated by After Hours rate of 67 per cent (agreed in 17-19), static OH component from standard hours applied
A17: Note: TasNetwork inputs in Cost buildup Yr 1 are in $2016-17 and need to be escalated - using TasNetworks' figures for consistency.
B19: 2019-20
A20: CPI | B20: 0.0245
A22: per cent | B22: 2020-21 | C22: 2021-22 | D22: 2022-23 | E22: 2023-24
A23: X-Factor | B23: =-0.2293 -> -0.2293 | C23: =-0.3536 -> -0.3536 | D23: =-0.4287 -> -0.4287 | E23: =-0.4962 -> -0.4962

Sheet AER Cost buildup Yr1
AM1: =SUM(AM2:AN2) -> 2750773.442 | AS1: Denotes bespoke formula
E2: Cost Buildup Direct Inputs | W2: Direct Administration and Supervision | AA2: TOTAL | AB2: CAM Overheads (Capex & Opex) | AG2: Other | AI2: TOTAL | AJ2: TOTAL FEE | AK2: =SUM(AK5:AK78) -> 66338 | AM2: =SUM(AM4:AM78) -> 905070.5871 | AN2: =SUM(AN4:AN78) -> 1845702.855 | AO2: ='[3]Master Data'!G14 -> 2019-20 | AQ2: AER 19-24 Draft Decision
B3: Service group | C3: Service type | E3: Task time (mins) | F3: Travel time (mins) | G3: Total Mins Per Person | H3: Total Mins | I3: No. of Crew | J3: Crew 1 Skill Level | K3: Crew 2 Skill Level | L3: Gross up for After Hours/ Premium | M3: Labour Travel Cost | N3: Labour Task Cost | O3: Labour Cost | P3: Type of Connection | Q3: Material Cost | R3: Vehicle Type | S3: Vehicle time (mins) | T3: Vehicle Cost | U3: Other Direct Costs | V3: Total Direct Costs | W3: Supervision & Customer Team | X3: Premium Service | Y3: Premium service cost | Z3: Administration cost | AA3: Total Direct & Supervision | AB3: WSD overheads Hourly rate (indirect cost) | AC3: Shared Services overheads % expenditure | AD3: Under Recovered Overheads | AE3: Other 2 | AF3: Total Overheads | AG3: Profit Margin | AH3: Other | AI3: Total Other | AJ3: Total Fee | AK3: Volumes | AL3: Customer task time | AM3: Cost recovery | AN3: Cost recovery | AO3: Total Task Time (Customer Group) | AQ3: AER Labour categorisation | AR3: AER maximum fee (TN task time x AER total labour rate) + ((TN materials + TN premium service cost)*cumulative CPI to 2018-19) $2018-19 | AS3: Comments | AT3: AER maximum fee 2019-20 (escalated by CPI) | AU3: TN proposed fee for 2019-20 (from 'Smoothed prices nominal' - matches proposal in Tariff structure statement) | AV3: AER Approved Fee for 19-20 (lower of AER maximum fee and TN proposed fee except where MJ recommended no change) | AW3: Difference (AER approved fee less TN proposed fee)
A4: X | B4: De-energisation, re-energisation, special reads and retail contract terminations
B5: De-energistion, re-energisation and special reads | C5: Site visit - no appointment | E5: 8 | F5: 10 | G5: =SUM(E5:F5) -> 18 | H5: =SUM(E5:F5)*I5 -> 18 | I5: 1 | J5: Elec Tech | L5: Normal | M5: 10.1542546 | N5: 8.123403679 | O5: 18.27765828 | P5: No materials charged | Q5: 0 | R5: Ute/Utility | T5: 2.232 | U5: 0 | V5: 20.50965828 | W5: 13.19279973 | X5: Normal | Y5: 0 | AA5: 13.19279973 | AB5: 10.25129988 | AC5: 1.121660556 | AD5: 26.90396581 | AF5: 38.27692625 | AG5: 4.239585732 | AI5: 4.239585732 | AJ5: 76.21896998 | AK5: 54512 | AL5: 8 | AM5: 719165.8988 | AN5: 1466588.984 | AO5: 436096 | AQ5: Field Worker | AR5: Special | AS5: MJ recommends a fee of either $42.14 for an aggregated service, or $42.14 and $70.23 for a disaggregated service | AT5: 43.17243 | AU5: 44.23015453 | AV5: 43.17243 | AW5: -1.057724535
B6: De-energistion, re-energisation and special reads | C6: Site visit - non-scheduled visit | E6: 8 | F6: 40 | G6: 48 | H6: 48 | I6: 1 | J6: Elec Tech | L6: Normal | M6: 40.6170184 | N6: 8.123403679 | O6: 48.74042207 | P6: No materials charged | Q6: 0 | R6: Ute/Utility | T6: 5.952 | U6: 0 | V6: 54.69242207 | W6: 13.19279973 | X6: Non-scheduled Visit | Y6: 5.469242207 | AA6: 18.66204194 | AB6: 27.33679968 | AC6: 2.569550915 | AD6: 26.90396581 | AF6: 56.81031641 | AG6: 7.666705567 | AI6: 7.666705567 | AJ6: 137.831486 | AK6: 954 | AL6: 8 | AM6: 12585.93094 | AN6: 25666.38338 | AO6: 7632 | AQ6: Field Worker | AR6: 118.100518 | AT6: 120.9939807 | AU6: 123.9583332 | AV6: 120.9939807 | AW6: -2.964352527
B7: De-energistion, re-energisation and special reads | C7: Site visit - same day premium service | D7: Premium Services | E7: 8 | F7: 60 | G7: 68 | H7: 68 | I7: 1 | J7: Elec Tech | L7: Normal | M7: 60.92552759 | N7: 8.123403679 | O7: 69.04893127 | P7: No materials charged | Q7: 0 | R7: Ute/Utility | T7: 8.432 | U7: 0 | V7: 77.48093127 | W7: 32.98199932 | X7: Same Day Premium | Y7: 11.62213969 | AA7: 44.60413901 | AB7: 38.72713288 | AC7: 4.103783473 | AD7: 67.25991452 | AF7: 110.0908309 | AG7: 13.67516058 | AI7: 13.67516058 | AJ7: 245.8510617 | AK7: 225 | AL7: 20 | AM7: 7420.949847 | AN7: 15133.48077 | AO7: 4500 | AQ7: Field Worker | AR7: 167.3090672 | AS7: Premium service $ value reduced to 10 per cent | AT7: 171.4081393 | AU7: 175.6076387 | AV7: 171.4081393 | AW7: -4.199499413
B8: De-energistion, re-energisation and special reads | C8: Site visit - after hours | D8: after hours | E8: 30 | F8: 60 | G8: 90 | H8: 90 | I8: 1 | J8: Elec Tech AH | L8: Normal | M8: 101.7456311 | N8: 50.87281554 | O8: 152.6184466 | P8: No materials charged | Q8: 0 | R8: Ute/Utility | T8: 11.16 | U8: 0 | V8: 163.7784466 | W8: 32.98199932 | X8: After Hours | Y8: 8.188922331 | AA8: 41.17092165 | AB8: 51.25649941 | AC8: 6.5381444 | AD8: 67.25991452 | AF8: 125.0545583 | AG8: 19.43723128 | AI8: 19.43723128 | AJ8: 349.4411579 | AK8: 1 | AL8: 20 | AM8: 32.98199932 | AN8: 67.25991452 | AO8: 20 | AQ8: Field Worker AH | AR8: 294.4541449 | AT8: 301.6682715 | AU8: 309.0591441 | AV8: 301.6682715 | AW8: -7.390872651
B9: De-energistion, re-energisation and special reads | C9: Site visit - credit actions or site issues | E9: 8 | F9: 20 | G9: 28 | H9: 56 | I9: 2 | J9: Elec Tech | K9: Elec Tech | L9: Normal | M9: 40.6170184 | N9: 16.24680736 | O9: 56.86382575 | P9: No materials charged | Q9: 0 | R9: Ute/Utility | T9: 3.472 | U9: 0 | V9: 60.33582575 | W9: 13.19279973 | X9: Normal | Y9: 0 | AA9: 13.19279973 | AB9: 31.89293296 | AC9: 2.690263803 | AD9: 26.90396581 | AF9: 61.48716257 | AG9: 7.952429917 | AI9: 7.952429917 | AJ9: 142.968218 | AK9: 1973 | AL9: 8 | AM9: 26029.39386 | AN9: 53081.52454 | AO9: 15784 | AQ9: Field Worker | AR9: 131.0866667 | AT9: 134.29829 | AU9: 137.5885981 | AV9: 134.29829 | AW9: -3.290308105
B10: De-energistion, re-energisation and special reads | C10: Site visit – credit actions pillar box/pole top | E10: 30 | F10: 20 | G10: 50 | H10: 100 | I10: 2 | J10: Elec Tech | K10: Elec Tech | L10: Normal | M10: 40.6170184 | N10: 60.92552759 | O10: 101.542546 | P10: No materials charged | Q10: 0 | R10: Truck | T10: 19.975 | U10: 0 | V10: 121.517546 | W10: 13.19279973 | X10: Normal | Y10: 0 | AA10: 13.19279973 | AB10: 56.95166601 | AC10: 4.891042972 | AD10: 26.90396581 | AF10: 88.74667479 | AG10: 13.16161851 | AI10: 13.16161851 | AJ10: 236.618639 | AK10: 219 | AL10: 8 | AM10: 2889.22314 | AN10: 5891.968512 | AO10: 1752 | AQ10: Field Worker | AR10: 234.0833333 | AT10: 239.818375 | AU10: 245.6939252 | AV10: 239.818375 | AW10: -5.875550187
B11: De-energistion, re-energisation and special reads | C11: Site visit – current transformer (CT) metering | E11: 30 | F11: 20 | G11: 50 | H11: 50 | I11: 1 | J11: Elec Tech | L11: Normal | M11: 20.3085092 | N11: 30.4627638 | O11: 50.77127299 | P11: No materials charged | Q11: 0 | R11: Ute/Utility | T11: 6.2 | U11: 0 | V11: 56.97127299 | W11: 13.19279973 | X11: Normal | Y11: 0 | AA11: 13.19279973 | AB11: 28.475833 | AC11: 2.517202096 | AD11: 26.90396581 | AF11: 57.89700091 | AG11: 7.542797237 | AI11: 7.542797237 | AJ11: 135.6038709 | AK11: 5 | AL11: 8 | AM11: 65.96399864 | AN11: 134.519829 | AO11: 40 | AQ11: Field Worker | AR11: 117.0416667 | AT11: 119.9091875 | AU11: 122.8469626 | AV11: 119.9091875 | AW11: -2.937775094
B12: De-energistion, re-energisation and special reads | C12: Site visit – pillar box/pole top | E12: 30 | F12: 20 | G12: 50 | H12: 100 | I12: 2 | J12: Elec Tech | K12: Elec Tech | L12: Normal | M12: 40.6170184 | N12: 60.92552759 | O12: 101.542546 | P12: No materials charged | Q12: 0 | R12: Truck | T12: 19.975 | U12: 0 | V12: 121.517546 | W12: 13.19279973 | X12: Normal | Y12: 0 | AA12: 13.19279973 | AB12: 56.95166601 | AC12: 4.891042972 | AD12: 26.90396581 | AF12: 88.74667479 | AG12: 13.16161851 | AI12: 13.16161851 | AJ12: 236.618639 | AK12: 10 | AL12: 8 | AM12: 131.9279973 | AN12: 269.0396581 | AO12: 80 | AQ12: Field Worker | AR12: 234.0833333 | AT12: 239.818375 | AU12: 245.6939252 | AV12: 239.818375 | AW12: -5.875550187
B13: De-energistion, re-energisation and special reads | C13: Site visit - pillar box/pole top Wasted Visit | E13: 8 | F13: 20 | G13: 28 | H13: 56 | I13: 2 | J13: Elec Tech | K13: Elec Tech | L13: Normal | M13: 40.6170184 | N13: 16.24680736 | O13: 56.86382575 | P13: No materials charged | Q13: 0 | R13: Truck | T13: 11.186 | U13: 0 | V13: 68.04982575 | W13: 13.19279973 | X13: Normal | Y13: 0 | AA13: 13.19279973 | AB13: 31.89293296 | AC13: 2.887118178 | AD13: 26.90396581 | AF13: 61.68401695 | AG13: 8.418379239 | AI13: 8.418379239 | AJ13: 151.3450217 | AK13: 1 | AL13: 8 | AM13: 13.19279973 | AN13: 26.90396581 | AO13: 8 | AQ13: Field Worker | AR13: 131.0866667 | AT13: 134.29829 | AU13: 137.5885981 | AV13: 134.29829 | AW13: -3.290308105
B14: De-energistion, re-energisation and special reads | C14: Transfer of retailer | E14: 0 | F14: 0 | G14: 0 | H14: 0 | L14: Normal | M14: 0 | N14: 0 | O14: 0 | P14: No materials charged | Q14: 0 | R14: Ute/Utility | T14: 0 | U14: 0 | W14: No Volumes | X14: Normal | Y14: 0 | AA14: 0 | AB14: 0 | AC14: 0 | AD14: No Volumes | AF14: 0 | AG14: 0 | AI14: 0 | AJ14: 0 | AK14: 0 | AL14: 8 | AM14: 0 | AN14: 0 | AO14: 0
A15: X | B15: Meter test
B16: Meter test | C16: Meter test - single phase | E16: 70 | F16: 20 | G16: =SUM(E16:F16) -> 90 | H16: =SUM(E16:F16)*I16 -> 90 | I16: 1 | J16: Elec Tech | L16: Normal | M16: 20.3085092 | N16: 71.07978219 | O16: 91.38829139 | P16: No materials charged | Q16: 0 | R16: Ute/Utility | T16: 11.16 | U16: 0 | V16: 102.5482914 | W16: 8.24549983 | X16: Normal | Y16: 0 | AA16: 8.24549983 | AB16: 51.25649941 | AC16: 4.135378357 | AD16: 16.81497863 | AF16: 72.20685639 | AG16: 10.77873814 | AI16: 10.77873814 | AJ16: 193.7793858 | AK16: 17 | AL16: 5 | AM16: 140.1734971 | AN16: 285.8546367 | AO16: 85 | AQ16: Technical Specialist | AR16: 216.84 | AT16: 222.15258 | AU16: 213.4791308 | AV16: 208.3739686 | AW16: -5.10516223
B17: Meter test | C17: Meter test - multi phase | E17: 160 | F17: 20 | G17: =SUM(E17:F17) -> 180 | H17: =SUM(E17:F17)*I17 -> 180 | I17: 1 | J17: Elec Tech | L17: Normal | M17: 20.3085092 | N17: 162.4680736 | O17: 182.7765828 | P17: No materials charged | Q17: 0 | R17: Ute/Utility | T17: 22.32 | U17: 0 | V17: 205.0965828 | W17: 8.24549983 | X17: Normal | Y17: 0 | AA17: 8.24549983 | AB17: 102.5129988 | AC17: 8.060338939 | AD17: 16.81497863 | AF17: 127.3883164 | AG17: 20.0690205 | AI17: 20.0690205 | AJ17: 360.7994195 | AK17: 4 | AL17: 5 | AM17: 32.98199932 | AN17: 67.25991452 | AO17: 20 | AQ17: Technical Specialist | AR17: 433.68 | AT17: 444.30516 | AU17: 397.4785356 | AV17: 387.9731923 | AW17: -9.505343212
B18: Meter test | C18: Meter test – current transformer (CT) | E18: 180 | F18: 20 | G18: =SUM(E18:F18) -> 200 | H18: =SUM(E18:F18)*I18 -> 200 | I18: 1 | J18: Elec Tech | L18: Normal | M18: 20.3085092 | N18: 182.7765828 | O18: 203.085092 | P18: No materials charged | Q18: 0 | R18: Ute/Utility | T18: 24.8 | U18: 0 | V18: 227.885092 | W18: 8.24549983 | X18: Normal | Y18: 0 | AA18: 8.24549983 | AB18: 113.903332 | AC18: 8.932552402 | AD18: 16.81497863 | AF18: 139.650863 | AG18: 22.13352769 | AI18: 22.13352769 | AJ18: 397.9149825 | AK18: 4 | AL18: 5 | AM18: 32.98199932 | AN18: 67.25991452 | AO18: 20 | AQ18: Technical Specialist | AR18: 481.8666667 | AT18: 493.6724 | AU18: 438.3672922 | AV18: 427.884131 | AW18: -10.48316121
B19: Meter test | C19: Meter test - after hours | D19: after hours | E19: 180 | F19: 60 | G19: =SUM(E19:F19) -> 240 | H19: =SUM(E19:F19)*I19 -> 240 | I19: 1 | J19: Elec Tech AH | L19: Normal | M19: 101.7456311 | N19: 305.2368932 | O19: 406.9825243 | P19: No materials charged | Q19: 0 | R19: Ute/Utility | T19: 29.76 | U19: 0 | V19: 436.7425243 | W19: 32.98199932 | X19: After Hours | Y19: 21.83712622 | AA19: 54.81912554 | AB19: 136.6839984 | AC19: 16.03226657 | AD19: 67.25991452 | AF19: 219.9761795 | AG19: 41.90957815 | AI19: 41.90957815 | AJ19: 753.4474075 | AK19: 1 | AL19: 20 | AM19: 32.98199932 | AN19: 67.25991452 | AO19: 20 | AQ19: Technical Specialist AH | AR19: 841.7974531 | AT19: 862.4214907 | AU19: 830.0433869 | AV19: 810.1936427 | AW19: -19.84974425
B20: Meter test | C20: Meter test - wasted visit | E20: 10 | F20: 20 | G20: =SUM(E20:F20) -> 30 | H20: =SUM(E20:F20)*I20 -> 30 | I20: 1 | J20: Elec Tech | L20: Normal | M20: 20.3085092 | N20: 10.1542546 | O20: 30.4627638 | P20: No materials charged | Q20: 0 | R20: Ute/Utility | T20: 3.72 | U20: 0 | V20: 34.1827638 | W20: 8.24549983 | X20: Normal | Y20: 0 | AA20: 8.24549983 | AB20: 17.0854998 | AC20: 1.518737969 | AD20: 16.81497863 | AF20: 35.4192164 | AG20: 4.585216574 | AI20: 4.585216574 | AJ20: 82.4326966 | AK20: 1 | AL20: 5 | AM20: 8.24549983 | AN20: 16.81497863 | AO20: 5 | AQ20: Technical Specialist | AR20: 72.28 | AT20: 74.05086 | AU20: 75.86510607 | AV20: 74.05086 | AW20: -1.81424607
A21: X | B21: Supply abolishment
B22: Supply abolishment | C22: Remove service & meters | E22: 30 | F22: 20 | G22: =SUM(E22:F22) -> 50 | H22: =SUM(E22:F22)*I22 -> 100 | I22: 2 | J22: Elec Tech | K22: Elec Tech | L22: Normal | M22: 40.6170184 | N22: 60.92552759 | O22: 101.542546 | P22: No materials charged | Q22: 0 | R22: Truck | T22: 19.975 | U22: 0 | V22: 121.517546 | W22: 13.19279973 | X22: Normal | Y22: 0 | AA22: 13.19279973 | AB22: 56.95166601 | AC22: 4.891042972 | AD22: 26.90396581 | AF22: 88.74667479 | AG22: 13.16161851 | AI22: 13.16161851 | AJ22: 236.618639 | AK22: 336 | AL22: 8 | AM22: 4432.780709 | AN22: 9039.732512 | AO22: 2688 | AQ22: Field Worker | AR22: 234.0833333 | AT22: 239.818375 | AU22: 245.6939252 | AV22: 239.818375 | AW22: -5.875550187
B23: Supply abolishment | C23: Supply abolishment - after hours | D23: after hours | E23: 30 | F23: 60 | G23: =SUM(E23:F23) -> 90 | H23: =SUM(E23:F23)*I23 -> 180 | I23: 2 | J23: Elec Tech AH | K23: Elec Tech AH | L23: Normal | M23: 203.4912622 | N23: 101.7456311 | O23: 305.2368932 | P23: No materials charged | Q23: 0 | R23: Truck | T23: 35.955 | U23: 0 | V23: 341.1918932 | W23: 32.98199932 | X23: After Hours | Y23: 17.05959466 | AA23: 50.04159398 | AB23: 102.5129988 | AC23: 12.59996835 | AD23: 67.25991452 | AF23: 182.3728817 | AG23: 33.78541513 | AI23: 33.78541513 | AJ23: 607.391784 | AK23: 1 | AL23: 20 | AM23: 32.98199932 | AN23: 67.25991452 | AO23: 20 | AQ23: Field Worker AH | AR23: 589.6238548 | AT23: 604.0696393 | AU23: 618.8693454 | AV23: 604.0696393 | AW23: -14.79970616
B24: Supply abolishment | C24: Supply abolishment - wasted visit | E24: 10 | F24: 20 | G24: =SUM(E24:F24) -> 30 | H24: =SUM(E24:F24)*I24 -> 60 | I24: 2 | J24: Elec Tech | K24: Elec Tech | L24: Normal | M24: 40.6170184 | N24: 20.3085092 | O24: 60.92552759 | P24: No materials charged | Q24: 0 | R24: Truck | T24: 11.985 | U24: 0 | V24: 72.91052759 | W24: 13.19279973 | X24: Normal | Y24: 0 | AA24: 13.19279973 | AB24: 34.1709996 | AC24: 3.069293159 | AD24: 26.90396581 | AF24: 64.14425857 | AG24: 8.849582809 | AI24: 8.849582809 | AJ24: 159.0971687 | AK24: 24 | AL24: 8 | AM24: 316.6271935 | AN24: 645.6951794 | AO24: 192 | AQ24: Field Worker | AR24: 140.45 | AT24: 143.891025 | AU24: 147.4163551 | AV24: 143.891025 | AW24: -3.525330113
A25: X | B25: Tee-up
B26: Tee-up | C26: Tee-up/Appointment | E26: 30 | F26: 20 | G26: =SUM(E26:F26) -> 50 | H26: =SUM(E26:F26)*I26 -> 50 | I26: 1 | J26: Elec Tech | L26: Normal | M26: 20.3085092 | N26: 30.4627638 | O26: 50.77127299 | P26: No materials charged | Q26: 0 | R26: Truck | T26: 19.975 | U26: 0 | V26: 70.74627299 | W26: 9.894599796 | X26: Normal | Y26: 0 | AA26: 9.894599796 | AB26: 28.475833 | AC26: 2.784560656 | AD26: 20.17797436 | AF26: 51.43836801 | AG26: 7.779467283 | AI26: 7.779467283 | AJ26: 139.8587081 | AK26: 3300 | AL26: 6 | AM26: 32652.17933 | AN26: 66587.31538 | AO26: 19800 | AQ26: Technical Specialist | AR26: 120.4666667 | AT26: 123.4181 | AU26: 126.4418434 | AV26: 123.4181 | AW26: -3.02374345
B27: Tee-up | C27: Tee-up/Appointment – after hours | D27: after hours | E27: 30 | F27: 60 | G27: =SUM(E27:F27) -> 90 | H27: =SUM(E27:F27)*I27 -> 180 | I27: 2 | J27: Elec Tech AH | K27: Elec Tech AH | L27: Normal | M27: 203.4912622 | N27: 101.7456311 | O27: 305.2368932 | P27: No materials charged | Q27: 0 | R27: Truck | T27: 35.955 | U27: 0 | V27: 341.1918932 | W27: 32.98199932 | X27: After Hours | Y27: 17.05959466 | AA27: 50.04159398 | AB27: 102.5129988 | AC27: 12.59996835 | AD27: 67.25991452 | AF27: 182.3728817 | AG27: 33.78541513 | AI27: 33.78541513 | AJ27: 607.391784 | AK27: 1 | AL27: 20 | AM27: 32.98199932 | AN27: 67.25991452 | AO27: 20 | AQ27: Technical Specialist AH | AR27: 632.0636548 | AT27: 647.5492144 | AU27: 663.4141701 | AV27: 647.5492144 | AW27: -15.86495575
B28: Tee-up | C28: Tee-up/Appointment – no truck – after hours | D28: after hours | E28: 30 | F28: 60 | G28: =SUM(E28:F28) -> 90 | H28: =SUM(E28:F28)*I28 -> 90 | I28: 1 | J28: Elec Tech AH | L28: Normal | M28: 101.7456311 | N28: 50.87281554 | O28: 152.6184466 | P28: No materials charged | Q28: 0 | R28: Ute/Utility | T28: 11.16 | U28: 0 | V28: 163.7784466 | W28: 32.98199932 | X28: After Hours | Y28: 8.188922331 | AA28: 41.17092165 | AB28: 51.25649941 | AC28: 6.5381444 | AD28: 67.25991452 | AF28: 125.0545583 | AG28: 19.43723128 | AI28: 19.43723128 | AJ28: 349.4411579 | AK28: 1 | AL28: 20 | AM28: 32.98199932 | AN28: 67.25991452 | AO28: 20 | AQ28: Technical Specialist AH | AR28: 315.6740449 | AT28: 323.408059 | AU28: 331.3315565 | AV28: 323.408059 | AW28: -7.923497446
B29: Tee-up | C29: Tee-up/Appointment – wasted visit | E29: 10 | F29: 20 | G29: =SUM(E29:F29) -> 30 | H29: =SUM(E29:F29)*I29 -> 30 | I29: 1 | J29: Elec Tech | L29: Normal | M29: 20.3085092 | N29: 10.1542546 | O29: 30.4627638 | P29: No materials charged | Q29: 0 | R29: Truck | T29: 11.985 | U29: 0 | V29: 42.4477638 | W29: 9.894599796 | X29: Normal | Y29: 0 | AA29: 9.894599796 | AB29: 17.0854998 | AC29: 1.771736925 | AD29: 20.17797436 | AF29: 39.03521108 | AG29: 5.382139148 | AI29: 5.382139148 | AJ29: 96.75971382 | AK29: 200 | AL29: 6 | AM29: 1978.919959 | AN29: 4035.594871 | AO29: 1200 | AQ29: Technical Specialist | AR29: 72.28 | AT29: 74.05086 | AU29: 75.86510607 | AV29: 74.05086 | AW29: -1.81424607
A30: X | B30: Miscellaneous service
B31: Miscellaneous service | C31: Open turret | E31: 25 | F31: 20 | G31: =SUM(E31:F31) -> 45 | H31: =SUM(E31:F31)*I31 -> 45 | I31: 1 | J31: Elec Tech | L31: Normal | M31: 20.3085092 | N31: 25.3856365 | O31: 45.6941457 | P31: No materials charged | Q31: 0 | R31: Truck | T31: 17.9775 | U31: 0 | V31: 63.6716457 | W31: 8.24549983 | X31: Normal | Y31: 0 | AA31: 8.24549983 | AB31: 25.6282497 | AC31: 2.489271168 | AD31: 16.81497863 | AF31: 44.9324995 | AG31: 6.882444092 | AI31: 6.882444092 | AJ31: 123.7320891 | AK31: 3 | AL31: 5 | AM31: 24.73649949 | AN31: 50.44493589 | AO31: 15 | AQ31: Technical Specialist | AR31: 108.42 | AT31: 111.07629 | AU31: 113.7976591 | AV31: 111.07629 | AW31: -2.721369105
B32: Miscellaneous service | C32: Data download | E32: 80 | F32: 20 | G32: 100 | H32: 100 | I32: 1 | J32: Elec Tech | L32: Normal | M32: 20.3085092 | N32: 81.23403679 | O32: 101.542546 | P32: No materials charged | Q32: 0 | R32: Truck | T32: 39.95 | U32: 0 | V32: 141.492546 | W32: 8.24549983 | X32: Normal | Y32: 0 | AA32: 8.24549983 | AB32: 56.95166601 | AC32: 5.274536427 | AD32: 16.81497863 | AF32: 79.04118106 | AG32: 13.47509646 | AI32: 13.47509646 | AJ32: 242.2543233 | AK32: 3 | AL32: 5 | AM32: 24.73649949 | AN32: 50.44493589 | AO32: 15 | AQ32: Technical Specialist | AR32: 240.9333333 | AT32: 246.8362 | AU32: 252.8836869 | AV32: 246.8362 | AW32: -6.0474869
B33: Miscellaneous service | C33: Alteration to unmetered supply | E33: 55 | F33: 20 | G33: 75 | H33: 75 | I33: 1 | J33: Elec Tech | L33: Normal | M33: 20.3085092 | N33: 55.84840029 | O33: 76.15690949 | P33: No materials charged | Q33: 0 | R33: Truck | T33: 29.9625 | U33: 0 | V33: 106.1194095 | W33: 8.24549983 | X33: Normal | Y33: 0 | AA33: 8.24549983 | AB33: 42.7137495 | AC33: 4.008506764 | AD33: 16.81497863 | AF33: 63.5372349 | AG33: 10.47843629 | AI33: 10.47843629 | AJ33: 188.3805805 | AK33: 3 | AL33: 5 | AM33: 24.73649949 | AN33: 50.44493589 | AO33: 15 | AQ33: Technical Specialist | AR33: 180.7 | AT33: 185.12715 | AU33: 189.6627652 | AV33: 185.12715 | AW33: -4.535615175
B34: Miscellaneous service | C34: Meter Relocation | E34: 45 | F34: 20 | G34: 65 | H34: 65 | I34: 1 | J34: Elec Tech | L34: Normal | M34: 20.3085092 | N34: 45.6941457 | O34: 66.00265489 | P34: No materials charged | Q34: 0 | R34: Ute/Utility | T34: 8.06 | U34: 0 | V34: 74.06265489 | W34: 8.24549983 | X34: Normal | Y34: 0 | AA34: 8.24549983 | AB34: 37.0185829 | AC34: 3.045111529 | AD34: 16.81497863 | AF34: 56.87867306 | AG34: 8.198104157 | AI34: 8.198104157 | AJ34: 147.3849319 | AK34: 3 | AL34: 5 | AM34: 24.73649949 | AN34: 50.44493589 | AO34: 15 | AQ34: Technical Specialist | AR34: 156.6066667 | AT34: 160.44353 | AU34: 162.3681851 | AV34: 158.4852953 | AW34: -3.882889735
B35: Miscellaneous service | C35: Tiger tails - standard single/multi phase | E35: 60 | F35: 40 | G35: 100 | H35: 200 | I35: 2 | J35: Elec Tech | K35: Elec Tech | L35: Normal | M35: 81.23403679 | N35: 121.8510552 | O35: 203.085092 | P35: Tiger tails | Q35: 100 | R35: Truck | T35: 39.95 | U35: 0 | V35: 343.035092 | W35: 8.24549983 | X35: Normal | Y35: 0 | AA35: 8.24549983 | AB35: 113.903332 | AC35: 11.87107733 | AD35: 16.81497863 | AF35: 142.589388 | AG35: 29.08894181 | AI35: 29.08894181 | AJ35: 522.9589216 | AK35: 3 | AL35: 5 | AM35: 24.73649949 | AN35: 50.44493589 | AO35: 15 | AQ35: Technical Specialist | AR35: 586.8266917 | AT35: 601.2039456 | AU35: 576.1232837 | AV35: 562.3458113 | AW35: -13.77747238
B36: Miscellaneous service | C36: Tiger tails - scaffolding single phase | E36: 120 | F36: 40 | G36: 160 | H36: 320 | I36: 2 | J36: Elec Tech | K36: Elec Tech | L36: Normal | M36: 81.23403679 | N36: 243.7021104 | O36: 324.9361472 | P36: Scaffolding | Q36: 160 | R36: Truck | T36: 63.92 | U36: 0 | V36: 548.8561472 | W36: 8.24549983 | X36: Normal | Y36: 0 | AA36: 8.24549983 | AB36: 182.2453312 | AC36: 18.86747306 | AD36: 16.81497863 | AF36: 217.9277829 | AG36: 45.64923342 | AI36: 45.64923342 | AJ36: 820.6786633 | AK36: 3 | AL36: 5 | AM36: 24.73649949 | AN36: 50.44493589 | AO36: 15 | AQ36: Technical Specialist | AR36: 938.9227067 | AT36: 961.926313 | AU36: 904.1094182 | AV36: 882.4884512 | AW36: -21.62096705
B37: Miscellaneous service | C37: Tiger tails - scaffolding multi phase | E37: 140 | F37: 40 | G37: 180 | H37: 360 | I37: 2 | J37: Elec Tech | K37: Elec Tech | L37: Normal | M37: 81.23403679 | N37: 284.3191288 | O37: 365.5531656 | P37: Scaffolding | Q37: 160 | R37: Truck | T37: 71.91 | U37: 0 | V37: 597.4631656 | W37: 8.24549983 | X37: Normal | Y37: 0 | AA37: 8.24549983 | AB37: 205.0259976 | AC37: 20.68922287 | AD37: 16.81497863 | AF37: 242.5301991 | AG37: 49.96126912 | AI37: 49.96126912 | AJ37: 898.2001336 | AK37: 3 | AL37: 5 | AM37: 24.73649949 | AN37: 50.44493589 | AO37: 15 | AQ37: Technical Specialist | AR37: 1035.29604 | AT37: 1060.660793 | AU37: 989.5117743 | AV37: 965.8484864 | AW37: -23.66328792
B38: Miscellaneous service | C38: Miscellaneous service | E38: 20 | F38: 20 | G38: 40 | H38: 40 | I38: 1 | J38: Elec Tech | L38: Normal | M38: 20.3085092 | N38: 20.3085092 | O38: 40.6170184 | P38: No materials charged | Q38: 0 | R38: Truck | T38: 15.98 | U38: 0 | V38: 56.5970184 | W38: 8.24549983 | X38: Normal | Y38: 0 | AA38: 8.24549983 | AB38: 22.7806664 | AC38: 2.236065236 | AD38: 16.81497863 | AF38: 41.83171027 | AG38: 6.283112058 | AI38: 6.283112058 | AJ38: 112.9573406 | AK38: 6 | AL38: 5 | AM38: 49.47299898 | AN38: 100.8898718 | AO38: 30 | AQ38: Technical Specialist | AR38: 96.37333333 | AT38: 98.73448 | AU38: 101.1534748 | AV38: 98.73448 | AW38: -2.41899476
B39: Miscellaneous service | C39: Miscellaneous service – after hours | D39: after hours | E39: 80 | F39: 60 | G39: 140 | H39: 140 | I39: 1 | J39: Elec Tech AH | L39: Normal | M39: 101.7456311 | N39: 135.6608414 | O39: 237.4064725 | P39: No materials charged | Q39: 0 | R39: Truck | T39: 55.93 | U39: 0 | V39: 293.3364725 | W39: 32.98199932 | X39: After Hours | Y39: 14.66682363 | AA39: 47.64882295 | AB39: 79.73233241 | AC39: 10.73633726 | AD39: 67.25991452 | AF39: 157.7285842 | AG39: 29.37424751 | AI39: 29.37424751 | AJ39: 528.0881272 | AK39: 3 | AL39: 20 | AM39: 98.94599796 | AN39: 201.7797436 | AO39: 60 | AQ39: Technical Specialist AH | AR39: 493.0726684 | AT39: 505.1529488 | AU39: 517.529196 | AV39: 505.1529488 | AW39: -12.37624725
B40: Miscellaneous service | C40: Miscellaneous service – wasted visit | E40: 10 | F40: 20 | G40: 30 | H40: 30 | I40: 1 | J40: Elec Tech | L40: Normal | M40: 20.3085092 | N40: 10.1542546 | O40: 30.4627638 | P40: No materials charged | Q40: 0 | R40: Truck | T40: 11.985 | U40: 0 | V40: 42.4477638 | W40: 8.24549983 | X40: Normal | Y40: 0 | AA40: 8.24549983 | AB40: 17.0854998 | AC40: 1.72965337 | AD40: 16.81497863 | AF40: 35.6301318 | AG40: 5.084447991 | AI40: 5.084447991 | AJ40: 91.40784342 | AK40: 3 | AL40: 5 | AM40: 24.73649949 | AN40: 50.44493589 | AO40: 15 | AQ40: Technical Specialist | AR40: 72.28 | AT40: 74.05086 | AU40: 75.86510607 | AV40: 74.05086 | AW40: -1.81424607
B41: Miscellaneous service | C41: Administration | D41: Back office only | E41: 25 | G41: 25 | H41: 25 | I41: 1 | J41: Market Support Officer | L41: Normal | M41: 0 | N41: 27.74266604 | O41: 27.74266604 | P41: No materials charged | Q41: 0 | R41: None | T41: 0 | U41: 0 | V41: 27.74266604 | W41: 4.947299898 | X41: Normal | Y41: 0 | AA41: 4.947299898 | AB41: 0 | AC41: 0.8342186683 | AD41: 10.08898718 | AF41: 10.92320585 | AG41: 2.568815818 | AI41: 2.568815818 | AJ41: 46.18198761 | AK41: 2 | AL41: 3 | AM41: 9.894599796 | AN41: 20.17797436 | AO41: 6 | AQ41: Administration | AR41: 37.65 | AS41: MJ has recommended not changing the price of this service | AT41: 38.572425 | AU41: 50.87688009 | AV41: 49.66020507 | AW41: -1.216675024
B42: Miscellaneous service | C42: Statutory right - access prevented | D42: Back office only | E42: 675 | F42: 0 | G42: 675 | H42: 675 | I42: 1 | J42: Market Support Officer | L42: Normal | M42: 0 | N42: 749.0519832 | O42: 749.0519832 | P42: No materials charged | Q42: 0 | R42: None | T42: 0 | U42: 0 | V42: 749.0519832 | W42: 4.947299898 | X42: Normal | Y42: 0 | AA42: 4.947299898 | AB42: 0 | AC42: 19.24138676 | AD42: 10.08898718 | AF42: 29.33037394 | AG42: 46.1381168 | AI42: 46.1381168 | AJ42: 829.4677738 | AK42: 1 | AL42: 3 | AM42: 4.947299898 | AN42: 10.08898718 | AO42: 3 | AQ42: Administration | AR42: 1016.55 | AT42: 1041.455475 | AU42: 913.7920357 | AV42: 891.9395175 | AW42: -21.85251818
B43: Miscellaneous service | C43: Tariff change | D43: Back office only | E43: 25 | G43: 25 | H43: 25 | I43: 1 | J43: Market Support Officer | L43: Normal | M43: 0 | N43: 27.74266604 | O43: 27.74266604 | P43: No materials charged | Q43: 0 | R43: None | T43: 0 | U43: 0 | V43: 27.74266604 | W43: 4.947299898 | X43: Normal | Y43: 0 | AA43: 4.947299898 | AB43: 0 | AC43: 0.8342186683 | AD43: 10.08898718 | AF43: 10.92320585 | AG43: 2.568815818 | AI43: 2.568815818 | AJ43: 46.18198761 | AK43: 1 | AL43: 3 | AM43: 4.947299898 | AN43: 10.08898718 | AO43: 3 | AQ43: Administration | AR43: 37.65 | AT43: 38.572425 | AU43: 39.51744941 | AV43: 38.572425 | AW43: -0.9450244125
B44: Miscellaneous service | C44: Emergency maintenance contestable meters | E44: 8 | F44: 10 | G44: 18 | H44: 18 | I44: 1 | J44: Elec Tech | L44: Normal | M44: 10.1542546 | N44: 8.123403679 | O44: 18.27765828 | P44: No materials charged | Q44: 0 | R44: Ute/Utility | T44: 2.232 | U44: 0 | V44: 20.50965828 | W44: 8.24549983 | X44: Normal | Y44: 0 | AA44: 8.24549983 | AB44: 10.25129988 | AC44: 0.9954098911 | AD44: 16.81497863 | AF44: 28.0616884 | AG44: 3.346512259 | AI44: 3.346512259 | AJ44: 60.16335877 | AK44: 1 | AL44: 5 | AM44: 8.24549983 | AN44: 16.81497863 | AO44: 5 | AQ44: Technical Specialist | AR44: 43.368 | AT44: 44.430516 | AU44: 45.51906364 | AV44: 44.430516 | AW44: -1.088547642
B45: Miscellaneous service | C45: Emergency maintenance contestable meters - after hours | D45: after hours | E45: 30 | F45: 60 | G45: 90 | H45: 90 | I45: 1 | J45: Elec Tech AH | L45: Normal | M45: 101.7456311 | N45: 50.87281554 | O45: 152.6184466 | P45: No materials charged | Q45: 0 | R45: Ute/Utility | T45: 11.16 | U45: 0 | V45: 163.7784466 | W45: 32.98199932 | X45: After Hours | Y45: 8.188922331 | AA45: 41.17092165 | AB45: 51.25649941 | AC45: 6.5381444 | AD45: 67.25991452 | AF45: 125.0545583 | AG45: 19.43723128 | AI45: 19.43723128 | AJ45: 349.4411579 | AK45: 1 | AL45: 20 | AM45: 32.98199932 | AN45: 67.25991452 | AO45: 20 | AQ45: Technical Specialist AH | AR45: 315.6740449 | AT45: 323.408059 | AU45: 331.3315565 | AV45: 323.408059 | AW45: -7.923497446
B46: Miscellaneous service | C46: Meter recovery and disposal | E46: 15 | F46: 20 | G46: 35 | H46: 35 | I46: 1 | J46: Elec Tech | L46: Normal | M46: 20.3085092 | N46: 15.2313819 | O46: 35.5398911 | P46: No materials charged | Q46: 0 | R46: None | T46: 0 | U46: 0 | V46: 35.5398911 | W46: 8.24549983 | X46: Normal | Y46: 0 | AA46: 8.24549983 | AB46: 19.9330831 | AC46: 1.626038419 | AD46: 16.81497863 | AF46: 38.37410015 | AG46: 4.839194024 | AI46: 4.839194024 | AJ46: 86.9986851 | AK46: 1 | AL46: 5 | AM46: 8.24549983 | AN46: 16.81497863 | AO46: 5 | AQ46: Technical Specialist | AR46: 84.32666667 | AT46: 86.39267 | AU46: 88.50929041 | AV46: 86.39267 | AW46: -2.116620415
A47: X | B47: Connection establishment charges
B48: Connection establishment charges | C48: Creation of a NMI | D48: Back office only | E48: 20 | G48: =SUM(E48:F48) -> 20 | H48: =SUM(E48:F48)*I48 -> 20 | I48: 1 | J48: Market Support Officer | L48: Normal | M48: 0 | N48: 22.19413283 | O48: 22.19413283 | P48: No materials charged | Q48: 0 | R48: None | T48: 0 | U48: 0 | V48: 22.19413283 | W48: 4.947299898 | X48: Normal | Y48: 0 | AA48: 4.947299898 | AB48: 0 | AC48: 0.6926250676 | AD48: 10.08898718 | AF48: 10.78161225 | AG48: 2.233667349 | AI48: 2.233667349 | AJ48: 40.15671233 | AK48: 1 | AL48: 3 | AM48: 4.947299898 | AN48: 10.08898718 | AO48: 3 | AQ48: Administration | AR48: 30.12 | AT48: 30.85794 | AU48: 31.61395953 | AV48: 30.85794 | AW48: -0.75601953
B49: Connection establishment charges | C49: Overhead service, single span - single phase | E49: 60 | F49: 20 | G49: 80 | H49: 160 | I49: 2 | J49: Elec Tech | K49: Elec Tech | L49: Normal | M49: 40.6170184 | N49: 121.8510552 | O49: 162.4680736 | P49: single phase OH service | Q49: 121.62 | R49: Truck | T49: 31.96 | U49: 0 | V49: 316.0480736 | W49: 21.43829956 | X49: Normal | Y49: 0 | AA49: 21.43829956 | AB49: 91.12266561 | AC49: 10.937719 | AD49: 43.71894444 | AF49: 145.779329 | AG49: 28.46434986 | AI49: 28.46434986 | AJ49: 511.730052 | AK49: 319 | AL49: 13 | AM49: 6838.817559 | AN49: 13946.34328 | AO49: 4147 | AQ49: Technical Specialist | AR49: 513.1457157 | AS49: While MJ did not change this charge, their comparison used TN figures that were not escalated to 2018-19. We have applied the max labour rates to determine the appropriate charge. | AT49: 525.7177858 | AU49: 538.5978715 | AV49: 525.7177858 | AW49: -12.88008575
B50: Connection establishment charges | C50: Overhead service, single span - multi phase | E50: 80 | F50: 20 | G50: 100 | H50: 200 | I50: 2 | J50: Elec Tech | K50: Elec Tech | L50: Normal | M50: 40.6170184 | N50: 162.4680736 | O50: 203.085092 | P50: multi phase OH service | Q50: 241.25 | R50: Truck | T50: 39.95 | U50: 0 | V50: 484.285092 | W50: 21.43829956 | X50: Normal | Y50: 0 | AA50: 21.43829956 | AB50: 113.903332 | AC50: 15.81231932 | AD50: 43.71894444 | AF50: 173.4345958 | AG50: 40.00240545 | AI50: 40.00240545 | AJ50: 719.1603928 | AK50: 110 | AL50: 13 | AM50: 2358.212951 | AN50: 4809.083888 | AO50: 1430 | AQ50: Technical Specialist | AR50: 735.082727 | AT50: 753.0922538 | AU50: 771.543014 | AV50: 753.0922538 | AW50: -18.45076022
B51: Connection establishment charges | C51: Underground service in turret/cabinet - single phase | E51: 40 | F51: 20 | G51: 60 | H51: 60 | I51: 1 | J51: Elec Tech | L51: Normal | M51: 20.3085092 | N51: 40.6170184 | O51: 60.92552759 | P51: single phase UG connect to turret | Q51: 1.08 | R51: Ute/Utility | T51: 7.44 | U51: 0 | V51: 69.44552759 | W51: 21.43829956 | X51: Normal | Y51: 0 | AA51: 21.43829956 | AB51: 34.1709996 | AC51: 3.191287236 | AD51: 43.71894444 | AF51: 81.08123128 | AG51: 10.12874194 | AI51: 10.12874194 | AJ51: 182.0938004 | AK51: 1669 | AL51: 13 | AM51: 35780.52196 | AN51: 72966.91827 | AO51: 21697 | AQ51: Technical Specialist | AR51: 145.6935683 | AS51: While MJ did not change this charge, their comparison used TN figures that were not escalated to 2018-19. We have applied the max labour rates to determine the appropriate charge. | AT51: 149.2630607 | AU51: 152.9200057 | AV51: 149.2630607 | AW51: -3.656944987
B52: Connection establishment charges | C52: Underground service in turret/cabinet - multi phase | E52: 60 | F52: 20 | G52: 80 | H52: 80 | I52: 1 | J52: Elec Tech | L52: Normal | M52: 20.3085092 | N52: 60.92552759 | O52: 81.23403679 | P52: multi phase UG connect to turret | Q52: 3.26 | R52: Ute/Utility | T52: 9.92 | U52: 0 | V52: 94.41403679 | W52: 21.43829956 | X52: Normal | Y52: 0 | AA52: 21.43829956 | AB52: 45.5613328 | AC52: 4.119132347 | AD52: 43.71894444 | AF52: 93.39940959 | AG52: 12.32492784 | AI52: 12.32492784 | AJ52: 221.5766738 | AK52: 332 | AL52: 13 | AM52: 7117.515453 | AN52: 14514.68955 | AO52: 4316 | AQ52: Technical Specialist | AR52: 196.1683635 | AT52: 200.9744884 | AU52: 205.8983634 | AV52: 200.9744884 | AW52: -4.923874965
B53: Connection establishment charges | C53: Underground service with pole mounted fuse - single phase | E53: 60 | F53: 20 | G53: 80 | H53: 160 | I53: 2 | J53: Elec Tech | K53: Elec Tech | L53: Normal | M53: 40.6170184 | N53: 121.8510552 | O53: 162.4680736 | P53: single phase UG service - pole | Q53: 7.48 | R53: Truck | T53: 31.96 | U53: 0 | V53: 201.9080736 | W53: 21.43829956 | X53: Normal | Y53: 0 | AA53: 21.43829956 | AB53: 91.12266561 | AC53: 8.024968371 | AD53: 43.71894444 | AF53: 142.8665784 | AG53: 21.56994285 | AI53: 21.56994285 | AJ53: 387.7828944 | AK53: 379 | AL53: 13 | AM53: 8125.115533 | AN53: 16569.47994 | AO53: 4927 | AQ53: Technical Specialist | AR53: 393.3443432 | AS53: While MJ did not change this charge, their comparison used TN figures that were not escalated to 2018-19. We have applied the max labour rates to determine the appropriate charge. | AT53: 402.9812796 | AU53: 412.854321 | AV53: 402.9812796 | AW53: -9.87304135
B54: Connection establishment charges | C54: Underground service with pole mounted fuse - multi phase | E54: 80 | F54: 20 | G54: 100 | H54: 200 | I54: 2 | J54: Elec Tech | K54: Elec Tech | L54: Normal | M54: 40.6170184 | N54: 162.4680736 | O54: 203.085092 | P54: multi phase UG service - pole | Q54: 22.45 | R54: Truck | T54: 39.95 | U54: 0 | V54: 265.485092 | W54: 21.43829956 | X54: Normal | Y54: 0 | AA54: 21.43829956 | AB54: 113.903332 | AC54: 10.22873918 | AD54: 43.71894444 | AF54: 167.8510156 | AG54: 26.78621258 | AI54: 26.78621258 | AJ54: 481.5606198 | AK54: 151 | AL54: 13 | AM54: 3237.183233 | AN54: 6601.56061 | AO54: 1963 | AQ54: Technical Specialist | AR54: 505.4301923 | AT54: 517.813232 | AU54: 530.4996562 | AV54: 517.813232 | AW54: -12.68642418
B55: Connection establishment charges | C55: Basic connection – after hours | D55: after hours | E55: 80 | F55: 60 | G55: 140 | H55: 280 | I55: 2 | J55: Elec Tech AH | K55: Elec Tech AH | L55: Normal | M55: 203.4912622 | N55: 271.3216829 | O55: 474.812945 | P55: multi phase UG service - pole | Q55: 22.45 | R55: Truck | T55: 55.93 | U55: 0 | V55: 553.192945 | W55: 32.98199932 | X55: After Hours | Y55: 27.65964725 | AA55: 60.64164657 | AB55: 159.4646648 | AC55: 19.7339048 | AD55: 67.25991452 | AF55: 246.4584841 | AG55: 50.67126216 | AI55: 50.67126216 | AJ55: 910.9643379 | AK55: 1 | AL55: 20 | AM55: 32.98199932 | AN55: 67.25991452 | AO55: 20 | AQ55: Technical Specialist AH | AR55: 1007.951832 | AT55: 1032.646651 | AU55: 1003.573596 | AV55: 979.5740325 | AW55: -23.9995638
B56: Connection establishment charges | C56: Connection establishment - wasted visit | E56: 5 | F56: 20 | G56: 25 | H56: 50 | I56: 2 | J56: Elec Tech | K56: Elec Tech | L56: Normal | M56: 40.6170184 | N56: 10.1542546 | O56: 50.77127299 | P56: No materials charged | Q56: 0 | R56: Ute/Utility | T56: 3.1 | U56: 0 | V56: 53.87127299 | W56: 21.43829956 | X56: Normal | Y56: 0 | AA56: 21.43829956 | AB56: 28.475833 | AC56: 2.648510646 | AD56: 43.71894444 | AF56: 74.84328809 | AG56: 8.844003492 | AI56: 8.844003492 | AJ56: 158.9968641 | AK56: 1 | AL56: 13 | AM56: 21.43829956 | AN56: 43.71894444 | AO56: 13 | AQ56: Technical Specialist | AR56: 120.4666667 | AT56: 123.4181 | AU56: 126.4418434 | AV56: 123.4181 | AW56: -3.02374345
B57: Temporary Disconnection/Reconnection
B58: Temporary Disconnection/Reconnection | C58: Disconnect/reconnect overhead service for facia repairs - single phase | E58: 40 | F58: 40 | G58: =SUM(E58:F58) -> 80 | H58: =SUM(E58:F58)*I58 -> 160 | I58: 2 | J58: Elec Tech | K58: Elec Tech | L58: Normal | M58: 81.23403679 | N58: 81.23403679 | O58: 162.4680736 | P58: No materials charged | Q58: 0 | R58: Truck | T58: 31.96 | U58: 0 | V58: 194.4280736 | W58: 19.78919959 | X58: Normal | Y58: 0 | AA58: 19.78919959 | AB58: 91.12266561 | AC58: 7.792001912 | AD58: 40.35594871 | AF58: 139.2706162 | AG58: 20.82043669 | AI58: 20.82043669 | AJ58: 374.3083261 | AK58: 20 | AL58: 12 | AM58: 395.7839918 | AN58: 807.1189743 | AO58: 240 | AQ58: Technical Specialist | AR58: 385.4933333 | AT58: 394.93792 | AU58: 404.613899 | AV58: 394.93792 | AW58: -9.67597904
B59: Temporary Disconnection/Reconnection | C59: Disconnect/reconnect overhead service for facia repairs - multi phase | E59: 60 | F59: 40 | G59: =SUM(E59:F59) -> 100 | H59: =SUM(E59:F59)*I59 -> 200 | I59: 2 | J59: Elec Tech | K59: Elec Tech | L59: Normal | M59: 81.23403679 | N59: 121.8510552 | O59: 203.085092 | P59: No materials charged | Q59: 0 | R59: Truck | T59: 39.95 | U59: 0 | V59: 243.035092 | W59: 19.78919959 | X59: Normal | Y59: 0 | AA59: 19.78919959 | AB59: 113.903332 | AC59: 9.613751725 | AD59: 40.35594871 | AF59: 163.8730324 | AG59: 25.13247238 | AI59: 25.13247238 | AJ59: 451.8297964 | AK59: 20 | AL59: 12 | AM59: 395.7839918 | AN59: 807.1189743 | AO59: 240 | AQ59: Technical Specialist | AR59: 481.8666667 | AT59: 493.6724 | AU59: 497.7631229 | AV59: 485.8595636 | AW59: -11.90355931
B60: Temporary Disconnection/Reconnection | C60: Temporary disconnect/reconnect – retailer requested outage | E60: 30 | F60: 40 | G60: =SUM(E60:F60) -> 70 | H60: =SUM(E60:F60)*I60 -> 140 | I60: 2 | J60: Elec Tech | K60: Elec Tech | L60: Normal | M60: 81.23403679 | N60: 60.92552759 | O60: 142.1595644 | P60: No materials charged | Q60: 0 | R60: Ute/Utility | T60: 8.68 | V60: 150.8395644 | W60: 19.78919959 | X60: Normal | Y60: 0 | AA60: 19.78919959 | AB60: 79.73233241 | AC60: 6.388991068 | AD60: 40.35594871 | AF60: 126.4772722 | AG60: 17.49954553 | AH60: 46.18198761 | AI60: 63.68153314 | AJ60: 360.7875693 | AK60: 1 | AL60: 12 | AM60: 19.78919959 | AN60: 40.35594871 | AO60: 12 | AQ60: Technical Specialist | AR60: 337.3066667 | AT60: 345.57068 | AU60: 354.0371617 | AV60: 345.57068 | AW60: -8.46648166
B61: Temporary Disconnection/Reconnection | C61: Temporary disconnect/reconnect – after hours | D61: after hours | E61: 60 | F61: 60 | G61: =SUM(E61:F61) -> 120 | H61: =SUM(E61:F61)*I61 -> 240 | I61: 2 | J61: Elec Tech AH | K61: Elec Tech AH | L61: Normal | M61: 203.4912622 | N61: 203.4912622 | O61: 406.9825243 | P61: No materials charged | Q61: 0 | R61: Truck | T61: 47.94 | U61: 0 | V61: 454.9225243 | W61: 32.98199932 | X61: After Hours | Y61: 22.74612622 | AA61: 55.72812554 | AB61: 136.6839984 | AC61: 16.51940076 | AD61: 67.25991452 | AF61: 220.4633137 | AG61: 43.06261245 | AI61: 43.06261245 | AJ61: 774.176576 | AK61: 1 | AL61: 20 | AM61: 32.98199932 | AN61: 67.25991452 | AO61: 20 | AQ61: Technical Specialist AH | AR61: 842.7515398 | AT61: 863.3989525 | AU61: 852.8798969 | AV61: 832.484038 | AW61: -20.39585893
B62: Temporary Disconnection/Reconnection | C62: Temporary disconnect/reconnect – wasted visit | E62: 10 | F62: 20 | G62: =SUM(E62:F62) -> 30 | H62: =SUM(E62:F62)*I62 -> 60 | I62: 2 | J62: Elec Tech | K62: Elec Tech | L62: Normal | M62: 40.6170184 | N62: 20.3085092 | O62: 60.92552759 | P62: No materials charged | Q62: 0 | R62: Truck | T62: 11.985 | U62: 0 | V62: 72.91052759 | W62: 19.78919959 | X62: Normal | Y62: 0 | AA62: 19.78919959 | AB62: 34.1709996 | AC62: 3.237627379 | AD62: 40.35594871 | AF62: 77.7645757 | AG62: 10.04034744 | AI62: 10.04034744 | AJ62: 180.5046503 | AK62: 1 | AL62: 12 | AM62: 19.78919959 | AN62: 40.35594871 | AO62: 12 | AQ62: Technical Specialist | AR62: 144.56 | AT62: 148.10172 | AU62: 151.7302121 | AV62: 148.10172 | AW62: -3.62849214
A63: X | B63: Basic connection alteration
B64: Basic connection alteration | C64: Connection alteration – overhead single phase | E64: 40 | F64: 20 | G64: =SUM(E64:F64) -> 60 | H64: =SUM(E64:F64)*I64 -> 120 | I64: 2 | J64: Elec Tech | K64: Elec Tech | L64: Normal | M64: 40.6170184 | N64: 81.23403679 | O64: 121.8510552 | P64: No materials charged | Q64: 0 | R64: Truck | T64: 23.97 | U64: 0 | V64: 145.8210552 | W64: 21.43829956 | X64: Normal | Y64: 0 | AA64: 21.43829956 | AB64: 68.34199921 | AC64: 6.012335654 | AD64: 43.71894444 | AF64: 118.0732793 | AG64: 16.80609215 | AI64: 16.80609215 | AJ64: 302.1387262 | AK64: 712 | AL64: 13 | AM64: 15264.06929 | AN64: 31127.88844 | AO64: 9256 | AQ64: Technical Specialist | AR64: 289.12 | AT64: 296.20344 | AU64: 303.4604243 | AV64: 296.20344 | AW64: -7.25698428
B65: Basic connection alteration | C65: Connection alteration – overhead multi phase | E65: 60 | F65: 20 | G65: 80 | H65: 160 | I65: 2 | J65: Elec Tech | K65: Elec Tech | L65: Normal | M65: 40.6170184 | N65: 121.8510552 | O65: 162.4680736 | P65: No materials charged | Q65: 0 | R65: Truck | T65: 31.96 | U65: 0 | V65: 194.4280736 | W65: 21.43829956 | X65: Normal | Y65: 0 | AA65: 21.43829956 | AB65: 91.12266561 | AC65: 7.834085467 | AD65: 43.71894444 | AF65: 142.6756955 | AG65: 21.11812784 | AI65: 21.11812784 | AJ65: 379.6601965 | AK65: 154 | AL65: 13 | AM65: 3301.498132 | AN65: 6732.717444 | AO65: 2002 | AQ65: Technical Specialist | AR65: 385.4933333 | AT65: 394.93792 | AU65: 404.613899 | AV65: 394.93792 | AW65: -9.67597904
B66: Basic connection alteration | C66: Connection of new consumer mains to an existing installation – underground single phase to turret | E66: 50 | F66: 20 | G66: 70 | H66: 70 | I66: 1 | J66: Elec Tech | L66: Normal | M66: 20.3085092 | N66: 50.77127299 | O66: 71.07978219 | P66: No materials charged | Q66: 0 | R66: Truck | T66: 27.965 | U66: 0 | V66: 99.04478219 | W66: 21.43829956 | X66: Normal | Y66: 0 | AA66: 21.43829956 | AB66: 39.8661662 | AC66: 4.091969271 | AD66: 43.71894444 | AF66: 87.67707991 | AG66: 12.26063352 | AI66: 12.26063352 | AJ66: 220.4207952 | AK66: 39 | AL66: 13 | AM66: 836.0936828 | AN66: 1705.038833 | AO66: 507 | AQ66: Technical Specialist | AR66: 168.6533333 | AT66: 172.78534 | AU66: 177.0185808 | AV66: 172.78534 | AW66: -4.23324083
B67: Basic connection alteration | C67: Connection of new consumer mains to an existing installation – underground single phase to pole | E67: 50 | F67: 20 | G67: 70 | H67: 140 | I67: 2 | J67: Elec Tech | K67: Elec Tech | L67: Normal | M67: 40.6170184 | N67: 101.542546 | O67: 142.1595644 | P67: No materials charged | Q67: 0 | R67: Truck | T67: 27.965 | U67: 0 | V67: 170.1245644 | W67: 21.43829956 | X67: Normal | Y67: 0 | AA67: 21.43829956 | AB67: 79.73233241 | AC67: 6.92321056 | AD67: 43.71894444 | AF67: 130.3744874 | AG67: 18.96210999 | AI67: 18.96210999 | AJ67: 340.8994613 | AK67: 218 | AL67: 13 | AM67: 4673.549304 | AN67: 9530.729888 | AO67: 2834 | AQ67: Technical Specialist | AR67: 337.3066667 | AT67: 345.57068 | AU67: 354.0371617 | AV67: 345.57068 | AW67: -8.46648166
B68: Basic connection alteration | C68: Connection of new consumer mains to an existing installation – underground multi phase to turret | E68: 70 | F68: 20 | G68: 90 | H68: 90 | I68: 1 | J68: Elec Tech | L68: Normal | M68: 20.3085092 | N68: 71.07978219 | O68: 91.38829139 | P68: No materials charged | Q68: 0 | R68: Truck | T68: 35.955 | U68: 0 | V68: 127.3432914 | W68: 21.43829956 | X68: Normal | Y68: 0 | AA68: 21.43829956 | AB68: 51.25649941 | AC68: 5.104793001 | AD68: 43.71894444 | AF68: 100.0802368 | AG68: 14.65796166 | AI68: 14.65796166 | AJ68: 263.5197895 | AK68: 39 | AL68: 13 | AM68: 836.0936828 | AN68: 1705.038833 | AO68: 507 | AQ68: Technical Specialist | AR68: 216.84 | AT68: 222.15258 | AU68: 227.5953182 | AV68: 222.15258 | AW68: -5.44273821
B69: Basic connection alteration | C69: Connection of new consumer mains to an existing installation – underground multi phase to pole | E69: 70 | F69: 20 | G69: 90 | H69: 180 | I69: 2 | J69: Elec Tech | K69: Elec Tech | L69: Normal | M69: 40.6170184 | N69: 142.1595644 | O69: 182.7765828 | P69: No materials charged | Q69: 0 | R69: Truck | T69: 35.955 | U69: 0 | V69: 218.7315828 | W69: 21.43829956 | X69: Normal | Y69: 0 | AA69: 21.43829956 | AB69: 102.5129988 | AC69: 8.744960373 | AD69: 43.71894444 | AF69: 154.9769036 | AG69: 23.27414569 | AI69: 23.27414569 | AJ69: 418.4209317 | AK69: 177 | AL69: 13 | AM69: 3794.579022 | AN69: 7738.253166 | AO69: 2301 | AQ69: Technical Specialist | AR69: 433.68 | AT69: 444.30516 | AU69: 455.1906364 | AV69: 444.30516 | AW69: -10.88547642
B70: Basic connection alteration | C70: Augment single phase overhead service to multi phase supply | E70: 95 | F70: 20 | G70: 115 | H70: 230 | I70: 2 | J70: Elec Tech | K70: Elec Tech | L70: Normal | M70: 40.6170184 | N70: 192.9308374 | O70: 233.5478558 | P70: multi phase OH service | Q70: 241.25 | R70: Truck | T70: 45.9425 | U70: 0 | V70: 520.7403558 | W70: 21.43829956 | X70: Normal | Y70: 0 | AA70: 21.43829956 | AB70: 130.9888318 | AC70: 17.17863168 | AD70: 43.71894444 | AF70: 191.8864079 | AG70: 43.23643223 | AI70: 43.23643223 | AJ70: 777.3014955 | AK70: 6 | AL70: 13 | AM70: 128.6297974 | AN70: 262.3136666 | AO70: 78 | AQ70: Technical Specialist | AR70: 807.362727 | AT70: 827.1431138 | AU70: 847.4081201 | AV70: 827.1431138 | AW70: -20.26500629
B71: Basic connection alteration | C71: Augment multi phase overhead service to single phase supply | E71: 75 | F71: 20 | G71: 95 | H71: 190 | I71: 2 | J71: Elec Tech | K71: Elec Tech | L71: Normal | M71: 40.6170184 | N71: 152.313819 | O71: 192.9308374 | P71: single phase OH service | Q71: 121.62 | R71: Truck | T71: 37.9525 | U71: 0 | V71: 352.5033374 | W71: 21.43829956 | X71: Normal | Y71: 0 | AA71: 21.43829956 | AB71: 108.2081654 | AC71: 12.30403136 | AD71: 43.71894444 | AF71: 164.2311412 | AG71: 31.69837663 | AI71: 31.69837663 | AJ71: 569.8711548 | AK71: 51 | AL71: 13 | AM71: 1093.353277 | AN71: 2229.666166 | AO71: 663 | AQ71: Technical Specialist | AR71: 585.4257157 | AT71: 599.7686458 | AU71: 614.4629776 | AV71: 599.7686458 | AW71: -14.69433182
B72: Basic connection alteration | C72: Augment single phase overhead service to underground supply (turret) | E72: 55 | F72: 20 | G72: 75 | H72: 150 | I72: 2 | J72: Elec Tech | K72: Elec Tech | L72: Normal | M72: 40.6170184 | N72: 111.6968006 | O72: 152.313819 | P72: single phase UG connect to turret | Q72: 1.08 | R72: Truck | T72: 29.9625 | U72: 0 | V72: 183.356319 | W72: 21.43829956 | X72: Normal | Y72: 0 | AA72: 21.43829956 | AB72: 85.42749901 | AC72: 7.406208647 | AD72: 43.71894444 | AF72: 136.5526521 | AG72: 20.10535424 | AI72: 20.10535424 | AJ72: 361.4526249 | AK72: 62 | AL72: 13 | AM72: 1329.174573 | AN72: 2710.574555 | AO72: 806 | AQ72: Technical Specialist | AR72: 362.5335683 | AT72: 371.4156407 | AU72: 380.5153239 | AV72: 371.4156407 | AW72: -9.099683197
B73: Basic connection alteration | C73: Augment multi phase overhead service to underground supply (turret) | E73: 75 | F73: 20 | G73: 95 | H73: 190 | I73: 2 | J73: Elec Tech | K73: Elec Tech | L73: Normal | M73: 40.6170184 | N73: 152.313819 | O73: 192.9308374 | P73: single phase UG connect to turret | Q73: 1.08 | R73: Truck | T73: 37.9525 | U73: 0 | V73: 231.9633374 | W73: 21.43829956 | X73: Normal | Y73: 0 | AA73: 21.43829956 | AB73: 108.2081654 | AC73: 9.22795846 | AD73: 43.71894444 | AF73: 161.1550683 | AG73: 24.41738994 | AI73: 24.41738994 | AJ73: 438.9740952 | AK73: 35 | AL73: 13 | AM73: 750.3404845 | AN73: 1530.163055 | AO73: 455 | AQ73: Technical Specialist | AR73: 458.9069016 | AT73: 470.1501207 | AU73: 481.6687986 | AV73: 470.1501207 | AW73: -11.51867796
B74: Basic connection alteration | C74: Augment single phase overhead service to underground supply (pole) | E74: 75 | F74: 20 | G74: 95 | H74: 190 | I74: 2 | J74: Elec Tech | K74: Elec Tech | L74: Normal | M74: 40.6170184 | N74: 152.313819 | O74: 192.9308374 | P74: single phase UG service - pole | Q74: 7.48 | R74: Truck | T74: 37.9525 | U74: 0 | V74: 238.3633374 | W74: 21.43829956 | X74: Normal | Y74: 0 | AA74: 21.43829956 | AB74: 108.2081654 | AC74: 9.391280731 | AD74: 43.71894444 | AF74: 161.3183906 | AG74: 24.80396962 | AI74: 24.80396962 | AJ74: 445.9239971 | AK74: 4 | AL74: 13 | AM74: 85.75319823 | AN74: 174.8757778 | AO74: 52 | AQ74: Technical Specialist | AR74: 465.6243432 | AT74: 477.0321396 | AU74: 488.719427 | AV74: 477.0321396 | AW74: -11.68728742
B75: Basic connection alteration | C75: Augment multi phase overhead service to underground supply (pole) | E75: 95 | F75: 20 | G75: 115 | H75: 230 | I75: 2 | J75: Elec Tech | K75: Elec Tech | L75: Normal | M75: 40.6170184 | N75: 192.9308374 | O75: 233.5478558 | P75: multi phase UG service - pole | Q75: 22.45 | R75: Truck | T75: 45.9425 | U75: 0 | V75: 301.9403558 | W75: 21.43829956 | X75: Normal | Y75: 0 | AA75: 21.43829956 | AB75: 130.9888318 | AC75: 11.59505154 | AD75: 43.71894444 | AF75: 186.3028278 | AG75: 30.02023936 | AI75: 30.02023936 | AJ75: 539.7017225 | AK75: 3 | AL75: 13 | AM75: 64.31489868 | AN75: 131.1568333 | AO75: 39 | AQ75: Technical Specialist | AR75: 577.7101923 | AT75: 591.864092 | AU75: 594.5681692 | AV75: 580.3496039 | AW75: -14.2185653
B76: Basic connection alteration | C76: Basic connection alteration – after hours | D76: after hours | E76: 95 | F76: 60 | G76: 155 | H76: 310 | I76: 2 | J76: Elec Tech AH | K76: Elec Tech AH | L76: Normal | M76: 203.4912622 | N76: 322.1944984 | O76: 525.6857606 | P76: No materials charged | Q76: 0 | R76: Truck | T76: 61.9225 | U76: 0 | V76: 587.6082606 | W76: 32.98199932 | X76: After Hours | Y76: 29.38041303 | AA76: 62.36241235 | AB76: 176.5501646 | AC76: 21.09207191 | AD76: 67.25991452 | AF76: 264.9021511 | AG76: 53.88600933 | AI76: 53.88600933 | AJ76: 968.7588333 | AK76: 1 | AL76: 20 | AM76: 32.98199932 | AN76: 67.25991452 | AO76: 20 | AQ76: Technical Specialist AH | AR76: 1088.554072 | AT76: 1115.223647 | AU76: 1067.24352 | AV76: 1041.721347 | AW76: -25.52217299
B77: Basic connection alteration | C77: Basic connection wasted visit | E77: 7.5 | F77: 20 | G77: 27.5 | H77: 55 | I77: 2 | J77: Elec Tech | K77: Elec Tech | L77: Normal | M77: 40.6170184 | N77: 15.2313819 | O77: 55.84840029 | P77: No materials charged | Q77: 0 | R77: Truck | T77: 10.98625 | U77: 0 | V77: 66.83465029 | W77: 21.43829956 | X77: Normal | Y77: 0 | AA77: 21.43829956 | AB77: 31.3234163 | AC77: 3.051992207 | AD77: 43.71894444 | AF77: 78.09435295 | AG77: 9.799034135 | AI77: 9.799034135 | AJ77: 176.1663369 | AK77: 1 | AL77: 13 | AM77: 21.43829956 | AN77: 43.71894444 | AO77: 13 | AQ77: Technical Specialist | AR77: 132.5133333 | AT77: 135.75991 | AU77: 139.0860278 | AV77: 135.75991 | AW77: -3.326117795
M79: =SUM(M5:M77) -> 3435.184331 | N79: =SUM(N5:N77) -> 6593.12955 | O79: =SUM(O5:O77) -> 10028.31388
O80: =IF(O79-N79-M79<=0.1,"TRUE","FALSE") -> TRUE
... 1 more rows

Sheet Cover Sheet
C2: Model Details
C4: Model Name: | D4: TasNetworks (Ancillary Service Fees Model)

Sheet Model Information
B2: Process information
B3: The fees have been calculated using estimated average travel and task time and then applicable vehicle, material, overhead and supervision costs. These costs have been sourced from the business to reflect actual costs incurred carrying out the service or connection.
B6: This determination we have again included a margin equal to the distribution WACC.
B8: Overheads have been applied in 3 different ways using the CAM allocation: - Works and service hourly rate - Corporate Shared Costs that is applied on a spend allocation. - Supervision as a per task cost
B13: Because some services attract higher costs of managing, staffing and organising a premium is included in the price.
B16: Assumptions
B17: Task times are an average of actual time to complete the service. This is a best estimate by the employees who work in the area, jobs will vary if there are access issues or technical issues to deal with therefore a average is used.
B20: Travel time is an average for the different services and these times vary. For example tasks that are programmed to be completed resulting in areas being done during a day, creates efficiencies. Other one off premium services can be anywhere in the state therefore travel times can be significant resulting in a higher travel time average.
B24: Time spent by the customer team reflects an average amount of time spent on a request, this is then used to allocate their total annual budget for recovery.
B27: Volumes were received from the Customer team with connection splits based on 2016-17 actual data. Given there are many fees that are not very common a volume of 1 has been included so that a supervision fee is included in the cost build up.
B31: General
B32: Inputs are in $2016-17 unless otherwise stated

Sheet Unsmoothed Prices Real $2019-20
B2: (Real $2019-20)
B3: Total Fee | D3: Volumes | F3: Total Revenue
B5: 2019-20 | D5: ='Master Data'!$G14 -> 2019-20 | F5: ='Master Data'!$G14 -> 2019-20
B6: Base Fee | D6: Volumes | F6: Total Revenue
A7: ='Cost buildup Yr1'!B4 -> De-energisation, re-energisation, special reads and retail contract terminations
A8: ='Cost buildup Yr1'!C5 -> Site visit - no appointment - De-energisation, Re-energisation | B8: ='Cost buildup Yr1'!Y5*(1+'AER changes and input'!$B$20) -> 81.36585375 | D8: =IFERROR(VLOOKUP($A8,'Volumes - Report Summary'!$A:$I,MATCH(D$5,'Volumes - Report Summary'!$A$6:$I$6,0),FALSE),0) -> 30085.1728 | F8: =D8*B8 -> 2447905.77
A9: ='Cost buildup Yr1'!C6 -> Site visit - no appointment - special reads | B9: ='Cost buildup Yr1'!Y6*(1+'AER changes and input'!$B$20) -> 52.58885766 | D9: =IFERROR(VLOOKUP($A9,'Volumes - Report Summary'!$A:$I,MATCH(D$5,'Volumes - Report Summary'!$A$6:$I$6,0),FALSE),0) -> 24426.8272 | F9: 1284578.939
A10: ='Cost buildup Yr1'!C7 -> Site visit - non-scheduled visit | B10: ='Cost buildup Yr1'!Y7*(1+'AER changes and input'!$B$20) -> 134.4029463 | D10: =IFERROR(VLOOKUP($A10,'Volumes - Report Summary'!$A:$I,MATCH(D$5,'Volumes - Report Summary'!$A$6:$I$6,0),FALSE),0) -> 954 | F10: 128220.4108
A11: ='Cost buildup Yr1'!C8 -> Site visit - same day premium service | B11: ='Cost buildup Yr1'!Y8*(1+'AER changes and input'!$B$20) -> 207.2091722 | D11: =IFERROR(VLOOKUP($A11,'Volumes - Report Summary'!$A:$I,MATCH(D$5,'Volumes - Report Summary'!$A$6:$I$6,0),FALSE),0) -> 225 | F11: 46622.06375
A12: ='Cost buildup Yr1'!C9 -> Site visit - after hours | B12: ='Cost buildup Yr1'!Y9*(1+'AER changes and input'!$B$20) -> 291.1097167 | D12: =IFERROR(VLOOKUP($A12,'Volumes - Report Summary'!$A:$I,MATCH(D$5,'Volumes - Report Summary'!$A$6:$I$6,0),FALSE),0) -> 1 | F12: 291.1097167
A13: ='Cost buildup Yr1'!C10 -> Site visit - credit actions or site issues | B13: ='Cost buildup Yr1'!Y10*(1+'AER changes and input'!$B$20) -> 141.1267094 | D13: =IFERROR(VLOOKUP($A13,'Volumes - Report Summary'!$A:$I,MATCH(D$5,'Volumes - Report Summary'!$A$6:$I$6,0),FALSE),0) -> 1973 | F13: 278442.9976
A14: ='Cost buildup Yr1'!C11 -> Site visit – credit actions pillar box/pole top | B14: ='Cost buildup Yr1'!Y11*(1+'AER changes and input'!$B$20) -> 246.6423617 | D14: =IFERROR(VLOOKUP($A14,'Volumes - Report Summary'!$A:$I,MATCH(D$5,'Volumes - Report Summary'!$A$6:$I$6,0),FALSE),0) -> 219 | F14: 54014.67721
A15: ='Cost buildup Yr1'!C12 -> Site visit – current transformer (CT) metering | B15: ='Cost buildup Yr1'!Y12*(1+'AER changes and input'!$B$20) -> 126.7382113 | D15: =IFERROR(VLOOKUP($A15,'Volumes - Report Summary'!$A:$I,MATCH(D$5,'Volumes - Report Summary'!$A$6:$I$6,0),FALSE),0) -> 5 | F15: 633.6910565
A16: ='Cost buildup Yr1'!C13 -> Site visit – pillar box/pole top | B16: ='Cost buildup Yr1'!Y13*(1+'AER changes and input'!$B$20) -> 246.6423617 | D16: =IFERROR(VLOOKUP($A16,'Volumes - Report Summary'!$A:$I,MATCH(D$5,'Volumes - Report Summary'!$A$6:$I$6,0),FALSE),0) -> 10 | F16: 2466.423617
A17: ='Cost buildup Yr1'!C14 -> Site visit - pillar box/pole top Wasted Visit | B17: ='Cost buildup Yr1'!Y14*(1+'AER changes and input'!$B$20) -> 141.1267094 | D17: =IFERROR(VLOOKUP($A17,'Volumes - Report Summary'!$A:$I,MATCH(D$5,'Volumes - Report Summary'!$A$6:$I$6,0),FALSE),0) -> 1 | F17: 141.1267094
A18: ='Cost buildup Yr1'!C15 -> Transfer of retailer | B18: ='Cost buildup Yr1'!Y15*(1+'AER changes and input'!$B$20) -> 0 | D18: =IFERROR(VLOOKUP($A18,'Volumes - Report Summary'!$A:$I,MATCH(D$5,'Volumes - Report Summary'!$A$6:$I$6,0),FALSE),0) -> 0 | F18: 0
A19: ='Cost buildup Yr1'!B16 -> Meter test
A20: ='Cost buildup Yr1'!C17 -> Meter test - single phase | B20: ='Cost buildup Yr1'!Y17*(1+'AER changes and input'!$B$20) -> 259.7245608 | D20: =IFERROR(VLOOKUP($A20,'Volumes - Report Summary'!$A:$I,MATCH(D$5,'Volumes - Report Summary'!$A$6:$I$6,0),FALSE),0) -> 17 | F20: =D20*B20 -> 4415.317533
A21: ='Cost buildup Yr1'!C18 -> Meter test - multi phase | B21: ='Cost buildup Yr1'!Y18*(1+'AER changes and input'!$B$20) -> 512.6150606 | D21: =IFERROR(VLOOKUP($A21,'Volumes - Report Summary'!$A:$I,MATCH(D$5,'Volumes - Report Summary'!$A$6:$I$6,0),FALSE),0) -> 4 | F21: =D21*B21 -> 2050.460242
A22: ='Cost buildup Yr1'!C19 -> Meter test – current transformer (CT) | B22: ='Cost buildup Yr1'!Y19*(1+'AER changes and input'!$B$20) -> 568.8129494 | D22: =IFERROR(VLOOKUP($A22,'Volumes - Report Summary'!$A:$I,MATCH(D$5,'Volumes - Report Summary'!$A$6:$I$6,0),FALSE),0) -> 4 | F22: =D22*B22 -> 2275.251798
A23: ='Cost buildup Yr1'!C20 -> Meter test - after hours | B23: ='Cost buildup Yr1'!Y20*(1+'AER changes and input'!$B$20) -> 878.5579424 | D23: =IFERROR(VLOOKUP($A23,'Volumes - Report Summary'!$A:$I,MATCH(D$5,'Volumes - Report Summary'!$A$6:$I$6,0),FALSE),0) -> 1 | F23: =D23*B23 -> 878.5579424
A24: ='Cost buildup Yr1'!C21 -> Meter test - wasted visit | B24: ='Cost buildup Yr1'!Y21*(1+'AER changes and input'!$B$20) -> 91.13089421 | D24: =IFERROR(VLOOKUP($A24,'Volumes - Report Summary'!$A:$I,MATCH(D$5,'Volumes - Report Summary'!$A$6:$I$6,0),FALSE),0) -> 1 | F24: =D24*B24 -> 91.13089421
A25: ='Cost buildup Yr1'!B22 -> Supply abolishment
A26: ='Cost buildup Yr1'!C23 -> Remove service & meters | B26: ='Cost buildup Yr1'!Y23*(1+'AER changes and input'!$B$20) -> 250.7427982 | D26: =IFERROR(VLOOKUP($A26,'Volumes - Report Summary'!$A:$I,MATCH(D$5,'Volumes - Report Summary'!$A$6:$I$6,0),FALSE),0) -> 336 | F26: =D26*B26 -> 84249.58021
A27: ='Cost buildup Yr1'!C24 -> Supply abolishment - after hours | B27: ='Cost buildup Yr1'!Y24*(1+'AER changes and input'!$B$20) -> 567.3863166 | D27: =IFERROR(VLOOKUP($A27,'Volumes - Report Summary'!$A:$I,MATCH(D$5,'Volumes - Report Summary'!$A$6:$I$6,0),FALSE),0) -> 1 | F27: =D27*B27 -> 567.3863166
A28: ='Cost buildup Yr1'!C25 -> Supply abolishment - wasted visit | B28: ='Cost buildup Yr1'!Y25*(1+'AER changes and input'!$B$20) -> 154.8194779 | D28: =IFERROR(VLOOKUP($A28,'Volumes - Report Summary'!$A:$I,MATCH(D$5,'Volumes - Report Summary'!$A$6:$I$6,0),FALSE),0) -> 24 | F28: =D28*B28 -> 3715.667471
A29: ='Cost buildup Yr1'!B26 -> Tee-up
A30: ='Cost buildup Yr1'!C27 -> Tee-up/Appointment | B30: ='Cost buildup Yr1'!Y27*(1+'AER changes and input'!$B$20) -> 148.6955952 | D30: =IFERROR(VLOOKUP($A30,'Volumes - Report Summary'!$A:$I,MATCH(D$5,'Volumes - Report Summary'!$A$6:$I$6,0),FALSE),0) -> 3300 | F30: =D30*B30 -> 490695.4643
A31: ='Cost buildup Yr1'!C28 -> Tee-up/Appointment – after hours | B31: ='Cost buildup Yr1'!Y28*(1+'AER changes and input'!$B$20) -> 663.7203897 | D31: =IFERROR(VLOOKUP($A31,'Volumes - Report Summary'!$A:$I,MATCH(D$5,'Volumes - Report Summary'!$A$6:$I$6,0),FALSE),0) -> 1 | F31: =D31*B31 -> 663.7203897
A32: ='Cost buildup Yr1'!C29 -> Tee-up/Appointment – no truck – after hours | B32: ='Cost buildup Yr1'!Y29*(1+'AER changes and input'!$B$20) -> 340.5266432 | D32: =IFERROR(VLOOKUP($A32,'Volumes - Report Summary'!$A:$I,MATCH(D$5,'Volumes - Report Summary'!$A$6:$I$6,0),FALSE),0) -> 1 | F32: =D32*B32 -> 340.5266432
A33: ='Cost buildup Yr1'!C30 -> Tee-up/Appointment – wasted visit | B33: ='Cost buildup Yr1'!Y30*(1+'AER changes and input'!$B$20) -> 92.4977064 | D33: =IFERROR(VLOOKUP($A33,'Volumes - Report Summary'!$A:$I,MATCH(D$5,'Volumes - Report Summary'!$A$6:$I$6,0),FALSE),0) -> 200 | F33: =D33*B33 -> 18499.54128
A34: ='Cost buildup Yr1'!B31 -> Miscellaneous service
A35: ='Cost buildup Yr1'!C32 -> Open turret | B35: ='Cost buildup Yr1'!Y32*(1+'AER changes and input'!$B$20) -> 133.2793108 | D35: =IFERROR(VLOOKUP($A35,'Volumes - Report Summary'!$A:$I,MATCH(D$5,'Volumes - Report Summary'!$A$6:$I$6,0),FALSE),0) -> 3 | F35: =D35*B35 -> 399.8379325
A36: ='Cost buildup Yr1'!C33 -> Data download | B36: ='Cost buildup Yr1'!Y33*(1+'AER changes and input'!$B$20) -> 287.8235052 | D36: =IFERROR(VLOOKUP($A36,'Volumes - Report Summary'!$A:$I,MATCH(D$5,'Volumes - Report Summary'!$A$6:$I$6,0),FALSE),0) -> 3 | F36: 863.4705156
A37: ='Cost buildup Yr1'!C34 -> Alteration to unmetered supply | B37: ='Cost buildup Yr1'!Y34*(1+'AER changes and input'!$B$20) -> 217.5761441 | D37: =IFERROR(VLOOKUP($A37,'Volumes - Report Summary'!$A:$I,MATCH(D$5,'Volumes - Report Summary'!$A$6:$I$6,0),FALSE),0) -> 3 | F37: 652.7284324
A38: ='Cost buildup Yr1'!C35 -> Meter Relocation | B38: ='Cost buildup Yr1'!Y35*(1+'AER changes and input'!$B$20) -> 189.4771997 | D38: =IFERROR(VLOOKUP($A38,'Volumes - Report Summary'!$A:$I,MATCH(D$5,'Volumes - Report Summary'!$A$6:$I$6,0),FALSE),0) -> 3 | F38: 568.4315991
A39: ='Cost buildup Yr1'!C36 -> Tiger tails - standard single/multi phase | B39: ='Cost buildup Yr1'!Y36*(1+'AER changes and input'!$B$20) -> 741.9387379 | D39: =IFERROR(VLOOKUP($A39,'Volumes - Report Summary'!$A:$I,MATCH(D$5,'Volumes - Report Summary'!$A$6:$I$6,0),FALSE),0) -> 3 | F39: 2225.816214
A40: ='Cost buildup Yr1'!C37 -> Tiger tails - scaffolding single phase | B40: ='Cost buildup Yr1'!Y37*(1+'AER changes and input'!$B$20) -> 1183.001544 | D40: =IFERROR(VLOOKUP($A40,'Volumes - Report Summary'!$A:$I,MATCH(D$5,'Volumes - Report Summary'!$A$6:$I$6,0),FALSE),0) -> 3 | F40: 3549.004632
A41: ='Cost buildup Yr1'!C38 -> Tiger tails - scaffolding multi phase | B41: ='Cost buildup Yr1'!Y38*(1+'AER changes and input'!$B$20) -> 1295.397322 | D41: =IFERROR(VLOOKUP($A41,'Volumes - Report Summary'!$A:$I,MATCH(D$5,'Volumes - Report Summary'!$A$6:$I$6,0),FALSE),0) -> 3 | F41: 3886.191965
A42: ='Cost buildup Yr1'!C39 -> Miscellaneous service | B42: ='Cost buildup Yr1'!Y39*(1+'AER changes and input'!$B$20) -> 119.2298386 | D42: =IFERROR(VLOOKUP($A42,'Volumes - Report Summary'!$A:$I,MATCH(D$5,'Volumes - Report Summary'!$A$6:$I$6,0),FALSE),0) -> 6 | F42: 715.3790318
A43: ='Cost buildup Yr1'!C40 -> Miscellaneous service – after hours | B43: ='Cost buildup Yr1'!Y40*(1+'AER changes and input'!$B$20) -> 519.4537796 | D43: =IFERROR(VLOOKUP($A43,'Volumes - Report Summary'!$A:$I,MATCH(D$5,'Volumes - Report Summary'!$A$6:$I$6,0),FALSE),0) -> 3 | F43: 1558.361339
A44: ='Cost buildup Yr1'!C41 -> Miscellaneous service – wasted visit | B44: ='Cost buildup Yr1'!Y41*(1+'AER changes and input'!$B$20) -> 91.13089421 | D44: =IFERROR(VLOOKUP($A44,'Volumes - Report Summary'!$A:$I,MATCH(D$5,'Volumes - Report Summary'!$A$6:$I$6,0),FALSE),0) -> 3 | F44: 273.3926826
A45: ='Cost buildup Yr1'!C42 -> Administration | B45: ='Cost buildup Yr1'!Y42*(1+'AER changes and input'!$B$20) -> 52.1336495 | D45: =IFERROR(VLOOKUP($A45,'Volumes - Report Summary'!$A:$I,MATCH(D$5,'Volumes - Report Summary'!$A$6:$I$6,0),FALSE),0) -> 2 | F45: 104.267299
A46: ='Cost buildup Yr1'!C43 -> Statutory right - access prevented | B46: ='Cost buildup Yr1'!Y43*(1+'AER changes and input'!$B$20) -> 1300.997186 | D46: =IFERROR(VLOOKUP($A46,'Volumes - Report Summary'!$A:$I,MATCH(D$5,'Volumes - Report Summary'!$A$6:$I$6,0),FALSE),0) -> 1 | F46: 1300.997186
A47: ='Cost buildup Yr1'!C44 -> Tariff change | B47: ='Cost buildup Yr1'!Y44*(1+'AER changes and input'!$B$20) -> 52.1336495 | D47: =IFERROR(VLOOKUP($A47,'Volumes - Report Summary'!$A:$I,MATCH(D$5,'Volumes - Report Summary'!$A$6:$I$6,0),FALSE),0) -> 1 | F47: 52.1336495
A48: ='Cost buildup Yr1'!C45 -> Emergency maintenance contestable meters | B48: ='Cost buildup Yr1'!Y45*(1+'AER changes and input'!$B$20) -> 57.4121609 | D48: =IFERROR(VLOOKUP($A48,'Volumes - Report Summary'!$A:$I,MATCH(D$5,'Volumes - Report Summary'!$A$6:$I$6,0),FALSE),0) -> 1 | F48: 57.4121609
A49: ='Cost buildup Yr1'!C46 -> Emergency maintenance contestable meters - after hours | B49: ='Cost buildup Yr1'!Y46*(1+'AER changes and input'!$B$20) -> 339.9016982 | D49: =IFERROR(VLOOKUP($A49,'Volumes - Report Summary'!$A:$I,MATCH(D$5,'Volumes - Report Summary'!$A$6:$I$6,0),FALSE),0) -> 1 | F49: 339.9016982
A50: ='Cost buildup Yr1'!C47 -> Meter recovery and disposal | B50: ='Cost buildup Yr1'!Y47*(1+'AER changes and input'!$B$20) -> 105.1803664 | D50: =IFERROR(VLOOKUP($A50,'Volumes - Report Summary'!$A:$I,MATCH(D$5,'Volumes - Report Summary'!$A$6:$I$6,0),FALSE),0) -> 1 | F50: 105.1803664
A51: ='Cost buildup Yr1'!B48 -> Connection establishment charges
A52: ='Cost buildup Yr1'!C49 -> Creation of a NMI | B52: ='Cost buildup Yr1'!Y49*(1+'AER changes and input'!$B$20) -> 42.52700691 | D52: =IFERROR(VLOOKUP($A52,'Volumes - Report Summary'!$A:$I,MATCH(D$5,'Volumes - Report Summary'!$A$6:$I$6,0),FALSE),0) -> 1 | F52: =D52*B52 -> 42.52700691
A53: ='Cost buildup Yr1'!C50 -> Overhead service, single span - single phase | B53: ='Cost buildup Yr1'!Y50*(1+'AER changes and input'!$B$20) -> 677.9072531 | D53: =IFERROR(VLOOKUP($A53,'Volumes - Report Summary'!$A:$I,MATCH(D$5,'Volumes - Report Summary'!$A$6:$I$6,0),FALSE),0) -> 319 | F53: 216252.4137
A54: ='Cost buildup Yr1'!C51 -> Overhead service, single span - multi phase | B54: ='Cost buildup Yr1'!Y51*(1+'AER changes and input'!$B$20) -> 997.4134115 | D54: =IFERROR(VLOOKUP($A54,'Volumes - Report Summary'!$A:$I,MATCH(D$5,'Volumes - Report Summary'!$A$6:$I$6,0),FALSE),0) -> 110 | F54: 109715.4753
A55: ='Cost buildup Yr1'!C52 -> Underground service in turret/cabinet - single phase | B55: ='Cost buildup Yr1'!Y52*(1+'AER changes and input'!$B$20) -> 188.2319835 | D55: =IFERROR(VLOOKUP($A55,'Volumes - Report Summary'!$A:$I,MATCH(D$5,'Volumes - Report Summary'!$A$6:$I$6,0),FALSE),0) -> 1669 | F55: 314159.1805
A56: ='Cost buildup Yr1'!C53 -> Underground service in turret/cabinet - multi phase | B56: ='Cost buildup Yr1'!Y53*(1+'AER changes and input'!$B$20) -> 248.2040145 | D56: =IFERROR(VLOOKUP($A56,'Volumes - Report Summary'!$A:$I,MATCH(D$5,'Volumes - Report Summary'!$A$6:$I$6,0),FALSE),0) -> 332 | F56: 82403.73282
A57: ='Cost buildup Yr1'!C54 -> Underground service with pole mounted fuse - single phase | B57: ='Cost buildup Yr1'!Y54*(1+'AER changes and input'!$B$20) -> 480.3014782 | D57: =IFERROR(VLOOKUP($A57,'Volumes - Report Summary'!$A:$I,MATCH(D$5,'Volumes - Report Summary'!$A$6:$I$6,0),FALSE),0) -> 379 | F57: 182034.2602
A58: ='Cost buildup Yr1'!C55 -> Underground service with pole mounted fuse - multi phase | B58: ='Cost buildup Yr1'!Y55*(1+'AER changes and input'!$B$20) -> 618.6141864 | D58: =IFERROR(VLOOKUP($A58,'Volumes - Report Summary'!$A:$I,MATCH(D$5,'Volumes - Report Summary'!$A$6:$I$6,0),FALSE),0) -> 151 | F58: 93410.74215
A59: ='Cost buildup Yr1'!C56 -> Basic connection – after hours | B59: ='Cost buildup Yr1'!Y56*(1+'AER changes and input'!$B$20) -> 1051.339999 | D59: =IFERROR(VLOOKUP($A59,'Volumes - Report Summary'!$A:$I,MATCH(D$5,'Volumes - Report Summary'!$A$6:$I$6,0),FALSE),0) -> 1 | F59: 1051.339999
A60: ='Cost buildup Yr1'!C57 -> Connection establishment - wasted visit | B60: ='Cost buildup Yr1'!Y57*(1+'AER changes and input'!$B$20) -> 158.2632806 | D60: =IFERROR(VLOOKUP($A60,'Volumes - Report Summary'!$A:$I,MATCH(D$5,'Volumes - Report Summary'!$A$6:$I$6,0),FALSE),0) -> 1 | F60: 158.2632806
A61: ='Cost buildup Yr1'!B58 -> Temporary Disconnection/Reconnection
A62: ='Cost buildup Yr1'!C59 -> Disconnect/reconnect overhead service for facia repairs - single phase | B62: ='Cost buildup Yr1'!Y59*(1+'AER changes and input'!$B$20) -> 465.984857 | D62: =IFERROR(VLOOKUP($A62,'Volumes - Report Summary'!$A:$I,MATCH(D$5,'Volumes - Report Summary'!$A$6:$I$6,0),FALSE),0) -> 20 | F62: =D62*B62 -> 9319.697141
A63: ='Cost buildup Yr1'!C60 -> Disconnect/reconnect overhead service for facia repairs - multi phase | B63: ='Cost buildup Yr1'!Y60*(1+'AER changes and input'!$B$20) -> 578.3806347 | D63: =IFERROR(VLOOKUP($A63,'Volumes - Report Summary'!$A:$I,MATCH(D$5,'Volumes - Report Summary'!$A$6:$I$6,0),FALSE),0) -> 20 | F63: =D63*B63 -> 11567.61269
A64: ='Cost buildup Yr1'!C61 -> Temporary disconnect/reconnect – retailer requested outage | B64: ='Cost buildup Yr1'!Y61*(1+'AER changes and input'!$B$20) -> 409.7869682 | D64: =IFERROR(VLOOKUP($A64,'Volumes - Report Summary'!$A:$I,MATCH(D$5,'Volumes - Report Summary'!$A$6:$I$6,0),FALSE),0) -> 1 | F64: =D64*B64 -> 409.7869682
A65: ='Cost buildup Yr1'!C62 -> Temporary disconnect/reconnect – after hours | B65: ='Cost buildup Yr1'!Y62*(1+'AER changes and input'!$B$20) -> 882.9325574 | D65: =IFERROR(VLOOKUP($A65,'Volumes - Report Summary'!$A:$I,MATCH(D$5,'Volumes - Report Summary'!$A$6:$I$6,0),FALSE),0) -> 1 | F65: =D65*B65 -> 882.9325574
A66: ='Cost buildup Yr1'!C63 -> Temporary disconnect/reconnect – wasted visit | B66: ='Cost buildup Yr1'!Y63*(1+'AER changes and input'!$B$20) -> 184.9954128 | D66: =IFERROR(VLOOKUP($A66,'Volumes - Report Summary'!$A:$I,MATCH(D$5,'Volumes - Report Summary'!$A$6:$I$6,0),FALSE),0) -> 1 | F66: =D66*B66 -> 184.9954128
A67: ='Cost buildup Yr1'!B64 -> Basic connection alteration
A68: ='Cost buildup Yr1'!C65 -> Connection alteration – overhead single phase | B68: ='Cost buildup Yr1'!Y65*(1+'AER changes and input'!$B$20) -> 354.9558915 | D68: =IFERROR(VLOOKUP($A68,'Volumes - Report Summary'!$A:$I,MATCH(D$5,'Volumes - Report Summary'!$A$6:$I$6,0),FALSE),0) -> 712 | F68: =D68*B68 -> 252728.5948
A69: ='Cost buildup Yr1'!C66 -> Connection alteration – overhead multi phase | B69: ='Cost buildup Yr1'!Y66*(1+'AER changes and input'!$B$20) -> 467.3516692 | D69: =IFERROR(VLOOKUP($A69,'Volumes - Report Summary'!$A:$I,MATCH(D$5,'Volumes - Report Summary'!$A$6:$I$6,0),FALSE),0) -> 154 | F69: 71972.15706
A70: ='Cost buildup Yr1'!C67 -> Connection of new consumer mains to an existing installation – underground single phase to turret | B70: ='Cost buildup Yr1'!Y67*(1+'AER changes and input'!$B$20) -> 214.4611694 | D70: =IFERROR(VLOOKUP($A70,'Volumes - Report Summary'!$A:$I,MATCH(D$5,'Volumes - Report Summary'!$A$6:$I$6,0),FALSE),0) -> 39 | F70: 8363.985607
A71: ='Cost buildup Yr1'!C68 -> Connection of new consumer mains to an existing installation – underground single phase to pole | B71: ='Cost buildup Yr1'!Y68*(1+'AER changes and input'!$B$20) -> 411.1537804 | D71: =IFERROR(VLOOKUP($A71,'Volumes - Report Summary'!$A:$I,MATCH(D$5,'Volumes - Report Summary'!$A$6:$I$6,0),FALSE),0) -> 218 | F71: 89631.52412
A72: ='Cost buildup Yr1'!C69 -> Connection of new consumer mains to an existing installation – underground multi phase to turret | B72: ='Cost buildup Yr1'!Y69*(1+'AER changes and input'!$B$20) -> 270.6590583 | D72: =IFERROR(VLOOKUP($A72,'Volumes - Report Summary'!$A:$I,MATCH(D$5,'Volumes - Report Summary'!$A$6:$I$6,0),FALSE),0) -> 39 | F72: 10555.70327
A73: ='Cost buildup Yr1'!C70 -> Connection of new consumer mains to an existing installation – underground multi phase to pole | B73: ='Cost buildup Yr1'!Y70*(1+'AER changes and input'!$B$20) -> 523.5495581 | D73: =IFERROR(VLOOKUP($A73,'Volumes - Report Summary'!$A:$I,MATCH(D$5,'Volumes - Report Summary'!$A$6:$I$6,0),FALSE),0) -> 177 | F73: 92668.27178
A74: ='Cost buildup Yr1'!C71 -> Augment single phase overhead service to multi phase supply | B74: ='Cost buildup Yr1'!Y71*(1+'AER changes and input'!$B$20) -> 1081.710245 | D74: =IFERROR(VLOOKUP($A74,'Volumes - Report Summary'!$A:$I,MATCH(D$5,'Volumes - Report Summary'!$A$6:$I$6,0),FALSE),0) -> 6 | F74: 6490.261469
A75: ='Cost buildup Yr1'!C72 -> Augment multi phase overhead service to single phase supply | B75: ='Cost buildup Yr1'!Y72*(1+'AER changes and input'!$B$20) -> 762.2040864 | D75: =IFERROR(VLOOKUP($A75,'Volumes - Report Summary'!$A:$I,MATCH(D$5,'Volumes - Report Summary'!$A$6:$I$6,0),FALSE),0) -> 51 | F75: 38872.40841
A76: ='Cost buildup Yr1'!C73 -> Augment single phase overhead service to underground supply (turret) | B76: ='Cost buildup Yr1'!Y73*(1+'AER changes and input'!$B$20) -> 441.1224833 | D76: =IFERROR(VLOOKUP($A76,'Volumes - Report Summary'!$A:$I,MATCH(D$5,'Volumes - Report Summary'!$A$6:$I$6,0),FALSE),0) -> 62 | F76: 27349.59397
A77: ='Cost buildup Yr1'!C74 -> Augment multi phase overhead service to underground supply (turret) | B77: ='Cost buildup Yr1'!Y74*(1+'AER changes and input'!$B$20) -> 553.518261 | D77: =IFERROR(VLOOKUP($A77,'Volumes - Report Summary'!$A:$I,MATCH(D$5,'Volumes - Report Summary'!$A$6:$I$6,0),FALSE),0) -> 35 | F77: 19373.13914
A78: ='Cost buildup Yr1'!C75 -> Augment single phase overhead service to underground supply (pole) | B78: ='Cost buildup Yr1'!Y75*(1+'AER changes and input'!$B$20) -> 564.5983115 | D78: =IFERROR(VLOOKUP($A78,'Volumes - Report Summary'!$A:$I,MATCH(D$5,'Volumes - Report Summary'!$A$6:$I$6,0),FALSE),0) -> 4 | F78: 2258.393246
A79: ='Cost buildup Yr1'!C76 -> Augment multi phase overhead service to underground supply (pole) | B79: ='Cost buildup Yr1'!Y76*(1+'AER changes and input'!$B$20) -> 702.9110197 | D79: =IFERROR(VLOOKUP($A79,'Volumes - Report Summary'!$A:$I,MATCH(D$5,'Volumes - Report Summary'!$A$6:$I$6,0),FALSE),0) -> 3 | F79: 2108.733059
A80: ='Cost buildup Yr1'!C77 -> Basic connection alteration – after hours | B80: ='Cost buildup Yr1'!Y77*(1+'AER changes and input'!$B$20) -> 1134.930416 | D80: =IFERROR(VLOOKUP($A80,'Volumes - Report Summary'!$A:$I,MATCH(D$5,'Volumes - Report Summary'!$A$6:$I$6,0),FALSE),0) -> 1 | F80: 1134.930416
A81: ='Cost buildup Yr1'!C78 -> Basic connection wasted visit | B81: ='Cost buildup Yr1'!Y78*(1+'AER changes and input'!$B$20) -> 172.3127528 | D81: =IFERROR(VLOOKUP($A81,'Volumes - Report Summary'!$A:$I,MATCH(D$5,'Volumes - Report Summary'!$A$6:$I$6,0),FALSE),0) -> 1 | F81: 172.3127528
D84: =SUM(D7:D83) -> 66338 | F84: =SUM(F7:F83) -> 6513685.29

Sheet Master Data
A3: Year | C3: Base +2 | D3: Year 1 | E3: Year 2 | F3: Year 3 | G3: Year 4 | H3: Year 5
C5: 2018-19 | D5: 2019-20 | E5: 2020-21 | F5: 2021-22 | G5: 2022-23 | H5: 2023-24
C7: 2019-06-30 | D7: 2020-06-30 | E7: 2021-06-30 | F7: 2022-06-30 | G7: 2023-06-30 | H7: 2024-06-30
A8: Index | E8: =E7-D7 -> 365 | F8: 365 | G8: 365 | H8: 366
A9: Inflation rate | C9: =$C$22 -> 0.0245 | D9: 0.0245 | E9: 0.0245 | F9: 0.0245 | G9: 0.0245 | H9: 0.0245
D13: Base | E13: Base +1 | F13: Base +2 | G13: ='Master Data'!D3 -> Year 1 | H13: ='Master Data'!E3 -> Year 2 | I13: ='Master Data'!F3 -> Year 3 | J13: ='Master Data'!G3 -> Year 4 | K13: ='Master Data'!H3 -> Year 5
D14: 2016-17 | E14: 2017-18 | F14: 2018-19 | G14: 2019-20 | H14: 2020-21 | I14: 2021-22 | J14: 2022-23 | K14: ='Master Data'!H5 -> 2023-24
A15: CPI (consistent with AER RFM) | D15: 0.0213 | E15: ='Master Data'!$C$22 -> 0.0245 | F15: ='Master Data'!$C$22 -> 0.0245 | G15: ='Master Data'!$C$22 -> 0.0245 | H15: ='Master Data'!$C$22 -> 0.0245 | I15: ='Master Data'!$C$22 -> 0.0245 | J15: ='Master Data'!$C$22 -> 0.0245 | K15: ='Master Data'!$C$22 -> 0.0245
A16: Cumulative CPI from 2016-17 | D16: 1 | E16: =D16*(1+E15) -> 1.0245 | F16: =E16*(1+F15) -> 1.04960025 | G16: =F16*(1+G15) -> 1.075315456 | H16: 1.101660685 | I16: 1.128651372 | J16: =I16*(1+J15) -> 1.15630333 | K16: =J16*(1+K$15) -> 1.184632762
A17: Cumulative CPI from 2017-18 | D17: =E17*(1-E$15) -> 0.9755 | E17: 1 | F17: =E17*(1+F15) -> 1.0245 | G17: =F17*(1+G15) -> 1.04960025 | H17: =G17*(1+H15) -> 1.075315456 | I17: 1.101660685 | J17: 1.128651372 | K17: =J17*(1+K$15) -> 1.15630333
A18: Cumulative CPI from 2018-19 | D18: =E18*(1-E$15) -> 0.95160025 | E18: =F18*(1-F$15) -> 0.9755 | F18: 1 | G18: =F18*(1+G$15) -> 1.0245 | H18: =G18*(1+H$15) -> 1.04960025 | I18: 1.075315456 | J18: 1.101660685 | K18: 1.128651372
A19: Cumulative CPI from 2019-20 | D19: =E19*(1-E$15) -> 0.9282860439 | E19: =F19*(1-F$15) -> 0.95160025 | F19: =G19*(1-G$15) -> 0.9755 | G19: 1 | H19: =G19*(1+H$15) -> 1.0245 | I19: =H19*(1+I$15) -> 1.04960025 | J19: =I19*(1+J$15) -> 1.075315456 | K19: =J19*(1+K$15) -> 1.101660685
A21: General
A22: Inflation Rate (f) | C22: 0.0245
A23: Nominal Tax Rate | C23: 0.3
A24: WACC | C24: 0.0589
A25: Real Labour Cost Escalation Factor (Jacobs Report) | C25: 0.0049
A27: 2017-18 Prices as published
A28: De-energisation, re-energisation and special reads
A29: Site visit - no appointment | D29: 59.53
A30: Site visit - non-scheduled visit | D30: 131.59
A31: Site visit - same day premium service | D31: 222.84
A32: Site visit - after hours | D32: 350.32
A33: Site visit - credit actions or site issues | D33: 138.47
A34: Site visit – credit actions pillar box/pole top | D34: 248.47
A35: Site visit – current transformer (CT) metering | D35: 129.03
A36: Site visit – pillar box/pole top | D36: 248.47
A37: Site visit - pillar box/pole top Wasted Visit | D37: 148.13
A38: Transfer of retailer | D38: 0
A39: Meter alteration
A40: Remove meter - single phase | D40: 139.88
A41: Remove meter - multi phase | D41: 183.33
A42: Meter alteration - after hours visit | D42: 429.47
A43: Meter alteration Wasted Visit | D43: 85.58
A44: Tariff change
A45: Meter test
A46: Meter test - single phase | D46: 215.91
A47: Meter test - multi phase | D47: 411.38
A48: Meter test – current transformer (CT) | D48: 454.83
A49: Meter test - after hours | D49: 825.24
A50: Meter test - wasted visit | D50: 85.58
A51: Supply abolishment
A52: Remove service & meters | D52: 260.72
A53: Supply abolishment - after hours | D53: 655.77
A54: Supply abolishment - wasted visit | D54: 169.51
A55: Truck tee-up
A56: Tee-up/Appointment | D56: 146.27
A57: Tee-up/Appointment – after hours | D57: 655.77
A58: Tee-up/Appointment – no truck – after hours | D58: 350.32
A59: Tee-up/Appointment – wasted visit | D59: 95.94
A60: Miscellaneous service
A61: Open turret | D61: 137.77
A62: Data download | D62: 276.2
A63: Alteration to unmetered supply | D63: 213.28
A64: Meter Relocation | D64: 165.69
A65: Tiger tails
A66: Tiger tails
A67: Tiger tails
A68: Miscellaneous service | D68: 125.19
A69: Miscellaneous service – after hours | D69: 559.33
A70: Miscellaneous service – wasted visit | D70: 100.01
A71: Administration
A72: Statutory right - access prevented
A73: Tariff change
A74: Emergency maintenance contestable meters
A75: Emergency maintenance contestable meters - after hours
A76: Meter recovery and disposal
A77: Basic Connection establishment charges (including temporary builders supply)
A78: Creation of a NMI
A79: Overhead service, single span - single phase | D79: 551.02
A80: Overhead service, single span - multi phase | D80: 777.13
A81: Underground service in turret/cabinet - single phase | D81: 180.57
A82: Underground service in turret/cabinet - multi phase | D82: 226.46
A83: Underground service with pole mounted fuse - single phase | D83: 422.33
A84: Underground service with pole mounted fuse - multi phase | D84: 530.44
A85: Basic connection – after hours | D85: 1010.36
A86: Connection establishment - wasted visit | D86: 154.43
A87: Renewable energy connection
A88: Modify existing connection for micro embedded generation - single phase | D88: 171.17
A89: Modify existing connection for micro embedded generation - multi phase | D89: 214.61
A90: Renewable energy connection - after hours | D90: 809.11
A91: Renewable energy connection – wasted visit | D91: 116.87
A92: Temporary Disconnection/Reconnection
A93: Disconnect/reconnect overhead service for facia repairs - single phase | D93: 322.67
A94: Disconnect/reconnect overhead service for facia repairs - multi phase | D94: 413.89
A95: Disconnect/reconnect overhead service for facia repairs - retailer requested outage
A96: Temporary disconnect/reconnect – after hours | D96: 852.57
A97: Temporary disconnect/reconnect – wasted visit | D97: 185.85
A98: Basic connection alteration
A99: Connection alteration – overhead single phase | D99: 322.67
A100: Connection alteration – overhead multi phase | D100: 413.89
A101: Connection of new consumer mains to an existing installation – underground single phase to turret or pole | D101: 225.21
A102: Connection of new consumer mains to an existing installation – underground multi phase to turret or pole | D102: 275.55
A103: Augment single phase overhead service to multi phase supply | D103: 845.55
A104: Augment multi phase overhead service to single phase supply | D104: 619.44
A105: Augment single phase overhead service to underground supply (turret) | D105: 392.32
A106: Augment multi phase overhead service to underground supply (turret) | D106: 483.53
A107: Augment single phase overhead service to underground supply (pole) | D107: 490.75
A108: Augment multi phase overhead service to underground supply (pole) | D108: 598.84
A109: Basic connection alteration – after hours | D109: 1082.17
A110: Basic connection wasted visit | D110: 174.45

Sheet Cost buildup Yr1
AB1: ='Master Data'!G14 -> 2019-20 | AC1: ='Master Data'!H14 -> 2020-21 | AD1: ='Master Data'!I14 -> 2021-22 | AE1: ='Master Data'!J14 -> 2022-23 | AF1: ='Master Data'!K14 -> 2023-24
D2: $18/19 | E2: Direct Inputs | T2: TOTAL | U2: Overheads | Y2: TOTAL FEE | AB2: =SUM(AB5:AB79) -> 66338 | AC2: =SUM(AC5:AC79) -> 64138 | AD2: =SUM(AD5:AD79) -> 61938 | AE2: 59738 | AF2: 57538
B3: Service group | C3: Service type | E3: Task time (mins) | F3: Travel time (mins) | G3: Total Mins Per Person | H3: Total Mins | I3: No. of Crew | J3: Crew 1 Skill Level | K3: Crew 2 Skill Level | L3: Labour Cost | M3: Type of Connection | N3: Material Cost | O3: Vehicle Type | P3: Other Direct Costs | Q3: Premium Service | R3: Premium service cost | S3: Administration cost | T3: Total Direct Inputs | U3: Direct labour overheads (61% AER Benchmarked rate) | V3: Vehicle overhead $20 direct cost | W3: Other OH | X3: Total Overheads | Y3: Total Fee | AA3: Customer task time | AB3: Volumes | AC3: Volumes | AD3: Volumes | AE3: Volumes | AF3: Volumes | AH3: AER Labour categorisation | AI3: AER Approved Fee for 19-20 (lower of AER maximum fee and TN proposed fee except where MJ recommended no change) | AJ3: TN Revised Proposal 19-20
A4: X | B4: De-energisation, re-energisation, special reads and retail contract terminations | AI4: Draft Decision/AER Max | AJ4: Revised proposal
B5: De-energistion, re-energisation and special reads | C5: Site visit - no appointment - De-energisation, Re-energisation | G5: 30 | H5: =G5 -> 30 | I5: 1 | J5: Field Worker | L5: =(IF(I5>=1,IF(I5>=2,VLOOKUP(J5,'Salary Calculation'!$I$6:$L$15,3,FALSE)/60*(G5)+VLOOKUP(K5,'Salary Calculation'!$I$6:$L$15,3,FALSE)/60*(G5),VLOOKUP(J5,'Salary Calculation'!$I$6:$L$15,3,FALSE)/60*(G5)),0)) -> 37.405 | M5: No materials charged | N5: =VLOOKUP(M5,'Lookups & OH allocation'!$B$124:$D$136,3,FALSE) -> 0 | O5: Ute/Utility | Q5: Normal | R5: =L5*VLOOKUP(Q5,'Lookups & OH allocation'!$B$55:$C$59,2,FALSE) -> 0 | S5: =AA5*'Lookups & OH allocation'!$C$35/60 -> 4.14324875 | T5: =SUM(L5,N5,P5,R5,S5) -> 41.54824875 | U5: =(T5+S5)*'Salary Calculation'!$J$2 -> 27.87181347 | V5: =IF(J5="Administration",0,H5/60*'Salary Calculation'!$J$3) -> 10 | X5: =SUM(U5:W5) -> 37.87181347 | Y5: =T5+X5 -> 79.42006222 | AA5: =IFERROR(VLOOKUP(D5,'Back Office Time'!$B$5:$G$20,4,FALSE),VLOOKUP(B5,'Back Office Time'!$B$5:$G$20,4,FALSE)) -> 5 | AB5: =IFERROR(VLOOKUP($C5,'Volumes - Report Summary'!$A:$I,MATCH(AB$1,'Volumes - Report Summary'!$A$6:$I$6,0),FALSE),0) -> 30085.1728 | AC5: =IFERROR(VLOOKUP($C5,'Volumes - Report Summary'!$A:$I,MATCH(AC$1,'Volumes - Report Summary'!$A$6:$I$6,0),FALSE),0) -> 28937.2208 | AD5: =IFERROR(VLOOKUP($C5,'Volumes - Report Summary'!$A:$I,MATCH(AD$1,'Volumes - Report Summary'!$A$6:$I$6,0),FALSE),0) -> 27788.7169 | AE5: =IFERROR(VLOOKUP($C5,'Volumes - Report Summary'!$A:$I,MATCH(AE$1,'Volumes - Report Summary'!$A$6:$I$6,0),FALSE),0) -> 26641.3168 | AF5: =IFERROR(VLOOKUP($C5,'Volumes - Report Summary'!$A:$I,MATCH(AF$1,'Volumes - Report Summary'!$A$6:$I$6,0),FALSE),0) -> 25493.3648 | AH5: Field Worker | AI5: 71.95 | AJ5: =Y5*'Master Data'!$G$18 -> 81.36585375
B6: De-energistion, re-energisation and special reads | C6: Site visit - no appointment - special reads | E6: 8 | F6: 10 | G6: =SUM(E6:F6) -> 18 | H6: =SUM(E6:F6)*I6 -> 18 | I6: 1 | J6: =AH6 -> Field Worker | L6: =(IF(I6>=1,IF(I6>=2,VLOOKUP(J6,'Salary Calculation'!$I$6:$L$15,3,FALSE)/60*(G6)+VLOOKUP(K6,'Salary Calculation'!$I$6:$L$15,3,FALSE)/60*(G6),VLOOKUP(J6,'Salary Calculation'!$I$6:$L$15,3,FALSE)/60*(G6)),0)) -> 22.443 | M6: No materials charged | N6: =VLOOKUP(M6,'Lookups & OH allocation'!$B$124:$D$136,3,FALSE) -> 0 | O6: Ute/Utility | Q6: Normal | R6: =L6*VLOOKUP(Q6,'Lookups & OH allocation'!$B$55:$C$59,2,FALSE) -> 0 | S6: =AA6*'Lookups & OH allocation'!$C$35/60 -> 4.14324875 | T6: =SUM(L6,N6,P6,R6,S6) -> 26.58624875 | U6: =(T6+S6)*'Salary Calculation'!$J$2 -> 18.74499348 | V6: =IF(J6="Administration",0,H6/60*'Salary Calculation'!$J$3) -> 6 | X6: 24.74499348 | Y6: =T6+X6 -> 51.33124223 | AA6: =IFERROR(VLOOKUP(D6,'Back Office Time'!$B$5:$G$20,4,FALSE),VLOOKUP(B6,'Back Office Time'!$B$5:$G$20,4,FALSE)) -> 5 | AB6: =IFERROR(VLOOKUP($C6,'Volumes - Report Summary'!$A:$I,MATCH(AB$1,'Volumes - Report Summary'!$A$6:$I$6,0),FALSE),0) -> 24426.8272 | AC6: =IFERROR(VLOOKUP($C6,'Volumes - Report Summary'!$A:$I,MATCH(AC$1,'Volumes - Report Summary'!$A$6:$I$6,0),FALSE),0) -> 23494.7792 | AD6: =IFERROR(VLOOKUP($C6,'Volumes - Report Summary'!$A:$I,MATCH(AD$1,'Volumes - Report Summary'!$A$6:$I$6,0),FALSE),0) -> 22562.2831 | AE6: =IFERROR(VLOOKUP($C6,'Volumes - Report Summary'!$A:$I,MATCH(AE$1,'Volumes - Report Summary'!$A$6:$I$6,0),FALSE),0) -> 21630.6832 | AF6: =IFERROR(VLOOKUP($C6,'Volumes - Report Summary'!$A:$I,MATCH(AF$1,'Volumes - Report Summary'!$A$6:$I$6,0),FALSE),0) -> 20698.6352 | AH6: Field Worker | AI6: 43.17243 | AJ6: =Y6*'Master Data'!$G$18 -> 52.58885766
B7: De-energistion, re-energisation and special reads | C7: Site visit - non-scheduled visit | E7: 8 | F7: 40 | G7: =SUM(E7:F7) -> 48 | H7: 48 | I7: 1 | J7: =AH7 -> Field Worker | L7: =(IF(I7>=1,IF(I7>=2,VLOOKUP(J7,'Salary Calculation'!$I$6:$L$15,3,FALSE)/60*(G7)+VLOOKUP(K7,'Salary Calculation'!$I$6:$L$15,3,FALSE)/60*(G7),VLOOKUP(J7,'Salary Calculation'!$I$6:$L$15,3,FALSE)/60*(G7)),0)) -> 59.848 | M7: No materials charged | N7: =VLOOKUP(M7,'Lookups & OH allocation'!$B$124:$D$136,3,FALSE) -> 0 | O7: Ute/Utility | Q7: Non-scheduled Visit | R7: =L7*VLOOKUP(Q7,'Lookups & OH allocation'!$B$55:$C$59,2,FALSE) -> 5.9848 | S7: =AA7*'Lookups & OH allocation'!$C$35/60 -> 4.14324875 | T7: 69.97604875 | U7: =(T7+S7)*'Salary Calculation'!$J$2 -> 45.21277147 | V7: =IF(J7="Administration",0,H7/60*'Salary Calculation'!$J$3) -> 16 | X7: 61.21277147 | Y7: 131.1888202 | AA7: =IFERROR(VLOOKUP(D7,'Back Office Time'!$B$5:$G$20,4,FALSE),VLOOKUP(B7,'Back Office Time'!$B$5:$G$20,4,FALSE)) -> 5 | AB7: =IFERROR(VLOOKUP($C7,'Volumes - Report Summary'!$A:$I,MATCH(AB$1,'Volumes - Report Summary'!$A$6:$I$6,0),FALSE),0) -> 954 | AC7: =IFERROR(VLOOKUP($C7,'Volumes - Report Summary'!$A:$I,MATCH(AC$1,'Volumes - Report Summary'!$A$6:$I$6,0),FALSE),0) -> 918 | AD7: =IFERROR(VLOOKUP($C7,'Volumes - Report Summary'!$A:$I,MATCH(AD$1,'Volumes - Report Summary'!$A$6:$I$6,0),FALSE),0) -> 882 | AE7: =IFERROR(VLOOKUP($C7,'Volumes - Report Summary'!$A:$I,MATCH(AE$1,'Volumes - Report Summary'!$A$6:$I$6,0),FALSE),0) -> 845 | AF7: =IFERROR(VLOOKUP($C7,'Volumes - Report Summary'!$A:$I,MATCH(AF$1,'Volumes - Report Summary'!$A$6:$I$6,0),FALSE),0) -> 809 | AH7: Field Worker | AI7: 120.9939807 | AJ7: =Y7*'Master Data'!$G$18 -> 134.4029463
B8: De-energistion, re-energisation and special reads | C8: Site visit - same day premium service | D8: Premium Services | E8: 8 | F8: 60 | G8: 68 | H8: 68 | I8: 1 | J8: =AH8 -> Field Worker | L8: =(IF(I8>=1,IF(I8>=2,VLOOKUP(J8,'Salary Calculation'!$I$6:$L$15,3,FALSE)/60*(G8)+VLOOKUP(K8,'Salary Calculation'!$I$6:$L$15,3,FALSE)/60*(G8),VLOOKUP(J8,'Salary Calculation'!$I$6:$L$15,3,FALSE)/60*(G8)),0)) -> 84.78466667 | M8: No materials charged | N8: =VLOOKUP(M8,'Lookups & OH allocation'!$B$124:$D$136,3,FALSE) -> 0 | O8: Ute/Utility | Q8: Same Day Premium | R8: =L8*VLOOKUP(Q8,'Lookups & OH allocation'!$B$55:$C$59,2,FALSE) -> 8.478466667 | S8: =AA8*'Lookups & OH allocation'!$C$35/60 -> 13.258396 | T8: 106.5215293 | U8: =(T8+S8)*'Salary Calculation'!$J$2 -> 73.06575445 | V8: =IF(J8="Administration",0,H8/60*'Salary Calculation'!$J$3) -> 22.66666667 | X8: 95.73242112 | Y8: 202.2539505 | AA8: =IFERROR(VLOOKUP(D8,'Back Office Time'!$B$5:$G$20,4,FALSE),VLOOKUP(B8,'Back Office Time'!$B$5:$G$20,4,FALSE)) -> 16 | AB8: =IFERROR(VLOOKUP($C8,'Volumes - Report Summary'!$A:$I,MATCH(AB$1,'Volumes - Report Summary'!$A$6:$I$6,0),FALSE),0) -> 225 | AC8: =IFERROR(VLOOKUP($C8,'Volumes - Report Summary'!$A:$I,MATCH(AC$1,'Volumes - Report Summary'!$A$6:$I$6,0),FALSE),0) -> 225 | AD8: =IFERROR(VLOOKUP($C8,'Volumes - Report Summary'!$A:$I,MATCH(AD$1,'Volumes - Report Summary'!$A$6:$I$6,0),FALSE),0) -> 225 | AE8: =IFERROR(VLOOKUP($C8,'Volumes - Report Summary'!$A:$I,MATCH(AE$1,'Volumes - Report Summary'!$A$6:$I$6,0),FALSE),0) -> 225 | AF8: =IFERROR(VLOOKUP($C8,'Volumes - Report Summary'!$A:$I,MATCH(AF$1,'Volumes - Report Summary'!$A$6:$I$6,0),FALSE),0) -> 225 | AH8: Field Worker | AI8: 171.41 | AJ8: =Y8*'Master Data'!$G$18 -> 207.2091722
B9: De-energistion, re-energisation and special reads | C9: Site visit - after hours | D9: after hours | E9: 30 | F9: 60 | G9: 90 | H9: 90 | I9: 1 | J9: Field Worker AH | L9: =(IF(I9>=1,IF(I9>=2,VLOOKUP(J9,'Salary Calculation'!$I$6:$L$15,3,FALSE)/60*(G9)+VLOOKUP(K9,'Salary Calculation'!$I$6:$L$15,3,FALSE)/60*(G9),VLOOKUP(J9,'Salary Calculation'!$I$6:$L$15,3,FALSE)/60*(G9)),0)) -> 187.39905 | M9: No materials charged | N9: =VLOOKUP(M9,'Lookups & OH allocation'!$B$124:$D$136,3,FALSE) -> 0 | O9: Ute/Utility | Q9: After Hours | R9: =L9*VLOOKUP(Q9,'Lookups & OH allocation'!$B$55:$C$59,2,FALSE) -> 9.3699525 | S9: =AA9*'Lookups & OH allocation'!$C$35/60 -> 13.258396 | T9: 210.0273985 | U9: =H9*'Salary Calculation'!K9*'Salary Calculation'!$J$2/100+AA5*'Salary Calculation'!$J$2 -> 44.12069 | V9: =IF(J9="Administration",0,H9/60*'Salary Calculation'!$J$3) -> 30 | X9: 74.12069 | Y9: 284.1480885 | AA9: =IFERROR(VLOOKUP(D9,'Back Office Time'!$B$5:$G$20,4,FALSE),VLOOKUP(B9,'Back Office Time'!$B$5:$G$20,4,FALSE)) -> 16 | AB9: =IFERROR(VLOOKUP($C9,'Volumes - Report Summary'!$A:$I,MATCH(AB$1,'Volumes - Report Summary'!$A$6:$I$6,0),FALSE),0) -> 1 | AC9: =IFERROR(VLOOKUP($C9,'Volumes - Report Summary'!$A:$I,MATCH(AC$1,'Volumes - Report Summary'!$A$6:$I$6,0),FALSE),0) -> 1 | AD9: =IFERROR(VLOOKUP($C9,'Volumes - Report Summary'!$A:$I,MATCH(AD$1,'Volumes - Report Summary'!$A$6:$I$6,0),FALSE),0) -> 1 | AE9: =IFERROR(VLOOKUP($C9,'Volumes - Report Summary'!$A:$I,MATCH(AE$1,'Volumes - Report Summary'!$A$6:$I$6,0),FALSE),0) -> 1 | AF9: =IFERROR(VLOOKUP($C9,'Volumes - Report Summary'!$A:$I,MATCH(AF$1,'Volumes - Report Summary'!$A$6:$I$6,0),FALSE),0) -> 1 | AH9: Field Worker AH | AI9: 301.6682715 | AJ9: =Y9*'Master Data'!$G$18 -> 291.1097167
B10: De-energistion, re-energisation and special reads | C10: Site visit - credit actions or site issues | E10: 8 | F10: 20 | G10: 28 | H10: 56 | I10: 2 | J10: Field Worker | K10: Field Worker | L10: =(IF(I10>=1,IF(I10>=2,VLOOKUP(J10,'Salary Calculation'!$I$6:$L$15,3,FALSE)/60*(G10)+VLOOKUP(K10,'Salary Calculation'!$I$6:$L$15,3,FALSE)/60*(G10),VLOOKUP(J10,'Salary Calculation'!$I$6:$L$15,3,FALSE)/60*(G10)),0)) -> 69.82266667 | M10: No materials charged | N10: =VLOOKUP(M10,'Lookups & OH allocation'!$B$124:$D$136,3,FALSE) -> 0 | O10: Ute/Utility | Q10: Normal | R10: =L10*VLOOKUP(Q10,'Lookups & OH allocation'!$B$55:$C$59,2,FALSE) -> 0 | S10: =AA10*'Lookups & OH allocation'!$C$35/60 -> 4.14324875 | T10: 73.96591542 | U10: =(T10)*'Salary Calculation'!$J$2 -> 45.1192084 | V10: =IF(J10="Administration",0,H10/60*'Salary Calculation'!$J$3) -> 18.66666667 | X10: 63.78587507 | Y10: 137.7517905 | AA10: =IFERROR(VLOOKUP(D10,'Back Office Time'!$B$5:$G$20,4,FALSE),VLOOKUP(B10,'Back Office Time'!$B$5:$G$20,4,FALSE)) -> 5 | AB10: =IFERROR(VLOOKUP($C10,'Volumes - Report Summary'!$A:$I,MATCH(AB$1,'Volumes - Report Summary'!$A$6:$I$6,0),FALSE),0) -> 1973 | AC10: =IFERROR(VLOOKUP($C10,'Volumes - Report Summary'!$A:$I,MATCH(AC$1,'Volumes - Report Summary'!$A$6:$I$6,0),FALSE),0) -> 1898 | AD10: =IFERROR(VLOOKUP($C10,'Volumes - Report Summary'!$A:$I,MATCH(AD$1,'Volumes - Report Summary'!$A$6:$I$6,0),FALSE),0) -> 1823 | AE10: =IFERROR(VLOOKUP($C10,'Volumes - Report Summary'!$A:$I,MATCH(AE$1,'Volumes - Report Summary'!$A$6:$I$6,0),FALSE),0) -> 1747 | AF10: =IFERROR(VLOOKUP($C10,'Volumes - Report Summary'!$A:$I,MATCH(AF$1,'Volumes - Report Summary'!$A$6:$I$6,0),FALSE),0) -> 1672 | AH10: Field Worker | AI10: 134.29829 | AJ10: =Y10*'Master Data'!$G$18 -> 141.1267094
B11: De-energistion, re-energisation and special reads | C11: Site visit – credit actions pillar box/pole top | E11: 30 | F11: 20 | G11: 50 | H11: 100 | I11: 2 | J11: Field Worker | K11: Field Worker | L11: =(IF(I11>=1,IF(I11>=2,VLOOKUP(J11,'Salary Calculation'!$I$6:$L$15,3,FALSE)/60*(G11)+VLOOKUP(K11,'Salary Calculation'!$I$6:$L$15,3,FALSE)/60*(G11),VLOOKUP(J11,'Salary Calculation'!$I$6:$L$15,3,FALSE)/60*(G11)),0)) -> 124.6833333 | M11: No materials charged | N11: =VLOOKUP(M11,'Lookups & OH allocation'!$B$124:$D$136,3,FALSE) -> 0 | O11: Truck | Q11: Normal | R11: =L11*VLOOKUP(Q11,'Lookups & OH allocation'!$B$55:$C$59,2,FALSE) -> 0 | S11: =AA11*'Lookups & OH allocation'!$C$35/60 -> 4.14324875 | T11: 128.8265821 | U11: =(T11)*'Salary Calculation'!$J$2 -> 78.58421507 | V11: =IF(J11="Administration",0,H11/60*'Salary Calculation'!$J$3) -> 33.33333333 | X11: 111.9175484 | Y11: 240.7441305 | AA11: =IFERROR(VLOOKUP(D11,'Back Office Time'!$B$5:$G$20,4,FALSE),VLOOKUP(B11,'Back Office Time'!$B$5:$G$20,4,FALSE)) -> 5 | AB11: =IFERROR(VLOOKUP($C11,'Volumes - Report Summary'!$A:$I,MATCH(AB$1,'Volumes - Report Summary'!$A$6:$I$6,0),FALSE),0) -> 219 | AC11: =IFERROR(VLOOKUP($C11,'Volumes - Report Summary'!$A:$I,MATCH(AC$1,'Volumes - Report Summary'!$A$6:$I$6,0),FALSE),0) -> 210 | AD11: =IFERROR(VLOOKUP($C11,'Volumes - Report Summary'!$A:$I,MATCH(AD$1,'Volumes - Report Summary'!$A$6:$I$6,0),FALSE),0) -> 202 | AE11: =IFERROR(VLOOKUP($C11,'Volumes - Report Summary'!$A:$I,MATCH(AE$1,'Volumes - Report Summary'!$A$6:$I$6,0),FALSE),0) -> 194 | AF11: =IFERROR(VLOOKUP($C11,'Volumes - Report Summary'!$A:$I,MATCH(AF$1,'Volumes - Report Summary'!$A$6:$I$6,0),FALSE),0) -> 185 | AH11: Field Worker | AI11: 239.818375 | AJ11: =Y11*'Master Data'!$G$18 -> 246.6423617
B12: De-energistion, re-energisation and special reads | C12: Site visit – current transformer (CT) metering | E12: 30 | F12: 20 | G12: 50 | H12: 50 | I12: 1 | J12: Field Worker | L12: =(IF(I12>=1,IF(I12>=2,VLOOKUP(J12,'Salary Calculation'!$I$6:$L$15,3,FALSE)/60*(G12)+VLOOKUP(K12,'Salary Calculation'!$I$6:$L$15,3,FALSE)/60*(G12),VLOOKUP(J12,'Salary Calculation'!$I$6:$L$15,3,FALSE)/60*(G12)),0)) -> 62.34166667 | M12: No materials charged | N12: =VLOOKUP(M12,'Lookups & OH allocation'!$B$124:$D$136,3,FALSE) -> 0 | O12: Ute/Utility | Q12: Normal | R12: =L12*VLOOKUP(Q12,'Lookups & OH allocation'!$B$55:$C$59,2,FALSE) -> 0 | S12: =AA12*'Lookups & OH allocation'!$C$35/60 -> 4.14324875 | T12: 66.48491542 | U12: =(T12)*'Salary Calculation'!$J$2 -> 40.5557984 | V12: =IF(J12="Administration",0,H12/60*'Salary Calculation'!$J$3) -> 16.66666667 | X12: 57.22246507 | Y12: 123.7073805 | AA12: =IFERROR(VLOOKUP(D12,'Back Office Time'!$B$5:$G$20,4,FALSE),VLOOKUP(B12,'Back Office Time'!$B$5:$G$20,4,FALSE)) -> 5 | AB12: =IFERROR(VLOOKUP($C12,'Volumes - Report Summary'!$A:$I,MATCH(AB$1,'Volumes - Report Summary'!$A$6:$I$6,0),FALSE),0) -> 5 | AC12: =IFERROR(VLOOKUP($C12,'Volumes - Report Summary'!$A:$I,MATCH(AC$1,'Volumes - Report Summary'!$A$6:$I$6,0),FALSE),0) -> 5 | AD12: =IFERROR(VLOOKUP($C12,'Volumes - Report Summary'!$A:$I,MATCH(AD$1,'Volumes - Report Summary'!$A$6:$I$6,0),FALSE),0) -> 5 | AE12: =IFERROR(VLOOKUP($C12,'Volumes - Report Summary'!$A:$I,MATCH(AE$1,'Volumes - Report Summary'!$A$6:$I$6,0),FALSE),0) -> 5 | AF12: =IFERROR(VLOOKUP($C12,'Volumes - Report Summary'!$A:$I,MATCH(AF$1,'Volumes - Report Summary'!$A$6:$I$6,0),FALSE),0) -> 5 | AH12: Field Worker | AI12: 119.9091875 | AJ12: =Y12*'Master Data'!$G$18 -> 126.7382113
B13: De-energistion, re-energisation and special reads | C13: Site visit – pillar box/pole top | E13: 30 | F13: 20 | G13: 50 | H13: 100 | I13: 2 | J13: Field Worker | K13: Field Worker | L13: =(IF(I13>=1,IF(I13>=2,VLOOKUP(J13,'Salary Calculation'!$I$6:$L$15,3,FALSE)/60*(G13)+VLOOKUP(K13,'Salary Calculation'!$I$6:$L$15,3,FALSE)/60*(G13),VLOOKUP(J13,'Salary Calculation'!$I$6:$L$15,3,FALSE)/60*(G13)),0)) -> 124.6833333 | M13: No materials charged | N13: =VLOOKUP(M13,'Lookups & OH allocation'!$B$124:$D$136,3,FALSE) -> 0 | O13: Truck | Q13: Normal | R13: =L13*VLOOKUP(Q13,'Lookups & OH allocation'!$B$55:$C$59,2,FALSE) -> 0 | S13: =AA13*'Lookups & OH allocation'!$C$35/60 -> 4.14324875 | T13: 128.8265821 | U13: =(T13)*'Salary Calculation'!$J$2 -> 78.58421507 | V13: =IF(J13="Administration",0,H13/60*'Salary Calculation'!$J$3) -> 33.33333333 | X13: 111.9175484 | Y13: 240.7441305 | AA13: =IFERROR(VLOOKUP(D13,'Back Office Time'!$B$5:$G$20,4,FALSE),VLOOKUP(B13,'Back Office Time'!$B$5:$G$20,4,FALSE)) -> 5 | AB13: =IFERROR(VLOOKUP($C13,'Volumes - Report Summary'!$A:$I,MATCH(AB$1,'Volumes - Report Summary'!$A$6:$I$6,0),FALSE),0) -> 10 | AC13: =IFERROR(VLOOKUP($C13,'Volumes - Report Summary'!$A:$I,MATCH(AC$1,'Volumes - Report Summary'!$A$6:$I$6,0),FALSE),0) -> 10 | AD13: =IFERROR(VLOOKUP($C13,'Volumes - Report Summary'!$A:$I,MATCH(AD$1,'Volumes - Report Summary'!$A$6:$I$6,0),FALSE),0) -> 10 | AE13: =IFERROR(VLOOKUP($C13,'Volumes - Report Summary'!$A:$I,MATCH(AE$1,'Volumes - Report Summary'!$A$6:$I$6,0),FALSE),0) -> 10 | AF13: =IFERROR(VLOOKUP($C13,'Volumes - Report Summary'!$A:$I,MATCH(AF$1,'Volumes - Report Summary'!$A$6:$I$6,0),FALSE),0) -> 10 | AH13: Field Worker | AI13: 239.818375 | AJ13: =Y13*'Master Data'!$G$18 -> 246.6423617
B14: De-energistion, re-energisation and special reads | C14: Site visit - pillar box/pole top Wasted Visit | E14: 8 | F14: 20 | G14: 28 | H14: 56 | I14: 2 | J14: Field Worker | K14: Field Worker | L14: =(IF(I14>=1,IF(I14>=2,VLOOKUP(J14,'Salary Calculation'!$I$6:$L$15,3,FALSE)/60*(G14)+VLOOKUP(K14,'Salary Calculation'!$I$6:$L$15,3,FALSE)/60*(G14),VLOOKUP(J14,'Salary Calculation'!$I$6:$L$15,3,FALSE)/60*(G14)),0)) -> 69.82266667 | M14: No materials charged | N14: =VLOOKUP(M14,'Lookups & OH allocation'!$B$124:$D$136,3,FALSE) -> 0 | O14: Truck | Q14: Normal | R14: =L14*VLOOKUP(Q14,'Lookups & OH allocation'!$B$55:$C$59,2,FALSE) -> 0 | S14: =AA14*'Lookups & OH allocation'!$C$35/60 -> 4.14324875 | T14: 73.96591542 | U14: =(T14)*'Salary Calculation'!$J$2 -> 45.1192084 | V14: =IF(J14="Administration",0,H14/60*'Salary Calculation'!$J$3) -> 18.66666667 | X14: 63.78587507 | Y14: 137.7517905 | AA14: =IFERROR(VLOOKUP(D14,'Back Office Time'!$B$5:$G$20,4,FALSE),VLOOKUP(B14,'Back Office Time'!$B$5:$G$20,4,FALSE)) -> 5 | AB14: =IFERROR(VLOOKUP($C14,'Volumes - Report Summary'!$A:$I,MATCH(AB$1,'Volumes - Report Summary'!$A$6:$I$6,0),FALSE),0) -> 1 | AC14: =IFERROR(VLOOKUP($C14,'Volumes - Report Summary'!$A:$I,MATCH(AC$1,'Volumes - Report Summary'!$A$6:$I$6,0),FALSE),0) -> 1 | AD14: =IFERROR(VLOOKUP($C14,'Volumes - Report Summary'!$A:$I,MATCH(AD$1,'Volumes - Report Summary'!$A$6:$I$6,0),FALSE),0) -> 1 | AE14: =IFERROR(VLOOKUP($C14,'Volumes - Report Summary'!$A:$I,MATCH(AE$1,'Volumes - Report Summary'!$A$6:$I$6,0),FALSE),0) -> 1 | AF14: =IFERROR(VLOOKUP($C14,'Volumes - Report Summary'!$A:$I,MATCH(AF$1,'Volumes - Report Summary'!$A$6:$I$6,0),FALSE),0) -> 1 | AH14: Field Worker | AI14: 134.29829 | AJ14: =Y14*'Master Data'!$G$18 -> 141.1267094
B15: De-energistion, re-energisation and special reads | C15: Transfer of retailer | E15: 0 | F15: 0 | G15: 0 | H15: 0 | L15: =(IF(I15>=1,IF(I15>=2,VLOOKUP(J15,'Salary Calculation'!$I$6:$L$15,3,FALSE)/60*(G15)+VLOOKUP(K15,'Salary Calculation'!$I$6:$L$15,3,FALSE)/60*(G15),VLOOKUP(J15,'Salary Calculation'!$I$6:$L$15,3,FALSE)/60*(G15)),0)) -> 0 | M15: No materials charged | N15: =VLOOKUP(M15,'Lookups & OH allocation'!$B$124:$D$136,3,FALSE) -> 0 | O15: Ute/Utility | Q15: Normal | R15: =L15*VLOOKUP(Q15,'Lookups & OH allocation'!$B$55:$C$59,2,FALSE) -> 0 | S15: =AA15*'Lookups & OH allocation'!$C$35/60 -> 0 | T15: 0 | U15: =(T15)*'Salary Calculation'!$J$2 -> 0 | V15: =IF(J15="Administration",0,H15/60*'Salary Calculation'!$J$3) -> 0 | X15: 0 | Y15: 0 | AA15: 0 | AB15: =IFERROR(VLOOKUP($C15,'Volumes - Report Summary'!$A:$I,MATCH(AB$1,'Volumes - Report Summary'!$A$6:$I$6,0),FALSE),0) -> 0 | AC15: =IFERROR(VLOOKUP($C15,'Volumes - Report Summary'!$A:$I,MATCH(AC$1,'Volumes - Report Summary'!$A$6:$I$6,0),FALSE),0) -> 0 | AD15: =IFERROR(VLOOKUP($C15,'Volumes - Report Summary'!$A:$I,MATCH(AD$1,'Volumes - Report Summary'!$A$6:$I$6,0),FALSE),0) -> 0 | AE15: =IFERROR(VLOOKUP($C15,'Volumes - Report Summary'!$A:$I,MATCH(AE$1,'Volumes - Report Summary'!$A$6:$I$6,0),FALSE),0) -> 0 | AF15: =IFERROR(VLOOKUP($C15,'Volumes - Report Summary'!$A:$I,MATCH(AF$1,'Volumes - Report Summary'!$A$6:$I$6,0),FALSE),0) -> 0
A16: X | B16: Meter test | L16: =(IF(I16>=1,IF(I16>=2,VLOOKUP(J16,'Salary Calculation'!$I$6:$L$15,3,FALSE)/60*(G16)+VLOOKUP(K16,'Salary Calculation'!$I$6:$L$15,3,FALSE)/60*(G16),VLOOKUP(J16,'Salary Calculation'!$I$6:$L$15,3,FALSE)/60*(G16)),0)) -> 0 | V16: =IF(J16="Administration",0,H16/60*'Salary Calculation'!$J$3) -> 0
B17: Meter test | C17: Meter test - single phase | E17: 70 | F17: 20 | G17: =SUM(E17:F17) -> 90 | H17: =SUM(E17:F17)*I17 -> 90 | I17: 1 | J17: Technical Specialist - Outdoor | L17: =(IF(I17>=1,IF(I17>=2,VLOOKUP(J17,'Salary Calculation'!$I$6:$L$15,3,FALSE)/60*(G17)+VLOOKUP(K17,'Salary Calculation'!$I$6:$L$15,3,FALSE)/60*(G17),VLOOKUP(J17,'Salary Calculation'!$I$6:$L$15,3,FALSE)/60*(G17)),0)) -> 134.685 | M17: No materials charged | N17: =VLOOKUP(M17,'Lookups & OH allocation'!$B$124:$D$136,3,FALSE) -> 0 | O17: Ute/Utility | Q17: Normal | R17: =L17*VLOOKUP(Q17,'Lookups & OH allocation'!$B$55:$C$59,2,FALSE) -> 0 | S17: =AA17*'Lookups & OH allocation'!$C$35/60 -> 4.14324875 | T17: 138.8282488 | U17: =(T17)*'Salary Calculation'!$J$2 -> 84.68523174 | V17: =IF(J17="Administration",0,H17/60*'Salary Calculation'!$J$3) -> 30 | X17: =SUM(U17:W17) -> 114.6852317 | Y17: 253.5134805 | AA17: =IFERROR(VLOOKUP(D17,'Back Office Time'!$B$5:$G$20,4,FALSE),VLOOKUP(B17,'Back Office Time'!$B$5:$G$20,4,FALSE)) -> 5 | AB17: =IFERROR(VLOOKUP($C17,'Volumes - Report Summary'!$A:$I,MATCH(AB$1,'Volumes - Report Summary'!$A$6:$I$6,0),FALSE),0) -> 17 | AC17: =IFERROR(VLOOKUP($C17,'Volumes - Report Summary'!$A:$I,MATCH(AC$1,'Volumes - Report Summary'!$A$6:$I$6,0),FALSE),0) -> 17 | AD17: =IFERROR(VLOOKUP($C17,'Volumes - Report Summary'!$A:$I,MATCH(AD$1,'Volumes - Report Summary'!$A$6:$I$6,0),FALSE),0) -> 17 | AE17: =IFERROR(VLOOKUP($C17,'Volumes - Report Summary'!$A:$I,MATCH(AE$1,'Volumes - Report Summary'!$A$6:$I$6,0),FALSE),0) -> 17 | AF17: =IFERROR(VLOOKUP($C17,'Volumes - Report Summary'!$A:$I,MATCH(AF$1,'Volumes - Report Summary'!$A$6:$I$6,0),FALSE),0) -> 17 | AH17: Technical Specialist | AI17: 222.15 | AJ17: =Y17*'Master Data'!$G$18 -> 259.7245608
B18: Meter test | C18: Meter test - multi phase | E18: 160 | F18: 20 | G18: =SUM(E18:F18) -> 180 | H18: =SUM(E18:F18)*I18 -> 180 | I18: 1 | J18: Technical Specialist - Outdoor | L18: =(IF(I18>=1,IF(I18>=2,VLOOKUP(J18,'Salary Calculation'!$I$6:$L$15,3,FALSE)/60*(G18)+VLOOKUP(K18,'Salary Calculation'!$I$6:$L$15,3,FALSE)/60*(G18),VLOOKUP(J18,'Salary Calculation'!$I$6:$L$15,3,FALSE)/60*(G18)),0)) -> 269.37 | M18: No materials charged | N18: =VLOOKUP(M18,'Lookups & OH allocation'!$B$124:$D$136,3,FALSE) -> 0 | O18: Ute/Utility | Q18: Normal | R18: =L18*VLOOKUP(Q18,'Lookups & OH allocation'!$B$55:$C$59,2,FALSE) -> 0 | S18: =AA18*'Lookups & OH allocation'!$C$35/60 -> 4.14324875 | T18: 273.5132488 | U18: =(T18)*'Salary Calculation'!$J$2 -> 166.8430817 | V18: =IF(J18="Administration",0,H18/60*'Salary Calculation'!$J$3) -> 60 | X18: =SUM(U18:W18) -> 226.8430817 | Y18: 500.3563305 | AA18: =IFERROR(VLOOKUP(D18,'Back Office Time'!$B$5:$G$20,4,FALSE),VLOOKUP(B18,'Back Office Time'!$B$5:$G$20,4,FALSE)) -> 5 | AB18: =IFERROR(VLOOKUP($C18,'Volumes - Report Summary'!$A:$I,MATCH(AB$1,'Volumes - Report Summary'!$A$6:$I$6,0),FALSE),0) -> 4 | AC18: =IFERROR(VLOOKUP($C18,'Volumes - Report Summary'!$A:$I,MATCH(AC$1,'Volumes - Report Summary'!$A$6:$I$6,0),FALSE),0) -> 4 | AD18: =IFERROR(VLOOKUP($C18,'Volumes - Report Summary'!$A:$I,MATCH(AD$1,'Volumes - Report Summary'!$A$6:$I$6,0),FALSE),0) -> 4 | AE18: =IFERROR(VLOOKUP($C18,'Volumes - Report Summary'!$A:$I,MATCH(AE$1,'Volumes - Report Summary'!$A$6:$I$6,0),FALSE),0) -> 4 | AF18: =IFERROR(VLOOKUP($C18,'Volumes - Report Summary'!$A:$I,MATCH(AF$1,'Volumes - Report Summary'!$A$6:$I$6,0),FALSE),0) -> 4 | AH18: Technical Specialist | AI18: 444.31 | AJ18: =Y18*'Master Data'!$G$18 -> 512.6150606
B19: Meter test | C19: Meter test – current transformer (CT) | E19: 180 | F19: 20 | G19: =SUM(E19:F19) -> 200 | H19: =SUM(E19:F19)*I19 -> 200 | I19: 1 | J19: Technical Specialist - Outdoor | L19: =(IF(I19>=1,IF(I19>=2,VLOOKUP(J19,'Salary Calculation'!$I$6:$L$15,3,FALSE)/60*(G19)+VLOOKUP(K19,'Salary Calculation'!$I$6:$L$15,3,FALSE)/60*(G19),VLOOKUP(J19,'Salary Calculation'!$I$6:$L$15,3,FALSE)/60*(G19)),0)) -> 299.3 | M19: No materials charged | N19: =VLOOKUP(M19,'Lookups & OH allocation'!$B$124:$D$136,3,FALSE) -> 0 | O19: Ute/Utility | Q19: Normal | R19: =L19*VLOOKUP(Q19,'Lookups & OH allocation'!$B$55:$C$59,2,FALSE) -> 0 | S19: =AA19*'Lookups & OH allocation'!$C$35/60 -> 4.14324875 | T19: 303.4432488 | U19: =(T19)*'Salary Calculation'!$J$2 -> 185.1003817 | V19: =IF(J19="Administration",0,H19/60*'Salary Calculation'!$J$3) -> 66.66666667 | X19: =SUM(U19:W19) -> 251.7670484 | Y19: 555.2102972 | AA19: =IFERROR(VLOOKUP(D19,'Back Office Time'!$B$5:$G$20,4,FALSE),VLOOKUP(B19,'Back Office Time'!$B$5:$G$20,4,FALSE)) -> 5 | AB19: =IFERROR(VLOOKUP($C19,'Volumes - Report Summary'!$A:$I,MATCH(AB$1,'Volumes - Report Summary'!$A$6:$I$6,0),FALSE),0) -> 4 | AC19: =IFERROR(VLOOKUP($C19,'Volumes - Report Summary'!$A:$I,MATCH(AC$1,'Volumes - Report Summary'!$A$6:$I$6,0),FALSE),0) -> 4 | AD19: =IFERROR(VLOOKUP($C19,'Volumes - Report Summary'!$A:$I,MATCH(AD$1,'Volumes - Report Summary'!$A$6:$I$6,0),FALSE),0) -> 4 | AE19: =IFERROR(VLOOKUP($C19,'Volumes - Report Summary'!$A:$I,MATCH(AE$1,'Volumes - Report Summary'!$A$6:$I$6,0),FALSE),0) -> 4 | AF19: =IFERROR(VLOOKUP($C19,'Volumes - Report Summary'!$A:$I,MATCH(AF$1,'Volumes - Report Summary'!$A$6:$I$6,0),FALSE),0) -> 4 | AH19: Technical Specialist | AI19: 493.67 | AJ19: =Y19*'Master Data'!$G$18 -> 568.8129494
B20: Meter test | C20: Meter test - after hours | D20: after hours | E20: 180 | F20: 60 | G20: =SUM(E20:F20) -> 240 | H20: =SUM(E20:F20)*I20 -> 240 | I20: 1 | J20: Technical Specialist - Outdoor AH | L20: =(IF(I20>=1,IF(I20>=2,VLOOKUP(J20,'Salary Calculation'!$I$6:$L$15,3,FALSE)/60*(G20)+VLOOKUP(K20,'Salary Calculation'!$I$6:$L$15,3,FALSE)/60*(G20),VLOOKUP(J20,'Salary Calculation'!$I$6:$L$15,3,FALSE)/60*(G20)),0)) -> 599.7972 | M20: No materials charged | N20: =VLOOKUP(M20,'Lookups & OH allocation'!$B$124:$D$136,3,FALSE) -> 0 | O20: Ute/Utility | Q20: After Hours | R20: =L20*VLOOKUP(Q20,'Lookups & OH allocation'!$B$55:$C$59,2,FALSE) -> 29.98986 | S20: =AA20*'Lookups & OH allocation'!$C$35/60 -> 13.258396 | T20: 643.045456 | U20: =H20*'Salary Calculation'!$K$13*'Salary Calculation'!$J$2/100+AA17*'Salary Calculation'!$J$2 -> 134.50256 | V20: =IF(J20="Administration",0,H20/60*'Salary Calculation'!$J$3) -> 80 | X20: =SUM(U20:W20) -> 214.50256 | Y20: 857.548016 | AA20: =IFERROR(VLOOKUP(D20,'Back Office Time'!$B$5:$G$20,4,FALSE),VLOOKUP(B20,'Back Office Time'!$B$5:$G$20,4,FALSE)) -> 16 | AB20: =IFERROR(VLOOKUP($C20,'Volumes - Report Summary'!$A:$I,MATCH(AB$1,'Volumes - Report Summary'!$A$6:$I$6,0),FALSE),0) -> 1 | AC20: =IFERROR(VLOOKUP($C20,'Volumes - Report Summary'!$A:$I,MATCH(AC$1,'Volumes - Report Summary'!$A$6:$I$6,0),FALSE),0) -> 1 | AD20: =IFERROR(VLOOKUP($C20,'Volumes - Report Summary'!$A:$I,MATCH(AD$1,'Volumes - Report Summary'!$A$6:$I$6,0),FALSE),0) -> 1 | AE20: =IFERROR(VLOOKUP($C20,'Volumes - Report Summary'!$A:$I,MATCH(AE$1,'Volumes - Report Summary'!$A$6:$I$6,0),FALSE),0) -> 1 | AF20: =IFERROR(VLOOKUP($C20,'Volumes - Report Summary'!$A:$I,MATCH(AF$1,'Volumes - Report Summary'!$A$6:$I$6,0),FALSE),0) -> 1 | AH20: Technical Specialist AH | AI20: 862.42 | AJ20: =Y20*'Master Data'!$G$18 -> 878.5579424
B21: Meter test | C21: Meter test - wasted visit | E21: 10 | F21: 20 | G21: =SUM(E21:F21) -> 30 | H21: =SUM(E21:F21)*I21 -> 30 | I21: 1 | J21: Technical Specialist - Outdoor | L21: =(IF(I21>=1,IF(I21>=2,VLOOKUP(J21,'Salary Calculation'!$I$6:$L$15,3,FALSE)/60*(G21)+VLOOKUP(K21,'Salary Calculation'!$I$6:$L$15,3,FALSE)/60*(G21),VLOOKUP(J21,'Salary Calculation'!$I$6:$L$15,3,FALSE)/60*(G21)),0)) -> 44.895 | M21: No materials charged | N21: =VLOOKUP(M21,'Lookups & OH allocation'!$B$124:$D$136,3,FALSE) -> 0 | O21: Ute/Utility | Q21: Normal | R21: =L21*VLOOKUP(Q21,'Lookups & OH allocation'!$B$55:$C$59,2,FALSE) -> 0 | S21: =AA21*'Lookups & OH allocation'!$C$35/60 -> 4.14324875 | T21: 49.03824875 | U21: =(T21)*'Salary Calculation'!$J$2 -> 29.91333174 | V21: =IF(J21="Administration",0,H21/60*'Salary Calculation'!$J$3) -> 10 | X21: =SUM(U21:W21) -> 39.91333174 | Y21: 88.95158049 | AA21: =IFERROR(VLOOKUP(D21,'Back Office Time'!$B$5:$G$20,4,FALSE),VLOOKUP(B21,'Back Office Time'!$B$5:$G$20,4,FALSE)) -> 5 | AB21: =IFERROR(VLOOKUP($C21,'Volumes - Report Summary'!$A:$I,MATCH(AB$1,'Volumes - Report Summary'!$A$6:$I$6,0),FALSE),0) -> 1 | AC21: =IFERROR(VLOOKUP($C21,'Volumes - Report Summary'!$A:$I,MATCH(AC$1,'Volumes - Report Summary'!$A$6:$I$6,0),FALSE),0) -> 1 | AD21: =IFERROR(VLOOKUP($C21,'Volumes - Report Summary'!$A:$I,MATCH(AD$1,'Volumes - Report Summary'!$A$6:$I$6,0),FALSE),0) -> 1 | AE21: =IFERROR(VLOOKUP($C21,'Volumes - Report Summary'!$A:$I,MATCH(AE$1,'Volumes - Report Summary'!$A$6:$I$6,0),FALSE),0) -> 1 | AF21: =IFERROR(VLOOKUP($C21,'Volumes - Report Summary'!$A:$I,MATCH(AF$1,'Volumes - Report Summary'!$A$6:$I$6,0),FALSE),0) -> 1 | AH21: Technical Specialist | AI21: 74.05086 | AJ21: =Y21*'Master Data'!$G$18 -> 91.13089421
A22: X | B22: Supply abolishment | L22: =(IF(I22>=1,IF(I22>=2,VLOOKUP(J22,'Salary Calculation'!$I$6:$L$15,3,FALSE)/60*(G22)+VLOOKUP(K22,'Salary Calculation'!$I$6:$L$15,3,FALSE)/60*(G22),VLOOKUP(J22,'Salary Calculation'!$I$6:$L$15,3,FALSE)/60*(G22)),0)) -> 0 | V22: =IF(J22="Administration",0,H22/60*'Salary Calculation'!$J$3) -> 0
B23: Supply abolishment | C23: Remove service & meters | E23: 30 | F23: 20 | G23: =SUM(E23:F23) -> 50 | H23: =SUM(E23:F23)*I23 -> 100 | I23: 2 | J23: Field Worker | K23: Field Worker | L23: =(IF(I23>=1,IF(I23>=2,VLOOKUP(J23,'Salary Calculation'!$I$6:$L$15,3,FALSE)/60*(G23)+VLOOKUP(K23,'Salary Calculation'!$I$6:$L$15,3,FALSE)/60*(G23),VLOOKUP(J23,'Salary Calculation'!$I$6:$L$15,3,FALSE)/60*(G23)),0)) -> 124.6833333 | M23: No materials charged | N23: =VLOOKUP(M23,'Lookups & OH allocation'!$B$124:$D$136,3,FALSE) -> 0 | O23: Truck | Q23: Normal | R23: =L23*VLOOKUP(Q23,'Lookups & OH allocation'!$B$55:$C$59,2,FALSE) -> 0 | S23: =AA23*'Lookups & OH allocation'!$C$35/60 -> 6.629198 | T23: 131.3125313 | U23: =(T23)*'Salary Calculation'!$J$2 -> 80.10064411 | V23: =IF(J23="Administration",0,H23/60*'Salary Calculation'!$J$3) -> 33.33333333 | X23: =SUM(U23:W23) -> 113.4339774 | Y23: 244.7465088 | AA23: =IFERROR(VLOOKUP(D23,'Back Office Time'!$B$5:$G$20,4,FALSE),VLOOKUP(B23,'Back Office Time'!$B$5:$G$20,4,FALSE)) -> 8 | AB23: =IFERROR(VLOOKUP($C23,'Volumes - Report Summary'!$A:$I,MATCH(AB$1,'Volumes - Report Summary'!$A$6:$I$6,0),FALSE),0) -> 336 | AC23: =IFERROR(VLOOKUP($C23,'Volumes - Report Summary'!$A:$I,MATCH(AC$1,'Volumes - Report Summary'!$A$6:$I$6,0),FALSE),0) -> 336 | AD23: =IFERROR(VLOOKUP($C23,'Volumes - Report Summary'!$A:$I,MATCH(AD$1,'Volumes - Report Summary'!$A$6:$I$6,0),FALSE),0) -> 336 | AE23: =IFERROR(VLOOKUP($C23,'Volumes - Report Summary'!$A:$I,MATCH(AE$1,'Volumes - Report Summary'!$A$6:$I$6,0),FALSE),0) -> 336 | AF23: =IFERROR(VLOOKUP($C23,'Volumes - Report Summary'!$A:$I,MATCH(AF$1,'Volumes - Report Summary'!$A$6:$I$6,0),FALSE),0) -> 336 | AH23: Field Worker | AI23: 239.818375 | AJ23: =Y23*'Master Data'!$G$18 -> 250.7427982
B24: Supply abolishment | C24: Supply abolishment - after hours | D24: after hours | E24: 30 | F24: 60 | G24: =SUM(E24:F24) -> 90 | H24: =SUM(E24:F24)*I24 -> 180 | I24: 2 | J24: Field Worker AH | K24: Field Worker AH | L24: =(IF(I24>=1,IF(I24>=2,VLOOKUP(J24,'Salary Calculation'!$I$6:$L$15,3,FALSE)/60*(G24)+VLOOKUP(K24,'Salary Calculation'!$I$6:$L$15,3,FALSE)/60*(G24),VLOOKUP(J24,'Salary Calculation'!$I$6:$L$15,3,FALSE)/60*(G24)),0)) -> 374.7981 | M24: No materials charged | N24: =VLOOKUP(M24,'Lookups & OH allocation'!$B$124:$D$136,3,FALSE) -> 0 | O24: Truck | Q24: After Hours | R24: =L24*VLOOKUP(Q24,'Lookups & OH allocation'!$B$55:$C$59,2,FALSE) -> 18.739905 | S24: =AA24*'Lookups & OH allocation'!$C$35/60 -> 13.258396 | T24: 406.796401 | U24: =H24*'Salary Calculation'!$K$9*'Salary Calculation'!$J$2/100+AA23*'Salary Calculation'!$J$2 -> 87.02138 | V24: =IF(J24="Administration",0,H24/60*'Salary Calculation'!$J$3) -> 60 | X24: =SUM(U24:W24) -> 147.02138 | Y24: 553.817781 | AA24: =IFERROR(VLOOKUP(D24,'Back Office Time'!$B$5:$G$20,4,FALSE),VLOOKUP(B24,'Back Office Time'!$B$5:$G$20,4,FALSE)) -> 16 | AB24: =IFERROR(VLOOKUP($C24,'Volumes - Report Summary'!$A:$I,MATCH(AB$1,'Volumes - Report Summary'!$A$6:$I$6,0),FALSE),0) -> 1 | AC24: =IFERROR(VLOOKUP($C24,'Volumes - Report Summary'!$A:$I,MATCH(AC$1,'Volumes - Report Summary'!$A$6:$I$6,0),FALSE),0) -> 1 | AD24: =IFERROR(VLOOKUP($C24,'Volumes - Report Summary'!$A:$I,MATCH(AD$1,'Volumes - Report Summary'!$A$6:$I$6,0),FALSE),0) -> 1 | AE24: =IFERROR(VLOOKUP($C24,'Volumes - Report Summary'!$A:$I,MATCH(AE$1,'Volumes - Report Summary'!$A$6:$I$6,0),FALSE),0) -> 1 | AF24: =IFERROR(VLOOKUP($C24,'Volumes - Report Summary'!$A:$I,MATCH(AF$1,'Volumes - Report Summary'!$A$6:$I$6,0),FALSE),0) -> 1 | AH24: Field Worker AH | AI24: 604.0696393 | AJ24: =Y24*'Master Data'!$G$18 -> 567.3863166
B25: Supply abolishment | C25: Supply abolishment - wasted visit | E25: 10 | F25: 20 | G25: =SUM(E25:F25) -> 30 | H25: =SUM(E25:F25)*I25 -> 60 | I25: 2 | J25: Field Worker | K25: Field Worker | L25: =(IF(I25>=1,IF(I25>=2,VLOOKUP(J25,'Salary Calculation'!$I$6:$L$15,3,FALSE)/60*(G25)+VLOOKUP(K25,'Salary Calculation'!$I$6:$L$15,3,FALSE)/60*(G25),VLOOKUP(J25,'Salary Calculation'!$I$6:$L$15,3,FALSE)/60*(G25)),0)) -> 74.81 | M25: No materials charged | N25: =VLOOKUP(M25,'Lookups & OH allocation'!$B$124:$D$136,3,FALSE) -> 0 | O25: Truck | Q25: Normal | R25: =L25*VLOOKUP(Q25,'Lookups & OH allocation'!$B$55:$C$59,2,FALSE) -> 0 | S25: =AA25*'Lookups & OH allocation'!$C$35/60 -> 6.629198 | T25: 81.439198 | U25: =(T25)*'Salary Calculation'!$J$2 -> 49.67791078 | V25: =IF(J25="Administration",0,H25/60*'Salary Calculation'!$J$3) -> 20 | X25: =SUM(U25:W25) -> 69.67791078 | Y25: 151.1171088 | AA25: =IFERROR(VLOOKUP(D25,'Back Office Time'!$B$5:$G$20,4,FALSE),VLOOKUP(B25,'Back Office Time'!$B$5:$G$20,4,FALSE)) -> 8 | AB25: =IFERROR(VLOOKUP($C25,'Volumes - Report Summary'!$A:$I,MATCH(AB$1,'Volumes - Report Summary'!$A$6:$I$6,0),FALSE),0) -> 24 | AC25: =IFERROR(VLOOKUP($C25,'Volumes - Report Summary'!$A:$I,MATCH(AC$1,'Volumes - Report Summary'!$A$6:$I$6,0),FALSE),0) -> 24 | AD25: =IFERROR(VLOOKUP($C25,'Volumes - Report Summary'!$A:$I,MATCH(AD$1,'Volumes - Report Summary'!$A$6:$I$6,0),FALSE),0) -> 24 | AE25: =IFERROR(VLOOKUP($C25,'Volumes - Report Summary'!$A:$I,MATCH(AE$1,'Volumes - Report Summary'!$A$6:$I$6,0),FALSE),0) -> 24 | AF25: =IFERROR(VLOOKUP($C25,'Volumes - Report Summary'!$A:$I,MATCH(AF$1,'Volumes - Report Summary'!$A$6:$I$6,0),FALSE),0) -> 24 | AH25: Field Worker | AI25: 143.891025 | AJ25: =Y25*'Master Data'!$G$18 -> 154.8194779
A26: X | B26: Tee-up | L26: =(IF(I26>=1,IF(I26>=2,VLOOKUP(J26,'Salary Calculation'!$I$6:$L$15,3,FALSE)/60*(G26)+VLOOKUP(K26,'Salary Calculation'!$I$6:$L$15,3,FALSE)/60*(G26),VLOOKUP(J26,'Salary Calculation'!$I$6:$L$15,3,FALSE)/60*(G26)),0)) -> 0 | V26: =IF(J26="Administration",0,H26/60*'Salary Calculation'!$J$3) -> 0
B27: Tee-up | C27: Tee-up/Appointment | E27: 30 | F27: 20 | G27: =SUM(E27:F27) -> 50 | H27: =SUM(E27:F27)*I27 -> 50 | I27: 1 | J27: Technical Specialist - Outdoor | L27: =(IF(I27>=1,IF(I27>=2,VLOOKUP(J27,'Salary Calculation'!$I$6:$L$15,3,FALSE)/60*(G27)+VLOOKUP(K27,'Salary Calculation'!$I$6:$L$15,3,FALSE)/60*(G27),VLOOKUP(J27,'Salary Calculation'!$I$6:$L$15,3,FALSE)/60*(G27)),0)) -> 74.825 | M27: No materials charged | N27: =VLOOKUP(M27,'Lookups & OH allocation'!$B$124:$D$136,3,FALSE) -> 0 | O27: Truck | Q27: Normal | R27: =L27*VLOOKUP(Q27,'Lookups & OH allocation'!$B$55:$C$59,2,FALSE) -> 0 | S27: =AA27*'Lookups & OH allocation'!$C$35/60 -> 4.9718985 | T27: 79.7968985 | U27: =(T27)*'Salary Calculation'!$J$2 -> 48.67610808 | V27: =IF(J27="Administration",0,H27/60*'Salary Calculation'!$J$3) -> 16.66666667 | X27: =SUM(U27:W27) -> 65.34277475 | Y27: 145.1396733 | AA27: =IFERROR(VLOOKUP(D27,'Back Office Time'!$B$5:$G$20,4,FALSE),VLOOKUP(B27,'Back Office Time'!$B$5:$G$20,4,FALSE)) -> 6 | AB27: =IFERROR(VLOOKUP($C27,'Volumes - Report Summary'!$A:$I,MATCH(AB$1,'Volumes - Report Summary'!$A$6:$I$6,0),FALSE),0) -> 3300 | AC27: =IFERROR(VLOOKUP($C27,'Volumes - Report Summary'!$A:$I,MATCH(AC$1,'Volumes - Report Summary'!$A$6:$I$6,0),FALSE),0) -> 3300 | AD27: =IFERROR(VLOOKUP($C27,'Volumes - Report Summary'!$A:$I,MATCH(AD$1,'Volumes - Report Summary'!$A$6:$I$6,0),FALSE),0) -> 3300 | AE27: =IFERROR(VLOOKUP($C27,'Volumes - Report Summary'!$A:$I,MATCH(AE$1,'Volumes - Report Summary'!$A$6:$I$6,0),FALSE),0) -> 3300 | AF27: =IFERROR(VLOOKUP($C27,'Volumes - Report Summary'!$A:$I,MATCH(AF$1,'Volumes - Report Summary'!$A$6:$I$6,0),FALSE),0) -> 3300 | AH27: Technical Specialist | AI27: 123.4181 | AJ27: =Y27*'Master Data'!$G$18 -> 148.6955952
B28: Tee-up | C28: Tee-up/Appointment – after hours | D28: after hours | E28: 30 | F28: 60 | G28: =SUM(E28:F28) -> 90 | H28: =SUM(E28:F28)*I28 -> 180 | I28: 2 | J28: Technical Specialist - Outdoor AH | K28: Technical Specialist - Outdoor AH | L28: =(IF(I28>=1,IF(I28>=2,VLOOKUP(J28,'Salary Calculation'!$I$6:$L$15,3,FALSE)/60*(G28)+VLOOKUP(K28,'Salary Calculation'!$I$6:$L$15,3,FALSE)/60*(G28),VLOOKUP(J28,'Salary Calculation'!$I$6:$L$15,3,FALSE)/60*(G28)),0)) -> 449.8479 | M28: No materials charged | N28: =VLOOKUP(M28,'Lookups & OH allocation'!$B$124:$D$136,3,FALSE) -> 0 | O28: Truck | Q28: After Hours | R28: =L28*VLOOKUP(Q28,'Lookups & OH allocation'!$B$55:$C$59,2,FALSE) -> 22.492395 | S28: =AA28*'Lookups & OH allocation'!$C$35/60 -> 13.258396 | T28: 485.598691 | U28: =H28*'Salary Calculation'!$K$13*'Salary Calculation'!$J$2/100+AA27*'Salary Calculation'!$J$2 -> 102.24942 | V28: =IF(J28="Administration",0,H28/60*'Salary Calculation'!$J$3) -> 60 | X28: =SUM(U28:W28) -> 162.24942 | Y28: 647.848111 | AA28: =IFERROR(VLOOKUP(D28,'Back Office Time'!$B$5:$G$20,4,FALSE),VLOOKUP(B28,'Back Office Time'!$B$5:$G$20,4,FALSE)) -> 16 | AB28: =IFERROR(VLOOKUP($C28,'Volumes - Report Summary'!$A:$I,MATCH(AB$1,'Volumes - Report Summary'!$A$6:$I$6,0),FALSE),0) -> 1 | AC28: =IFERROR(VLOOKUP($C28,'Volumes - Report Summary'!$A:$I,MATCH(AC$1,'Volumes - Report Summary'!$A$6:$I$6,0),FALSE),0) -> 1 | AD28: =IFERROR(VLOOKUP($C28,'Volumes - Report Summary'!$A:$I,MATCH(AD$1,'Volumes - Report Summary'!$A$6:$I$6,0),FALSE),0) -> 1 | AE28: =IFERROR(VLOOKUP($C28,'Volumes - Report Summary'!$A:$I,MATCH(AE$1,'Volumes - Report Summary'!$A$6:$I$6,0),FALSE),0) -> 1 | AF28: =IFERROR(VLOOKUP($C28,'Volumes - Report Summary'!$A:$I,MATCH(AF$1,'Volumes - Report Summary'!$A$6:$I$6,0),FALSE),0) -> 1 | AH28: Technical Specialist AH | AI28: 647.5492144 | AJ28: =Y28*'Master Data'!$G$18 -> 663.7203897
B29: Tee-up | C29: Tee-up/Appointment – no truck – after hours | D29: after hours | E29: 30 | F29: 60 | G29: =SUM(E29:F29) -> 90 | H29: =SUM(E29:F29)*I29 -> 90 | I29: 1 | J29: Technical Specialist - Outdoor AH | L29: =(IF(I29>=1,IF(I29>=2,VLOOKUP(J29,'Salary Calculation'!$I$6:$L$15,3,FALSE)/60*(G29)+VLOOKUP(K29,'Salary Calculation'!$I$6:$L$15,3,FALSE)/60*(G29),VLOOKUP(J29,'Salary Calculation'!$I$6:$L$15,3,FALSE)/60*(G29)),0)) -> 224.92395 | M29: No materials charged | N29: =VLOOKUP(M29,'Lookups & OH allocation'!$B$124:$D$136,3,FALSE) -> 0 | O29: Ute/Utility | Q29: After Hours | R29: =L29*VLOOKUP(Q29,'Lookups & OH allocation'!$B$55:$C$59,2,FALSE) -> 11.2461975 | S29: =AA29*'Lookups & OH allocation'!$C$35/60 -> 13.258396 | T29: 249.4285435 | U29: =H29*'Salary Calculation'!$K$13*'Salary Calculation'!$J$2/100+AA27*'Salary Calculation'!$J$2 -> 52.95471 | V29: =IF(J29="Administration",0,H29/60*'Salary Calculation'!$J$3) -> 30 | X29: =SUM(U29:W29) -> 82.95471 | Y29: 332.3832535 | AA29: =IFERROR(VLOOKUP(D29,'Back Office Time'!$B$5:$G$20,4,FALSE),VLOOKUP(B29,'Back Office Time'!$B$5:$G$20,4,FALSE)) -> 16 | AB29: =IFERROR(VLOOKUP($C29,'Volumes - Report Summary'!$A:$I,MATCH(AB$1,'Volumes - Report Summary'!$A$6:$I$6,0),FALSE),0) -> 1 | AC29: =IFERROR(VLOOKUP($C29,'Volumes - Report Summary'!$A:$I,MATCH(AC$1,'Volumes - Report Summary'!$A$6:$I$6,0),FALSE),0) -> 1 | AD29: =IFERROR(VLOOKUP($C29,'Volumes - Report Summary'!$A:$I,MATCH(AD$1,'Volumes - Report Summary'!$A$6:$I$6,0),FALSE),0) -> 1 | AE29: =IFERROR(VLOOKUP($C29,'Volumes - Report Summary'!$A:$I,MATCH(AE$1,'Volumes - Report Summary'!$A$6:$I$6,0),FALSE),0) -> 1 | AF29: =IFERROR(VLOOKUP($C29,'Volumes - Report Summary'!$A:$I,MATCH(AF$1,'Volumes - Report Summary'!$A$6:$I$6,0),FALSE),0) -> 1 | AH29: Technical Specialist AH | AI29: 323.408059 | AJ29: =Y29*'Master Data'!$G$18 -> 340.5266432
B30: Tee-up | C30: Tee-up/Appointment – wasted visit | E30: 10 | F30: 20 | G30: =SUM(E30:F30) -> 30 | H30: =SUM(E30:F30)*I30 -> 30 | I30: 1 | J30: Technical Specialist - Outdoor | L30: =(IF(I30>=1,IF(I30>=2,VLOOKUP(J30,'Salary Calculation'!$I$6:$L$15,3,FALSE)/60*(G30)+VLOOKUP(K30,'Salary Calculation'!$I$6:$L$15,3,FALSE)/60*(G30),VLOOKUP(J30,'Salary Calculation'!$I$6:$L$15,3,FALSE)/60*(G30)),0)) -> 44.895 | M30: No materials charged | N30: =VLOOKUP(M30,'Lookups & OH allocation'!$B$124:$D$136,3,FALSE) -> 0 | O30: Truck | Q30: Normal | R30: =L30*VLOOKUP(Q30,'Lookups & OH allocation'!$B$55:$C$59,2,FALSE) -> 0 | S30: =AA30*'Lookups & OH allocation'!$C$35/60 -> 4.9718985 | T30: 49.8668985 | U30: =(T30)*'Salary Calculation'!$J$2 -> 30.41880809 | V30: =IF(J30="Administration",0,H30/60*'Salary Calculation'!$J$3) -> 10 | X30: =SUM(U30:W30) -> 40.41880809 | Y30: 90.28570659 | AA30: =IFERROR(VLOOKUP(D30,'Back Office Time'!$B$5:$G$20,4,FALSE),VLOOKUP(B30,'Back Office Time'!$B$5:$G$20,4,FALSE)) -> 6 | AB30: =IFERROR(VLOOKUP($C30,'Volumes - Report Summary'!$A:$I,MATCH(AB$1,'Volumes - Report Summary'!$A$6:$I$6,0),FALSE),0) -> 200 | AC30: =IFERROR(VLOOKUP($C30,'Volumes - Report Summary'!$A:$I,MATCH(AC$1,'Volumes - Report Summary'!$A$6:$I$6,0),FALSE),0) -> 200 | AD30: =IFERROR(VLOOKUP($C30,'Volumes - Report Summary'!$A:$I,MATCH(AD$1,'Volumes - Report Summary'!$A$6:$I$6,0),FALSE),0) -> 200 | AE30: =IFERROR(VLOOKUP($C30,'Volumes - Report Summary'!$A:$I,MATCH(AE$1,'Volumes - Report Summary'!$A$6:$I$6,0),FALSE),0) -> 200 | AF30: =IFERROR(VLOOKUP($C30,'Volumes - Report Summary'!$A:$I,MATCH(AF$1,'Volumes - Report Summary'!$A$6:$I$6,0),FALSE),0) -> 200 | AH30: Technical Specialist | AI30: 74.05086 | AJ30: =Y30*'Master Data'!$G$18 -> 92.4977064
A31: X | B31: Miscellaneous service | L31: =(IF(I31>=1,IF(I31>=2,VLOOKUP(J31,'Salary Calculation'!$I$6:$L$15,3,FALSE)/60*(G31)+VLOOKUP(K31,'Salary Calculation'!$I$6:$L$15,3,FALSE)/60*(G31),VLOOKUP(J31,'Salary Calculation'!$I$6:$L$15,3,FALSE)/60*(G31)),0)) -> 0 | V31: =IF(J31="Administration",0,H31/60*'Salary Calculation'!$J$3) -> 0
B32: Miscellaneous service | C32: Open turret | E32: 25 | F32: 20 | G32: =SUM(E32:F32) -> 45 | H32: =SUM(E32:F32)*I32 -> 45 | I32: 1 | J32: Technical Specialist - Outdoor | L32: =(IF(I32>=1,IF(I32>=2,VLOOKUP(J32,'Salary Calculation'!$I$6:$L$15,3,FALSE)/60*(G32)+VLOOKUP(K32,'Salary Calculation'!$I$6:$L$15,3,FALSE)/60*(G32),VLOOKUP(J32,'Salary Calculation'!$I$6:$L$15,3,FALSE)/60*(G32)),0)) -> 67.3425 | M32: No materials charged | N32: =VLOOKUP(M32,'Lookups & OH allocation'!$B$124:$D$136,3,FALSE) -> 0 | O32: Truck | Q32: Normal | R32: =L32*VLOOKUP(Q32,'Lookups & OH allocation'!$B$55:$C$59,2,FALSE) -> 0 | S32: =AA32*'Lookups & OH allocation'!$C$35/60 -> 4.14324875 | T32: 71.48574875 | U32: =(T32)*'Salary Calculation'!$J$2 -> 43.60630674 | V32: =IF(J32="Administration",0,H32/60*'Salary Calculation'!$J$3) -> 15 | X32: =SUM(U32:W32) -> 58.60630674 | Y32: 130.0920555 | AA32: =IFERROR(VLOOKUP(D32,'Back Office Time'!$B$5:$G$20,4,FALSE),VLOOKUP(B32,'Back Office Time'!$B$5:$G$20,4,FALSE)) -> 5 | AB32: =IFERROR(VLOOKUP($C32,'Volumes - Report Summary'!$A:$I,MATCH(AB$1,'Volumes - Report Summary'!$A$6:$I$6,0),FALSE),0) -> 3 | AC32: =IFERROR(VLOOKUP($C32,'Volumes - Report Summary'!$A:$I,MATCH(AC$1,'Volumes - Report Summary'!$A$6:$I$6,0),FALSE),0) -> 3 | AD32: =IFERROR(VLOOKUP($C32,'Volumes - Report Summary'!$A:$I,MATCH(AD$1,'Volumes - Report Summary'!$A$6:$I$6,0),FALSE),0) -> 3 | AE32: =IFERROR(VLOOKUP($C32,'Volumes - Report Summary'!$A:$I,MATCH(AE$1,'Volumes - Report Summary'!$A$6:$I$6,0),FALSE),0) -> 3 | AF32: =IFERROR(VLOOKUP($C32,'Volumes - Report Summary'!$A:$I,MATCH(AF$1,'Volumes - Report Summary'!$A$6:$I$6,0),FALSE),0) -> 3 | AH32: Technical Specialist | AI32: 111.07629 | AJ32: =Y32*'Master Data'!$G$18 -> 133.2793108
B33: Miscellaneous service | C33: Data download | E33: 80 | F33: 20 | G33: 100 | H33: 100 | I33: 1 | J33: Technical Specialist - Outdoor | L33: =(IF(I33>=1,IF(I33>=2,VLOOKUP(J33,'Salary Calculation'!$I$6:$L$15,3,FALSE)/60*(G33)+VLOOKUP(K33,'Salary Calculation'!$I$6:$L$15,3,FALSE)/60*(G33),VLOOKUP(J33,'Salary Calculation'!$I$6:$L$15,3,FALSE)/60*(G33)),0)) -> 149.65 | M33: No materials charged | N33: =VLOOKUP(M33,'Lookups & OH allocation'!$B$124:$D$136,3,FALSE) -> 0 | O33: Truck | Q33: Normal | R33: =L33*VLOOKUP(Q33,'Lookups & OH allocation'!$B$55:$C$59,2,FALSE) -> 0 | S33: =AA33*'Lookups & OH allocation'!$C$35/60 -> 4.14324875 | T33: 153.7932488 | U33: =(T33)*'Salary Calculation'!$J$2 -> 93.81388174 | V33: =IF(J33="Administration",0,H33/60*'Salary Calculation'!$J$3) -> 33.33333333 | X33: 127.1472151 | Y33: 280.9404638 | AA33: =IFERROR(VLOOKUP(D33,'Back Office Time'!$B$5:$G$20,4,FALSE),VLOOKUP(B33,'Back Office Time'!$B$5:$G$20,4,FALSE)) -> 5 | AB33: =IFERROR(VLOOKUP($C33,'Volumes - Report Summary'!$A:$I,MATCH(AB$1,'Volumes - Report Summary'!$A$6:$I$6,0),FALSE),0) -> 3 | AC33: =IFERROR(VLOOKUP($C33,'Volumes - Report Summary'!$A:$I,MATCH(AC$1,'Volumes - Report Summary'!$A$6:$I$6,0),FALSE),0) -> 3 | AD33: =IFERROR(VLOOKUP($C33,'Volumes - Report Summary'!$A:$I,MATCH(AD$1,'Volumes - Report Summary'!$A$6:$I$6,0),FALSE),0) -> 3 | AE33: =IFERROR(VLOOKUP($C33,'Volumes - Report Summary'!$A:$I,MATCH(AE$1,'Volumes - Report Summary'!$A$6:$I$6,0),FALSE),0) -> 3 | AF33: =IFERROR(VLOOKUP($C33,'Volumes - Report Summary'!$A:$I,MATCH(AF$1,'Volumes - Report Summary'!$A$6:$I$6,0),FALSE),0) -> 3 | AH33: Technical Specialist | AI33: 246.8362 | AJ33: =Y33*'Master Data'!$G$18 -> 287.8235052
B34: Miscellaneous service | C34: Alteration to unmetered supply | E34: 55 | F34: 20 | G34: 75 | H34: 75 | I34: 1 | J34: Technical Specialist - Outdoor | L34: =(IF(I34>=1,IF(I34>=2,VLOOKUP(J34,'Salary Calculation'!$I$6:$L$15,3,FALSE)/60*(G34)+VLOOKUP(K34,'Salary Calculation'!$I$6:$L$15,3,FALSE)/60*(G34),VLOOKUP(J34,'Salary Calculation'!$I$6:$L$15,3,FALSE)/60*(G34)),0)) -> 112.2375 | M34: No materials charged | N34: =VLOOKUP(M34,'Lookups & OH allocation'!$B$124:$D$136,3,FALSE) -> 0 | O34: Truck | Q34: Normal | R34: =L34*VLOOKUP(Q34,'Lookups & OH allocation'!$B$55:$C$59,2,FALSE) -> 0 | S34: =AA34*'Lookups & OH allocation'!$C$35/60 -> 4.14324875 | T34: 116.3807488 | U34: =(T34)*'Salary Calculation'!$J$2 -> 70.99225674 | V34: =IF(J34="Administration",0,H34/60*'Salary Calculation'!$J$3) -> 25 | X34: 95.99225674 | Y34: 212.3730055 | AA34: =IFERROR(VLOOKUP(D34,'Back Office Time'!$B$5:$G$20,4,FALSE),VLOOKUP(B34,'Back Office Time'!$B$5:$G$20,4,FALSE)) -> 5 | AB34: =IFERROR(VLOOKUP($C34,'Volumes - Report Summary'!$A:$I,MATCH(AB$1,'Volumes - Report Summary'!$A$6:$I$6,0),FALSE),0) -> 3 | AC34: =IFERROR(VLOOKUP($C34,'Volumes - Report Summary'!$A:$I,MATCH(AC$1,'Volumes - Report Summary'!$A$6:$I$6,0),FALSE),0) -> 3 | AD34: =IFERROR(VLOOKUP($C34,'Volumes - Report Summary'!$A:$I,MATCH(AD$1,'Volumes - Report Summary'!$A$6:$I$6,0),FALSE),0) -> 3 | AE34: =IFERROR(VLOOKUP($C34,'Volumes - Report Summary'!$A:$I,MATCH(AE$1,'Volumes - Report Summary'!$A$6:$I$6,0),FALSE),0) -> 3 | AF34: =IFERROR(VLOOKUP($C34,'Volumes - Report Summary'!$A:$I,MATCH(AF$1,'Volumes - Report Summary'!$A$6:$I$6,0),FALSE),0) -> 3 | AH34: Technical Specialist | AI34: 185.12715 | AJ34: =Y34*'Master Data'!$G$18 -> 217.5761441
B35: Miscellaneous service | C35: Meter Relocation | E35: 45 | F35: 20 | G35: 65 | H35: 65 | I35: 1 | J35: Technical Specialist - Outdoor | L35: =(IF(I35>=1,IF(I35>=2,VLOOKUP(J35,'Salary Calculation'!$I$6:$L$15,3,FALSE)/60*(G35)+VLOOKUP(K35,'Salary Calculation'!$I$6:$L$15,3,FALSE)/60*(G35),VLOOKUP(J35,'Salary Calculation'!$I$6:$L$15,3,FALSE)/60*(G35)),0)) -> 97.2725 | M35: No materials charged | N35: =VLOOKUP(M35,'Lookups & OH allocation'!$B$124:$D$136,3,FALSE) -> 0 | O35: Ute/Utility | Q35: Normal | R35: =L35*VLOOKUP(Q35,'Lookups & OH allocation'!$B$55:$C$59,2,FALSE) -> 0 | S35: =AA35*'Lookups & OH allocation'!$C$35/60 -> 4.14324875 | T35: 101.4157488 | U35: =(T35)*'Salary Calculation'!$J$2 -> 61.86360674 | V35: =IF(J35="Administration",0,H35/60*'Salary Calculation'!$J$3) -> 21.66666667 | X35: 83.5302734 | Y35: 184.9460222 | AA35: =IFERROR(VLOOKUP(D35,'Back Office Time'!$B$5:$G$20,4,FALSE),VLOOKUP(B35,'Back Office Time'!$B$5:$G$20,4,FALSE)) -> 5 | AB35: =IFERROR(VLOOKUP($C35,'Volumes - Report Summary'!$A:$I,MATCH(AB$1,'Volumes - Report Summary'!$A$6:$I$6,0),FALSE),0) -> 3 | AC35: =IFERROR(VLOOKUP($C35,'Volumes - Report Summary'!$A:$I,MATCH(AC$1,'Volumes - Report Summary'!$A$6:$I$6,0),FALSE),0) -> 3 | AD35: =IFERROR(VLOOKUP($C35,'Volumes - Report Summary'!$A:$I,MATCH(AD$1,'Volumes - Report Summary'!$A$6:$I$6,0),FALSE),0) -> 3 | AE35: =IFERROR(VLOOKUP($C35,'Volumes - Report Summary'!$A:$I,MATCH(AE$1,'Volumes - Report Summary'!$A$6:$I$6,0),FALSE),0) -> 3 | AF35: =IFERROR(VLOOKUP($C35,'Volumes - Report Summary'!$A:$I,MATCH(AF$1,'Volumes - Report Summary'!$A$6:$I$6,0),FALSE),0) -> 3 | AH35: Technical Specialist | AI35: 160.44 | AJ35: =Y35*'Master Data'!$G$18 -> 189.4771997
B36: Miscellaneous service | C36: Tiger tails - standard single/multi phase | E36: 60 | F36: 40 | G36: 100 | H36: 200 | I36: 2 | J36: Technical Specialist - Outdoor | K36: Technical Specialist - Outdoor | L36: =(IF(I36>=1,IF(I36>=2,VLOOKUP(J36,'Salary Calculation'!$I$6:$L$15,3,FALSE)/60*(G36)+VLOOKUP(K36,'Salary Calculation'!$I$6:$L$15,3,FALSE)/60*(G36),VLOOKUP(J36,'Salary Calculation'!$I$6:$L$15,3,FALSE)/60*(G36)),0)) -> 299.3 | M36: Tiger tails | N36: =VLOOKUP(M36,'Lookups & OH allocation'!$B$124:$D$136,3,FALSE) -> 104.960025 | O36: Truck | Q36: Normal | R36: =L36*VLOOKUP(Q36,'Lookups & OH allocation'!$B$55:$C$59,2,FALSE) -> 0 | S36: =AA36*'Lookups & OH allocation'!$C$35/60 -> 4.14324875 | T36: 408.4032737 | U36: =(T36)*'Salary Calculation'!$J$2 -> 249.125997 | V36: =IF(J36="Administration",0,H36/60*'Salary Calculation'!$J$3) -> 66.66666667 | X36: 315.7926637 | Y36: 724.1959374 | AA36: =IFERROR(VLOOKUP(D36,'Back Office Time'!$B$5:$G$20,4,FALSE),VLOOKUP(B36,'Back Office Time'!$B$5:$G$20,4,FALSE)) -> 5 | AB36: =IFERROR(VLOOKUP($C36,'Volumes - Report Summary'!$A:$I,MATCH(AB$1,'Volumes - Report Summary'!$A$6:$I$6,0),FALSE),0) -> 3 | AC36: =IFERROR(VLOOKUP($C36,'Volumes - Report Summary'!$A:$I,MATCH(AC$1,'Volumes - Report Summary'!$A$6:$I$6,0),FALSE),0) -> 3 | AD36: =IFERROR(VLOOKUP($C36,'Volumes - Report Summary'!$A:$I,MATCH(AD$1,'Volumes - Report Summary'!$A$6:$I$6,0),FALSE),0) -> 3 | AE36: =IFERROR(VLOOKUP($C36,'Volumes - Report Summary'!$A:$I,MATCH(AE$1,'Volumes - Report Summary'!$A$6:$I$6,0),FALSE),0) -> 3 | AF36: =IFERROR(VLOOKUP($C36,'Volumes - Report Summary'!$A:$I,MATCH(AF$1,'Volumes - Report Summary'!$A$6:$I$6,0),FALSE),0) -> 3 | AH36: Technical Specialist | AI36: 601.2 | AJ36: =Y36*'Master Data'!$G$18 -> 741.9387379
B37: Miscellaneous service | C37: Tiger tails - scaffolding single phase | E37: 120 | F37: 40 | G37: 160 | H37: 320 | I37: 2 | J37: Technical Specialist - Outdoor | K37: Technical Specialist - Outdoor | L37: =(IF(I37>=1,IF(I37>=2,VLOOKUP(J37,'Salary Calculation'!$I$6:$L$15,3,FALSE)/60*(G37)+VLOOKUP(K37,'Salary Calculation'!$I$6:$L$15,3,FALSE)/60*(G37),VLOOKUP(J37,'Salary Calculation'!$I$6:$L$15,3,FALSE)/60*(G37)),0)) -> 478.88 | M37: Scaffolding | N37: =VLOOKUP(M37,'Lookups & OH allocation'!$B$124:$D$136,3,FALSE) -> 167.93604 | O37: Truck | Q37: Normal | R37: =L37*VLOOKUP(Q37,'Lookups & OH allocation'!$B$55:$C$59,2,FALSE) -> 0 | S37: =AA37*'Lookups & OH allocation'!$C$35/60 -> 4.14324875 | T37: 650.9592888 | U37: =(T37)*'Salary Calculation'!$J$2 -> 397.0851661 | V37: =IF(J37="Administration",0,H37/60*'Salary Calculation'!$J$3) -> 106.6666667 | X37: 503.7518328 | Y37: 1154.711122 | AA37: =IFERROR(VLOOKUP(D37,'Back Office Time'!$B$5:$G$20,4,FALSE),VLOOKUP(B37,'Back Office Time'!$B$5:$G$20,4,FALSE)) -> 5 | AB37: =IFERROR(VLOOKUP($C37,'Volumes - Report Summary'!$A:$I,MATCH(AB$1,'Volumes - Report Summary'!$A$6:$I$6,0),FALSE),0) -> 3 | AC37: =IFERROR(VLOOKUP($C37,'Volumes - Report Summary'!$A:$I,MATCH(AC$1,'Volumes - Report Summary'!$A$6:$I$6,0),FALSE),0) -> 3 | AD37: =IFERROR(VLOOKUP($C37,'Volumes - Report Summary'!$A:$I,MATCH(AD$1,'Volumes - Report Summary'!$A$6:$I$6,0),FALSE),0) -> 3 | AE37: =IFERROR(VLOOKUP($C37,'Volumes - Report Summary'!$A:$I,MATCH(AE$1,'Volumes - Report Summary'!$A$6:$I$6,0),FALSE),0) -> 3 | AF37: =IFERROR(VLOOKUP($C37,'Volumes - Report Summary'!$A:$I,MATCH(AF$1,'Volumes - Report Summary'!$A$6:$I$6,0),FALSE),0) -> 3 | AH37: Technical Specialist | AI37: 961.93 | AJ37: =Y37*'Master Data'!$G$18 -> 1183.001544
B38: Miscellaneous service | C38: Tiger tails - scaffolding multi phase | E38: 140 | F38: 40 | G38: 180 | H38: 360 | I38: 2 | J38: Technical Specialist - Outdoor | K38: Technical Specialist - Outdoor | L38: =(IF(I38>=1,IF(I38>=2,VLOOKUP(J38,'Salary Calculation'!$I$6:$L$15,3,FALSE)/60*(G38)+VLOOKUP(K38,'Salary Calculation'!$I$6:$L$15,3,FALSE)/60*(G38),VLOOKUP(J38,'Salary Calculation'!$I$6:$L$15,3,FALSE)/60*(G38)),0)) -> 538.74 | M38: Scaffolding | N38: =VLOOKUP(M38,'Lookups & OH allocation'!$B$124:$D$136,3,FALSE) -> 167.93604 | O38: Truck | Q38: Normal | R38: =L38*VLOOKUP(Q38,'Lookups & OH allocation'!$B$55:$C$59,2,FALSE) -> 0 | S38: =AA38*'Lookups & OH allocation'!$C$35/60 -> 4.14324875 | T38: 710.8192888 | U38: =(T38)*'Salary Calculation'!$J$2 -> 433.5997661 | V38: =IF(J38="Administration",0,H38/60*'Salary Calculation'!$J$3) -> 120 | X38: 553.5997661 | Y38: 1264.419055 | AA38: =IFERROR(VLOOKUP(D38,'Back Office Time'!$B$5:$G$20,4,FALSE),VLOOKUP(B38,'Back Office Time'!$B$5:$G$20,4,FALSE)) -> 5 | AB38: =IFERROR(VLOOKUP($C38,'Volumes - Report Summary'!$A:$I,MATCH(AB$1,'Volumes - Report Summary'!$A$6:$I$6,0),FALSE),0) -> 3 | AC38: =IFERROR(VLOOKUP($C38,'Volumes - Report Summary'!$A:$I,MATCH(AC$1,'Volumes - Report Summary'!$A$6:$I$6,0),FALSE),0) -> 3 | AD38: =IFERROR(VLOOKUP($C38,'Volumes - Report Summary'!$A:$I,MATCH(AD$1,'Volumes - Report Summary'!$A$6:$I$6,0),FALSE),0) -> 3 | AE38: =IFERROR(VLOOKUP($C38,'Volumes - Report Summary'!$A:$I,MATCH(AE$1,'Volumes - Report Summary'!$A$6:$I$6,0),FALSE),0) -> 3 | AF38: =IFERROR(VLOOKUP($C38,'Volumes - Report Summary'!$A:$I,MATCH(AF$1,'Volumes - Report Summary'!$A$6:$I$6,0),FALSE),0) -> 3 | AH38: Technical Specialist | AI38: 1060.66 | AJ38: =Y38*'Master Data'!$G$18 -> 1295.397322
B39: Miscellaneous service | C39: Miscellaneous service | E39: 20 | F39: 20 | G39: 40 | H39: 40 | I39: 1 | J39: Technical Specialist - Outdoor | L39: =(IF(I39>=1,IF(I39>=2,VLOOKUP(J39,'Salary Calculation'!$I$6:$L$15,3,FALSE)/60*(G39)+VLOOKUP(K39,'Salary Calculation'!$I$6:$L$15,3,FALSE)/60*(G39),VLOOKUP(J39,'Salary Calculation'!$I$6:$L$15,3,FALSE)/60*(G39)),0)) -> 59.86 | M39: No materials charged | N39: =VLOOKUP(M39,'Lookups & OH allocation'!$B$124:$D$136,3,FALSE) -> 0 | O39: Truck | Q39: Normal | R39: =L39*VLOOKUP(Q39,'Lookups & OH allocation'!$B$55:$C$59,2,FALSE) -> 0 | S39: =AA39*'Lookups & OH allocation'!$C$35/60 -> 4.14324875 | T39: 64.00324875 | U39: =(T39)*'Salary Calculation'!$J$2 -> 39.04198174 | V39: =IF(J39="Administration",0,H39/60*'Salary Calculation'!$J$3) -> 13.33333333 | X39: 52.37531507 | Y39: 116.3785638 | AA39: =IFERROR(VLOOKUP(D39,'Back Office Time'!$B$5:$G$20,4,FALSE),VLOOKUP(B39,'Back Office Time'!$B$5:$G$20,4,FALSE)) -> 5 | AB39: =IFERROR(VLOOKUP($C39,'Volumes - Report Summary'!$A:$I,MATCH(AB$1,'Volumes - Report Summary'!$A$6:$I$6,0),FALSE),0) -> 6 | AC39: =IFERROR(VLOOKUP($C39,'Volumes - Report Summary'!$A:$I,MATCH(AC$1,'Volumes - Report Summary'!$A$6:$I$6,0),FALSE),0) -> 6 | AD39: =IFERROR(VLOOKUP($C39,'Volumes - Report Summary'!$A:$I,MATCH(AD$1,'Volumes - Report Summary'!$A$6:$I$6,0),FALSE),0) -> 6 | AE39: =IFERROR(VLOOKUP($C39,'Volumes - Report Summary'!$A:$I,MATCH(AE$1,'Volumes - Report Summary'!$A$6:$I$6,0),FALSE),0) -> 6 | AF39: =IFERROR(VLOOKUP($C39,'Volumes - Report Summary'!$A:$I,MATCH(AF$1,'Volumes - Report Summary'!$A$6:$I$6,0),FALSE),0) -> 6 | AH39: Technical Specialist | AI39: 98.73448 | AJ39: =Y39*'Master Data'!$G$18 -> 119.2298386
B40: Miscellaneous service | C40: Miscellaneous service – after hours | D40: after hours | E40: 80 | F40: 60 | G40: 140 | H40: 140 | I40: 1 | J40: Technical Specialist - Outdoor AH | L40: =(IF(I40>=1,IF(I40>=2,VLOOKUP(J40,'Salary Calculation'!$I$6:$L$15,3,FALSE)/60*(G40)+VLOOKUP(K40,'Salary Calculation'!$I$6:$L$15,3,FALSE)/60*(G40),VLOOKUP(J40,'Salary Calculation'!$I$6:$L$15,3,FALSE)/60*(G40)),0)) -> 349.8817 | M40: No materials charged | N40: =VLOOKUP(M40,'Lookups & OH allocation'!$B$124:$D$136,3,FALSE) -> 0 | O40: Truck | Q40: After Hours | R40: =L40*VLOOKUP(Q40,'Lookups & OH allocation'!$B$55:$C$59,2,FALSE) -> 17.494085 | S40: =AA40*'Lookups & OH allocation'!$C$35/60 -> 13.258396 | T40: 380.634181 | U40: =H40*'Salary Calculation'!$K$13*'Salary Calculation'!$J$2/100+AA32*'Salary Calculation'!$J$2 -> 79.73066 | V40: =IF(J40="Administration",0,H40/60*'Salary Calculation'!$J$3) -> 46.66666667 | X40: 126.3973267 | Y40: 507.0315077 | AA40: =IFERROR(VLOOKUP(D40,'Back Office Time'!$B$5:$G$20,4,FALSE),VLOOKUP(B40,'Back Office Time'!$B$5:$G$20,4,FALSE)) -> 16 | AB40: =IFERROR(VLOOKUP($C40,'Volumes - Report Summary'!$A:$I,MATCH(AB$1,'Volumes - Report Summary'!$A$6:$I$6,0),FALSE),0) -> 3 | AC40: =IFERROR(VLOOKUP($C40,'Volumes - Report Summary'!$A:$I,MATCH(AC$1,'Volumes - Report Summary'!$A$6:$I$6,0),FALSE),0) -> 3 | AD40: =IFERROR(VLOOKUP($C40,'Volumes - Report Summary'!$A:$I,MATCH(AD$1,'Volumes - Report Summary'!$A$6:$I$6,0),FALSE),0) -> 3 | AE40: =IFERROR(VLOOKUP($C40,'Volumes - Report Summary'!$A:$I,MATCH(AE$1,'Volumes - Report Summary'!$A$6:$I$6,0),FALSE),0) -> 3 | AF40: =IFERROR(VLOOKUP($C40,'Volumes - Report Summary'!$A:$I,MATCH(AF$1,'Volumes - Report Summary'!$A$6:$I$6,0),FALSE),0) -> 3 | AH40: Technical Specialist AH | AI40: 505.1529488 | AJ40: =Y40*'Master Data'!$G$18 -> 519.4537796
B41: Miscellaneous service | C41: Miscellaneous service – wasted visit | E41: 10 | F41: 20 | G41: 30 | H41: 30 | I41: 1 | J41: Technical Specialist - Outdoor | L41: =(IF(I41>=1,IF(I41>=2,VLOOKUP(J41,'Salary Calculation'!$I$6:$L$15,3,FALSE)/60*(G41)+VLOOKUP(K41,'Salary Calculation'!$I$6:$L$15,3,FALSE)/60*(G41),VLOOKUP(J41,'Salary Calculation'!$I$6:$L$15,3,FALSE)/60*(G41)),0)) -> 44.895 | M41: No materials charged | N41: =VLOOKUP(M41,'Lookups & OH allocation'!$B$124:$D$136,3,FALSE) -> 0 | O41: Truck | Q41: Normal | R41: =L41*VLOOKUP(Q41,'Lookups & OH allocation'!$B$55:$C$59,2,FALSE) -> 0 | S41: =AA41*'Lookups & OH allocation'!$C$35/60 -> 4.14324875 | T41: 49.03824875 | U41: =(T41)*'Salary Calculation'!$J$2 -> 29.91333174 | V41: =IF(J41="Administration",0,H41/60*'Salary Calculation'!$J$3) -> 10 | X41: 39.91333174 | Y41: 88.95158049 | AA41: =IFERROR(VLOOKUP(D41,'Back Office Time'!$B$5:$G$20,4,FALSE),VLOOKUP(B41,'Back Office Time'!$B$5:$G$20,4,FALSE)) -> 5 | AB41: =IFERROR(VLOOKUP($C41,'Volumes - Report Summary'!$A:$I,MATCH(AB$1,'Volumes - Report Summary'!$A$6:$I$6,0),FALSE),0) -> 3 | AC41: =IFERROR(VLOOKUP($C41,'Volumes - Report Summary'!$A:$I,MATCH(AC$1,'Volumes - Report Summary'!$A$6:$I$6,0),FALSE),0) -> 3 | AD41: =IFERROR(VLOOKUP($C41,'Volumes - Report Summary'!$A:$I,MATCH(AD$1,'Volumes - Report Summary'!$A$6:$I$6,0),FALSE),0) -> 3 | AE41: =IFERROR(VLOOKUP($C41,'Volumes - Report Summary'!$A:$I,MATCH(AE$1,'Volumes - Report Summary'!$A$6:$I$6,0),FALSE),0) -> 3 | AF41: =IFERROR(VLOOKUP($C41,'Volumes - Report Summary'!$A:$I,MATCH(AF$1,'Volumes - Report Summary'!$A$6:$I$6,0),FALSE),0) -> 3 | AH41: Technical Specialist | AI41: 74.05086 | AJ41: =Y41*'Master Data'!$G$18 -> 91.13089421
B42: Miscellaneous service | C42: Administration | D42: Back office only | E42: 25 | G42: 25 | H42: 25 | I42: 1 | J42: Administration | L42: =(IF(I42>=1,IF(I42>=2,VLOOKUP(J42,'Salary Calculation'!$I$6:$L$15,3,FALSE)/60*(G42)+VLOOKUP(K42,'Salary Calculation'!$I$6:$L$15,3,FALSE)/60*(G42),VLOOKUP(J42,'Salary Calculation'!$I$6:$L$15,3,FALSE)/60*(G42)),0)) -> 29.12083333 | M42: No materials charged | N42: =VLOOKUP(M42,'Lookups & OH allocation'!$B$124:$D$136,3,FALSE) -> 0 | O42: None | Q42: Normal | R42: =L42*VLOOKUP(Q42,'Lookups & OH allocation'!$B$55:$C$59,2,FALSE) -> 0 | S42: =AA42*'Lookups & OH allocation'!$C$35/60 -> 2.48594925 | T42: 31.60678258 | U42: =(T42)*'Salary Calculation'!$J$2 -> 19.28013738 | V42: =IF(J42="Administration",0,H42/60*'Salary Calculation'!$J$3) -> 0 | X42: 19.28013738 | Y42: 50.88691996 | AA42: =IFERROR(VLOOKUP(D42,'Back Office Time'!$B$5:$G$20,4,FALSE),VLOOKUP(B42,'Back Office Time'!$B$5:$G$20,4,FALSE)) -> 3 | AB42: =IFERROR(VLOOKUP($C42,'Volumes - Report Summary'!$A:$I,MATCH(AB$1,'Volumes - Report Summary'!$A$6:$I$6,0),FALSE),0) -> 2 | AC42: =IFERROR(VLOOKUP($C42,'Volumes - Report Summary'!$A:$I,MATCH(AC$1,'Volumes - Report Summary'!$A$6:$I$6,0),FALSE),0) -> 2 | AD42: =IFERROR(VLOOKUP($C42,'Volumes - Report Summary'!$A:$I,MATCH(AD$1,'Volumes - Report Summary'!$A$6:$I$6,0),FALSE),0) -> 2 | AE42: =IFERROR(VLOOKUP($C42,'Volumes - Report Summary'!$A:$I,MATCH(AE$1,'Volumes - Report Summary'!$A$6:$I$6,0),FALSE),0) -> 2 | AF42: =IFERROR(VLOOKUP($C42,'Volumes - Report Summary'!$A:$I,MATCH(AF$1,'Volumes - Report Summary'!$A$6:$I$6,0),FALSE),0) -> 2 | AH42: Administration | AI42: 49.66020507 | AJ42: =Y42*'Master Data'!$G$18 -> 52.1336495
B43: Miscellaneous service | C43: Statutory right - access prevented | D43: Back office only | E43: 675 | F43: 0 | G43: 675 | H43: 675 | I43: 1 | J43: Administration | L43: =(IF(I43>=1,IF(I43>=2,VLOOKUP(J43,'Salary Calculation'!$I$6:$L$15,3,FALSE)/60*(G43)+VLOOKUP(K43,'Salary Calculation'!$I$6:$L$15,3,FALSE)/60*(G43),VLOOKUP(J43,'Salary Calculation'!$I$6:$L$15,3,FALSE)/60*(G43)),0)) -> 786.2625 | M43: No materials charged | N43: =VLOOKUP(M43,'Lookups & OH allocation'!$B$124:$D$136,3,FALSE) -> 0 | O43: None | Q43: Normal | R43: =L43*VLOOKUP(Q43,'Lookups & OH allocation'!$B$55:$C$59,2,FALSE) -> 0 | S43: =AA43*'Lookups & OH allocation'!$C$35/60 -> 2.48594925 | T43: 788.7484493 | U43: =(T43)*'Salary Calculation'!$J$2 -> 481.136554 | V43: =IF(J43="Administration",0,H43/60*'Salary Calculation'!$J$3) -> 0 | X43: 481.136554 | Y43: 1269.885003 | AA43: =IFERROR(VLOOKUP(D43,'Back Office Time'!$B$5:$G$20,4,FALSE),VLOOKUP(B43,'Back Office Time'!$B$5:$G$20,4,FALSE)) -> 3 | AB43: =IFERROR(VLOOKUP($C43,'Volumes - Report Summary'!$A:$I,MATCH(AB$1,'Volumes - Report Summary'!$A$6:$I$6,0),FALSE),0) -> 1 | AC43: =IFERROR(VLOOKUP($C43,'Volumes - Report Summary'!$A:$I,MATCH(AC$1,'Volumes - Report Summary'!$A$6:$I$6,0),FALSE),0) -> 1 | AD43: =IFERROR(VLOOKUP($C43,'Volumes - Report Summary'!$A:$I,MATCH(AD$1,'Volumes - Report Summary'!$A$6:$I$6,0),FALSE),0) -> 1 | AE43: =IFERROR(VLOOKUP($C43,'Volumes - Report Summary'!$A:$I,MATCH(AE$1,'Volumes - Report Summary'!$A$6:$I$6,0),FALSE),0) -> 1 | AF43: =IFERROR(VLOOKUP($C43,'Volumes - Report Summary'!$A:$I,MATCH(AF$1,'Volumes - Report Summary'!$A$6:$I$6,0),FALSE),0) -> 1 | AH43: Administration | AI43: 1041.46 | AJ43: =Y43*'Master Data'!$G$18 -> 1300.997186
B44: Miscellaneous service | C44: Tariff change | D44: Back office only | E44: 25 | G44: 25 | H44: 25 | I44: 1 | J44: Administration | L44: =(IF(I44>=1,IF(I44>=2,VLOOKUP(J44,'Salary Calculation'!$I$6:$L$15,3,FALSE)/60*(G44)+VLOOKUP(K44,'Salary Calculation'!$I$6:$L$15,3,FALSE)/60*(G44),VLOOKUP(J44,'Salary Calculation'!$I$6:$L$15,3,FALSE)/60*(G44)),0)) -> 29.12083333 | M44: No materials charged | N44: =VLOOKUP(M44,'Lookups & OH allocation'!$B$124:$D$136,3,FALSE) -> 0 | O44: None | Q44: Normal | R44: =L44*VLOOKUP(Q44,'Lookups & OH allocation'!$B$55:$C$59,2,FALSE) -> 0 | S44: =AA44*'Lookups & OH allocation'!$C$35/60 -> 2.48594925 | T44: 31.60678258 | U44: =(T44)*'Salary Calculation'!$J$2 -> 19.28013738 | V44: =IF(J44="Administration",0,H44/60*'Salary Calculation'!$J$3) -> 0 | X44: 19.28013738 | Y44: 50.88691996 | AA44: =IFERROR(VLOOKUP(D44,'Back Office Time'!$B$5:$G$20,4,FALSE),VLOOKUP(B44,'Back Office Time'!$B$5:$G$20,4,FALSE)) -> 3 | AB44: =IFERROR(VLOOKUP($C44,'Volumes - Report Summary'!$A:$I,MATCH(AB$1,'Volumes - Report Summary'!$A$6:$I$6,0),FALSE),0) -> 1 | AC44: =IFERROR(VLOOKUP($C44,'Volumes - Report Summary'!$A:$I,MATCH(AC$1,'Volumes - Report Summary'!$A$6:$I$6,0),FALSE),0) -> 1 | AD44: =IFERROR(VLOOKUP($C44,'Volumes - Report Summary'!$A:$I,MATCH(AD$1,'Volumes - Report Summary'!$A$6:$I$6,0),FALSE),0) -> 1 | AE44: =IFERROR(VLOOKUP($C44,'Volumes - Report Summary'!$A:$I,MATCH(AE$1,'Volumes - Report Summary'!$A$6:$I$6,0),FALSE),0) -> 1 | AF44: =IFERROR(VLOOKUP($C44,'Volumes - Report Summary'!$A:$I,MATCH(AF$1,'Volumes - Report Summary'!$A$6:$I$6,0),FALSE),0) -> 1 | AH44: Administration | AI44: 38.572425 | AJ44: =Y44*'Master Data'!$G$18 -> 52.1336495
B45: Miscellaneous service | C45: Emergency maintenance contestable meters | E45: 8 | F45: 10 | G45: 18 | H45: 18 | I45: 1 | J45: Technical Specialist - Outdoor | L45: =(IF(I45>=1,IF(I45>=2,VLOOKUP(J45,'Salary Calculation'!$I$6:$L$15,3,FALSE)/60*(G45)+VLOOKUP(K45,'Salary Calculation'!$I$6:$L$15,3,FALSE)/60*(G45),VLOOKUP(J45,'Salary Calculation'!$I$6:$L$15,3,FALSE)/60*(G45)),0)) -> 26.937 | M45: No materials charged | N45: =VLOOKUP(M45,'Lookups & OH allocation'!$B$124:$D$136,3,FALSE) -> 0 | O45: Ute/Utility | Q45: Normal | R45: =L45*VLOOKUP(Q45,'Lookups & OH allocation'!$B$55:$C$59,2,FALSE) -> 0 | S45: =IF(J45="Administration",0,AA45*'Lookups & OH allocation'!$C$35/60) -> 4.14324875 | T45: 31.08024875 | U45: =(T45)*'Salary Calculation'!$J$2 -> 18.95895174 | V45: =IF(J45="Administration",0,H45/60*'Salary Calculation'!$J$3) -> 6 | X45: 24.95895174 | Y45: 56.03920049 | AA45: =IFERROR(VLOOKUP(D45,'Back Office Time'!$B$5:$G$20,4,FALSE),VLOOKUP(B45,'Back Office Time'!$B$5:$G$20,4,FALSE)) -> 5 | AB45: =IFERROR(VLOOKUP($C45,'Volumes - Report Summary'!$A:$I,MATCH(AB$1,'Volumes - Report Summary'!$A$6:$I$6,0),FALSE),0) -> 1 | AC45: =IFERROR(VLOOKUP($C45,'Volumes - Report Summary'!$A:$I,MATCH(AC$1,'Volumes - Report Summary'!$A$6:$I$6,0),FALSE),0) -> 1 | AD45: =IFERROR(VLOOKUP($C45,'Volumes - Report Summary'!$A:$I,MATCH(AD$1,'Volumes - Report Summary'!$A$6:$I$6,0),FALSE),0) -> 1 | AE45: =IFERROR(VLOOKUP($C45,'Volumes - Report Summary'!$A:$I,MATCH(AE$1,'Volumes - Report Summary'!$A$6:$I$6,0),FALSE),0) -> 1 | AF45: =IFERROR(VLOOKUP($C45,'Volumes - Report Summary'!$A:$I,MATCH(AF$1,'Volumes - Report Summary'!$A$6:$I$6,0),FALSE),0) -> 1 | AH45: Technical Specialist | AI45: 44.430516 | AJ45: =Y45*'Master Data'!$G$18 -> 57.4121609
B46: Miscellaneous service | C46: Emergency maintenance contestable meters - after hours | D46: after hours | E46: 30 | F46: 60 | G46: 90 | H46: 90 | I46: 1 | J46: Technical Specialist - Outdoor AH | L46: =(IF(I46>=1,IF(I46>=2,VLOOKUP(J46,'Salary Calculation'!$I$6:$L$15,3,FALSE)/60*(G46)+VLOOKUP(K46,'Salary Calculation'!$I$6:$L$15,3,FALSE)/60*(G46),VLOOKUP(J46,'Salary Calculation'!$I$6:$L$15,3,FALSE)/60*(G46)),0)) -> 224.92395 | M46: No materials charged | N46: =VLOOKUP(M46,'Lookups & OH allocation'!$B$124:$D$136,3,FALSE) -> 0 | O46: Ute/Utility | Q46: After Hours | R46: =L46*VLOOKUP(Q46,'Lookups & OH allocation'!$B$55:$C$59,2,FALSE) -> 11.2461975 | S46: =IF(J46="Administration",0,AA46*'Lookups & OH allocation'!$C$35/60) -> 13.258396 | T46: 249.4285435 | U46: =H46*'Salary Calculation'!$K$13*'Salary Calculation'!$J$2/100+AA32*'Salary Calculation'!$J$2 -> 52.34471 | V46: =IF(J46="Administration",0,H46/60*'Salary Calculation'!$J$3) -> 30 | X46: 82.34471 | Y46: 331.7732535 | AA46: =IFERROR(VLOOKUP(D46,'Back Office Time'!$B$5:$G$20,4,FALSE),VLOOKUP(B46,'Back Office Time'!$B$5:$G$20,4,FALSE)) -> 16 | AB46: =IFERROR(VLOOKUP($C46,'Volumes - Report Summary'!$A:$I,MATCH(AB$1,'Volumes - Report Summary'!$A$6:$I$6,0),FALSE),0) -> 1 | AC46: =IFERROR(VLOOKUP($C46,'Volumes - Report Summary'!$A:$I,MATCH(AC$1,'Volumes - Report Summary'!$A$6:$I$6,0),FALSE),0) -> 1 | AD46: =IFERROR(VLOOKUP($C46,'Volumes - Report Summary'!$A:$I,MATCH(AD$1,'Volumes - Report Summary'!$A$6:$I$6,0),FALSE),0) -> 1 | AE46: =IFERROR(VLOOKUP($C46,'Volumes - Report Summary'!$A:$I,MATCH(AE$1,'Volumes - Report Summary'!$A$6:$I$6,0),FALSE),0) -> 1 | AF46: =IFERROR(VLOOKUP($C46,'Volumes - Report Summary'!$A:$I,MATCH(AF$1,'Volumes - Report Summary'!$A$6:$I$6,0),FALSE),0) -> 1 | AH46: Technical Specialist AH | AI46: 323.408059 | AJ46: =Y46*'Master Data'!$G$18 -> 339.9016982
B47: Miscellaneous service | C47: Meter recovery and disposal | E47: 15 | F47: 20 | G47: 35 | H47: 35 | I47: 1 | J47: Technical Specialist - Outdoor | L47: =(IF(I47>=1,IF(I47>=2,VLOOKUP(J47,'Salary Calculation'!$I$6:$L$15,3,FALSE)/60*(G47)+VLOOKUP(K47,'Salary Calculation'!$I$6:$L$15,3,FALSE)/60*(G47),VLOOKUP(J47,'Salary Calculation'!$I$6:$L$15,3,FALSE)/60*(G47)),0)) -> 52.3775 | M47: No materials charged | N47: =VLOOKUP(M47,'Lookups & OH allocation'!$B$124:$D$136,3,FALSE) -> 0 | O47: None | Q47: Normal | R47: =L47*VLOOKUP(Q47,'Lookups & OH allocation'!$B$55:$C$59,2,FALSE) -> 0 | S47: =IF(J47="Administration",0,AA47*'Lookups & OH allocation'!$C$35/60) -> 4.14324875 | T47: 56.52074875 | U47: =(T47)*'Salary Calculation'!$J$2 -> 34.47765674 | V47: =IF(J47="Administration",0,H47/60*'Salary Calculation'!$J$3) -> 11.66666667 | X47: 46.1443234 | Y47: 102.6650722 | AA47: =IFERROR(VLOOKUP(D47,'Back Office Time'!$B$5:$G$20,4,FALSE),VLOOKUP(B47,'Back Office Time'!$B$5:$G$20,4,FALSE)) -> 5 | AB47: =IFERROR(VLOOKUP($C47,'Volumes - Report Summary'!$A:$I,MATCH(AB$1,'Volumes - Report Summary'!$A$6:$I$6,0),FALSE),0) -> 1 | AC47: =IFERROR(VLOOKUP($C47,'Volumes - Report Summary'!$A:$I,MATCH(AC$1,'Volumes - Report Summary'!$A$6:$I$6,0),FALSE),0) -> 1 | AD47: =IFERROR(VLOOKUP($C47,'Volumes - Report Summary'!$A:$I,MATCH(AD$1,'Volumes - Report Summary'!$A$6:$I$6,0),FALSE),0) -> 1 | AE47: =IFERROR(VLOOKUP($C47,'Volumes - Report Summary'!$A:$I,MATCH(AE$1,'Volumes - Report Summary'!$A$6:$I$6,0),FALSE),0) -> 1 | AF47: =IFERROR(VLOOKUP($C47,'Volumes - Report Summary'!$A:$I,MATCH(AF$1,'Volumes - Report Summary'!$A$6:$I$6,0),FALSE),0) -> 1 | AH47: Technical Specialist | AI47: 86.39267 | AJ47: =Y47*'Master Data'!$G$18 -> 105.1803664
A48: X | B48: Connection establishment charges | L48: =(IF(I48>=1,IF(I48>=2,VLOOKUP(J48,'Salary Calculation'!$I$6:$L$15,3,FALSE)/60*(G48)+VLOOKUP(K48,'Salary Calculation'!$I$6:$L$15,3,FALSE)/60*(G48),VLOOKUP(J48,'Salary Calculation'!$I$6:$L$15,3,FALSE)/60*(G48)),0)) -> 0
B49: Connection establishment charges | C49: Creation of a NMI | D49: Back office only | E49: 20 | G49: =SUM(E49:F49) -> 20 | H49: =SUM(E49:F49)*I49 -> 20 | I49: 1 | J49: Administration | L49: =(IF(I49>=1,IF(I49>=2,VLOOKUP(J49,'Salary Calculation'!$I$6:$L$15,3,FALSE)/60*(G49)+VLOOKUP(K49,'Salary Calculation'!$I$6:$L$15,3,FALSE)/60*(G49),VLOOKUP(J49,'Salary Calculation'!$I$6:$L$15,3,FALSE)/60*(G49)),0)) -> 23.29666667 | M49: No materials charged | N49: =VLOOKUP(M49,'Lookups & OH allocation'!$B$124:$D$136,3,FALSE) -> 0 | O49: None | Q49: Normal | R49: =L49*VLOOKUP(Q49,'Lookups & OH allocation'!$B$55:$C$59,2,FALSE) -> 0 | S49: =AA49*'Lookups & OH allocation'!$C$35/60 -> 2.48594925 | T49: 25.78261592 | U49: =(T49)*'Salary Calculation'!$J$2 -> 15.72739571 | V49: =IF(J49="Administration",0,H49/60*'Salary Calculation'!$J$3) -> 0 | X49: =SUM(U49:W49) -> 15.72739571 | Y49: 41.51001163 | AA49: =IFERROR(VLOOKUP(D49,'Back Office Time'!$B$5:$G$20,4,FALSE),VLOOKUP(B49,'Back Office Time'!$B$5:$G$20,4,FALSE)) -> 3 | AB49: =IFERROR(VLOOKUP($C49,'Volumes - Report Summary'!$A:$I,MATCH(AB$1,'Volumes - Report Summary'!$A$6:$I$6,0),FALSE),0) -> 1 | AC49: =IFERROR(VLOOKUP($C49,'Volumes - Report Summary'!$A:$I,MATCH(AC$1,'Volumes - Report Summary'!$A$6:$I$6,0),FALSE),0) -> 1 | AD49: =IFERROR(VLOOKUP($C49,'Volumes - Report Summary'!$A:$I,MATCH(AD$1,'Volumes - Report Summary'!$A$6:$I$6,0),FALSE),0) -> 1 | AE49: =IFERROR(VLOOKUP($C49,'Volumes - Report Summary'!$A:$I,MATCH(AE$1,'Volumes - Report Summary'!$A$6:$I$6,0),FALSE),0) -> 1 | AF49: =IFERROR(VLOOKUP($C49,'Volumes - Report Summary'!$A:$I,MATCH(AF$1,'Volumes - Report Summary'!$A$6:$I$6,0),FALSE),0) -> 1 | AH49: Administration | AI49: 30.85794 | AJ49: =Y49*'Master Data'!$G$18 -> 42.52700691
B50: Connection establishment charges | C50: Overhead service, single span - single phase | E50: 60 | F50: 20 | G50: =SUM(E50:F50) -> 80 | H50: 160 | I50: 2 | J50: Technical Specialist - Outdoor | K50: Technical Specialist - Outdoor | L50: =(IF(I50>=1,IF(I50>=2,VLOOKUP(J50,'Salary Calculation'!$I$6:$L$15,3,FALSE)/60*(G50)+VLOOKUP(K50,'Salary Calculation'!$I$6:$L$15,3,FALSE)/60*(G50),VLOOKUP(J50,'Salary Calculation'!$I$6:$L$15,3,FALSE)/60*(G50)),0)) -> 239.44 | M50: single phase OH service | N50: =VLOOKUP(M50,'Lookups & OH allocation'!$B$124:$D$136,3,FALSE) -> 127.6523824 | O50: Truck | Q50: Normal | R50: =L50*VLOOKUP(Q50,'Lookups & OH allocation'!$B$55:$C$59,2,FALSE) -> 0 | S50: =AA50*'Lookups & OH allocation'!$C$35/60 -> 10.77244675 | T50: 377.8648292 | U50: =(T50)*'Salary Calculation'!$J$2 -> 230.4975458 | V50: =IF(J50="Administration",0,H50/60*'Salary Calculation'!$J$3) -> 53.33333333 | X50: 283.8308791 | Y50: 661.6957083 | AA50: =IFERROR(VLOOKUP(D50,'Back Office Time'!$B$5:$G$20,4,FALSE),VLOOKUP(B50,'Back Office Time'!$B$5:$G$20,4,FALSE)) -> 13 | AB50: =IFERROR(VLOOKUP($C50,'Volumes - Report Summary'!$A:$I,MATCH(AB$1,'Volumes - Report Summary'!$A$6:$I$6,0),FALSE),0) -> 319 | AC50: =IFERROR(VLOOKUP($C50,'Volumes - Report Summary'!$A:$I,MATCH(AC$1,'Volumes - Report Summary'!$A$6:$I$6,0),FALSE),0) -> 319 | AD50: =IFERROR(VLOOKUP($C50,'Volumes - Report Summary'!$A:$I,MATCH(AD$1,'Volumes - Report Summary'!$A$6:$I$6,0),FALSE),0) -> 319 | AE50: =IFERROR(VLOOKUP($C50,'Volumes - Report Summary'!$A:$I,MATCH(AE$1,'Volumes - Report Summary'!$A$6:$I$6,0),FALSE),0) -> 319 | AF50: =IFERROR(VLOOKUP($C50,'Volumes - Report Summary'!$A:$I,MATCH(AF$1,'Volumes - Report Summary'!$A$6:$I$6,0),FALSE),0) -> 319 | AH50: Technical Specialist | AI50: 525.7177858 | AJ50: =Y50*'Master Data'!$G$18 -> 677.9072531
B51: Connection establishment charges | C51: Overhead service, single span - multi phase | E51: 80 | F51: 20 | G51: 100 | H51: 200 | I51: 2 | J51: Technical Specialist - Outdoor | K51: Technical Specialist - Outdoor | L51: =(IF(I51>=1,IF(I51>=2,VLOOKUP(J51,'Salary Calculation'!$I$6:$L$15,3,FALSE)/60*(G51)+VLOOKUP(K51,'Salary Calculation'!$I$6:$L$15,3,FALSE)/60*(G51),VLOOKUP(J51,'Salary Calculation'!$I$6:$L$15,3,FALSE)/60*(G51)),0)) -> 299.3 | M51: multi phase OH service | N51: =VLOOKUP(M51,'Lookups & OH allocation'!$B$124:$D$136,3,FALSE) -> 253.2160603 | O51: Truck | Q51: Normal | R51: =L51*VLOOKUP(Q51,'Lookups & OH allocation'!$B$55:$C$59,2,FALSE) -> 0 | S51: =AA51*'Lookups & OH allocation'!$C$35/60 -> 10.77244675 | T51: 563.2885071 | U51: =(T51)*'Salary Calculation'!$J$2 -> 343.6059893 | V51: =IF(J51="Administration",0,H51/60*'Salary Calculation'!$J$3) -> 66.66666667 | X51: 410.272656 | Y51: 973.561163 | AA51: =IFERROR(VLOOKUP(D51,'Back Office Time'!$B$5:$G$20,4,FALSE),VLOOKUP(B51,'Back Office Time'!$B$5:$G$20,4,FALSE)) -> 13 | AB51: =IFERROR(VLOOKUP($C51,'Volumes - Report Summary'!$A:$I,MATCH(AB$1,'Volumes - Report Summary'!$A$6:$I$6,0),FALSE),0) -> 110 | AC51: =IFERROR(VLOOKUP($C51,'Volumes - Report Summary'!$A:$I,MATCH(AC$1,'Volumes - Report Summary'!$A$6:$I$6,0),FALSE),0) -> 110 | AD51: =IFERROR(VLOOKUP($C51,'Volumes - Report Summary'!$A:$I,MATCH(AD$1,'Volumes - Report Summary'!$A$6:$I$6,0),FALSE),0) -> 110 | AE51: =IFERROR(VLOOKUP($C51,'Volumes - Report Summary'!$A:$I,MATCH(AE$1,'Volumes - Report Summary'!$A$6:$I$6,0),FALSE),0) -> 110 | AF51: =IFERROR(VLOOKUP($C51,'Volumes - Report Summary'!$A:$I,MATCH(AF$1,'Volumes - Report Summary'!$A$6:$I$6,0),FALSE),0) -> 110 | AH51: Technical Specialist | AI51: 753.0922538 | AJ51: =Y51*'Master Data'!$G$18 -> 997.4134115
B52: Connection establishment charges | C52: Underground service in turret/cabinet - single phase | E52: 40 | F52: 20 | G52: 60 | H52: 60 | I52: 1 | J52: Technical Specialist - Outdoor | L52: =(IF(I52>=1,IF(I52>=2,VLOOKUP(J52,'Salary Calculation'!$I$6:$L$15,3,FALSE)/60*(G52)+VLOOKUP(K52,'Salary Calculation'!$I$6:$L$15,3,FALSE)/60*(G52),VLOOKUP(J52,'Salary Calculation'!$I$6:$L$15,3,FALSE)/60*(G52)),0)) -> 89.79 | M52: single phase UG connect to turret | N52: =VLOOKUP(M52,'Lookups & OH allocation'!$B$124:$D$136,3,FALSE) -> 1.13356827 | O52: Ute/Utility | Q52: Normal | R52: =L52*VLOOKUP(Q52,'Lookups & OH allocation'!$B$55:$C$59,2,FALSE) -> 0 | S52: =AA52*'Lookups & OH allocation'!$C$35/60 -> 10.77244675 | T52: 101.696015 | U52: =(T52)*'Salary Calculation'!$J$2 -> 62.03456916 | V52: =IF(J52="Administration",0,H52/60*'Salary Calculation'!$J$3) -> 20 | X52: 82.03456916 | Y52: 183.7305842 | AA52: =IFERROR(VLOOKUP(D52,'Back Office Time'!$B$5:$G$20,4,FALSE),VLOOKUP(B52,'Back Office Time'!$B$5:$G$20,4,FALSE)) -> 13 | AB52: =IFERROR(VLOOKUP($C52,'Volumes - Report Summary'!$A:$I,MATCH(AB$1,'Volumes - Report Summary'!$A$6:$I$6,0),FALSE),0) -> 1669 | AC52: =IFERROR(VLOOKUP($C52,'Volumes - Report Summary'!$A:$I,MATCH(AC$1,'Volumes - Report Summary'!$A$6:$I$6,0),FALSE),0) -> 1669 | AD52: =IFERROR(VLOOKUP($C52,'Volumes - Report Summary'!$A:$I,MATCH(AD$1,'Volumes - Report Summary'!$A$6:$I$6,0),FALSE),0) -> 1669 | AE52: =IFERROR(VLOOKUP($C52,'Volumes - Report Summary'!$A:$I,MATCH(AE$1,'Volumes - Report Summary'!$A$6:$I$6,0),FALSE),0) -> 1669 | AF52: =IFERROR(VLOOKUP($C52,'Volumes - Report Summary'!$A:$I,MATCH(AF$1,'Volumes - Report Summary'!$A$6:$I$6,0),FALSE),0) -> 1669 | AH52: Technical Specialist | AI52: 149.2630607 | AJ52: =Y52*'Master Data'!$G$18 -> 188.2319835
B53: Connection establishment charges | C53: Underground service in turret/cabinet - multi phase | E53: 60 | F53: 20 | G53: 80 | H53: 80 | I53: 1 | J53: Technical Specialist - Outdoor | L53: =(IF(I53>=1,IF(I53>=2,VLOOKUP(J53,'Salary Calculation'!$I$6:$L$15,3,FALSE)/60*(G53)+VLOOKUP(K53,'Salary Calculation'!$I$6:$L$15,3,FALSE)/60*(G53),VLOOKUP(J53,'Salary Calculation'!$I$6:$L$15,3,FALSE)/60*(G53)),0)) -> 119.72 | M53: multi phase UG connect to turret | N53: =VLOOKUP(M53,'Lookups & OH allocation'!$B$124:$D$136,3,FALSE) -> 3.421696815 | O53: Ute/Utility | Q53: Normal | R53: =L53*VLOOKUP(Q53,'Lookups & OH allocation'!$B$55:$C$59,2,FALSE) -> 0 | S53: =AA53*'Lookups & OH allocation'!$C$35/60 -> 10.77244675 | T53: 133.9141436 | U53: =(T53)*'Salary Calculation'!$J$2 -> 81.68762757 | V53: =IF(J53="Administration",0,H53/60*'Salary Calculation'!$J$3) -> 26.66666667 | X53: 108.3542942 | Y53: 242.2684378 | AA53: =IFERROR(VLOOKUP(D53,'Back Office Time'!$B$5:$G$20,4,FALSE),VLOOKUP(B53,'Back Office Time'!$B$5:$G$20,4,FALSE)) -> 13 | AB53: =IFERROR(VLOOKUP($C53,'Volumes - Report Summary'!$A:$I,MATCH(AB$1,'Volumes - Report Summary'!$A$6:$I$6,0),FALSE),0) -> 332 | AC53: =IFERROR(VLOOKUP($C53,'Volumes - Report Summary'!$A:$I,MATCH(AC$1,'Volumes - Report Summary'!$A$6:$I$6,0),FALSE),0) -> 332 | AD53: =IFERROR(VLOOKUP($C53,'Volumes - Report Summary'!$A:$I,MATCH(AD$1,'Volumes - Report Summary'!$A$6:$I$6,0),FALSE),0) -> 332 | AE53: =IFERROR(VLOOKUP($C53,'Volumes - Report Summary'!$A:$I,MATCH(AE$1,'Volumes - Report Summary'!$A$6:$I$6,0),FALSE),0) -> 332 | AF53: =IFERROR(VLOOKUP($C53,'Volumes - Report Summary'!$A:$I,MATCH(AF$1,'Volumes - Report Summary'!$A$6:$I$6,0),FALSE),0) -> 332 | AH53: Technical Specialist | AI53: 200.9744884 | AJ53: =Y53*'Master Data'!$G$18 -> 248.2040145
B54: Connection establishment charges | C54: Underground service with pole mounted fuse - single phase | E54: 60 | F54: 20 | G54: 80 | H54: 160 | I54: 2 | J54: Technical Specialist - Outdoor | K54: Technical Specialist - Outdoor | L54: =(IF(I54>=1,IF(I54>=2,VLOOKUP(J54,'Salary Calculation'!$I$6:$L$15,3,FALSE)/60*(G54)+VLOOKUP(K54,'Salary Calculation'!$I$6:$L$15,3,FALSE)/60*(G54),VLOOKUP(J54,'Salary Calculation'!$I$6:$L$15,3,FALSE)/60*(G54)),0)) -> 239.44 | M54: single phase UG service - pole | N54: =VLOOKUP(M54,'Lookups & OH allocation'!$B$124:$D$136,3,FALSE) -> 7.85100987 | O54: Truck | Q54: Normal | R54: =L54*VLOOKUP(Q54,'Lookups & OH allocation'!$B$55:$C$59,2,FALSE) -> 0 | S54: =AA54*'Lookups & OH allocation'!$C$35/60 -> 10.77244675 | T54: 258.0634566 | U54: =(T54)*'Salary Calculation'!$J$2 -> 157.4187085 | V54: =IF(J54="Administration",0,H54/60*'Salary Calculation'!$J$3) -> 53.33333333 | X54: 210.7520419 | Y54: 468.8154985 | AA54: =IFERROR(VLOOKUP(D54,'Back Office Time'!$B$5:$G$20,4,FALSE),VLOOKUP(B54,'Back Office Time'!$B$5:$G$20,4,FALSE)) -> 13 | AB54: =IFERROR(VLOOKUP($C54,'Volumes - Report Summary'!$A:$I,MATCH(AB$1,'Volumes - Report Summary'!$A$6:$I$6,0),FALSE),0) -> 379 | AC54: =IFERROR(VLOOKUP($C54,'Volumes - Report Summary'!$A:$I,MATCH(AC$1,'Volumes - Report Summary'!$A$6:$I$6,0),FALSE),0) -> 379 | AD54: =IFERROR(VLOOKUP($C54,'Volumes - Report Summary'!$A:$I,MATCH(AD$1,'Volumes - Report Summary'!$A$6:$I$6,0),FALSE),0) -> 379 | AE54: =IFERROR(VLOOKUP($C54,'Volumes - Report Summary'!$A:$I,MATCH(AE$1,'Volumes - Report Summary'!$A$6:$I$6,0),FALSE),0) -> 379 | AF54: =IFERROR(VLOOKUP($C54,'Volumes - Report Summary'!$A:$I,MATCH(AF$1,'Volumes - Report Summary'!$A$6:$I$6,0),FALSE),0) -> 379 | AH54: Technical Specialist | AI54: 402.9812796 | AJ54: =Y54*'Master Data'!$G$18 -> 480.3014782
B55: Connection establishment charges | C55: Underground service with pole mounted fuse - multi phase | E55: 80 | F55: 20 | G55: 100 | H55: 200 | I55: 2 | J55: Technical Specialist - Outdoor | K55: Technical Specialist - Outdoor | L55: =(IF(I55>=1,IF(I55>=2,VLOOKUP(J55,'Salary Calculation'!$I$6:$L$15,3,FALSE)/60*(G55)+VLOOKUP(K55,'Salary Calculation'!$I$6:$L$15,3,FALSE)/60*(G55),VLOOKUP(J55,'Salary Calculation'!$I$6:$L$15,3,FALSE)/60*(G55)),0)) -> 299.3 | M55: multi phase UG service - pole | N55: =VLOOKUP(M55,'Lookups & OH allocation'!$B$124:$D$136,3,FALSE) -> 23.56352561 | O55: Truck | Q55: Normal | R55: =L55*VLOOKUP(Q55,'Lookups & OH allocation'!$B$55:$C$59,2,FALSE) -> 0 | S55: =AA55*'Lookups & OH allocation'!$C$35/60 -> 10.77244675 | T55: 333.6359724 | U55: =(T55)*'Salary Calculation'!$J$2 -> 203.5179431 | V55: =IF(J55="Administration",0,H55/60*'Salary Calculation'!$J$3) -> 66.66666667 | X55: 270.1846098 | Y55: 603.8205822 | AA55: =IFERROR(VLOOKUP(D55,'Back Office Time'!$B$5:$G$20,4,FALSE),VLOOKUP(B55,'Back Office Time'!$B$5:$G$20,4,FALSE)) -> 13 | AB55: =IFERROR(VLOOKUP($C55,'Volumes - Report Summary'!$A:$I,MATCH(AB$1,'Volumes - Report Summary'!$A$6:$I$6,0),FALSE),0) -> 151 | AC55: =IFERROR(VLOOKUP($C55,'Volumes - Report Summary'!$A:$I,MATCH(AC$1,'Volumes - Report Summary'!$A$6:$I$6,0),FALSE),0) -> 151 | AD55: =IFERROR(VLOOKUP($C55,'Volumes - Report Summary'!$A:$I,MATCH(AD$1,'Volumes - Report Summary'!$A$6:$I$6,0),FALSE),0) -> 151 | AE55: =IFERROR(VLOOKUP($C55,'Volumes - Report Summary'!$A:$I,MATCH(AE$1,'Volumes - Report Summary'!$A$6:$I$6,0),FALSE),0) -> 151 | AF55: =IFERROR(VLOOKUP($C55,'Volumes - Report Summary'!$A:$I,MATCH(AF$1,'Volumes - Report Summary'!$A$6:$I$6,0),FALSE),0) -> 151 | AH55: Technical Specialist | AI55: 517.813232 | AJ55: =Y55*'Master Data'!$G$18 -> 618.6141864
B56: Connection establishment charges | C56: Basic connection – after hours | D56: after hours | E56: 80 | F56: 60 | G56: 140 | H56: 280 | I56: 2 | J56: Technical Specialist - Outdoor AH | K56: Technical Specialist - Outdoor AH | L56: =(IF(I56>=1,IF(I56>=2,VLOOKUP(J56,'Salary Calculation'!$I$6:$L$15,3,FALSE)/60*(G56)+VLOOKUP(K56,'Salary Calculation'!$I$6:$L$15,3,FALSE)/60*(G56),VLOOKUP(J56,'Salary Calculation'!$I$6:$L$15,3,FALSE)/60*(G56)),0)) -> 699.7634 | M56: multi phase UG service - pole | N56: =VLOOKUP(M56,'Lookups & OH allocation'!$B$124:$D$136,3,FALSE) -> 23.56352561 | O56: Truck | Q56: After Hours | R56: =L56*VLOOKUP(Q56,'Lookups & OH allocation'!$B$55:$C$59,2,FALSE) -> 34.98817 | S56: =AA56*'Lookups & OH allocation'!$C$35/60 -> 13.258396 | T56: 771.5734916 | U56: =H56*'Salary Calculation'!$K$13*'Salary Calculation'!$J$2/100+AA50*'Salary Calculation'!$J$2 -> 161.29132 | V56: =IF(J56="Administration",0,H56/60*'Salary Calculation'!$J$3) -> 93.33333333 | X56: 254.6246533 | Y56: 1026.198145 | AA56: =IFERROR(VLOOKUP(D56,'Back Office Time'!$B$5:$G$20,4,FALSE),VLOOKUP(B56,'Back Office Time'!$B$5:$G$20,4,FALSE)) -> 16 | AB56: =IFERROR(VLOOKUP($C56,'Volumes - Report Summary'!$A:$I,MATCH(AB$1,'Volumes - Report Summary'!$A$6:$I$6,0),FALSE),0) -> 1 | AC56: =IFERROR(VLOOKUP($C56,'Volumes - Report Summary'!$A:$I,MATCH(AC$1,'Volumes - Report Summary'!$A$6:$I$6,0),FALSE),0) -> 1 | AD56: =IFERROR(VLOOKUP($C56,'Volumes - Report Summary'!$A:$I,MATCH(AD$1,'Volumes - Report Summary'!$A$6:$I$6,0),FALSE),0) -> 1 | AE56: =IFERROR(VLOOKUP($C56,'Volumes - Report Summary'!$A:$I,MATCH(AE$1,'Volumes - Report Summary'!$A$6:$I$6,0),FALSE),0) -> 1 | AF56: =IFERROR(VLOOKUP($C56,'Volumes - Report Summary'!$A:$I,MATCH(AF$1,'Volumes - Report Summary'!$A$6:$I$6,0),FALSE),0) -> 1 | AH56: Technical Specialist AH | AI56: 1032.65 | AJ56: =Y56*'Master Data'!$G$18 -> 1051.339999
B57: Connection establishment charges | C57: Connection establishment - wasted visit | E57: 5 | F57: 20 | G57: 25 | H57: 50 | I57: 2 | J57: Technical Specialist - Outdoor | K57: Technical Specialist - Outdoor | L57: =(IF(I57>=1,IF(I57>=2,VLOOKUP(J57,'Salary Calculation'!$I$6:$L$15,3,FALSE)/60*(G57)+VLOOKUP(K57,'Salary Calculation'!$I$6:$L$15,3,FALSE)/60*(G57),VLOOKUP(J57,'Salary Calculation'!$I$6:$L$15,3,FALSE)/60*(G57)),0)) -> 74.825 | M57: No materials charged | N57: =VLOOKUP(M57,'Lookups & OH allocation'!$B$124:$D$136,3,FALSE) -> 0 | O57: Ute/Utility | Q57: Normal | R57: =L57*VLOOKUP(Q57,'Lookups & OH allocation'!$B$55:$C$59,2,FALSE) -> 0 | S57: =AA57*'Lookups & OH allocation'!$C$35/60 -> 10.77244675 | T57: 85.59744675 | U57: =(T57)*'Salary Calculation'!$J$2 -> 52.21444252 | V57: =IF(J57="Administration",0,H57/60*'Salary Calculation'!$J$3) -> 16.66666667 | X57: 68.88110918 | Y57: 154.4785559 | AA57: =IFERROR(VLOOKUP(D57,'Back Office Time'!$B$5:$G$20,4,FALSE),VLOOKUP(B57,'Back Office Time'!$B$5:$G$20,4,FALSE)) -> 13 | AB57: =IFERROR(VLOOKUP($C57,'Volumes - Report Summary'!$A:$I,MATCH(AB$1,'Volumes - Report Summary'!$A$6:$I$6,0),FALSE),0) -> 1 | AC57: =IFERROR(VLOOKUP($C57,'Volumes - Report Summary'!$A:$I,MATCH(AC$1,'Volumes - Report Summary'!$A$6:$I$6,0),FALSE),0) -> 1 | AD57: =IFERROR(VLOOKUP($C57,'Volumes - Report Summary'!$A:$I,MATCH(AD$1,'Volumes - Report Summary'!$A$6:$I$6,0),FALSE),0) -> 1 | AE57: =IFERROR(VLOOKUP($C57,'Volumes - Report Summary'!$A:$I,MATCH(AE$1,'Volumes - Report Summary'!$A$6:$I$6,0),FALSE),0) -> 1 | AF57: =IFERROR(VLOOKUP($C57,'Volumes - Report Summary'!$A:$I,MATCH(AF$1,'Volumes - Report Summary'!$A$6:$I$6,0),FALSE),0) -> 1 | AH57: Technical Specialist | AI57: 123.4181 | AJ57: =Y57*'Master Data'!$G$18 -> 158.2632806
B58: Temporary Disconnection/Reconnection | L58: =(IF(I58>=1,IF(I58>=2,VLOOKUP(J58,'Salary Calculation'!$I$6:$L$15,3,FALSE)/60*(G58)+VLOOKUP(K58,'Salary Calculation'!$I$6:$L$15,3,FALSE)/60*(G58),VLOOKUP(J58,'Salary Calculation'!$I$6:$L$15,3,FALSE)/60*(G58)),0)) -> 0
B59: Temporary Disconnection/Reconnection | C59: Disconnect/reconnect overhead service for facia repairs - single phase | E59: 40 | F59: 40 | G59: =SUM(E59:F59) -> 80 | H59: =SUM(E59:F59)*I59 -> 160 | I59: 2 | J59: Technical Specialist - Outdoor | K59: Technical Specialist - Outdoor | L59: =(IF(I59>=1,IF(I59>=2,VLOOKUP(J59,'Salary Calculation'!$I$6:$L$15,3,FALSE)/60*(G59)+VLOOKUP(K59,'Salary Calculation'!$I$6:$L$15,3,FALSE)/60*(G59),VLOOKUP(J59,'Salary Calculation'!$I$6:$L$15,3,FALSE)/60*(G59)),0)) -> 239.44 | M59: No materials charged | N59: =VLOOKUP(M59,'Lookups & OH allocation'!$B$124:$D$136,3,FALSE) -> 0 | O59: Truck | Q59: Normal | R59: =L59*VLOOKUP(Q59,'Lookups & OH allocation'!$B$55:$C$59,2,FALSE) -> 0 | S59: =AA59*'Lookups & OH allocation'!$C$35/60 -> 9.943797 | T59: 249.383797 | U59: =(T59)*'Salary Calculation'!$J$2 -> 152.1241162 | V59: =IF(J59="Administration",0,H59/60*'Salary Calculation'!$J$3) -> 53.33333333 | X59: =SUM(U59:W59) -> 205.4574495 | Y59: 454.8412465 | AA59: =IFERROR(VLOOKUP(D59,'Back Office Time'!$B$5:$G$20,4,FALSE),VLOOKUP(B59,'Back Office Time'!$B$5:$G$20,4,FALSE)) -> 12 | AB59: =IFERROR(VLOOKUP($C59,'Volumes - Report Summary'!$A:$I,MATCH(AB$1,'Volumes - Report Summary'!$A$6:$I$6,0),FALSE),0) -> 20 | AC59: =IFERROR(VLOOKUP($C59,'Volumes - Report Summary'!$A:$I,MATCH(AC$1,'Volumes - Report Summary'!$A$6:$I$6,0),FALSE),0) -> 20 | AD59: =IFERROR(VLOOKUP($C59,'Volumes - Report Summary'!$A:$I,MATCH(AD$1,'Volumes - Report Summary'!$A$6:$I$6,0),FALSE),0) -> 20 | AE59: =IFERROR(VLOOKUP($C59,'Volumes - Report Summary'!$A:$I,MATCH(AE$1,'Volumes - Report Summary'!$A$6:$I$6,0),FALSE),0) -> 20 | AF59: =IFERROR(VLOOKUP($C59,'Volumes - Report Summary'!$A:$I,MATCH(AF$1,'Volumes - Report Summary'!$A$6:$I$6,0),FALSE),0) -> 20 | AH59: Technical Specialist | AI59: 394.93792 | AJ59: =Y59*'Master Data'!$G$18 -> 465.984857
B60: Temporary Disconnection/Reconnection | C60: Disconnect/reconnect overhead service for facia repairs - multi phase | E60: 60 | F60: 40 | G60: =SUM(E60:F60) -> 100 | H60: =SUM(E60:F60)*I60 -> 200 | I60: 2 | J60: Technical Specialist - Outdoor | K60: Technical Specialist - Outdoor | L60: =(IF(I60>=1,IF(I60>=2,VLOOKUP(J60,'Salary Calculation'!$I$6:$L$15,3,FALSE)/60*(G60)+VLOOKUP(K60,'Salary Calculation'!$I$6:$L$15,3,FALSE)/60*(G60),VLOOKUP(J60,'Salary Calculation'!$I$6:$L$15,3,FALSE)/60*(G60)),0)) -> 299.3 | M60: No materials charged | N60: =VLOOKUP(M60,'Lookups & OH allocation'!$B$124:$D$136,3,FALSE) -> 0 | O60: Truck | Q60: Normal | R60: =L60*VLOOKUP(Q60,'Lookups & OH allocation'!$B$55:$C$59,2,FALSE) -> 0 | S60: =AA60*'Lookups & OH allocation'!$C$35/60 -> 9.943797 | T60: 309.243797 | U60: =(T60)*'Salary Calculation'!$J$2 -> 188.6387162 | V60: =IF(J60="Administration",0,H60/60*'Salary Calculation'!$J$3) -> 66.66666667 | X60: =SUM(U60:W60) -> 255.3053828 | Y60: 564.5491798 | AA60: =IFERROR(VLOOKUP(D60,'Back Office Time'!$B$5:$G$20,4,FALSE),VLOOKUP(B60,'Back Office Time'!$B$5:$G$20,4,FALSE)) -> 12 | AB60: =IFERROR(VLOOKUP($C60,'Volumes - Report Summary'!$A:$I,MATCH(AB$1,'Volumes - Report Summary'!$A$6:$I$6,0),FALSE),0) -> 20 | AC60: =IFERROR(VLOOKUP($C60,'Volumes - Report Summary'!$A:$I,MATCH(AC$1,'Volumes - Report Summary'!$A$6:$I$6,0),FALSE),0) -> 20 | AD60: =IFERROR(VLOOKUP($C60,'Volumes - Report Summary'!$A:$I,MATCH(AD$1,'Volumes - Report Summary'!$A$6:$I$6,0),FALSE),0) -> 20 | AE60: =IFERROR(VLOOKUP($C60,'Volumes - Report Summary'!$A:$I,MATCH(AE$1,'Volumes - Report Summary'!$A$6:$I$6,0),FALSE),0) -> 20 | AF60: =IFERROR(VLOOKUP($C60,'Volumes - Report Summary'!$A:$I,MATCH(AF$1,'Volumes - Report Summary'!$A$6:$I$6,0),FALSE),0) -> 20 | AH60: Technical Specialist | AI60: 493.67 | AJ60: =Y60*'Master Data'!$G$18 -> 578.3806347
B61: Temporary Disconnection/Reconnection | C61: Temporary disconnect/reconnect – retailer requested outage | E61: 30 | F61: 40 | G61: =SUM(E61:F61) -> 70 | H61: =SUM(E61:F61)*I61 -> 140 | I61: 2 | J61: Technical Specialist - Outdoor | K61: Technical Specialist - Outdoor | L61: =(IF(I61>=1,IF(I61>=2,VLOOKUP(J61,'Salary Calculation'!$I$6:$L$15,3,FALSE)/60*(G61)+VLOOKUP(K61,'Salary Calculation'!$I$6:$L$15,3,FALSE)/60*(G61),VLOOKUP(J61,'Salary Calculation'!$I$6:$L$15,3,FALSE)/60*(G61)),0)) -> 209.51 | M61: No materials charged | N61: =VLOOKUP(M61,'Lookups & OH allocation'!$B$124:$D$136,3,FALSE) -> 0 | O61: Ute/Utility | Q61: Normal | R61: =L61*VLOOKUP(Q61,'Lookups & OH allocation'!$B$55:$C$59,2,FALSE) -> 0 | S61: =AA61*'Lookups & OH allocation'!$C$35/60 -> 9.943797 | T61: 219.453797 | U61: =(T61)*'Salary Calculation'!$J$2 -> 133.8668162 | V61: =IF(J61="Administration",0,H61/60*'Salary Calculation'!$J$3) -> 46.66666667 | X61: =SUM(U61:W61) -> 180.5334828 | Y61: 399.9872798 | AA61: =IFERROR(VLOOKUP(D61,'Back Office Time'!$B$5:$G$20,4,FALSE),VLOOKUP(B61,'Back Office Time'!$B$5:$G$20,4,FALSE)) -> 12 | AB61: =IFERROR(VLOOKUP($C61,'Volumes - Report Summary'!$A:$I,MATCH(AB$1,'Volumes - Report Summary'!$A$6:$I$6,0),FALSE),0) -> 1 | AC61: =IFERROR(VLOOKUP($C61,'Volumes - Report Summary'!$A:$I,MATCH(AC$1,'Volumes - Report Summary'!$A$6:$I$6,0),FALSE),0) -> 1 | AD61: =IFERROR(VLOOKUP($C61,'Volumes - Report Summary'!$A:$I,MATCH(AD$1,'Volumes - Report Summary'!$A$6:$I$6,0),FALSE),0) -> 1 | AE61: =IFERROR(VLOOKUP($C61,'Volumes - Report Summary'!$A:$I,MATCH(AE$1,'Volumes - Report Summary'!$A$6:$I$6,0),FALSE),0) -> 1 | AF61: =IFERROR(VLOOKUP($C61,'Volumes - Report Summary'!$A:$I,MATCH(AF$1,'Volumes - Report Summary'!$A$6:$I$6,0),FALSE),0) -> 1 | AH61: Technical Specialist | AI61: 345.57068 | AJ61: =Y61*'Master Data'!$G$18 -> 409.7869682
B62: Temporary Disconnection/Reconnection | C62: Temporary disconnect/reconnect – after hours | D62: after hours | E62: 60 | F62: 60 | G62: =SUM(E62:F62) -> 120 | H62: =SUM(E62:F62)*I62 -> 240 | I62: 2 | J62: Technical Specialist - Outdoor AH | K62: Technical Specialist - Outdoor AH | L62: =(IF(I62>=1,IF(I62>=2,VLOOKUP(J62,'Salary Calculation'!$I$6:$L$15,3,FALSE)/60*(G62)+VLOOKUP(K62,'Salary Calculation'!$I$6:$L$15,3,FALSE)/60*(G62),VLOOKUP(J62,'Salary Calculation'!$I$6:$L$15,3,FALSE)/60*(G62)),0)) -> 599.7972 | M62: No materials charged | N62: =VLOOKUP(M62,'Lookups & OH allocation'!$B$124:$D$136,3,FALSE) -> 0 | O62: Truck | Q62: After Hours | R62: =L62*VLOOKUP(Q62,'Lookups & OH allocation'!$B$55:$C$59,2,FALSE) -> 29.98986 | S62: =AA62*'Lookups & OH allocation'!$C$35/60 -> 13.258396 | T62: 643.045456 | U62: =H62*'Salary Calculation'!$K$13*'Salary Calculation'!$J$2/100+AA59*'Salary Calculation'!$J$2 -> 138.77256 | V62: =IF(J62="Administration",0,H62/60*'Salary Calculation'!$J$3) -> 80 | X62: =SUM(U62:W62) -> 218.77256 | Y62: 861.818016 | AA62: =IFERROR(VLOOKUP(D62,'Back Office Time'!$B$5:$G$20,4,FALSE),VLOOKUP(B62,'Back Office Time'!$B$5:$G$20,4,FALSE)) -> 16 | AB62: =IFERROR(VLOOKUP($C62,'Volumes - Report Summary'!$A:$I,MATCH(AB$1,'Volumes - Report Summary'!$A$6:$I$6,0),FALSE),0) -> 1 | AC62: =IFERROR(VLOOKUP($C62,'Volumes - Report Summary'!$A:$I,MATCH(AC$1,'Volumes - Report Summary'!$A$6:$I$6,0),FALSE),0) -> 1 | AD62: =IFERROR(VLOOKUP($C62,'Volumes - Report Summary'!$A:$I,MATCH(AD$1,'Volumes - Report Summary'!$A$6:$I$6,0),FALSE),0) -> 1 | AE62: =IFERROR(VLOOKUP($C62,'Volumes - Report Summary'!$A:$I,MATCH(AE$1,'Volumes - Report Summary'!$A$6:$I$6,0),FALSE),0) -> 1 | AF62: =IFERROR(VLOOKUP($C62,'Volumes - Report Summary'!$A:$I,MATCH(AF$1,'Volumes - Report Summary'!$A$6:$I$6,0),FALSE),0) -> 1 | AH62: Technical Specialist AH | AI62: 863.4 | AJ62: =Y62*'Master Data'!$G$18 -> 882.9325574
B63: Temporary Disconnection/Reconnection | C63: Temporary disconnect/reconnect – wasted visit | E63: 10 | F63: 20 | G63: =SUM(E63:F63) -> 30 | H63: =SUM(E63:F63)*I63 -> 60 | I63: 2 | J63: Technical Specialist - Outdoor | K63: Technical Specialist - Outdoor | L63: =(IF(I63>=1,IF(I63>=2,VLOOKUP(J63,'Salary Calculation'!$I$6:$L$15,3,FALSE)/60*(G63)+VLOOKUP(K63,'Salary Calculation'!$I$6:$L$15,3,FALSE)/60*(G63),VLOOKUP(J63,'Salary Calculation'!$I$6:$L$15,3,FALSE)/60*(G63)),0)) -> 89.79 | M63: No materials charged | N63: =VLOOKUP(M63,'Lookups & OH allocation'!$B$124:$D$136,3,FALSE) -> 0 | O63: Truck | Q63: Normal | R63: =L63*VLOOKUP(Q63,'Lookups & OH allocation'!$B$55:$C$59,2,FALSE) -> 0 | S63: =AA63*'Lookups & OH allocation'!$C$35/60 -> 9.943797 | T63: 99.733797 | U63: =(T63)*'Salary Calculation'!$J$2 -> 60.83761617 | V63: =IF(J63="Administration",0,H63/60*'Salary Calculation'!$J$3) -> 20 | X63: =SUM(U63:W63) -> 80.83761617 | Y63: 180.5714132 | AA63: =IFERROR(VLOOKUP(D63,'Back Office Time'!$B$5:$G$20,4,FALSE),VLOOKUP(B63,'Back Office Time'!$B$5:$G$20,4,FALSE)) -> 12 | AB63: =IFERROR(VLOOKUP($C63,'Volumes - Report Summary'!$A:$I,MATCH(AB$1,'Volumes - Report Summary'!$A$6:$I$6,0),FALSE),0) -> 1 | AC63: =IFERROR(VLOOKUP($C63,'Volumes - Report Summary'!$A:$I,MATCH(AC$1,'Volumes - Report Summary'!$A$6:$I$6,0),FALSE),0) -> 1 | AD63: =IFERROR(VLOOKUP($C63,'Volumes - Report Summary'!$A:$I,MATCH(AD$1,'Volumes - Report Summary'!$A$6:$I$6,0),FALSE),0) -> 1 | AE63: =IFERROR(VLOOKUP($C63,'Volumes - Report Summary'!$A:$I,MATCH(AE$1,'Volumes - Report Summary'!$A$6:$I$6,0),FALSE),0) -> 1 | AF63: =IFERROR(VLOOKUP($C63,'Volumes - Report Summary'!$A:$I,MATCH(AF$1,'Volumes - Report Summary'!$A$6:$I$6,0),FALSE),0) -> 1 | AH63: Technical Specialist | AI63: 148.10172 | AJ63: =Y63*'Master Data'!$G$18 -> 184.9954128
A64: X | B64: Basic connection alteration | L64: =(IF(I64>=1,IF(I64>=2,VLOOKUP(J64,'Salary Calculation'!$I$6:$L$15,3,FALSE)/60*(G64)+VLOOKUP(K64,'Salary Calculation'!$I$6:$L$15,3,FALSE)/60*(G64),VLOOKUP(J64,'Salary Calculation'!$I$6:$L$15,3,FALSE)/60*(G64)),0)) -> 0
B65: Basic connection alteration | C65: Connection alteration – overhead single phase | E65: 40 | F65: 20 | G65: =SUM(E65:F65) -> 60 | H65: =SUM(E65:F65)*I65 -> 120 | I65: 2 | J65: Technical Specialist - Outdoor | K65: Technical Specialist - Outdoor | L65: =(IF(I65>=1,IF(I65>=2,VLOOKUP(J65,'Salary Calculation'!$I$6:$L$15,3,FALSE)/60*(G65)+VLOOKUP(K65,'Salary Calculation'!$I$6:$L$15,3,FALSE)/60*(G65),VLOOKUP(J65,'Salary Calculation'!$I$6:$L$15,3,FALSE)/60*(G65)),0)) -> 179.58 | M65: No materials charged | N65: =VLOOKUP(M65,'Lookups & OH allocation'!$B$124:$D$136,3,FALSE) -> 0 | O65: Truck | Q65: Normal | R65: =L65*VLOOKUP(Q65,'Lookups & OH allocation'!$B$55:$C$59,2,FALSE) -> 0 | S65: =AA65*'Lookups & OH allocation'!$C$35/60 -> 10.77244675 | T65: 190.3524468 | U65: =(T65)*'Salary Calculation'!$J$2 -> 116.1149925 | V65: =IF(J65="Administration",0,H65/60*'Salary Calculation'!$J$3) -> 40 | X65: =SUM(U65:W65) -> 156.1149925 | Y65: 346.4674393 | AA65: =IFERROR(VLOOKUP(D65,'Back Office Time'!$B$5:$G$20,4,FALSE),VLOOKUP(B65,'Back Office Time'!$B$5:$G$20,4,FALSE)) -> 13 | AB65: =IFERROR(VLOOKUP($C65,'Volumes - Report Summary'!$A:$I,MATCH(AB$1,'Volumes - Report Summary'!$A$6:$I$6,0),FALSE),0) -> 712 | AC65: =IFERROR(VLOOKUP($C65,'Volumes - Report Summary'!$A:$I,MATCH(AC$1,'Volumes - Report Summary'!$A$6:$I$6,0),FALSE),0) -> 712 | AD65: =IFERROR(VLOOKUP($C65,'Volumes - Report Summary'!$A:$I,MATCH(AD$1,'Volumes - Report Summary'!$A$6:$I$6,0),FALSE),0) -> 712 | AE65: =IFERROR(VLOOKUP($C65,'Volumes - Report Summary'!$A:$I,MATCH(AE$1,'Volumes - Report Summary'!$A$6:$I$6,0),FALSE),0) -> 712 | AF65: =IFERROR(VLOOKUP($C65,'Volumes - Report Summary'!$A:$I,MATCH(AF$1,'Volumes - Report Summary'!$A$6:$I$6,0),FALSE),0) -> 712 | AH65: Technical Specialist | AI65: 296.20344 | AJ65: =Y65*'Master Data'!$G$18 -> 354.9558915
B66: Basic connection alteration | C66: Connection alteration – overhead multi phase | E66: 60 | F66: 20 | G66: 80 | H66: 160 | I66: 2 | J66: Technical Specialist - Outdoor | K66: Technical Specialist - Outdoor | L66: =(IF(I66>=1,IF(I66>=2,VLOOKUP(J66,'Salary Calculation'!$I$6:$L$15,3,FALSE)/60*(G66)+VLOOKUP(K66,'Salary Calculation'!$I$6:$L$15,3,FALSE)/60*(G66),VLOOKUP(J66,'Salary Calculation'!$I$6:$L$15,3,FALSE)/60*(G66)),0)) -> 239.44 | M66: No materials charged | N66: =VLOOKUP(M66,'Lookups & OH allocation'!$B$124:$D$136,3,FALSE) -> 0 | O66: Truck | Q66: Normal | R66: =L66*VLOOKUP(Q66,'Lookups & OH allocation'!$B$55:$C$59,2,FALSE) -> 0 | S66: =AA66*'Lookups & OH allocation'!$C$35/60 -> 10.77244675 | T66: 250.2124468 | U66: =(T66)*'Salary Calculation'!$J$2 -> 152.6295925 | V66: =IF(J66="Administration",0,H66/60*'Salary Calculation'!$J$3) -> 53.33333333 | X66: 205.9629259 | Y66: 456.1753726 | AA66: =IFERROR(VLOOKUP(D66,'Back Office Time'!$B$5:$G$20,4,FALSE),VLOOKUP(B66,'Back Office Time'!$B$5:$G$20,4,FALSE)) -> 13 | AB66: =IFERROR(VLOOKUP($C66,'Volumes - Report Summary'!$A:$I,MATCH(AB$1,'Volumes - Report Summary'!$A$6:$I$6,0),FALSE),0) -> 154 | AC66: =IFERROR(VLOOKUP($C66,'Volumes - Report Summary'!$A:$I,MATCH(AC$1,'Volumes - Report Summary'!$A$6:$I$6,0),FALSE),0) -> 154 | AD66: =IFERROR(VLOOKUP($C66,'Volumes - Report Summary'!$A:$I,MATCH(AD$1,'Volumes - Report Summary'!$A$6:$I$6,0),FALSE),0) -> 154 | AE66: =IFERROR(VLOOKUP($C66,'Volumes - Report Summary'!$A:$I,MATCH(AE$1,'Volumes - Report Summary'!$A$6:$I$6,0),FALSE),0) -> 154 | AF66: =IFERROR(VLOOKUP($C66,'Volumes - Report Summary'!$A:$I,MATCH(AF$1,'Volumes - Report Summary'!$A$6:$I$6,0),FALSE),0) -> 154 | AH66: Technical Specialist | AI66: 394.93792 | AJ66: =Y66*'Master Data'!$G$18 -> 467.3516692
B67: Basic connection alteration | C67: Connection of new consumer mains to an existing installation – underground single phase to turret | E67: 50 | F67: 20 | G67: 70 | H67: 70 | I67: 1 | J67: Technical Specialist - Outdoor | L67: =(IF(I67>=1,IF(I67>=2,VLOOKUP(J67,'Salary Calculation'!$I$6:$L$15,3,FALSE)/60*(G67)+VLOOKUP(K67,'Salary Calculation'!$I$6:$L$15,3,FALSE)/60*(G67),VLOOKUP(J67,'Salary Calculation'!$I$6:$L$15,3,FALSE)/60*(G67)),0)) -> 104.755 | M67: No materials charged | N67: =VLOOKUP(M67,'Lookups & OH allocation'!$B$124:$D$136,3,FALSE) -> 0 | O67: Truck | Q67: Normal | R67: =L67*VLOOKUP(Q67,'Lookups & OH allocation'!$B$55:$C$59,2,FALSE) -> 0 | S67: =AA67*'Lookups & OH allocation'!$C$35/60 -> 10.77244675 | T67: 115.5274468 | U67: =(T67)*'Salary Calculation'!$J$2 -> 70.47174252 | V67: =IF(J67="Administration",0,H67/60*'Salary Calculation'!$J$3) -> 23.33333333 | X67: 93.80507585 | Y67: 209.3325226 | AA67: =IFERROR(VLOOKUP(D67,'Back Office Time'!$B$5:$G$20,4,FALSE),VLOOKUP(B67,'Back Office Time'!$B$5:$G$20,4,FALSE)) -> 13 | AB67: =IFERROR(VLOOKUP($C67,'Volumes - Report Summary'!$A:$I,MATCH(AB$1,'Volumes - Report Summary'!$A$6:$I$6,0),FALSE),0) -> 39 | AC67: =IFERROR(VLOOKUP($C67,'Volumes - Report Summary'!$A:$I,MATCH(AC$1,'Volumes - Report Summary'!$A$6:$I$6,0),FALSE),0) -> 39 | AD67: =IFERROR(VLOOKUP($C67,'Volumes - Report Summary'!$A:$I,MATCH(AD$1,'Volumes - Report Summary'!$A$6:$I$6,0),FALSE),0) -> 39 | AE67: =IFERROR(VLOOKUP($C67,'Volumes - Report Summary'!$A:$I,MATCH(AE$1,'Volumes - Report Summary'!$A$6:$I$6,0),FALSE),0) -> 39 | AF67: =IFERROR(VLOOKUP($C67,'Volumes - Report Summary'!$A:$I,MATCH(AF$1,'Volumes - Report Summary'!$A$6:$I$6,0),FALSE),0) -> 39 | AH67: Technical Specialist | AI67: 172.78534 | AJ67: =Y67*'Master Data'!$G$18 -> 214.4611694
B68: Basic connection alteration | C68: Connection of new consumer mains to an existing installation – underground single phase to pole | E68: 50 | F68: 20 | G68: 70 | H68: 140 | I68: 2 | J68: Technical Specialist - Outdoor | K68: Technical Specialist - Outdoor | L68: =(IF(I68>=1,IF(I68>=2,VLOOKUP(J68,'Salary Calculation'!$I$6:$L$15,3,FALSE)/60*(G68)+VLOOKUP(K68,'Salary Calculation'!$I$6:$L$15,3,FALSE)/60*(G68),VLOOKUP(J68,'Salary Calculation'!$I$6:$L$15,3,FALSE)/60*(G68)),0)) -> 209.51 | M68: No materials charged | N68: =VLOOKUP(M68,'Lookups & OH allocation'!$B$124:$D$136,3,FALSE) -> 0 | O68: Truck | Q68: Normal | R68: =L68*VLOOKUP(Q68,'Lookups & OH allocation'!$B$55:$C$59,2,FALSE) -> 0 | S68: =AA68*'Lookups & OH allocation'!$C$35/60 -> 10.77244675 | T68: 220.2824468 | U68: =(T68)*'Salary Calculation'!$J$2 -> 134.3722925 | V68: =IF(J68="Administration",0,H68/60*'Salary Calculation'!$J$3) -> 46.66666667 | X68: 181.0389592 | Y68: 401.3214059 | AA68: =IFERROR(VLOOKUP(D68,'Back Office Time'!$B$5:$G$20,4,FALSE),VLOOKUP(B68,'Back Office Time'!$B$5:$G$20,4,FALSE)) -> 13 | AB68: =IFERROR(VLOOKUP($C68,'Volumes - Report Summary'!$A:$I,MATCH(AB$1,'Volumes - Report Summary'!$A$6:$I$6,0),FALSE),0) -> 218 | AC68: =IFERROR(VLOOKUP($C68,'Volumes - Report Summary'!$A:$I,MATCH(AC$1,'Volumes - Report Summary'!$A$6:$I$6,0),FALSE),0) -> 218 | AD68: =IFERROR(VLOOKUP($C68,'Volumes - Report Summary'!$A:$I,MATCH(AD$1,'Volumes - Report Summary'!$A$6:$I$6,0),FALSE),0) -> 218 | AE68: =IFERROR(VLOOKUP($C68,'Volumes - Report Summary'!$A:$I,MATCH(AE$1,'Volumes - Report Summary'!$A$6:$I$6,0),FALSE),0) -> 218 | AF68: =IFERROR(VLOOKUP($C68,'Volumes - Report Summary'!$A:$I,MATCH(AF$1,'Volumes - Report Summary'!$A$6:$I$6,0),FALSE),0) -> 218 | AH68: Technical Specialist | AI68: 345.57068 | AJ68: =Y68*'Master Data'!$G$18 -> 411.1537804
B69: Basic connection alteration | C69: Connection of new consumer mains to an existing installation – underground multi phase to turret | E69: 70 | F69: 20 | G69: 90 | H69: 90 | I69: 1 | J69: Technical Specialist - Outdoor | L69: =(IF(I69>=1,IF(I69>=2,VLOOKUP(J69,'Salary Calculation'!$I$6:$L$15,3,FALSE)/60*(G69)+VLOOKUP(K69,'Salary Calculation'!$I$6:$L$15,3,FALSE)/60*(G69),VLOOKUP(J69,'Salary Calculation'!$I$6:$L$15,3,FALSE)/60*(G69)),0)) -> 134.685 | M69: No materials charged | N69: =VLOOKUP(M69,'Lookups & OH allocation'!$B$124:$D$136,3,FALSE) -> 0 | O69: Truck | Q69: Normal | R69: =L69*VLOOKUP(Q69,'Lookups & OH allocation'!$B$55:$C$59,2,FALSE) -> 0 | S69: =AA69*'Lookups & OH allocation'!$C$35/60 -> 10.77244675 | T69: 145.4574468 | U69: =(T69)*'Salary Calculation'!$J$2 -> 88.72904252 | V69: =IF(J69="Administration",0,H69/60*'Salary Calculation'!$J$3) -> 30 | X69: 118.7290425 | Y69: 264.1864893 | AA69: =IFERROR(VLOOKUP(D69,'Back Office Time'!$B$5:$G$20,4,FALSE),VLOOKUP(B69,'Back Office Time'!$B$5:$G$20,4,FALSE)) -> 13 | AB69: =IFERROR(VLOOKUP($C69,'Volumes - Report Summary'!$A:$I,MATCH(AB$1,'Volumes - Report Summary'!$A$6:$I$6,0),FALSE),0) -> 39 | AC69: =IFERROR(VLOOKUP($C69,'Volumes - Report Summary'!$A:$I,MATCH(AC$1,'Volumes - Report Summary'!$A$6:$I$6,0),FALSE),0) -> 39 | AD69: =IFERROR(VLOOKUP($C69,'Volumes - Report Summary'!$A:$I,MATCH(AD$1,'Volumes - Report Summary'!$A$6:$I$6,0),FALSE),0) -> 39 | AE69: =IFERROR(VLOOKUP($C69,'Volumes - Report Summary'!$A:$I,MATCH(AE$1,'Volumes - Report Summary'!$A$6:$I$6,0),FALSE),0) -> 39 | AF69: =IFERROR(VLOOKUP($C69,'Volumes - Report Summary'!$A:$I,MATCH(AF$1,'Volumes - Report Summary'!$A$6:$I$6,0),FALSE),0) -> 39 | AH69: Technical Specialist | AI69: 222.15258 | AJ69: =Y69*'Master Data'!$G$18 -> 270.6590583
B70: Basic connection alteration | C70: Connection of new consumer mains to an existing installation – underground multi phase to pole | E70: 70 | F70: 20 | G70: 90 | H70: 180 | I70: 2 | J70: Technical Specialist - Outdoor | K70: Technical Specialist - Outdoor | L70: =(IF(I70>=1,IF(I70>=2,VLOOKUP(J70,'Salary Calculation'!$I$6:$L$15,3,FALSE)/60*(G70)+VLOOKUP(K70,'Salary Calculation'!$I$6:$L$15,3,FALSE)/60*(G70),VLOOKUP(J70,'Salary Calculation'!$I$6:$L$15,3,FALSE)/60*(G70)),0)) -> 269.37 | M70: No materials charged | N70: =VLOOKUP(M70,'Lookups & OH allocation'!$B$124:$D$136,3,FALSE) -> 0 | O70: Truck | Q70: Normal | R70: =L70*VLOOKUP(Q70,'Lookups & OH allocation'!$B$55:$C$59,2,FALSE) -> 0 | S70: =AA70*'Lookups & OH allocation'!$C$35/60 -> 10.77244675 | T70: =SUM(L70,N70,P70,R70,S70) -> 280.1424467 | U70: =(T70)*'Salary Calculation'!$J$2 -> 170.8868925 | V70: =IF(J70="Administration",0,H70/60*'Salary Calculation'!$J$3) -> 60 | X70: 230.8868925 | Y70: =T70+X70 -> 511.0293393 | AA70: =IFERROR(VLOOKUP(D70,'Back Office Time'!$B$5:$G$20,4,FALSE),VLOOKUP(B70,'Back Office Time'!$B$5:$G$20,4,FALSE)) -> 13 | AB70: =IFERROR(VLOOKUP($C70,'Volumes - Report Summary'!$A:$I,MATCH(AB$1,'Volumes - Report Summary'!$A$6:$I$6,0),FALSE),0) -> 177 | AC70: =IFERROR(VLOOKUP($C70,'Volumes - Report Summary'!$A:$I,MATCH(AC$1,'Volumes - Report Summary'!$A$6:$I$6,0),FALSE),0) -> 177 | AD70: =IFERROR(VLOOKUP($C70,'Volumes - Report Summary'!$A:$I,MATCH(AD$1,'Volumes - Report Summary'!$A$6:$I$6,0),FALSE),0) -> 177 | AE70: =IFERROR(VLOOKUP($C70,'Volumes - Report Summary'!$A:$I,MATCH(AE$1,'Volumes - Report Summary'!$A$6:$I$6,0),FALSE),0) -> 177 | AF70: =IFERROR(VLOOKUP($C70,'Volumes - Report Summary'!$A:$I,MATCH(AF$1,'Volumes - Report Summary'!$A$6:$I$6,0),FALSE),0) -> 177 | AH70: Technical Specialist | AI70: 444.30516 | AJ70: =Y70*'Master Data'!$G$18 -> 523.5495581
B71: Basic connection alteration | C71: Augment single phase overhead service to multi phase supply | E71: 95 | F71: 20 | G71: 115 | H71: 230 | I71: 2 | J71: Technical Specialist - Outdoor | K71: Technical Specialist - Outdoor | L71: =(IF(I71>=1,IF(I71>=2,VLOOKUP(J71,'Salary Calculation'!$I$6:$L$15,3,FALSE)/60*(G71)+VLOOKUP(K71,'Salary Calculation'!$I$6:$L$15,3,FALSE)/60*(G71),VLOOKUP(J71,'Salary Calculation'!$I$6:$L$15,3,FALSE)/60*(G71)),0)) -> 344.195 | M71: multi phase OH service | N71: =VLOOKUP(M71,'Lookups & OH allocation'!$B$124:$D$136,3,FALSE) -> 253.2160603 | O71: Truck | Q71: Normal | R71: =L71*VLOOKUP(Q71,'Lookups & OH allocation'!$B$55:$C$59,2,FALSE) -> 0 | S71: =AA71*'Lookups & OH allocation'!$C$35/60 -> 10.77244675 | T71: 608.1835071 | U71: =(T71)*'Salary Calculation'!$J$2 -> 370.9919393 | V71: =IF(J71="Administration",0,H71/60*'Salary Calculation'!$J$3) -> 76.66666667 | X71: 447.658606 | Y71: 1055.842113 | AA71: =IFERROR(VLOOKUP(D71,'Back Office Time'!$B$5:$G$20,4,FALSE),VLOOKUP(B71,'Back Office Time'!$B$5:$G$20,4,FALSE)) -> 13 | AB71: =IFERROR(VLOOKUP($C71,'Volumes - Report Summary'!$A:$I,MATCH(AB$1,'Volumes - Report Summary'!$A$6:$I$6,0),FALSE),0) -> 6 | AC71: =IFERROR(VLOOKUP($C71,'Volumes - Report Summary'!$A:$I,MATCH(AC$1,'Volumes - Report Summary'!$A$6:$I$6,0),FALSE),0) -> 6 | AD71: =IFERROR(VLOOKUP($C71,'Volumes - Report Summary'!$A:$I,MATCH(AD$1,'Volumes - Report Summary'!$A$6:$I$6,0),FALSE),0) -> 6 | AE71: =IFERROR(VLOOKUP($C71,'Volumes - Report Summary'!$A:$I,MATCH(AE$1,'Volumes - Report Summary'!$A$6:$I$6,0),FALSE),0) -> 6 | AF71: =IFERROR(VLOOKUP($C71,'Volumes - Report Summary'!$A:$I,MATCH(AF$1,'Volumes - Report Summary'!$A$6:$I$6,0),FALSE),0) -> 6 | AH71: Technical Specialist | AI71: 827.1431138 | AJ71: =Y71*'Master Data'!$G$18 -> 1081.710245
B72: Basic connection alteration | C72: Augment multi phase overhead service to single phase supply | E72: 75 | F72: 20 | G72: 95 | H72: 190 | I72: 2 | J72: Technical Specialist - Outdoor | K72: Technical Specialist - Outdoor | L72: =(IF(I72>=1,IF(I72>=2,VLOOKUP(J72,'Salary Calculation'!$I$6:$L$15,3,FALSE)/60*(G72)+VLOOKUP(K72,'Salary Calculation'!$I$6:$L$15,3,FALSE)/60*(G72),VLOOKUP(J72,'Salary Calculation'!$I$6:$L$15,3,FALSE)/60*(G72)),0)) -> 284.335 | M72: single phase OH service | N72: =VLOOKUP(M72,'Lookups & OH allocation'!$B$124:$D$136,3,FALSE) -> 127.6523824 | O72: Truck | Q72: Normal | R72: =L72*VLOOKUP(Q72,'Lookups & OH allocation'!$B$55:$C$59,2,FALSE) -> 0 | S72: =AA72*'Lookups & OH allocation'!$C$35/60 -> 10.77244675 | T72: 422.7598292 | U72: =(T72)*'Salary Calculation'!$J$2 -> 257.8834958 | V72: =IF(J72="Administration",0,H72/60*'Salary Calculation'!$J$3) -> 63.33333333 | X72: 321.2168291 | Y72: 743.9766583 | AA72: =IFERROR(VLOOKUP(D72,'Back Office Time'!$B$5:$G$20,4,FALSE),VLOOKUP(B72,'Back Office Time'!$B$5:$G$20,4,FALSE)) -> 13 | AB72: =IFERROR(VLOOKUP($C72,'Volumes - Report Summary'!$A:$I,MATCH(AB$1,'Volumes - Report Summary'!$A$6:$I$6,0),FALSE),0) -> 51 | AC72: =IFERROR(VLOOKUP($C72,'Volumes - Report Summary'!$A:$I,MATCH(AC$1,'Volumes - Report Summary'!$A$6:$I$6,0),FALSE),0) -> 51 | AD72: =IFERROR(VLOOKUP($C72,'Volumes - Report Summary'!$A:$I,MATCH(AD$1,'Volumes - Report Summary'!$A$6:$I$6,0),FALSE),0) -> 51 | AE72: =IFERROR(VLOOKUP($C72,'Volumes - Report Summary'!$A:$I,MATCH(AE$1,'Volumes - Report Summary'!$A$6:$I$6,0),FALSE),0) -> 51 | AF72: =IFERROR(VLOOKUP($C72,'Volumes - Report Summary'!$A:$I,MATCH(AF$1,'Volumes - Report Summary'!$A$6:$I$6,0),FALSE),0) -> 51 | AH72: Technical Specialist | AI72: 599.7686458 | AJ72: =Y72*'Master Data'!$G$18 -> 762.2040864
B73: Basic connection alteration | C73: Augment single phase overhead service to underground supply (turret) | E73: 55 | F73: 20 | G73: 75 | H73: 150 | I73: 2 | J73: Technical Specialist - Outdoor | K73: Technical Specialist - Outdoor | L73: =(IF(I73>=1,IF(I73>=2,VLOOKUP(J73,'Salary Calculation'!$I$6:$L$15,3,FALSE)/60*(G73)+VLOOKUP(K73,'Salary Calculation'!$I$6:$L$15,3,FALSE)/60*(G73),VLOOKUP(J73,'Salary Calculation'!$I$6:$L$15,3,FALSE)/60*(G73)),0)) -> 224.475 | M73: single phase UG connect to turret | N73: =VLOOKUP(M73,'Lookups & OH allocation'!$B$124:$D$136,3,FALSE) -> 1.13356827 | O73: Truck | Q73: Normal | R73: =L73*VLOOKUP(Q73,'Lookups & OH allocation'!$B$55:$C$59,2,FALSE) -> 0 | S73: =AA73*'Lookups & OH allocation'!$C$35/60 -> 10.77244675 | T73: 236.381015 | U73: =(T73)*'Salary Calculation'!$J$2 -> 144.1924192 | V73: =IF(J73="Administration",0,H73/60*'Salary Calculation'!$J$3) -> 50 | X73: 194.1924192 | Y73: 430.5734342 | AA73: =IFERROR(VLOOKUP(D73,'Back Office Time'!$B$5:$G$20,4,FALSE),VLOOKUP(B73,'Back Office Time'!$B$5:$G$20,4,FALSE)) -> 13 | AB73: =IFERROR(VLOOKUP($C73,'Volumes - Report Summary'!$A:$I,MATCH(AB$1,'Volumes - Report Summary'!$A$6:$I$6,0),FALSE),0) -> 62 | AC73: =IFERROR(VLOOKUP($C73,'Volumes - Report Summary'!$A:$I,MATCH(AC$1,'Volumes - Report Summary'!$A$6:$I$6,0),FALSE),0) -> 62 | AD73: =IFERROR(VLOOKUP($C73,'Volumes - Report Summary'!$A:$I,MATCH(AD$1,'Volumes - Report Summary'!$A$6:$I$6,0),FALSE),0) -> 62 | AE73: =IFERROR(VLOOKUP($C73,'Volumes - Report Summary'!$A:$I,MATCH(AE$1,'Volumes - Report Summary'!$A$6:$I$6,0),FALSE),0) -> 62 | AF73: =IFERROR(VLOOKUP($C73,'Volumes - Report Summary'!$A:$I,MATCH(AF$1,'Volumes - Report Summary'!$A$6:$I$6,0),FALSE),0) -> 62 | AH73: Technical Specialist | AI73: 371.4156407 | AJ73: =Y73*'Master Data'!$G$18 -> 441.1224833
B74: Basic connection alteration | C74: Augment multi phase overhead service to underground supply (turret) | E74: 75 | F74: 20 | G74: 95 | H74: 190 | I74: 2 | J74: Technical Specialist - Outdoor | K74: Technical Specialist - Outdoor | L74: =(IF(I74>=1,IF(I74>=2,VLOOKUP(J74,'Salary Calculation'!$I$6:$L$15,3,FALSE)/60*(G74)+VLOOKUP(K74,'Salary Calculation'!$I$6:$L$15,3,FALSE)/60*(G74),VLOOKUP(J74,'Salary Calculation'!$I$6:$L$15,3,FALSE)/60*(G74)),0)) -> 284.335 | M74: single phase UG connect to turret | N74: =VLOOKUP(M74,'Lookups & OH allocation'!$B$124:$D$136,3,FALSE) -> 1.13356827 | O74: Truck | Q74: Normal | R74: =L74*VLOOKUP(Q74,'Lookups & OH allocation'!$B$55:$C$59,2,FALSE) -> 0 | S74: =AA74*'Lookups & OH allocation'!$C$35/60 -> 10.77244675 | T74: 296.241015 | U74: =(T74)*'Salary Calculation'!$J$2 -> 180.7070192 | V74: =IF(J74="Administration",0,H74/60*'Salary Calculation'!$J$3) -> 63.33333333 | X74: 244.0403525 | Y74: 540.2813675 | AA74: =IFERROR(VLOOKUP(D74,'Back Office Time'!$B$5:$G$20,4,FALSE),VLOOKUP(B74,'Back Office Time'!$B$5:$G$20,4,FALSE)) -> 13 | AB74: =IFERROR(VLOOKUP($C74,'Volumes - Report Summary'!$A:$I,MATCH(AB$1,'Volumes - Report Summary'!$A$6:$I$6,0),FALSE),0) -> 35 | AC74: =IFERROR(VLOOKUP($C74,'Volumes - Report Summary'!$A:$I,MATCH(AC$1,'Volumes - Report Summary'!$A$6:$I$6,0),FALSE),0) -> 35 | AD74: =IFERROR(VLOOKUP($C74,'Volumes - Report Summary'!$A:$I,MATCH(AD$1,'Volumes - Report Summary'!$A$6:$I$6,0),FALSE),0) -> 35 | AE74: =IFERROR(VLOOKUP($C74,'Volumes - Report Summary'!$A:$I,MATCH(AE$1,'Volumes - Report Summary'!$A$6:$I$6,0),FALSE),0) -> 35 | AF74: =IFERROR(VLOOKUP($C74,'Volumes - Report Summary'!$A:$I,MATCH(AF$1,'Volumes - Report Summary'!$A$6:$I$6,0),FALSE),0) -> 35 | AH74: Technical Specialist | AI74: 470.1501207 | AJ74: =Y74*'Master Data'!$G$18 -> 553.518261
B75: Basic connection alteration | C75: Augment single phase overhead service to underground supply (pole) | E75: 75 | F75: 20 | G75: 95 | H75: 190 | I75: 2 | J75: Technical Specialist - Outdoor | K75: Technical Specialist - Outdoor | L75: =(IF(I75>=1,IF(I75>=2,VLOOKUP(J75,'Salary Calculation'!$I$6:$L$15,3,FALSE)/60*(G75)+VLOOKUP(K75,'Salary Calculation'!$I$6:$L$15,3,FALSE)/60*(G75),VLOOKUP(J75,'Salary Calculation'!$I$6:$L$15,3,FALSE)/60*(G75)),0)) -> 284.335 | M75: single phase UG service - pole | N75: =VLOOKUP(M75,'Lookups & OH allocation'!$B$124:$D$136,3,FALSE) -> 7.85100987 | O75: Truck | Q75: Normal | R75: =L75*VLOOKUP(Q75,'Lookups & OH allocation'!$B$55:$C$59,2,FALSE) -> 0 | S75: =AA75*'Lookups & OH allocation'!$C$35/60 -> 10.77244675 | T75: 302.9584566 | U75: =(T75)*'Salary Calculation'!$J$2 -> 184.8046585 | V75: =IF(J75="Administration",0,H75/60*'Salary Calculation'!$J$3) -> 63.33333333 | X75: 248.1379919 | Y75: 551.0964485 | AA75: =IFERROR(VLOOKUP(D75,'Back Office Time'!$B$5:$G$20,4,FALSE),VLOOKUP(B75,'Back Office Time'!$B$5:$G$20,4,FALSE)) -> 13 | AB75: =IFERROR(VLOOKUP($C75,'Volumes - Report Summary'!$A:$I,MATCH(AB$1,'Volumes - Report Summary'!$A$6:$I$6,0),FALSE),0) -> 4 | AC75: =IFERROR(VLOOKUP($C75,'Volumes - Report Summary'!$A:$I,MATCH(AC$1,'Volumes - Report Summary'!$A$6:$I$6,0),FALSE),0) -> 4 | AD75: =IFERROR(VLOOKUP($C75,'Volumes - Report Summary'!$A:$I,MATCH(AD$1,'Volumes - Report Summary'!$A$6:$I$6,0),FALSE),0) -> 4 | AE75: =IFERROR(VLOOKUP($C75,'Volumes - Report Summary'!$A:$I,MATCH(AE$1,'Volumes - Report Summary'!$A$6:$I$6,0),FALSE),0) -> 4 | AF75: =IFERROR(VLOOKUP($C75,'Volumes - Report Summary'!$A:$I,MATCH(AF$1,'Volumes - Report Summary'!$A$6:$I$6,0),FALSE),0) -> 4 | AH75: Technical Specialist | AI75: 477.0321396 | AJ75: =Y75*'Master Data'!$G$18 -> 564.5983115
B76: Basic connection alteration | C76: Augment multi phase overhead service to underground supply (pole) | E76: 95 | F76: 20 | G76: 115 | H76: 230 | I76: 2 | J76: Technical Specialist - Outdoor | K76: Technical Specialist - Outdoor | L76: =(IF(I76>=1,IF(I76>=2,VLOOKUP(J76,'Salary Calculation'!$I$6:$L$15,3,FALSE)/60*(G76)+VLOOKUP(K76,'Salary Calculation'!$I$6:$L$15,3,FALSE)/60*(G76),VLOOKUP(J76,'Salary Calculation'!$I$6:$L$15,3,FALSE)/60*(G76)),0)) -> 344.195 | M76: multi phase UG service - pole | N76: =VLOOKUP(M76,'Lookups & OH allocation'!$B$124:$D$136,3,FALSE) -> 23.56352561 | O76: Truck | Q76: Normal | R76: =L76*VLOOKUP(Q76,'Lookups & OH allocation'!$B$55:$C$59,2,FALSE) -> 0 | S76: =AA76*'Lookups & OH allocation'!$C$35/60 -> 10.77244675 | T76: 378.5309724 | U76: =(T76)*'Salary Calculation'!$J$2 -> 230.9038931 | V76: =IF(J76="Administration",0,H76/60*'Salary Calculation'!$J$3) -> 76.66666667 | X76: 307.5705598 | Y76: 686.1015322 | AA76: =IFERROR(VLOOKUP(D76,'Back Office Time'!$B$5:$G$20,4,FALSE),VLOOKUP(B76,'Back Office Time'!$B$5:$G$20,4,FALSE)) -> 13 | AB76: =IFERROR(VLOOKUP($C76,'Volumes - Report Summary'!$A:$I,MATCH(AB$1,'Volumes - Report Summary'!$A$6:$I$6,0),FALSE),0) -> 3 | AC76: =IFERROR(VLOOKUP($C76,'Volumes - Report Summary'!$A:$I,MATCH(AC$1,'Volumes - Report Summary'!$A$6:$I$6,0),FALSE),0) -> 3 | AD76: =IFERROR(VLOOKUP($C76,'Volumes - Report Summary'!$A:$I,MATCH(AD$1,'Volumes - Report Summary'!$A$6:$I$6,0),FALSE),0) -> 3 | AE76: =IFERROR(VLOOKUP($C76,'Volumes - Report Summary'!$A:$I,MATCH(AE$1,'Volumes - Report Summary'!$A$6:$I$6,0),FALSE),0) -> 3 | AF76: =IFERROR(VLOOKUP($C76,'Volumes - Report Summary'!$A:$I,MATCH(AF$1,'Volumes - Report Summary'!$A$6:$I$6,0),FALSE),0) -> 3 | AH76: Technical Specialist | AI76: 591.86 | AJ76: =Y76*'Master Data'!$G$18 -> 702.9110197
B77: Basic connection alteration | C77: Basic connection alteration – after hours | D77: after hours | E77: 95 | F77: 60 | G77: 155 | H77: 310 | I77: 2 | J77: Technical Specialist - Outdoor AH | K77: Technical Specialist - Outdoor AH | L77: =(IF(I77>=1,IF(I77>=2,VLOOKUP(J77,'Salary Calculation'!$I$6:$L$15,3,FALSE)/60*(G77)+VLOOKUP(K77,'Salary Calculation'!$I$6:$L$15,3,FALSE)/60*(G77),VLOOKUP(J77,'Salary Calculation'!$I$6:$L$15,3,FALSE)/60*(G77)),0)) -> 774.73805 | M77: No materials charged | N77: =VLOOKUP(M77,'Lookups & OH allocation'!$B$124:$D$136,3,FALSE) -> 0 | O77: Truck | Q77: After Hours | R77: =L77*VLOOKUP(Q77,'Lookups & OH allocation'!$B$55:$C$59,2,FALSE) -> 38.7369025 | S77: =AA77*'Lookups & OH allocation'!$C$35/60 -> 13.258396 | T77: 826.7333485 | U77: =H77*'Salary Calculation'!$K$13*'Salary Calculation'!$J$2/100+AA65*'Salary Calculation'!$J$2 -> 177.72289 | V77: =IF(J77="Administration",0,H77/60*'Salary Calculation'!$J$3) -> 103.3333333 | X77: 281.0562233 | Y77: 1107.789572 | AA77: =IFERROR(VLOOKUP(D77,'Back Office Time'!$B$5:$G$20,4,FALSE),VLOOKUP(B77,'Back Office Time'!$B$5:$G$20,4,FALSE)) -> 16 | AB77: =IFERROR(VLOOKUP($C77,'Volumes - Report Summary'!$A:$I,MATCH(AB$1,'Volumes - Report Summary'!$A$6:$I$6,0),FALSE),0) -> 1 | AC77: =IFERROR(VLOOKUP($C77,'Volumes - Report Summary'!$A:$I,MATCH(AC$1,'Volumes - Report Summary'!$A$6:$I$6,0),FALSE),0) -> 1 | AD77: =IFERROR(VLOOKUP($C77,'Volumes - Report Summary'!$A:$I,MATCH(AD$1,'Volumes - Report Summary'!$A$6:$I$6,0),FALSE),0) -> 1 | AE77: =IFERROR(VLOOKUP($C77,'Volumes - Report Summary'!$A:$I,MATCH(AE$1,'Volumes - Report Summary'!$A$6:$I$6,0),FALSE),0) -> 1 | AF77: =IFERROR(VLOOKUP($C77,'Volumes - Report Summary'!$A:$I,MATCH(AF$1,'Volumes - Report Summary'!$A$6:$I$6,0),FALSE),0) -> 1 | AH77: Technical Specialist AH | AI77: 1115.22 | AJ77: =Y77*'Master Data'!$G$18 -> 1134.930416
B78: Basic connection alteration | C78: Basic connection wasted visit | E78: 7.5 | F78: 20 | G78: 27.5 | H78: 55 | I78: 2 | J78: Technical Specialist - Outdoor | K78: Technical Specialist - Outdoor | L78: =(IF(I78>=1,IF(I78>=2,VLOOKUP(J78,'Salary Calculation'!$I$6:$L$15,3,FALSE)/60*(G78)+VLOOKUP(K78,'Salary Calculation'!$I$6:$L$15,3,FALSE)/60*(G78),VLOOKUP(J78,'Salary Calculation'!$I$6:$L$15,3,FALSE)/60*(G78)),0)) -> 82.3075 | M78: No materials charged | N78: =VLOOKUP(M78,'Lookups & OH allocation'!$B$124:$D$136,3,FALSE) -> 0 | O78: Truck | Q78: Normal | R78: =L78*VLOOKUP(Q78,'Lookups & OH allocation'!$B$55:$C$59,2,FALSE) -> 0 | S78: =AA78*'Lookups & OH allocation'!$C$35/60 -> 10.77244675 | T78: 93.07994675 | U78: =(T78)*'Salary Calculation'!$J$2 -> 56.77876752 | V78: =IF(J78="Administration",0,H78/60*'Salary Calculation'!$J$3) -> 18.33333333 | X78: 75.11210085 | Y78: 168.1920476 | AA78: =IFERROR(VLOOKUP(D78,'Back Office Time'!$B$5:$G$20,4,FALSE),VLOOKUP(B78,'Back Office Time'!$B$5:$G$20,4,FALSE)) -> 13 | AB78: =IFERROR(VLOOKUP($C78,'Volumes - Report Summary'!$A:$I,MATCH(AB$1,'Volumes - Report Summary'!$A$6:$I$6,0),FALSE),0) -> 1 | AC78: =IFERROR(VLOOKUP($C78,'Volumes - Report Summary'!$A:$I,MATCH(AC$1,'Volumes - Report Summary'!$A$6:$I$6,0),FALSE),0) -> 1 | AD78: =IFERROR(VLOOKUP($C78,'Volumes - Report Summary'!$A:$I,MATCH(AD$1,'Volumes - Report Summary'!$A$6:$I$6,0),FALSE),0) -> 1 | AE78: =IFERROR(VLOOKUP($C78,'Volumes - Report Summary'!$A:$I,MATCH(AE$1,'Volumes - Report Summary'!$A$6:$I$6,0),FALSE),0) -> 1 | AF78: =IFERROR(VLOOKUP($C78,'Volumes - Report Summary'!$A:$I,MATCH(AF$1,'Volumes - Report Summary'!$A$6:$I$6,0),FALSE),0) -> 1 | AH78: Technical Specialist | AI78: 135.75991 | AJ78: =Y78*'Master Data'!$G$18 -> 172.3127528
... 1 more rows

Sheet Volumes - Report Summary
I1: KEY
A2: Received from the Market Support, they have looked at the fees which have been logged in their system to form forecasts figure. | I2: Original Numbers
A3: Connections volumes from POW, split based on actual applications for 2016-17 | I3: Split Numbers
I4: Supervision allocation
B6: Split | C6: 2019-20 | D6: 2020-21 | E6: 2021-22 | F6: 2022-23 | G6: 2023-24
A8: De-energisation, re-energisation and special reads | C8: =SUM(C9:C19) -> 57900 | D8: =SUM(D9:D19) -> 55700 | E8: 53500 | F8: 51300 | G8: 49100
A9: Site visit - no appointment - De-energisation, Re-energisation | B9: 0.5519 | C9: =(52485+25+3502-1500)*B9 -> 30085.1728 | D9: =(50430+3502-1500)*B9 -> 28937.2208 | E9: =(48349+3502-1500)*B9 -> 27788.7169 | F9: =(46270+3502-1500)*B9 -> 26641.3168 | G9: =(44190+3502-1500)*B9 -> 25493.3648
A10: Site visit - no appointment - special reads | B10: 0.4481 | C10: =(52485+25+3502-1500)*B10 -> 24426.8272 | D10: =(50430+3502-1500)*B10 -> 23494.7792 | E10: =(48349+3502-1500)*B10 -> 22562.2831 | F10: =(46270+3502-1500)*B10 -> 21630.6832 | G10: =(44190+3502-1500)*B10 -> 20698.6352
A11: Site visit - non-scheduled visit | C11: 954 | D11: 918 | E11: 882 | F11: 845 | G11: 809
A12: Site visit - same day premium service | C12: 225 | D12: 225 | E12: 225 | F12: 225 | G12: 225
A13: Site visit - after hours | C13: 1 | D13: 1 | E13: 1 | F13: 1 | G13: 1
A14: Site visit - credit actions or site issues | C14: 1973 | D14: 1898 | E14: 1823 | F14: 1747 | G14: 1672
A15: Site visit – current transformer (CT) metering | C15: 5 | D15: 5 | E15: 5 | F15: 5 | G15: 5
A16: Transfer of retailer | C16: 0 | D16: 0 | E16: 0 | F16: 0 | G16: 0
A17: Site visit – credit actions pillar box/pole top | C17: 219 | D17: 210 | E17: 202 | F17: 194 | G17: 185
A18: Site visit – pillar box/pole top | C18: 10 | D18: 10 | E18: 10 | F18: 10 | G18: 10
A19: Site visit - pillar box/pole top Wasted Visit | C19: 1 | D19: 1 | E19: 1 | F19: 1 | G19: 1
A20: Meter test | C20: =SUM(C21:C25) -> 27 | D20: =SUM(D21:D25) -> 27 | E20: 27 | F20: 27 | G20: 27
A21: Meter test - single phase | C21: 17 | D21: 17 | E21: 17 | F21: 17 | G21: 17
A22: Meter test - multi phase | C22: 4 | D22: 4 | E22: 4 | F22: 4 | G22: 4
A23: Meter test – current transformer (CT) | C23: 4 | D23: 4 | E23: 4 | F23: 4 | G23: 4
A24: Meter test - after hours | C24: 1 | D24: 1 | E24: 1 | F24: 1 | G24: 1
A25: Meter test - wasted visit | C25: 1 | D25: 1 | E25: 1 | F25: 1 | G25: 1
A26: Supply abolishment | C26: =SUM(C27:C29) -> 361 | D26: =SUM(D27:D29) -> 361 | E26: 361 | F26: 361 | G26: 361
A27: Remove service & meters | C27: 336 | D27: 336 | E27: 336 | F27: 336 | G27: 336
A28: Supply abolishment - after hours | C28: 1 | D28: 1 | E28: 1 | F28: 1 | G28: 1
A29: Supply abolishment - wasted visit | C29: 24 | D29: 24 | E29: 24 | F29: 24 | G29: 24
A30: Tee-up | C30: =SUM(C31:C34) -> 3502 | D30: =SUM(D31:D34) -> 3502 | E30: 3502 | F30: 3502 | G30: 3502
A31: Tee-up/Appointment | C31: 3300 | D31: 3300 | E31: 3300 | F31: 3300 | G31: 3300
A32: Tee-up/Appointment – after hours | C32: 1 | D32: 1 | E32: 1 | F32: 1 | G32: 1
A33: Tee-up/Appointment – no truck – after hours | C33: 1 | D33: 1 | E33: 1 | F33: 1 | G33: 1
A34: Tee-up/Appointment – wasted visit | C34: 200 | D34: 200 | E34: 200 | F34: 200 | G34: 200
A35: Miscellaneous services | C35: =SUM(C36:C51) -> 40 | D35: =SUM(D36:D51) -> 40 | E35: =SUM(E36:E51) -> 40 | F35: =SUM(F36:F51) -> 40 | G35: =SUM(G36:G51) -> 40
A36: Open turret | C36: 3 | D36: 3 | E36: 3 | F36: 3 | G36: 3
A37: Data download | C37: 3 | D37: 3 | E37: 3 | F37: 3 | G37: 3
A38: Alteration to unmetered supply | C38: 3 | D38: 3 | E38: 3 | F38: 3 | G38: 3
A39: Meter Relocation | C39: 3 | D39: 3 | E39: 3 | F39: 3 | G39: 3
A40: Tiger tails - standard single/multi phase | C40: 3 | D40: 3 | E40: 3 | F40: 3 | G40: 3
A41: Tiger tails - scaffolding single phase | C41: 3 | D41: 3 | E41: 3 | F41: 3 | G41: 3
A42: Tiger tails - scaffolding multi phase | C42: 3 | D42: 3 | E42: 3 | F42: 3 | G42: 3
A43: Miscellaneous service | C43: 6 | D43: 6 | E43: 6 | F43: 6 | G43: 6
A44: Miscellaneous service – after hours | C44: 3 | D44: 3 | E44: 3 | F44: 3 | G44: 3
A45: Miscellaneous service – wasted visit | C45: 3 | D45: 3 | E45: 3 | F45: 3 | G45: 3
A46: Administration | C46: 2 | D46: 2 | E46: 2 | F46: 2 | G46: 2
A47: Statutory right - access prevented | C47: 1 | D47: 1 | E47: 1 | F47: 1 | G47: 1
A48: Tariff change | C48: 1 | D48: 1 | E48: 1 | F48: 1 | G48: 1
A49: Emergency maintenance contestable meters | C49: 1 | D49: 1 | E49: 1 | F49: 1 | G49: 1
A50: Emergency maintenance contestable meters - after hours | C50: 1 | D50: 1 | E50: 1 | F50: 1 | G50: 1
A51: Meter recovery and disposal | C51: 1 | D51: 1 | E51: 1 | F51: 1 | G51: 1
B53: =3000-40 -> 2960
A54: Overhead service, single span - single phase | B54: 0.1078365707 | C54: =ROUND($B$53*$B54,0) -> 319 | D54: =ROUND($B$53*$B54,0) -> 319 | E54: 319 | F54: 319 | G54: 319
A55: Overhead service, single span - multi phase | B55: 0.03717347622 | C55: =ROUND($B$53*$B55,0) -> 110 | D55: 110 | E55: 110 | F55: 110 | G55: 110
A56: Underground service in turret/cabinet - single phase | B56: 0.5639651708 | C56: =ROUND($B$53*$B56,0) -> 1669 | D56: 1669 | E56: 1669 | F56: 1669 | G56: 1669
A57: Underground service in turret/cabinet - multi phase | B57: 0.112190221 | C57: 332 | D57: 332 | E57: 332 | F57: 332 | G57: 332
A58: Underground service with pole mounted fuse - single phase | B58: 0.1279303416 | C58: 379 | D58: 379 | E58: 379 | F58: 379 | G58: 379
A59: Underground service with pole mounted fuse - multi phase | B59: 0.05090421969 | C59: 151 | D59: 151 | E59: 151 | F59: 151 | G59: 151
A60: Augment multi phase overhead service to single phase supply | B60: 0.03404017857 | C60: =ROUND($B$69*$B60,0) -> 51 | D60: =ROUND($B$69*$B60,0) -> 51 | E60: 51 | F60: 51 | G60: 51
A61: Augment single phase overhead service to multi phase supply | B61: 0.00390625 | C61: =ROUND($B$69*$B61,0) -> 6 | D61: 6 | E61: 6 | F61: 6 | G61: 6
A62: Augment single phase overhead service to underground supply (turret) | B62: 0.04129464286 | C62: =ROUND($B$69*$B62,0) -> 62 | D62: 62 | E62: 62 | F62: 62 | G62: 62
A63: Augment multi phase overhead service to underground supply (turret) | B63: 0.0234375 | C63: 35 | D63: 35 | E63: 35 | F63: 35 | G63: 35
A64: Augment single phase overhead service to underground supply (pole) | B64: 0.002790178571 | C64: 4 | D64: 4 | E64: 4 | F64: 4 | G64: 4
A65: Augment multi phase overhead service to underground supply (pole) | B65: 0.001674107143 | C65: 3 | D65: 3 | E65: 3 | F65: 3 | G65: 3
A66: Disconnect/reconnect overhead service for facia repairs - single phase | C66: 20 | D66: 20 | E66: 20 | F66: 20 | G66: 20
A67: Disconnect/reconnect overhead service for facia repairs - multi phase | C67: 20 | D67: 20 | E67: 20 | F67: 20 | G67: 20
A68: Creation of a NMI | C68: 1 | D68: 1 | E68: 1 | F68: 1 | G68: 1
B69: 1500
A70: Connection alteration – overhead single phase | B70: 0.4748883929 | C70: =ROUND($B$69*$B70,0) -> 712 | D70: =ROUND($B$69*$B70,0) -> 712 | E70: 712 | F70: 712 | G70: 712
A71: Connection alteration – overhead multi phase | B71: 0.1026785714 | C71: =ROUND($B$69*B71,0) -> 154 | D71: 154 | E71: 154 | F71: 154 | G71: 154
A72: Connection of new consumer mains to an existing installation – underground single phase to turret | B72: 0.02566964286 | C72: 39 | D72: 39 | E72: 39 | F72: 39 | G72: 39
A73: Connection of new consumer mains to an existing installation – underground single phase to pole | B73: 0.1450892857 | C73: 218 | D73: 218 | E73: 218 | F73: 218 | G73: 218
A74: Connection of new consumer mains to an existing installation – underground multi phase to turret | B74: 0.02622767857 | C74: 39 | D74: 39 | E74: 39 | F74: 39 | G74: 39
A75: Connection of new consumer mains to an existing installation – underground multi phase to pole | B75: 0.1183035714 | C75: 177 | D75: 177 | E75: 177 | F75: 177 | G75: 177
A76: Basic connection – after hours | C76: 1 | D76: 1 | E76: 1 | F76: 1 | G76: 1
A77: Basic connection wasted visit | C77: 1 | D77: 1 | E77: 1 | F77: 1 | G77: 1
A78: Connection establishment - wasted visit | C78: 1 | D78: 1 | E78: 1 | F78: 1 | G78: 1
A79: Basic connection alteration – after hours | C79: 1 | D79: 1 | E79: 1 | F79: 1 | G79: 1
A80: Basic connection wasted visit | C80: 1 | D80: 1 | E80: 1 | F80: 1 | G80: 1
A81: Temporary disconnect/reconnect – retailer requested outage | C81: 1 | D81: 1 | E81: 1 | F81: 1 | G81: 1
A82: Temporary disconnect/reconnect – after hours | C82: 1 | D82: 1 | E82: 1 | F82: 1 | G82: 1
A83: Temporary disconnect/reconnect – wasted visit | C83: 1 | D83: 1 | E83: 1 | F83: 1 | G83: 1
C85: =SUM(C54:C84)+SUM(C36:C51)+SUM(C31:C34)+SUM(C27:C29)+SUM(C21:C25)+SUM(C9:C19) -> 66339 | D85: =SUM(D54:D84)+SUM(D36:D51)+SUM(D31:D34)+SUM(D27:D29)+SUM(D21:D25)+SUM(D9:D19) -> 64139 | E85: =SUM(E54:E84)+SUM(E36:E51)+SUM(E31:E34)+SUM(E27:E29)+SUM(E21:E25)+SUM(E9:E19) -> 61939 | F85: =SUM(F54:F84)+SUM(F36:F51)+SUM(F31:F34)+SUM(F27:F29)+SUM(F21:F25)+SUM(F9:F19) -> 59739 | G85: =SUM(G54:G84)+SUM(G36:G51)+SUM(G31:G34)+SUM(G27:G29)+SUM(G21:G25)+SUM(G9:G19) -> 57539
A88: De-ens, re ens and bais site visit - As per POW | C88: 59400 | D88: 57200 | E88: 55000 | F88: 52800 | G88: 50600
A89: Site visit - no appointment | C89: 56008 | D89: =50426+3502 -> 53928 | E89: =48345+3502 -> 51847 | F89: =46266+3502 -> 49768 | G89: =44186+3502 -> 47688
A90: Site visit - non-scheduled visit | C90: 954 | D90: 918 | E90: 882 | F90: 845 | G90: 809
A91: Site visit - same day premium service | C91: 225 | D91: 225 | E91: 225 | F91: 225 | G91: 225
A92: Site visit - after hours | C92: 5 | D92: 5 | E92: 5 | F92: 5 | G92: 5
A93: Site visit - credit actions or site issues | C93: 1973 | D93: 1898 | E93: 1823 | F93: 1747 | G93: 1672
A94: Site visit – current transformer (CT) metering | C94: 5 | D94: 5 | E94: 5 | F94: 5 | G94: 5
A95: Transfer of retailer | C95: 0 | D95: 0 | E95: 0 | F95: 0 | G95: 0
A96: Site visit – credit actions pillar box/pole top | C96: 219 | D96: 210 | E96: 202 | F96: 194 | G96: 185
A97: Site visit – pillar box/pole top | C97: 10 | D97: 10 | E97: 10 | F97: 10 | G97: 10
A98: Site visit - pillar box/pole top Wasted Visit | C98: 1 | D98: 1 | E98: 1 | F98: 1 | G98: 1
A99: Tee-up/Appointment | C99: 3300 | D99: 3300 | E99: 3300 | F99: 3300 | G99: 3300
A100: Tee-up/Appointment – after hours | C100: 1 | D100: 1 | E100: 1 | F100: 1 | G100: 1
A101: Tee-up/Appointment – no truck – after hours | C101: 1 | D101: 1 | E101: 1 | F101: 1 | G101: 1
A102: Tee-up/Appointment – wasted visit | C102: 200 | D102: 200 | E102: 200 | F102: 200 | G102: 200
A104: variance | C104: =C88-SUM(C89:C103) -> -3502 | D104: =D88-SUM(D89:D103) -> -3502 | E104: =E88-SUM(E89:E103) -> -3502 | F104: =F88-SUM(F89:F103) -> -3502 | G104: =G88-SUM(G89:G103) -> -3502
A105: Supply abolishment - As per POW | C105: 360 | D105: 360 | E105: 360 | F105: 360 | G105: 360 | H105: tee ups are charged in addition to the actual service charged so not estimated in the POW
A106: Remove service & meters | C106: 334 | D106: 334 | E106: 334 | F106: 334 | G106: 334
A107: Supply abolishment - after hours | C107: 1 | D107: 1 | E107: 1 | F107: 1 | G107: 1 | I107: RIN Sub Sub Category | J107: Work Category Description | K107: Work Category Code | L107: Project Title | M107: POW Year | N107: Volume
A108: Supply abolishment - wasted visit | C108: 25 | D108: 25 | E108: 25 | F108: 25 | G108: 25 | I108: Alternative Control Fee based Services | J108: Connections & Reconnections | K108: SOSCR | L108: De-energisation & Re-energisation and Basic Site Visit | M108: 2019/20 | N108: 59400
A109: variance | C109: =C105-SUM(C106:C108) -> 0 | D109: =D105-SUM(D106:D108) -> 0 | E109: 0 | F109: 0 | G109: 0 | I109: Alternative Control Fee based Services | J109: Connections & Reconnections | K109: SOSCR | L109: De-energisation & Re-energisation and Basic Site Visit | M109: 2020/21 | N109: 57200
A110: Miscellaneous - As per POW | C110: 40 | D110: 40 | E110: 40 | F110: 40 | G110: 40 | I110: Alternative Control Fee based Services | J110: Connections & Reconnections | K110: SOSCR | L110: De-energisation & Re-energisation and Basic Site Visit | M110: 2021/22 | N110: 55000
A111: Open turret | C111: 3 | D111: 3 | E111: 3 | F111: 3 | G111: 3 | I111: Alternative Control Fee based Services | J111: Connections & Reconnections | K111: SOSCR | L111: De-energisation & Re-energisation and Basic Site Visit | M111: 2022/23 | N111: 52800
A112: Data download | C112: 3 | D112: 3 | E112: 3 | F112: 3 | G112: 3 | I112: Alternative Control Fee based Services | J112: Connections & Reconnections | K112: SOSCR | L112: De-energisation & Re-energisation and Basic Site Visit | M112: 2023/24 | N112: 50600
A113: Alteration to unmetered supply | C113: 3 | D113: 3 | E113: 3 | F113: 3 | G113: 3 | I113: Alternative Control Fee based Services | J113: Retailer Requested Work | K113: RQRCM | L113: Meter Test - Retailer requested | M113: 2019/20 | N113: 25
A114: Meter Relocation | C114: 3 | D114: 3 | E114: 3 | F114: 3 | G114: 3 | I114: Alternative Control Fee based Services | J114: Retailer Requested Work | K114: RQRCM | L114: Meter Test - Retailer requested | M114: 2020/21 | N114: 25
A115: Tiger tails - standard single/multi phase | C115: 3 | D115: 3 | E115: 3 | F115: 3 | G115: 3 | I115: Alternative Control Fee based Services | J115: Retailer Requested Work | K115: RQRCM | L115: Meter Test - Retailer requested | M115: 2021/22 | N115: 25
A116: Tiger tails - scaffolding single phase | C116: 3 | D116: 3 | E116: 3 | F116: 3 | G116: 3 | I116: Alternative Control Fee based Services | J116: Retailer Requested Work | K116: RQRCM | L116: Meter Test - Retailer requested | M116: 2022/23 | N116: 25
A117: Tiger tails - scaffolding multi phase | C117: 3 | D117: 3 | E117: 3 | F117: 3 | G117: 3 | I117: Alternative Control Fee based Services | J117: Retailer Requested Work | K117: RQRCM | L117: Meter Test - Retailer requested | M117: 2023/24 | N117: 25
A118: Miscellaneous service | C118: 6 | D118: 6 | E118: 6 | F118: 6 | G118: 6 | I118: Alternative Control Fee based Services | J118: Supply abolishment Opex | K118: FBOSA | L118: Supply abolishment | M118: 2019/20 | N118: 360
A119: Miscellaneous service – after hours | C119: 3 | D119: 3 | E119: 3 | F119: 3 | G119: 3 | I119: Alternative Control Fee based Services | J119: Supply abolishment Opex | K119: FBOSA | L119: Supply abolishment | M119: 2020/21 | N119: 360
A120: Miscellaneous service – wasted visit | C120: 3 | D120: 3 | E120: 3 | F120: 3 | G120: 3 | I120: Alternative Control Fee based Services | J120: Supply abolishment Opex | K120: FBOSA | L120: Supply abolishment | M120: 2021/22 | N120: 360
A121: Administration | C121: 2 | D121: 2 | E121: 2 | F121: 2 | G121: 2 | I121: Alternative Control Fee based Services | J121: Supply abolishment Opex | K121: FBOSA | L121: Supply abolishment | M121: 2022/23 | N121: 360
A122: Statutory right - access prevented | C122: 1 | D122: 1 | E122: 1 | F122: 1 | G122: 1 | I122: Alternative Control Fee based Services | J122: Supply abolishment Opex | K122: FBOSA | L122: Supply abolishment | M122: 2023/24 | N122: 360
A123: Tariff change | C123: 1 | D123: 1 | E123: 1 | F123: 1 | G123: 1 | I123: Alternative Control Fee based Services | J123: Miscellaneous services Opex | K123: FBOMS | L123: Miscellaneous services | M123: 2019/20 | N123: 40
A124: Emergency maintenance contestable meters | C124: 1 | D124: 1 | E124: 1 | F124: 1 | G124: 1 | I124: Alternative Control Fee based Services | J124: Miscellaneous services Opex | K124: FBOMS | L124: Miscellaneous services | M124: 2020/21 | N124: 40
A125: Emergency maintenance contestable meters - after hours | C125: 1 | D125: 1 | E125: 1 | F125: 1 | G125: 1 | I125: Alternative Control Fee based Services | J125: Miscellaneous services Opex | K125: FBOMS | L125: Miscellaneous services | M125: 2021/22 | N125: 40
A126: Meter recovery and disposal | C126: 1 | D126: 1 | E126: 1 | F126: 1 | G126: 1 | I126: Alternative Control Fee based Services | J126: Miscellaneous services Opex | K126: FBOMS | L126: Miscellaneous services | M126: 2022/23 | N126: 40
A127: variance | C127: =C110-SUM(C111:C126) -> 0 | D127: =D110-SUM(D111:D126) -> 0 | E127: =E110-SUM(E111:E126) -> 0 | F127: =F110-SUM(F111:F126) -> 0 | G127: =G110-SUM(G111:G126) -> 0 | I127: Alternative Control Fee based Services | J127: Miscellaneous services Opex | K127: FBOMS | L127: Miscellaneous services | M127: 2023/24 | N127: 40
A128: Meter test | C128: 25 | D128: 25 | E128: 25 | F128: 25 | G128: 25 | I128: Alternative Control Fee based Services | J128: Truck tee-up Opex | K128: FBOTE | L128: Truck tee-up Opex | M128: 2019/20 | N128: 0
A129: Install service connections (New installations) - As per POW | C129: 3000 | D129: 3000 | E129: 3000 | F129: 3000 | G129: 3000 | I129: Alternative Control Fee based Services | J129: Truck tee-up Opex | K129: FBOTE | L129: Truck tee-up Opex | M129: 2020/21 | N129: 0
I130: Alternative Control Fee based Services | J130: Truck tee-up Opex | K130: FBOTE | L130: Truck tee-up Opex | M130: 2021/22 | N130: 0
I131: Alternative Control Fee based Services | J131: Truck tee-up Opex | K131: FBOTE | L131: Truck tee-up Opex | M131: 2022/23 | N131: 0
A132: Total volumes (as per POW) | C132: =$N$108+$N$113+$N$118+$N$123+$N$133+$N$128 -> 62825 | D132: =$N$109+$N$114+$N$119+$N$124+$N$134+$N$129 -> 60625 | E132: =$N$110+$N$115+$N$120+$N$125+$N$135+$N$130 -> 58425 | F132: =$N$111+$N$116+$N$121+$N$126+$N$136+$N$131 -> 56225 | G132: =$N$112+$N$117+$N$122+$N$127+$N$137+$N$132 -> 54025 | I132: Alternative Control Fee based Services | J132: Truck tee-up Opex | K132: FBOTE | L132: Truck tee-up Opex | M132: 2023/24 | N132: 0
A133: Total volumes (as per allocations) | C133: =C85 -> 66339 | D133: =D85 -> 64139 | E133: =E85 -> 61939 | F133: =F85 -> 59739 | G133: =G85 -> 57539 | I133: Alternative Control Fee based Services | J133: Install Service Connections (New Installations) | K133: SCNEW | L133: Install LV Service Connections (New Installations) | M133: 2019/20 | N133: 3000
C134: =C132-C133 -> -3514 | D134: =D132-D133 -> -3514 | E134: -3514 | F134: -3514 | G134: -3514 | I134: Alternative Control Fee based Services | J134: Install Service Connections (New Installations) | K134: SCNEW | L134: Install LV Service Connections (New Installations) | M134: 2020/21 | N134: 3000
A135: Comprises | I135: Alternative Control Fee based Services | J135: Install Service Connections (New Installations) | K135: SCNEW | L135: Install LV Service Connections (New Installations) | M135: 2021/22 | N135: 3000
A136: explained variance - t ups | C136: 3500 | D136: 3500 | E136: 3500 | F136: 3500 | G136: 3500 | I136: Alternative Control Fee based Services | J136: Install Service Connections (New Installations) | K136: SCNEW | L136: Install LV Service Connections (New Installations) | M136: 2022/23 | N136: 3000
A137: administation volume | C137: 14 | D137: 14 | E137: 14 | F137: 14 | G137: 14 | I137: Alternative Control Fee based Services | J137: Install Service Connections (New Installations) | K137: SCNEW | L137: Install LV Service Connections (New Installations) | M137: 2023/24 | N137: 3000
C138: =C133-C136-C137 -> 62825 | D138: =D133-D136-D137 -> 60625 | E138: =E133-E136-E137 -> 58425 | F138: =F133-F136-F137 -> 56225 | G138: =G133-G136-G137 -> 54025 | N138: =SUM(N108:N137) -> 292125

Sheet Lookups & OH allocation
B1: The below CAM links have been used to calculate a works and services hourly rate as well as the shared services % of total spend.
B2: $2016/17
B3: Alternative controls | C3: 2019-20 | D3: 2020-21 | E3: 2021-22 | F3: 2022-23 | G3: 2023-24 | H3: Average
B4: Total expenditure (internal WSD overheads) | C4: 1320094.057 | D4: 1307165.848 | E4: 1314482.549 | F4: 1268327.619 | G4: 1254004.969 | H4: =SUM(C4:G4) -> 6464075.043 | K4: Vehicle Type | L4: 2016/17
B6: Hours | C6: 38632 | D6: 37881 | E6: 37098 | F6: 36284 | G6: 35436 | H6: =SUM(C6:G6) -> 185331 | K6: Truck | L6: 23.97
K7: Ute/Utility | L7: 7.44
C8: =C4/C6 -> 34.1709996 | D8: =D4/D6 -> 34.50716318 | E8: =E4/E6 -> 35.4327066 | F8: 34.95556222 | G8: 35.38788151 | H8: 34.87854187 | I8: Rate per hour | K8: None | L8: 0
B10: Calculation | C10: Shared Services overheads % expenditure
B11: Alternative Services OPEX | C11: 9611175.491 | D11: 9563119.614 | E11: 9467488.418 | F11: 9372813.534 | G11: 9279085.398 | H11: =SUM(C11:G11) -> 47293682.45
B12: Alternative Services CAPEX | C12: 0 | D12: 0 | E12: 0 | F12: 0 | G12: 0 | H12: =SUM(C12:G12) -> 0
B13: Less direct supervision | C13: =-C21 -> -2750773.442 | D13: =-D21 -> -2750773.442 | E13: -2750773.442 | F13: -2750773.442 | G13: -2750773.442 | H13: =SUM(C13:G13) -> -13753867.21
C14: =SUM(C11:C13) -> 6860402.049 | D14: =SUM(D11:D13) -> 6812346.172 | E14: 6716714.975 | F14: 6622040.091 | G14: 6528311.956 | H14: 33539815.24
B16: TOTAL Expenditure | C16: 268833961.5 | D16: 260836569.7 | E16: 245206317.7 | F16: 256080098.4 | G16: 255363647.2 | H16: =SUM(C16:G16) -> 1286320594
B18: Rate of total spend | C18: =C14/C16 -> 0.02551910485 | D18: =D14/D16 -> 0.02611729705 | E18: 0.02739209592 | F18: 0.02585925315 | G18: 0.02556476627 | H18: 0.02607422705
B20: Direct Supervision
B21: Cost (Market Support) | C21: 2750773.442 | D21: 2750773.442 | E21: 2750773.442 | F21: 2750773.442 | G21: 2750773.442
B22: Total Task Time (Customer Group) | C22: =SUM('[5]Cost buildup Yr1'!$AO$5:$AO$77) -> 548827 | D22: =SUM('[5]Cost buildup Yr2'!$AO$5:$AO$77) -> 531227 | E22: =SUM('[5]Cost buildup Yr3'!$AO$5:$AO$77) -> 513627 | F22: =SUM('[5]Cost buildup Yr4'!$AO$5:$AO$77) -> 496027 | G22: =SUM('[5]Cost buildup Yr5'!$AO$5:$AO$77) -> 478427
B24: Reconciliation of overhead recovery
B26: ="Recover via "&'[5]Cost buildup Yr1'!W3 -> Recover via Supervision & Customer Team | C26: ='[5]Cost buildup Yr1'!$AM$2 -> 905070.5871 | D26: ='[5]Cost buildup Yr2'!$AM$2 -> 876046.4277 | E26: ='[5]Cost buildup Yr3'!$AM$2 -> 847022.2682 | F26: ='[5]Cost buildup Yr4'!$AM$2 -> 817998.1088 | G26: ='[5]Cost buildup Yr5'!$AM$2 -> 788973.9494
B27: Under Recovery | C27: =C21-C26 -> 1845702.855 | D27: =D21-D26 -> 1874727.015 | E27: 1903751.174 | F27: 1932775.334 | G27: 1961799.493
B28: Recover via CAM Overheads | C28: ='[5]Cost buildup Yr1'!$AN$2 -> 1845702.855 | D28: ='[5]Cost buildup Yr2'!$AN$2 -> 1874727.015 | E28: ='[5]Cost buildup Yr3'!$AN$2 -> 1903751.174 | F28: ='[5]Cost buildup Yr4'!$AN$2 -> 1932775.334 | G28: ='[5]Cost buildup Yr5'!$AN$2 -> 1961799.493
B29: Check Total Recovery | C29: =C21-C26-C28 -> 0 | D29: =D21-D26-D28 -> 0 | E29: 0 | F29: 0 | G29: 0
B31: Volumes | C31: ='[5]Cost buildup Yr1'!$AK$2 -> 66338 | D31: ='[5]Cost buildup Yr2'!$AK$2 -> 64138 | E31: ='[5]Cost buildup Yr3'!$AK$2 -> 61938 | F31: ='[5]Cost buildup Yr4'!$AK$2 -> 59738 | G31: ='[5]Cost buildup Yr5'!$AK$2 -> 57538
B33: Direct Market Support Services | C33: Average Labour rate | D33: Overheads | E33: Total
B34: Market Support Average Labour rate $17/18 | C34: 48.53 | D34: =C34*0.61 -> 29.6033 | E34: =D34+C34 -> 78.1333
B35: $18/19 | C35: =C34*'Master Data'!F17 -> 49.718985 | D35: =C35*0.61 -> 30.32858085
B38: Skill Set Hourly Rate Summary
B39: Skill Sets | C39: Hourly Rate
B40: Elec Tech | C40: 60.92552759
B41: Elec Tech AH | C41: 101.7456311
B42: Linesman | C42: 57.66550426
B43: Market Support Officer | C43: 50
B44: General Administration | C44: 66.5823985
B46: Gross Up Labour costs
B47: Normal | C47: 0
B48: Scheduled Visit | C48: 0
B49: Non-scheduled Visit | C49: 0
B50: Same Day Premium | C50: 0
B51: After Hours | C51: 0
B54: Gross Up Task costs
B55: Normal | C55: 0
B56: Scheduled Visit | C56: 0
B57: Non-scheduled Visit | C57: 0.1
B58: Same Day Premium | C58: 0.1
B59: After Hours | C59: 0.05
B63: Services Performed in overtime
B64: Non Scheduled services @ overtime rate +67%
B66: =100%-C66 -> 0.95 | C66: ='Service Order Summary'!F8 -> 0.05
B67: 1 | C67: 1.75
C68: =SUMPRODUCT(B66:C66,B67:C67)-1 -> 0.0375
B70: Premium services @ overtime rate +67%
B72: =100%-C72 -> 0.9 | C72: ='Service Order Summary'!F11 -> 0.1
B73: 1 | C73: 1.67
C74: =SUMPRODUCT(B72:C72,B73:C73)-1 -> 0.067
B76: Non BAU Services Performed by higher qualified staff
B78: 15% of services performed by higher qualified staff (higher Paid)
B80: =100%-C80 -> 0.85 | C80: 0.15
B81: 1 | C81: =B81+D119 -> 1.25
C82: =SUMPRODUCT(B80:C80,B81:C81)-1 -> 0.0375
B85: AER Admin maximum total labour rate | C85: 98.94599796
B87: After hours labour escalator | C87: 0.67
B90: After hour penalty rates
B91: 1.5 | C91: first two hours Mo-Fr
B92: 2 | C92: weekends, PH, after first two hours Mo-Fr
B93: =((B91*2)+(B92*2))/4 -> 1.75 | C93: Average per hour rate for 4 hour call out
B96: Non Scheduled
B97: =C82+C68 -> 0.075
B98: =CEILING(B97,0.05) -> 0.1
B101: Same Day Premium
B102: =C82+C74 -> 0.1045
B103: =CEILING(B102,0.01)-0.01 -> 0.1 | D103: amended as agreed with AER
B106: After Hours
B107: =C82 -> 0.0375
B108: =CEILING(B107,0.05) -> 0.05
B112: Elec Tech | D112: 60.93 | E112: Above
B114: Field services co-ordinator | D114: 67.31862791 | E114: Extract from Quoted Services wages
B115: Project Manager | D115: 83.12101956
C116: Average | D116: =AVERAGE(D114:D115) -> 75.21982373
C118: Difference | D118: =(D116/D112)-1 -> 0.2345285366
D119: =CEILING(D118,0.05) -> 0.25
B122: Materials used
B123: 2015/16 fees indexed to 2016-17 | D123: $2018-19
B124: single phase OH service | C124: 121.62 | D124: =C124*'Master Data'!$F$16 -> 127.6523824
B125: multi phase OH service | C125: 241.25 | D125: =C125*'Master Data'!$F$16 -> 253.2160603
B126: single phase UG connect to turret | C126: 1.08 | D126: =C126*'Master Data'!$F$16 -> 1.13356827
B127: multi phase UG connect to turret | C127: 3.26 | D127: =C127*'Master Data'!$F$16 -> 3.421696815
B128: single phase UG service - pole | C128: 7.48 | D128: =C128*'Master Data'!$F$16 -> 7.85100987
B129: multi phase UG service - pole | C129: 22.45 | D129: =C129*'Master Data'!$F$16 -> 23.56352561
B130: Tiger tails | C130: 100 | D130: =C130*'Master Data'!$F$16 -> 104.960025
B131: Scaffolding | C131: 160 | D131: =C131*'Master Data'!$F$16 -> 167.93604
B132: 2014/15 fees indexed to 2016-17
B133: Underground - temporary position | C133: 93.42 | D133: =C133*'Master Data'!$F$16 -> 98.05365535
B134: overhead – single phase - temporary position | C134: 103.91 | D134: =C134*'Master Data'!$F$16 -> 109.063962
B135: overhead – three phase - temporary position | C135: 174.24 | D135: =C135*'Master Data'!$F$16 -> 182.8823476
B136: No materials charged | C136: 0 | D136: =C136*'Master Data'!$F$16 -> 0

Sheet Salary Calculation
B2: Figures taken from Quoted Services Model | I2: Overhead percentage | J2: 0.61
I3: Vehicle allowance | J3: 20
I4: After hours percentage | J4: 0.67
B6: LABOUR | C6: 2017/18 On-Costed hourly rate | D6: Discounted to $2016/17 | I6: AER Labour Rates | K6: raw labour plus on-cost - 2018-19 | L6: total labour rate (raw plus on-cost plus overheads) / AER calculated maximum labour rate for After Hours - 2018-19
B7: Distribution electrical technician | C7: 62.41820302 | D7: =C7/'Master Data'!$E$16 -> 60.92552759 | H7: Initial Proposal | I7: Administration - MS | J7: Market support officer | K7: ='Lookups & OH allocation'!C35 -> 49.718985 | L7: =K7+'Lookups & OH allocation'!D35 -> 80.04756585
B8: Distribution linesman | C8: 55.4116898 | D8: =C8/'Master Data'!$E$16 -> 54.08656886 | H8: =C15*'Master Data'!$F$16 -> 63.94744899 | I8: Administration | K8: 69.89 | L8: =K8*(1+$J$2) -> 112.5229
B9: Distribution linesman - live line | C9: 62.74492844 | D9: =C9/'Master Data'!$E$16 -> 61.24443967 | H9: =C16*'Master Data'!$F$16*1.61 -> 171.9355061 | I9: Field Worker | J9: Linesman | K9: 74.81 | L9: =K9*(1+$J$2)+$J$3 -> 140.4441
B10: General Administration | C10: 68.21366727 | D10: =C10/'Master Data'!$E$16 -> 66.5823985 | H10: =H8 -> 63.94744899 | I10: Field Worker AH | K10: =K9*1.67 -> 124.9327 | L10: =K9*1.67+(L9-K9) -> 190.5668
H11: =H9 -> 171.9355061 | I11: Technical Specialist - Indoor | J11: Elec Technician | K11: 89.79 | L11: =K11*(1+$J$2) -> 144.5619
H12: =H10 -> 63.94744899 | I12: Technical Specialist - Indoor AH | J12: Elec Technician AH | K12: =K11*1.67 -> 149.9493 | L12: =K11*1.67+(L11-K11) -> 204.7212
B13: R19 $2016-17 Real Labour Escalation | H13: =H8*1.61 -> 102.9553929 | I13: Technical Specialist - Outdoor | J13: Elec Technician | K13: =89.79 -> 89.79 | L13: =K13*(1+$J$2)+$J$3 -> 164.5619
A14: Skill Sets | B14: Worker Type | C14: 2019-20 | D14: 2020-21 | E14: 2021-22 | F14: 2022-23 | G14: 2023-24 | I14: Technical Specialist - Outdoor AH | J14: Elec Technician AH | K14: =K13*1.67 -> 149.9493 | L14: =K13*1.67+(L13-K13) -> 224.7212
A15: Elec Tech | B15: Electrical Technician | C15: =D7 -> 60.92552759 | D15: =C15*(1+'Master Data'!$C$25) -> 61.22406268 | E15: =D15*(1+'Master Data'!$C$25) -> 61.52406059 | F15: =E15*(1+'Master Data'!$C$25) -> 61.82552848 | G15: =F15*(1+'Master Data'!$C$25) -> 62.12847357
A16: Elec Tech AH | B16: Electrical Technician AH | C16: =C15*(1+$A$20) -> 101.7456311 | D16: =D15*(1+$A$20) -> 102.2441847 | E16: =E15*(1+$A$20) -> 102.7451812 | F16: =F15*(1+$A$20) -> 103.2486326 | G16: =G15*(1+$A$20) -> 103.7545509
A17: Linesman | B17: Lineworker (average of dist linesman rates) | C17: =(D8+D9)/2 -> 57.66550426 | D17: =C17*(1+'Master Data'!$C$25) -> 57.94806524 | E17: =D17*(1+'Master Data'!$C$25) -> 58.23201075 | F17: =E17*(1+'Master Data'!$C$25) -> 58.51734761 | G17: =F17*(1+'Master Data'!$C$25) -> 58.80408261
A18: Market Support Officer | B18: General Administraton | C18: =D10 -> 66.5823985 | D18: =C18*(1+'Master Data'!$C$25) -> 66.90865226 | E18: =D18*(1+'Master Data'!$C$25) -> 67.23650465 | F18: =E18*(1+'Master Data'!$C$25) -> 67.56596353 | G18: =F18*(1+'Master Data'!$C$25) -> 67.89703675
A19: After Hour Premium
A20: 0.67
B21: R19 $Nominal - Labour Rates
A22: Skill Sets | B22: Worker Type | C22: 2019-20 | D22: 2020-21 | E22: 2021-22 | F22: 2022-23 | G22: 2023-24
A23: Elec Tech | B23: =B15 -> Electrical Technician | C23: =$C$15*'Master Data'!G16 -> 65.51416149 | D23: =$D15*'Master Data'!$H16 -> 67.44814282 | E23: =$E$15*'Master Data'!I16 -> 69.43921537 | F23: =$F$15*'Master Data'!J16 -> 71.48906447 | G23: =$G$15*'Master Data'!K16 -> 73.59942523
A24: Elec Tech AH | B24: =B16 -> Electrical Technician AH | C24: =$C16*'Master Data'!$G16 -> 109.4086497 | D24: =$D16*'Master Data'!$H16 -> 112.6383985 | E24: =$E16*'Master Data'!$I16 -> 115.9634897 | F24: =$F16*'Master Data'!$J16 -> 119.3867377 | G24: =$G16*'Master Data'!$K16 -> 122.9110401
A25: Linesman | B25: =B17 -> Lineworker (average of dist linesman rates) | C25: =$C$17*'Master Data'!G16 -> 62.00860802 | D25: =$D$17*'Master Data'!H16 -> 63.83910523 | E25: =$E$17*'Master Data'!I16 -> 65.72363881 | F25: =$F$17*'Master Data'!J16 -> 67.66380391 | G25: =$G$17*'Master Data'!K16 -> 69.66124279
A26: Market Support Officer | B26: =B18 -> General Administraton | C26: =$C$18*'Master Data'!G16 -> 71.59708222 | D26: =$D$18*'Master Data'!H16 -> 73.71063166 | E26: =$E$18*'Master Data'!I16 -> 75.8865732 | F26: =$F$18*'Master Data'!J16 -> 78.12674863 | G26: =$G$18*'Master Data'!K16 -> 80.43305416
A45: Administration | B45: Market support officer | C45: 56.12 | D45: 90.36 | E45: Page 10, 25
A46: Field Worker | B46: Linesman | C46: 74.81 | D46: 140.45 | E46: Page 10. MJ recommends applying the Field Worker rate to certain benchmarked services including site visit; site visit - credit actions or site issues; and remove meter. We have therefore applied the Field Worker rate to all of these sets of services being 'De-energisation, re-energisation, special reads and retail contract terminations; and 'Supply abolishment'.
A47: Field Worker AH | D47: =C46*1.67+(D46-C46) -> 190.5727 | E47: MJ raw labour plus on-costs inflated by After Hours rate of 67 per cent (agreed in 17-19), static OH component from standard hours applied
A48: Technical Specialist | B48: Elec Technician | C48: 89.79 | D48: 144.56 | E48: Page 10, 25. MJ's table 17 map Technical Specialist to TasNetworks Elec Technician
A49: Technical Specialist AH | B49: Elec Technician AH | D49: =C48*1.67+(D48-C48) -> 204.7193 | E49: MJ raw labour plus on-costs inflated by After Hours rate of 67 per cent (agreed in 17-19), static OH component from standard hours applied
A50: Note: TasNetwork inputs in Cost buildup Yr 1 are in $2016-17 and need to be escalated - using TasNetworks' figures for consistency.

Sheet Back Office Time
B1: Estimated time spent on each request - used to allocate supervision cost pool (reviewed June 2017 by Market Support)
B3: Fee Based Services Market Support Back Office Timings Register | C3: Average Timings
C4: Outgoing | D4: Returning | E4: Total Time
B5: Fee Based Services
B6: Meter Test | C6: 3 min | D6: 2 min | E6: 5 | F6: min
B7: Supply abolishment | C7: 4 min | D7: 4 min | E7: 8 | F7: min
B8: Tee-up | C8: 3 min | D8: 3 min | E8: 6 | F8: min
B9: Miscellaneous service | C9: 3 min | D9: 2 min | E9: 5 | F9: min
B10: De-energistion, re-energisation and special reads | C10: 3 min | D10: 2 min | E10: 5 | F10: min
B11: After Hours | C11: 8 min | D11: 8 min | E11: 16 | F11: min
B12: Premium Services | C12: 8 min | D12: 8 min | E12: 16 | F12: min
B13: Back office only | E13: 3 | F13: min
B14: Connection Services
B15: Connection establishment charges | C15: 10 min | D15: 3 min | E15: 13 | F15: min
B16: Renewable energy connection | C16: 8 min | D16: 3 min | E16: 11 | F16: min
B17: Basic connection alteration | C17: 10 min | D17: 3 min | E17: 13 | F17: min
B18: Temporary Disconnection/Reconnection | C18: 10 min | D18: 2 min | E18: 12 | F18: min
B19: Connection alteration charges | C19: 4 min | D19: 2 min | E19: 6 | F19: min
E22: =SUM(E6:E20) -> 119

Sheet Service Order Summary
A1: Services performed in Overtime
A3: After Hours | B3: N
A5: Count of ServiceOrderId | B5: Column Labels
A6: Row Labels | B6: 0 | C6: 1 | D6: Grand Total
A7: 0 | B7: 855 | C7: 7 | D7: 862 | F7: =C7/D7 -> 0.008120649652 | G7: non scheduled - after hours
A8: 2015 | B8: 217 | C8: 3 | D8: 220 | F8: =CEILING(F7,0.05) -> 0.05
A9: 2016 | B9: 638 | C9: 4 | D9: 642
A10: 1 | B10: 229 | C10: 18 | D10: 247 | F10: =C10/D10 -> 0.07287449393 | G10: same day premium - after hours
A11: 2015 | B11: 59 | C11: 4 | D11: 63 | F11: =CEILING(F10,0.05) -> 0.1
A12: 2016 | B12: 170 | C12: 14 | D12: 184
A13: Grand Total | B13: 1084 | C13: 25 | D13: 1109

Sheet Service Order sample
A1: B2B service orders for specified product codes for 12 months
A2: Product codes are in far right column.
A4: NMI | B4: ServiceOrderId | C4: ResponsePhase | D4: FinYear | E4: RetailerServiceOrderNumber | F4: B2BType | G4: B2BSubType | H4: SOType | I4: SOSubType | J4: After Hours | K4: OverallStatus | L4: TVDResponse | M4: RECAttendance | N4: TeeUp | O4: AfterHoursApproved | P4: SameDayPremium | Q4: RequestPhase | R4: SiteVisited | S4: AfterHours | T4: SiteFoundEnergised | U4: SiteFoundDeenergised | V4: ReadingsTaken | W4: NewPermanentConnection | X4: NewTemporaryConnection | Y4: NewTempInPermanent | Z4: OverheadSupply | AA4: UndergroundToTurretCabinet | AB4: UndergroundToAuroraPole | AC4: UndergroundToPrivatePole | AD4: CTMeter | AE4: PAYGSite | AF4: Siemens | AG4: ModifyPayguardUnit | AH4: UMS | AI4: NewMains | AJ4: InstalledMeters | AK4: ExchangeMeters | AL4: RemoveMeters | AM4: ReprogrammedMeters | AN4: ReplacedPanel | AO4: InstallReplaceCTs | AP4: ReplacedServiceFuseFitting | AQ4: ReplaceService | AR4: IntervalMetering | AS4: ImportExport | AT4: InstallPulseOutputs | AU4: MetersRemoteFromPOS | AV4: PAYGCardFault | AW4: NoncompliantService | AX4: ServiceTooShortforReuse | AY4: NewPOA | AZ4: MuliPhasetoSingle | BA4: SinglePhasetoMulti | BB4: OverheadtoUnderground | BC4: UndergroundtoOverhead | BD4: AMIPerformed | BE4: Spareflag | BF4: SOMAgreedDate | BG4: GSDDate | BH4: ScheduledDate | BI4: CreatedOn | BJ4: NMIPhase | BK4: metertypecode | BL4: Completed | BM4: ProductCode1
D5: 2015-16 | F5: Re-energisation | G5: New Reading Required | H5: Re-energisation | I5: Non-Scheduled Day | J5: N | K5: Closed | L5: Complete | N5: 0 | O5: 0 | P5: 0 | R5: 1 | S5: 0 | T5: 1 | U5: 0 | V5: 1 | W5: 0 | X5: 0 | Y5: 0 | Z5: 0 | AA5: 0 | AB5: 0 | AC5: 0 | AD5: 0 | AE5: 0 | AF5: 0 | AG5: 0 | AH5: 0 | AI5: 0 | AJ5: 0 | AK5: 0 | AL5: 0 | AM5: 0 | AN5: 0 | AO5: 0 | AP5: 0 | AQ5: 0 | AR5: 0 | AS5: 0 | AT5: 0 | AU5: 0 | AV5: 0 | AW5: 0 | AX5: 0 | AY5: 0 | AZ5: 0 | BA5: 0 | BB5: 0 | BC5: 0 | BD5: 0 | BE5: 0 | BJ5: 1 | BK5: STD | BM5: TAS109
D6: 2015-16 | F6: Re-energisation | G6: New Reading Required | H6: Re-energisation | I6: Non-Scheduled Day | J6: N | K6: Closed | L6: Complete | N6: 0 | O6: 0 | P6: 0 | R6: 1 | S6: 0 | T6: 0 | U6: 1 | V6: 1 | W6: 0 | X6: 0 | Y6: 0 | Z6: 0 | AA6: 0 | AB6: 0 | AC6: 0 | AD6: 0 | AE6: 0 | AF6: 0 | AG6: 0 | AH6: 0 | AI6: 0 | AJ6: 0 | AK6: 0 | AL6: 0 | AM6: 0 | AN6: 0 | AO6: 0 | AP6: 0 | AQ6: 0 | AR6: 0 | AS6: 0 | AT6: 0 | AU6: 0 | AV6: 0 | AW6: 0 | AX6: 0 | AY6: 0 | AZ6: 0 | BA6: 0 | BB6: 0 | BC6: 0 | BD6: 0 | BE6: 0 | BJ6: 3 | BK6: TOU | BM6: TAS109
D7: 2015-16 | F7: Re-energisation | G7: After Disconnection For Non-Payment | H7: Re-energisation | I7: Same Day | J7: N | K7: Closed | L7: Complete | N7: 0 | O7: 0 | P7: 0 | R7: 1 | S7: 0 | T7: 0 | U7: 1 | V7: 1 | W7: 0 | X7: 0 | Y7: 0 | Z7: 0 | AA7: 0 | AB7: 0 | AC7: 0 | AD7: 0 | AE7: 0 | AF7: 0 | AG7: 0 | AH7: 0 | AI7: 0 | AJ7: 0 | AK7: 0 | AL7: 0 | AM7: 0 | AN7: 0 | AO7: 0 | AP7: 0 | AQ7: 0 | AR7: 0 | AS7: 0 | AT7: 0 | AU7: 0 | AV7: 0 | AW7: 0 | AX7: 0 | AY7: 0 | AZ7: 0 | BA7: 0 | BB7: 0 | BC7: 0 | BD7: 0 | BE7: 0 | BJ7: 1 | BK7: STD | BM7: TAS116
D8: 2015-16 | F8: Re-energisation | G8: New Reading Required | H8: Re-energisation | I8: Same Day | J8: N | K8: Closed | L8: Complete | N8: 0 | O8: 0 | P8: 0 | R8: 1 | S8: 0 | T8: 0 | U8: 1 | V8: 1 | W8: 0 | X8: 0 | Y8: 0 | Z8: 0 | AA8: 0 | AB8: 0 | AC8: 0 | AD8: 0 | AE8: 0 | AF8: 0 | AG8: 0 | AH8: 0 | AI8: 0 | AJ8: 0 | AK8: 0 | AL8: 0 | AM8: 0 | AN8: 0 | AO8: 0 | AP8: 0 | AQ8: 0 | AR8: 0 | AS8: 0 | AT8: 0 | AU8: 0 | AV8: 0 | AW8: 0 | AX8: 0 | AY8: 0 | AZ8: 0 | BA8: 0 | BB8: 0 | BC8: 0 | BD8: 0 | BE8: 0 | BJ8: 1 | BK8: STD | BM8: TAS110
D9: 2015-16 | F9: Re-energisation | G9: New Reading Required | H9: Re-energisation | I9: Same Day | J9: N | K9: Closed | L9: Complete | N9: 0 | O9: 0 | P9: 0 | R9: 1 | S9: 0 | T9: 0 | U9: 1 | V9: 1 | W9: 0 | X9: 0 | Y9: 0 | Z9: 0 | AA9: 0 | AB9: 0 | AC9: 0 | AD9: 0 | AE9: 0 | AF9: 0 | AG9: 0 | AH9: 0 | AI9: 0 | AJ9: 0 | AK9: 0 | AL9: 0 | AM9: 0 | AN9: 0 | AO9: 0 | AP9: 0 | AQ9: 0 | AR9: 0 | AS9: 0 | AT9: 0 | AU9: 0 | AV9: 0 | AW9: 0 | AX9: 0 | AY9: 0 | AZ9: 0 | BA9: 0 | BB9: 0 | BC9: 0 | BD9: 0 | BE9: 0 | BJ9: 3 | BK9: TOU | BM9: TAS110
D10: 2015-16 | F10: Re-energisation | G10: After Disconnection For Non-Payment | H10: Re-energisation | I10: Same Day | J10: N | K10: Closed | L10: Complete | N10: 0 | O10: 0 | P10: 1 | R10: 1 | S10: 0 | T10: 0 | U10: 1 | V10: 1 | W10: 0 | X10: 0 | Y10: 0 | Z10: 0 | AA10: 0 | AB10: 0 | AC10: 0 | AD10: 0 | AE10: 0 | AF10: 0 | AG10: 0 | AH10: 0 | AI10: 0 | AJ10: 0 | AK10: 0 | AL10: 0 | AM10: 0 | AN10: 0 | AO10: 0 | AP10: 0 | AQ10: 0 | AR10: 0 | AS10: 0 | AT10: 0 | AU10: 0 | AV10: 0 | AW10: 0 | AX10: 0 | AY10: 0 | AZ10: 0 | BA10: 0 | BB10: 0 | BC10: 0 | BD10: 0 | BE10: 0 | BJ10: 1 | BK10: TwoRate | BM10: TAS117
D11: 2015-16 | F11: Re-energisation | G11: After Disconnection For Non-Payment | H11: Re-energisation | I11: Same Day | J11: N | K11: Closed | L11: Complete | N11: 0 | O11: 0 | P11: 0 | R11: 1 | S11: 0 | T11: 0 | U11: 1 | V11: 1 | W11: 0 | X11: 0 | Y11: 0 | Z11: 0 | AA11: 0 | AB11: 0 | AC11: 0 | AD11: 0 | AE11: 0 | AF11: 0 | AG11: 0 | AH11: 0 | AI11: 0 | AJ11: 0 | AK11: 0 | AL11: 0 | AM11: 0 | AN11: 0 | AO11: 0 | AP11: 0 | AQ11: 0 | AR11: 0 | AS11: 0 | AT11: 0 | AU11: 0 | AV11: 0 | AW11: 0 | AX11: 0 | AY11: 0 | AZ11: 0 | BA11: 0 | BB11: 0 | BC11: 0 | BD11: 0 | BE11: 0 | BJ11: 1 | BK11: STD | BM11: TAS116
D12: 2015-16 | F12: Re-energisation | G12: New Reading Required | H12: Re-energisation | I12: Same Day | J12: N | K12: Closed | L12: Complete | N12: 0 | O12: 0 | P12: 1 | R12: 1 | S12: 0 | T12: 0 | U12: 1 | V12: 1 | W12: 0 | X12: 0 | Y12: 0 | Z12: 0 | AA12: 0 | AB12: 0 | AC12: 0 | AD12: 0 | AE12: 0 | AF12: 0 | AG12: 0 | AH12: 0 | AI12: 0 | AJ12: 0 | AK12: 0 | AL12: 0 | AM12: 0 | AN12: 0 | AO12: 0 | AP12: 0 | AQ12: 0 | AR12: 0 | AS12: 0 | AT12: 0 | AU12: 0 | AV12: 0 | AW12: 0 | AX12: 0 | AY12: 0 | AZ12: 0 | BA12: 0 | BB12: 0 | BC12: 0 | BD12: 0 | BE12: 0 | BJ12: 1 | BK12: TwoRate | BM12: TAS111
D13: 2015-16 | F13: Re-energisation | G13: After Disconnection For Non-Payment | H13: Re-energisation | I13: Same Day | J13: N | K13: Closed | L13: Complete | N13: 0 | O13: 0 | P13: 0 | R13: 1 | S13: 0 | T13: 0 | U13: 1 | V13: 1 | W13: 0 | X13: 0 | Y13: 0 | Z13: 0 | AA13: 0 | AB13: 0 | AC13: 0 | AD13: 0 | AE13: 0 | AF13: 0 | AG13: 0 | AH13: 0 | AI13: 0 | AJ13: 0 | AK13: 0 | AL13: 0 | AM13: 0 | AN13: 0 | AO13: 0 | AP13: 0 | AQ13: 0 | AR13: 0 | AS13: 0 | AT13: 0 | AU13: 0 | AV13: 0 | AW13: 0 | AX13: 0 | AY13: 0 | AZ13: 0 | BA13: 0 | BB13: 0 | BC13: 0 | BD13: 0 | BE13: 0 | BJ13: 1 | BK13: TwoRate | BM13: TAS116
D14: 2015-16 | F14: Re-energisation | G14: After Disconnection For Non-Payment | H14: Re-energisation | I14: Same Day | J14: N | K14: Closed | L14: Complete | N14: 0 | O14: 0 | P14: 0 | R14: 1 | S14: 0 | T14: 0 | U14: 1 | V14: 1 | W14: 0 | X14: 0 | Y14: 0 | Z14: 0 | AA14: 0 | AB14: 0 | AC14: 0 | AD14: 0 | AE14: 0 | AF14: 0 | AG14: 0 | AH14: 0 | AI14: 0 | AJ14: 0 | AK14: 0 | AL14: 0 | AM14: 0 | AN14: 0 | AO14: 0 | AP14: 0 | AQ14: 0 | AR14: 0 | AS14: 0 | AT14: 0 | AU14: 0 | AV14: 0 | AW14: 0 | AX14: 0 | AY14: 0 | AZ14: 0 | BA14: 0 | BB14: 0 | BC14: 0 | BD14: 0 | BE14: 0 | BJ14: 1 | BK14: TwoRate | BM14: TAS116
D15: 2015-16 | F15: Re-energisation | G15: New Reading Required | H15: Re-energisation | I15: Non-Scheduled Day | J15: N | K15: Closed | L15: Complete | N15: 0 | O15: 0 | P15: 0 | R15: 1 | S15: 0 | T15: 0 | U15: 1 | V15: 1 | W15: 0 | X15: 0 | Y15: 0 | Z15: 0 | AA15: 0 | AB15: 0 | AC15: 0 | AD15: 0 | AE15: 0 | AF15: 0 | AG15: 0 | AH15: 0 | AI15: 0 | AJ15: 0 | AK15: 0 | AL15: 0 | AM15: 0 | AN15: 0 | AO15: 0 | AP15: 0 | AQ15: 0 | AR15: 0 | AS15: 0 | AT15: 0 | AU15: 0 | AV15: 0 | AW15: 0 | AX15: 0 | AY15: 0 | AZ15: 0 | BA15: 0 | BB15: 0 | BC15: 0 | BD15: 0 | BE15: 0 | BJ15: 1 | BK15: TwoRate | BM15: TAS109
D16: 2015-16 | F16: Re-energisation | G16: After Disconnection For Non-Payment | H16: Re-energisation | I16: Same Day | J16: N | K16: Closed | L16: Complete | N16: 0 | O16: 0 | P16: 0 | R16: 1 | S16: 0 | T16: 0 | U16: 1 | V16: 1 | W16: 0 | X16: 0 | Y16: 0 | Z16: 0 | AA16: 0 | AB16: 0 | AC16: 0 | AD16: 0 | AE16: 0 | AF16: 0 | AG16: 0 | AH16: 0 | AI16: 0 | AJ16: 0 | AK16: 0 | AL16: 0 | AM16: 0 | AN16: 0 | AO16: 0 | AP16: 0 | AQ16: 0 | AR16: 0 | AS16: 0 | AT16: 0 | AU16: 0 | AV16: 0 | AW16: 0 | AX16: 0 | AY16: 0 | AZ16: 0 | BA16: 0 | BB16: 0 | BC16: 0 | BD16: 0 | BE16: 0 | BJ16: 1 | BK16: STD | BM16: TAS116
D17: 2015-16 | F17: Re-energisation | G17: New Reading Required | H17: Re-energisation | I17: Same Day | J17: N | K17: Closed | L17: Complete | N17: 0 | O17: 0 | P17: 0 | R17: 1 | S17: 0 | T17: 0 | U17: 1 | V17: 1 | W17: 0 | X17: 0 | Y17: 0 | Z17: 0 | AA17: 0 | AB17: 0 | AC17: 0 | AD17: 0 | AE17: 0 | AF17: 0 | AG17: 0 | AH17: 0 | AI17: 0 | AJ17: 0 | AK17: 0 | AL17: 0 | AM17: 0 | AN17: 0 | AO17: 0 | AP17: 0 | AQ17: 0 | AR17: 0 | AS17: 0 | AT17: 0 | AU17: 0 | AV17: 0 | AW17: 0 | AX17: 0 | AY17: 0 | AZ17: 0 | BA17: 0 | BB17: 0 | BC17: 0 | BD17: 0 | BE17: 0 | BJ17: 1 | BK17: STD | BM17: TAS110
D18: 2015-16 | F18: Re-energisation | G18: After Disconnection For Non-Payment | H18: Re-energisation | I18: Same Day | J18: N | K18: Closed | L18: Complete | N18: 0 | O18: 0 | P18: 0 | R18: 1 | S18: 0 | T18: 0 | U18: 1 | V18: 1 | W18: 0 | X18: 0 | Y18: 0 | Z18: 0 | AA18: 0 | AB18: 0 | AC18: 0 | AD18: 0 | AE18: 0 | AF18: 0 | AG18: 0 | AH18: 0 | AI18: 0 | AJ18: 0 | AK18: 0 | AL18: 0 | AM18: 0 | AN18: 0 | AO18: 0 | AP18: 0 | AQ18: 0 | AR18: 0 | AS18: 0 | AT18: 0 | AU18: 0 | AV18: 0 | AW18: 0 | AX18: 0 | AY18: 0 | AZ18: 0 | BA18: 0 | BB18: 0 | BC18: 0 | BD18: 0 | BE18: 0 | BJ18: 3 | BK18: STD | BM18: TAS116
D19: 2015-16 | F19: Re-energisation | G19: New Reading Required | H19: Re-energisation | I19: Same Day | J19: N | K19: Closed | L19: Complete | N19: 0 | O19: 0 | P19: 0 | R19: 1 | S19: 0 | T19: 1 | U19: 0 | V19: 1 | W19: 0 | X19: 0 | Y19: 0 | Z19: 0 | AA19: 0 | AB19: 0 | AC19: 0 | AD19: 0 | AE19: 0 | AF19: 0 | AG19: 0 | AH19: 0 | AI19: 0 | AJ19: 0 | AK19: 0 | AL19: 0 | AM19: 0 | AN19: 0 | AO19: 0 | AP19: 0 | AQ19: 0 | AR19: 0 | AS19: 0 | AT19: 0 | AU19: 0 | AV19: 0 | AW19: 0 | AX19: 0 | AY19: 0 | AZ19: 0 | BA19: 0 | BB19: 0 | BC19: 0 | BD19: 0 | BE19: 0 | BJ19: 1 | BK19: STD | BM19: TAS110
D20: 2015-16 | F20: Re-energisation | G20: New Reading Required | H20: Re-energisation | I20: Same Day | J20: N | K20: Closed | L20: Complete | N20: 0 | O20: 0 | P20: 0 | R20: 1 | S20: 0 | T20: 1 | U20: 0 | V20: 1 | W20: 0 | X20: 0 | Y20: 0 | Z20: 0 | AA20: 0 | AB20: 0 | AC20: 0 | AD20: 0 | AE20: 0 | AF20: 0 | AG20: 0 | AH20: 0 | AI20: 0 | AJ20: 0 | AK20: 0 | AL20: 0 | AM20: 0 | AN20: 0 | AO20: 0 | AP20: 0 | AQ20: 0 | AR20: 0 | AS20: 0 | AT20: 0 | AU20: 0 | AV20: 0 | AW20: 0 | AX20: 0 | AY20: 0 | AZ20: 0 | BA20: 0 | BB20: 0 | BC20: 0 | BD20: 0 | BE20: 0 | BJ20: 3 | BK20: INTERVAL | BM20: TAS110
D21: 2015-16 | F21: Re-energisation | G21: New Reading Required | H21: Re-energisation | I21: Same Day | J21: N | K21: Closed | L21: Complete | N21: 0 | O21: 0 | P21: 0 | R21: 1 | S21: 0 | T21: 1 | U21: 0 | V21: 1 | W21: 0 | X21: 0 | Y21: 0 | Z21: 0 | AA21: 0 | AB21: 0 | AC21: 0 | AD21: 0 | AE21: 0 | AF21: 0 | AG21: 0 | AH21: 0 | AI21: 0 | AJ21: 0 | AK21: 0 | AL21: 0 | AM21: 0 | AN21: 0 | AO21: 0 | AP21: 0 | AQ21: 0 | AR21: 0 | AS21: 0 | AT21: 0 | AU21: 0 | AV21: 0 | AW21: 0 | AX21: 0 | AY21: 0 | AZ21: 0 | BA21: 0 | BB21: 0 | BC21: 0 | BD21: 0 | BE21: 0 | BJ21: 1 | BK21: TwoRate | BM21: TAS110
D22: 2015-16 | F22: Re-energisation | G22: New Reading Required | H22: Re-energisation | I22: Non-Scheduled Day | J22: N | K22: Closed | L22: Complete | N22: 0 | O22: 0 | P22: 0 | R22: 1 | S22: 0 | T22: 1 | U22: 0 | V22: 1 | W22: 0 | X22: 0 | Y22: 0 | Z22: 0 | AA22: 0 | AB22: 0 | AC22: 0 | AD22: 0 | AE22: 0 | AF22: 0 | AG22: 0 | AH22: 0 | AI22: 0 | AJ22: 0 | AK22: 0 | AL22: 0 | AM22: 0 | AN22: 0 | AO22: 0 | AP22: 0 | AQ22: 0 | AR22: 0 | AS22: 0 | AT22: 0 | AU22: 0 | AV22: 0 | AW22: 0 | AX22: 0 | AY22: 0 | AZ22: 0 | BA22: 0 | BB22: 0 | BC22: 0 | BD22: 0 | BE22: 0 | BJ22: 1 | BK22: STD | BM22: TAS109
D23: 2015-16 | F23: Re-energisation | G23: After Disconnection For Non-Payment | H23: Re-energisation | I23: Same Day | J23: N | K23: Closed | L23: Complete | N23: 0 | O23: 0 | P23: 0 | R23: 1 | S23: 0 | T23: 0 | U23: 1 | V23: 1 | W23: 0 | X23: 0 | Y23: 0 | Z23: 0 | AA23: 0 | AB23: 0 | AC23: 0 | AD23: 0 | AE23: 0 | AF23: 0 | AG23: 0 | AH23: 0 | AI23: 0 | AJ23: 0 | AK23: 0 | AL23: 0 | AM23: 0 | AN23: 0 | AO23: 0 | AP23: 0 | AQ23: 0 | AR23: 0 | AS23: 0 | AT23: 0 | AU23: 0 | AV23: 0 | AW23: 0 | AX23: 0 | AY23: 0 | AZ23: 0 | BA23: 0 | BB23: 0 | BC23: 0 | BD23: 0 | BE23: 0 | BJ23: 1 | BK23: STD | BM23: TAS116
D24: 2015-16 | F24: Re-energisation | G24: New Reading Required | H24: Re-energisation | I24: Non-Scheduled Day | J24: N | K24: Closed | L24: Complete | N24: 0 | O24: 0 | P24: 0 | R24: 1 | S24: 0 | T24: 1 | U24: 0 | V24: 1 | W24: 0 | X24: 0 | Y24: 0 | Z24: 0 | AA24: 0 | AB24: 0 | AC24: 0 | AD24: 0 | AE24: 0 | AF24: 0 | AG24: 0 | AH24: 0 | AI24: 0 | AJ24: 0 | AK24: 0 | AL24: 0 | AM24: 0 | AN24: 0 | AO24: 0 | AP24: 0 | AQ24: 0 | AR24: 0 | AS24: 0 | AT24: 0 | AU24: 0 | AV24: 0 | AW24: 0 | AX24: 0 | AY24: 0 | AZ24: 0 | BA24: 0 | BB24: 0 | BC24: 0 | BD24: 0 | BE24: 0 | BJ24: 1 | BK24: STD | BM24: TAS109
D25: 2015-16 | F25: Re-energisation | G25: After Disconnection For Non-Payment | H25: Re-energisation | I25: Same Day | J25: N | K25: Closed | L25: Complete | N25: 0 | O25: 0 | P25: 1 | R25: 1 | S25: 0 | T25: 0 | U25: 1 | V25: 1 | W25: 0 | X25: 0 | Y25: 0 | Z25: 0 | AA25: 0 | AB25: 0 | AC25: 0 | AD25: 0 | AE25: 0 | AF25: 0 | AG25: 0 | AH25: 0 | AI25: 0 | AJ25: 0 | AK25: 0 | AL25: 0 | AM25: 0 | AN25: 0 | AO25: 0 | AP25: 0 | AQ25: 0 | AR25: 0 | AS25: 0 | AT25: 0 | AU25: 0 | AV25: 0 | AW25: 0 | AX25: 0 | AY25: 0 | AZ25: 0 | BA25: 0 | BB25: 0 | BC25: 0 | BD25: 0 | BE25: 0 | BJ25: 1 | BK25: STD | BM25: TAS117
D26: 2015-16 | F26: Re-energisation | G26: New Reading Required | H26: Re-energisation | I26: Same Day | J26: N | K26: Closed | L26: Complete | N26: 0 | O26: 0 | P26: 0 | R26: 1 | S26: 0 | T26: 1 | U26: 0 | V26: 1 | W26: 0 | X26: 0 | Y26: 0 | Z26: 0 | AA26: 0 | AB26: 0 | AC26: 0 | AD26: 0 | AE26: 0 | AF26: 0 | AG26: 0 | AH26: 0 | AI26: 0 | AJ26: 0 | AK26: 0 | AL26: 0 | AM26: 0 | AN26: 0 | AO26: 0 | AP26: 0 | AQ26: 0 | AR26: 0 | AS26: 0 | AT26: 0 | AU26: 0 | AV26: 0 | AW26: 0 | AX26: 0 | AY26: 0 | AZ26: 0 | BA26: 0 | BB26: 0 | BC26: 0 | BD26: 0 | BE26: 0 | BJ26: 3 | BK26: STD | BM26: TAS110
D27: 2015-16 | F27: Re-energisation | G27: After Disconnection For Non-Payment | H27: Re-energisation | I27: Same Day | J27: N | K27: Closed | L27: Complete | N27: 0 | O27: 0 | P27: 0 | R27: 1 | S27: 0 | T27: 0 | U27: 1 | V27: 1 | W27: 0 | X27: 0 | Y27: 0 | Z27: 0 | AA27: 0 | AB27: 0 | AC27: 0 | AD27: 0 | AE27: 0 | AF27: 0 | AG27: 0 | AH27: 0 | AI27: 0 | AJ27: 0 | AK27: 0 | AL27: 0 | AM27: 0 | AN27: 0 | AO27: 0 | AP27: 0 | AQ27: 0 | AR27: 0 | AS27: 0 | AT27: 0 | AU27: 0 | AV27: 0 | AW27: 0 | AX27: 0 | AY27: 0 | AZ27: 0 | BA27: 0 | BB27: 0 | BC27: 0 | BD27: 0 | BE27: 0 | BJ27: 1 | BK27: TwoRate | BM27: TAS116
D28: 2015-16 | F28: Re-energisation | G28: New Reading Required | H28: Re-energisation | I28: Non-Scheduled Day | J28: N | K28: Closed | L28: Complete | N28: 0 | O28: 0 | P28: 0 | R28: 1 | S28: 0 | T28: 0 | U28: 1 | V28: 1 | W28: 0 | X28: 0 | Y28: 0 | Z28: 0 | AA28: 0 | AB28: 0 | AC28: 0 | AD28: 0 | AE28: 0 | AF28: 0 | AG28: 0 | AH28: 0 | AI28: 0 | AJ28: 0 | AK28: 0 | AL28: 0 | AM28: 0 | AN28: 0 | AO28: 0 | AP28: 0 | AQ28: 0 | AR28: 0 | AS28: 0 | AT28: 0 | AU28: 0 | AV28: 0 | AW28: 0 | AX28: 0 | AY28: 0 | AZ28: 0 | BA28: 0 | BB28: 0 | BC28: 0 | BD28: 0 | BE28: 0 | BJ28: 1 | BK28: STD | BM28: TAS109
D29: 2015-16 | F29: Re-energisation | G29: After Disconnection For Non-Payment | H29: Re-energisation | I29: Same Day | J29: N | K29: Closed | L29: Complete | N29: 0 | O29: 0 | P29: 1 | R29: 1 | S29: 0 | T29: 0 | U29: 1 | V29: 1 | W29: 0 | X29: 0 | Y29: 0 | Z29: 0 | AA29: 0 | AB29: 0 | AC29: 0 | AD29: 0 | AE29: 0 | AF29: 0 | AG29: 0 | AH29: 0 | AI29: 0 | AJ29: 0 | AK29: 0 | AL29: 0 | AM29: 0 | AN29: 0 | AO29: 0 | AP29: 0 | AQ29: 0 | AR29: 0 | AS29: 0 | AT29: 0 | AU29: 0 | AV29: 0 | AW29: 0 | AX29: 0 | AY29: 0 | AZ29: 0 | BA29: 0 | BB29: 0 | BC29: 0 | BD29: 0 | BE29: 0 | BJ29: 1 | BK29: TwoRate | BM29: TAS117
D30: 2015-16 | F30: Special Read | G30: Final Read | H30: Readings | I30: Transfer of Supply - Non-Scheduled Day | J30: N | K30: Closed | L30: Complete | N30: 0 | O30: 0 | P30: 0 | R30: 1 | S30: 0 | T30: 1 | U30: 0 | V30: 1 | W30: 0 | X30: 0 | Y30: 0 | Z30: 0 | AA30: 0 | AB30: 0 | AC30: 0 | AD30: 0 | AE30: 0 | AF30: 0 | AG30: 0 | AH30: 0 | AI30: 0 | AJ30: 0 | AK30: 0 | AL30: 0 | AM30: 0 | AN30: 0 | AO30: 0 | AP30: 0 | AQ30: 0 | AR30: 0 | AS30: 0 | AT30: 0 | AU30: 0 | AV30: 0 | AW30: 0 | AX30: 0 | AY30: 0 | AZ30: 0 | BA30: 0 | BB30: 0 | BC30: 0 | BD30: 0 | BE30: 0 | BJ30: 3 | BK30: TOU | BM30: TAS120
D31: 2015-16 | F31: Re-energisation | G31: After Disconnection For Non-Payment | H31: Re-energisation | I31: Same Day | J31: N | K31: Closed | L31: Complete | N31: 0 | O31: 0 | P31: 1 | R31: 1 | S31: 0 | T31: 1 | U31: 0 | V31: 1 | W31: 0 | X31: 0 | Y31: 0 | Z31: 0 | AA31: 0 | AB31: 0 | AC31: 0 | AD31: 0 | AE31: 0 | AF31: 0 | AG31: 0 | AH31: 0 | AI31: 0 | AJ31: 0 | AK31: 0 | AL31: 0 | AM31: 0 | AN31: 0 | AO31: 0 | AP31: 0 | AQ31: 0 | AR31: 0 | AS31: 0 | AT31: 0 | AU31: 0 | AV31: 0 | AW31: 0 | AX31: 0 | AY31: 0 | AZ31: 0 | BA31: 0 | BB31: 0 | BC31: 0 | BD31: 0 | BE31: 0 | BJ31: 1 | BK31: TwoRate | BM31: TAS117
D32: 2015-16 | F32: Re-energisation | G32: After Disconnection For Non-Payment | H32: Re-energisation | I32: Same Day | J32: N | K32: Closed | L32: Complete | N32: 0 | O32: 0 | P32: 0 | R32: 1 | S32: 0 | T32: 0 | U32: 1 | V32: 1 | W32: 0 | X32: 0 | Y32: 0 | Z32: 0 | AA32: 0 | AB32: 0 | AC32: 0 | AD32: 0 | AE32: 0 | AF32: 0 | AG32: 0 | AH32: 0 | AI32: 0 | AJ32: 0 | AK32: 0 | AL32: 0 | AM32: 0 | AN32: 0 | AO32: 0 | AP32: 0 | AQ32: 0 | AR32: 0 | AS32: 0 | AT32: 0 | AU32: 0 | AV32: 0 | AW32: 0 | AX32: 0 | AY32: 0 | AZ32: 0 | BA32: 0 | BB32: 0 | BC32: 0 | BD32: 0 | BE32: 0 | BJ32: 1 | BK32: TwoRate | BM32: TAS116
D33: 2015-16 | F33: Re-energisation | G33: After Disconnection For Non-Payment | H33: Re-energisation | I33: Same Day | J33: N | K33: Closed | L33: Complete | N33: 0 | O33: 0 | P33: 0 | R33: 1 | S33: 0 | T33: 0 | U33: 1 | V33: 1 | W33: 0 | X33: 0 | Y33: 0 | Z33: 0 | AA33: 0 | AB33: 0 | AC33: 0 | AD33: 0 | AE33: 0 | AF33: 0 | AG33: 0 | AH33: 0 | AI33: 0 | AJ33: 0 | AK33: 0 | AL33: 0 | AM33: 0 | AN33: 0 | AO33: 0 | AP33: 0 | AQ33: 0 | AR33: 0 | AS33: 0 | AT33: 0 | AU33: 0 | AV33: 0 | AW33: 0 | AX33: 0 | AY33: 0 | AZ33: 0 | BA33: 0 | BB33: 0 | BC33: 0 | BD33: 0 | BE33: 0 | BJ33: 1 | BK33: STD | BM33: TAS116
C34: 1 | D34: 2015-16 | F34: Special Read | G34: Check Read | H34: Readings | I34: Check Read - Non-Scheduled Day | J34: N | K34: Closed | L34: Complete | N34: 0 | O34: 0 | P34: 0 | R34: 1 | S34: 0 | T34: 1 | U34: 0 | V34: 1 | W34: 0 | X34: 0 | Y34: 0 | Z34: 0 | AA34: 0 | AB34: 0 | AC34: 0 | AD34: 0 | AE34: 0 | AF34: 0 | AG34: 0 | AH34: 0 | AI34: 0 | AJ34: 0 | AK34: 0 | AL34: 0 | AM34: 0 | AN34: 0 | AO34: 0 | AP34: 0 | AQ34: 0 | AR34: 0 | AS34: 0 | AT34: 0 | AU34: 0 | AV34: 0 | AW34: 0 | AX34: 0 | AY34: 0 | AZ34: 0 | BA34: 0 | BB34: 0 | BC34: 0 | BD34: 0 | BE34: 0 | BJ34: 1 | BK34: STD | BM34: TAS122
D35: 2015-16 | F35: Special Read | G35: Final Read | H35: Readings | I35: Transfer of Supply - Non-Scheduled Day | J35: N | K35: Closed | L35: Complete | N35: 0 | O35: 0 | P35: 0 | R35: 1 | S35: 0 | T35: 1 | U35: 0 | V35: 1 | W35: 0 | X35: 0 | Y35: 0 | Z35: 0 | AA35: 0 | AB35: 0 | AC35: 0 | AD35: 0 | AE35: 0 | AF35: 0 | AG35: 0 | AH35: 0 | AI35: 0 | AJ35: 0 | AK35: 0 | AL35: 0 | AM35: 0 | AN35: 0 | AO35: 0 | AP35: 0 | AQ35: 0 | AR35: 0 | AS35: 0 | AT35: 0 | AU35: 0 | AV35: 0 | AW35: 0 | AX35: 0 | AY35: 0 | AZ35: 0 | BA35: 0 | BB35: 0 | BC35: 0 | BD35: 0 | BE35: 0 | BJ35: 1 | BK35: STD | BM35: TAS120
D36: 2015-16 | F36: Re-energisation | G36: After Disconnection For Non-Payment | H36: Re-energisation | I36: Same Day | J36: N | K36: Closed | L36: Complete | N36: 0 | O36: 0 | P36: 0 | R36: 1 | S36: 0 | T36: 0 | U36: 1 | V36: 1 | W36: 0 | X36: 0 | Y36: 0 | Z36: 0 | AA36: 0 | AB36: 0 | AC36: 0 | AD36: 0 | AE36: 0 | AF36: 0 | AG36: 0 | AH36: 0 | AI36: 0 | AJ36: 0 | AK36: 0 | AL36: 0 | AM36: 0 | AN36: 0 | AO36: 0 | AP36: 0 | AQ36: 0 | AR36: 0 | AS36: 0 | AT36: 0 | AU36: 0 | AV36: 0 | AW36: 0 | AX36: 0 | AY36: 0 | AZ36: 0 | BA36: 0 | BB36: 0 | BC36: 0 | BD36: 0 | BE36: 0 | BJ36: 1 | BK36: STD | BM36: TAS116
D37: 2015-16 | F37: Re-energisation | G37: New Reading Required | H37: Re-energisation | I37: Same Day | J37: N | K37: Closed | L37: Incomplete | N37: 0 | O37: 0 | P37: 0 | R37: 1 | S37: 0 | T37: 1 | U37: 0 | V37: 0 | W37: 0 | X37: 0 | Y37: 0 | Z37: 0 | AA37: 0 | AB37: 0 | AC37: 0 | AD37: 0 | AE37: 0 | AF37: 0 | AG37: 0 | AH37: 0 | AI37: 0 | AJ37: 0 | AK37: 0 | AL37: 0 | AM37: 0 | AN37: 0 | AO37: 0 | AP37: 0 | AQ37: 0 | AR37: 0 | AS37: 0 | AT37: 0 | AU37: 0 | AV37: 0 | AW37: 0 | AX37: 0 | AY37: 0 | AZ37: 0 | BA37: 0 | BB37: 0 | BC37: 0 | BD37: 0 | BE37: 0 | BJ37: 3 | BK37: STD | BM37: TAS110
D38: 2015-16 | F38: Re-energisation | G38: New Reading Required | H38: Re-energisation | I38: Same Day | J38: N | K38: Closed | L38: Complete | N38: 0 | O38: 0 | P38: 0 | R38: 1 | S38: 0 | T38: 0 | U38: 1 | V38: 1 | W38: 0 | X38: 0 | Y38: 0 | Z38: 0 | AA38: 0 | AB38: 0 | AC38: 0 | AD38: 0 | AE38: 0 | AF38: 0 | AG38: 0 | AH38: 0 | AI38: 0 | AJ38: 0 | AK38: 0 | AL38: 0 | AM38: 0 | AN38: 0 | AO38: 0 | AP38: 0 | AQ38: 0 | AR38: 0 | AS38: 0 | AT38: 0 | AU38: 0 | AV38: 0 | AW38: 0 | AX38: 0 | AY38: 0 | AZ38: 0 | BA38: 0 | BB38: 0 | BC38: 0 | BD38: 0 | BE38: 0 | BJ38: 1 | BK38: TwoRate | BM38: TAS110
D39: 2015-16 | F39: Re-energisation | G39: New Reading Required | H39: Re-energisation | I39: Same Day | J39: N | K39: Closed | L39: Complete | N39: 0 | O39: 0 | P39: 0 | R39: 1 | S39: 0 | T39: 0 | U39: 1 | V39: 1 | W39: 0 | X39: 0 | Y39: 0 | Z39: 0 | AA39: 0 | AB39: 0 | AC39: 0 | AD39: 0 | AE39: 0 | AF39: 0 | AG39: 0 | AH39: 0 | AI39: 0 | AJ39: 0 | AK39: 0 | AL39: 0 | AM39: 0 | AN39: 0 | AO39: 0 | AP39: 0 | AQ39: 0 | AR39: 0 | AS39: 0 | AT39: 0 | AU39: 0 | AV39: 0 | AW39: 0 | AX39: 0 | AY39: 0 | AZ39: 0 | BA39: 0 | BB39: 0 | BC39: 0 | BD39: 0 | BE39: 0 | BJ39: 1 | BK39: STD | BM39: TAS110
D40: 2015-16 | F40: Re-energisation | G40: New Reading Required | H40: Re-energisation | I40: Same Day | J40: N | K40: Closed | L40: Complete | N40: 0 | O40: 0 | P40: 0 | R40: 1 | S40: 0 | T40: 0 | U40: 1 | V40: 1 | W40: 0 | X40: 0 | Y40: 0 | Z40: 0 | AA40: 0 | AB40: 0 | AC40: 0 | AD40: 0 | AE40: 0 | AF40: 0 | AG40: 0 | AH40: 0 | AI40: 0 | AJ40: 0 | AK40: 0 | AL40: 0 | AM40: 0 | AN40: 0 | AO40: 0 | AP40: 0 | AQ40: 0 | AR40: 0 | AS40: 0 | AT40: 0 | AU40: 0 | AV40: 0 | AW40: 0 | AX40: 0 | AY40: 0 | AZ40: 0 | BA40: 0 | BB40: 0 | BC40: 0 | BD40: 0 | BE40: 0 | BJ40: 3 | BK40: TOU | BM40: TAS110
D41: 2015-16 | F41: Re-energisation | G41: After Disconnection For Non-Payment | H41: Re-energisation | I41: Same Day | J41: N | K41: Closed | L41: Complete | N41: 0 | O41: 0 | P41: 1 | R41: 1 | S41: 0 | T41: 0 | U41: 1 | V41: 1 | W41: 0 | X41: 0 | Y41: 0 | Z41: 0 | AA41: 0 | AB41: 0 | AC41: 0 | AD41: 0 | AE41: 0 | AF41: 0 | AG41: 0 | AH41: 0 | AI41: 0 | AJ41: 0 | AK41: 0 | AL41: 0 | AM41: 0 | AN41: 0 | AO41: 0 | AP41: 0 | AQ41: 0 | AR41: 0 | AS41: 0 | AT41: 0 | AU41: 0 | AV41: 0 | AW41: 0 | AX41: 0 | AY41: 0 | AZ41: 0 | BA41: 0 | BB41: 0 | BC41: 0 | BD41: 0 | BE41: 0 | BJ41: 1 | BK41: TwoRate | BM41: TAS117
D42: 2015-16 | F42: Re-energisation | G42: After Disconnection For Non-Payment | H42: Re-energisation | I42: Same Day | J42: N | K42: Closed | L42: Complete | N42: 0 | O42: 0 | P42: 1 | R42: 1 | S42: 0 | T42: 0 | U42: 1 | V42: 1 | W42: 0 | X42: 0 | Y42: 0 | Z42: 0 | AA42: 0 | AB42: 0 | AC42: 0 | AD42: 0 | AE42: 0 | AF42: 0 | AG42: 0 | AH42: 0 | AI42: 0 | AJ42: 0 | AK42: 0 | AL42: 0 | AM42: 0 | AN42: 0 | AO42: 0 | AP42: 0 | AQ42: 0 | AR42: 0 | AS42: 0 | AT42: 0 | AU42: 0 | AV42: 0 | AW42: 0 | AX42: 0 | AY42: 0 | AZ42: 0 | BA42: 0 | BB42: 0 | BC42: 0 | BD42: 0 | BE42: 0 | BJ42: 1 | BK42: TwoRate | BM42: TAS117
D43: 2015-16 | F43: Re-energisation | G43: New Reading Required | H43: Re-energisation | I43: Non-Scheduled Day | J43: N | K43: Closed | L43: Complete | N43: 0 | O43: 0 | P43: 0 | R43: 1 | S43: 0 | T43: 1 | U43: 0 | V43: 1 | W43: 0 | X43: 0 | Y43: 0 | Z43: 0 | AA43: 0 | AB43: 0 | AC43: 0 | AD43: 0 | AE43: 0 | AF43: 0 | AG43: 0 | AH43: 0 | AI43: 0 | AJ43: 0 | AK43: 0 | AL43: 0 | AM43: 0 | AN43: 0 | AO43: 0 | AP43: 0 | AQ43: 0 | AR43: 0 | AS43: 0 | AT43: 0 | AU43: 0 | AV43: 0 | AW43: 0 | AX43: 0 | AY43: 0 | AZ43: 0 | BA43: 0 | BB43: 0 | BC43: 0 | BD43: 0 | BE43: 0 | BJ43: 1 | BK43: STD | BM43: TAS109
D44: 2015-16 | F44: Re-energisation | G44: After Disconnection For Non-Payment | H44: Re-energisation | I44: Same Day | J44: N | K44: Closed | L44: Complete | N44: 0 | O44: 0 | P44: 0 | R44: 1 | S44: 0 | T44: 0 | U44: 1 | V44: 1 | W44: 0 | X44: 0 | Y44: 0 | Z44: 0 | AA44: 0 | AB44: 0 | AC44: 0 | AD44: 0 | AE44: 0 | AF44: 0 | AG44: 0 | AH44: 0 | AI44: 0 | AJ44: 0 | AK44: 0 | AL44: 0 | AM44: 0 | AN44: 0 | AO44: 0 | AP44: 0 | AQ44: 0 | AR44: 0 | AS44: 0 | AT44: 0 | AU44: 0 | AV44: 0 | AW44: 0 | AX44: 0 | AY44: 0 | AZ44: 0 | BA44: 0 | BB44: 0 | BC44: 0 | BD44: 0 | BE44: 0 | BJ44: 1 | BK44: STD | BM44: TAS116
D45: 2015-16 | F45: Re-energisation | G45: New Reading Required | H45: Re-energisation | I45: Same Day | J45: N | K45: Closed | L45: Complete | N45: 0 | O45: 0 | P45: 0 | R45: 1 | S45: 0 | T45: 0 | U45: 1 | V45: 1 | W45: 0 | X45: 0 | Y45: 0 | Z45: 0 | AA45: 0 | AB45: 0 | AC45: 0 | AD45: 0 | AE45: 0 | AF45: 0 | AG45: 0 | AH45: 0 | AI45: 0 | AJ45: 0 | AK45: 0 | AL45: 0 | AM45: 0 | AN45: 0 | AO45: 0 | AP45: 0 | AQ45: 0 | AR45: 0 | AS45: 0 | AT45: 0 | AU45: 0 | AV45: 0 | AW45: 0 | AX45: 0 | AY45: 0 | AZ45: 0 | BA45: 0 | BB45: 0 | BC45: 0 | BD45: 0 | BE45: 0 | BJ45: 1 | BK45: STD | BM45: TAS110
D46: 2015-16 | F46: Re-energisation | G46: New Reading Required | H46: Re-energisation | I46: Same Day | J46: N | K46: Closed | L46: Complete | N46: 0 | O46: 0 | P46: 0 | R46: 1 | S46: 0 | T46: 0 | U46: 1 | V46: 1 | W46: 0 | X46: 0 | Y46: 0 | Z46: 0 | AA46: 0 | AB46: 0 | AC46: 0 | AD46: 0 | AE46: 0 | AF46: 0 | AG46: 0 | AH46: 0 | AI46: 0 | AJ46: 0 | AK46: 0 | AL46: 0 | AM46: 0 | AN46: 0 | AO46: 0 | AP46: 0 | AQ46: 0 | AR46: 0 | AS46: 0 | AT46: 0 | AU46: 0 | AV46: 0 | AW46: 0 | AX46: 0 | AY46: 0 | AZ46: 0 | BA46: 0 | BB46: 0 | BC46: 0 | BD46: 0 | BE46: 0 | BJ46: 1 | BK46: TwoRate | BM46: TAS110
D47: 2015-16 | F47: Re-energisation | G47: New Reading Required | H47: Re-energisation | I47: Same Day | J47: N | K47: Closed | L47: Complete | N47: 0 | O47: 0 | P47: 0 | R47: 1 | S47: 0 | T47: 1 | U47: 0 | V47: 1 | W47: 0 | X47: 0 | Y47: 0 | Z47: 0 | AA47: 0 | AB47: 0 | AC47: 0 | AD47: 0 | AE47: 0 | AF47: 0 | AG47: 0 | AH47: 0 | AI47: 0 | AJ47: 0 | AK47: 0 | AL47: 0 | AM47: 0 | AN47: 0 | AO47: 0 | AP47: 0 | AQ47: 0 | AR47: 0 | AS47: 0 | AT47: 0 | AU47: 0 | AV47: 0 | AW47: 0 | AX47: 0 | AY47: 0 | AZ47: 0 | BA47: 0 | BB47: 0 | BC47: 0 | BD47: 0 | BE47: 0 | BJ47: 3 | BK47: TOU | BM47: TAS110
D48: 2015-16 | F48: Re-energisation | G48: After Disconnection For Non-Payment | H48: Re-energisation | I48: Same Day | J48: N | K48: Closed | L48: Complete | N48: 0 | O48: 0 | P48: 0 | R48: 1 | S48: 0 | T48: 0 | U48: 1 | V48: 1 | W48: 0 | X48: 0 | Y48: 0 | Z48: 0 | AA48: 0 | AB48: 0 | AC48: 0 | AD48: 0 | AE48: 0 | AF48: 0 | AG48: 0 | AH48: 0 | AI48: 0 | AJ48: 0 | AK48: 0 | AL48: 0 | AM48: 0 | AN48: 0 | AO48: 0 | AP48: 0 | AQ48: 0 | AR48: 0 | AS48: 0 | AT48: 0 | AU48: 0 | AV48: 0 | AW48: 0 | AX48: 0 | AY48: 0 | AZ48: 0 | BA48: 0 | BB48: 0 | BC48: 0 | BD48: 0 | BE48: 0 | BJ48: 3 | BK48: STD | BM48: TAS116
D49: 2015-16 | F49: Re-energisation | G49: After Disconnection For Non-Payment | H49: Re-energisation | I49: Same Day | J49: N | K49: Closed | L49: Complete | N49: 0 | O49: 0 | P49: 0 | R49: 1 | S49: 0 | T49: 1 | U49: 0 | V49: 1 | W49: 0 | X49: 0 | Y49: 0 | Z49: 0 | AA49: 0 | AB49: 0 | AC49: 0 | AD49: 0 | AE49: 0 | AF49: 0 | AG49: 0 | AH49: 0 | AI49: 0 | AJ49: 0 | AK49: 0 | AL49: 0 | AM49: 0 | AN49: 0 | AO49: 0 | AP49: 0 | AQ49: 0 | AR49: 0 | AS49: 0 | AT49: 0 | AU49: 0 | AV49: 0 | AW49: 0 | AX49: 0 | AY49: 0 | AZ49: 0 | BA49: 0 | BB49: 0 | BC49: 0 | BD49: 0 | BE49: 0 | BJ49: 1 | BK49: STD | BM49: TAS116
D50: 2015-16 | F50: Re-energisation | G50: After Disconnection For Non-Payment | H50: Re-energisation | I50: Same Day | J50: N | K50: Closed | L50: Complete | N50: 0 | O50: 0 | P50: 0 | R50: 1 | S50: 0 | T50: 0 | U50: 1 | V50: 1 | W50: 0 | X50: 0 | Y50: 0 | Z50: 0 | AA50: 0 | AB50: 0 | AC50: 0 | AD50: 0 | AE50: 0 | AF50: 0 | AG50: 0 | AH50: 0 | AI50: 0 | AJ50: 0 | AK50: 0 | AL50: 0 | AM50: 0 | AN50: 0 | AO50: 0 | AP50: 0 | AQ50: 0 | AR50: 0 | AS50: 0 | AT50: 0 | AU50: 0 | AV50: 0 | AW50: 0 | AX50: 0 | AY50: 0 | AZ50: 0 | BA50: 0 | BB50: 0 | BC50: 0 | BD50: 0 | BE50: 0 | BJ50: 1 | BK50: STD | BM50: TAS116
D51: 2015-16 | F51: Special Read | G51: Final Read | H51: Readings | I51: Transfer of Supply - Non-Scheduled Day | J51: N | K51: Closed | L51: Complete | N51: 0 | O51: 0 | P51: 0 | R51: 1 | S51: 0 | T51: 1 | U51: 0 | V51: 1 | W51: 0 | X51: 0 | Y51: 0 | Z51: 0 | AA51: 0 | AB51: 0 | AC51: 0 | AD51: 0 | AE51: 0 | AF51: 0 | AG51: 0 | AH51: 0 | AI51: 0 | AJ51: 0 | AK51: 0 | AL51: 0 | AM51: 0 | AN51: 0 | AO51: 0 | AP51: 0 | AQ51: 0 | AR51: 0 | AS51: 0 | AT51: 0 | AU51: 0 | AV51: 0 | AW51: 0 | AX51: 0 | AY51: 0 | AZ51: 0 | BA51: 0 | BB51: 0 | BC51: 0 | BD51: 0 | BE51: 0 | BJ51: 1 | BK51: STD | BM51: TAS120
D52: 2015-16 | F52: Re-energisation | G52: New Reading Required | H52: Re-energisation | I52: Same Day | J52: N | K52: Closed | L52: Complete | N52: 0 | O52: 0 | P52: 0 | R52: 1 | S52: 0 | T52: 0 | U52: 1 | V52: 1 | W52: 0 | X52: 0 | Y52: 0 | Z52: 0 | AA52: 0 | AB52: 0 | AC52: 0 | AD52: 0 | AE52: 0 | AF52: 0 | AG52: 0 | AH52: 0 | AI52: 0 | AJ52: 0 | AK52: 0 | AL52: 0 | AM52: 0 | AN52: 0 | AO52: 0 | AP52: 0 | AQ52: 0 | AR52: 0 | AS52: 0 | AT52: 0 | AU52: 0 | AV52: 0 | AW52: 0 | AX52: 0 | AY52: 0 | AZ52: 0 | BA52: 0 | BB52: 0 | BC52: 0 | BD52: 0 | BE52: 0 | BJ52: 1 | BK52: STD | BM52: TAS110
D53: 2015-16 | F53: Re-energisation | G53: After Disconnection For Non-Payment | H53: Re-energisation | I53: Same Day | J53: N | K53: Closed | L53: Complete | N53: 0 | O53: 0 | P53: 0 | R53: 1 | S53: 0 | T53: 0 | U53: 1 | V53: 1 | W53: 0 | X53: 0 | Y53: 0 | Z53: 0 | AA53: 0 | AB53: 0 | AC53: 0 | AD53: 0 | AE53: 0 | AF53: 0 | AG53: 0 | AH53: 0 | AI53: 0 | AJ53: 0 | AK53: 0 | AL53: 0 | AM53: 0 | AN53: 0 | AO53: 0 | AP53: 0 | AQ53: 0 | AR53: 0 | AS53: 0 | AT53: 0 | AU53: 0 | AV53: 0 | AW53: 0 | AX53: 0 | AY53: 0 | AZ53: 0 | BA53: 0 | BB53: 0 | BC53: 0 | BD53: 0 | BE53: 0 | BJ53: 1 | BK53: TwoRate | BM53: TAS116
D54: 2015-16 | F54: Special Read | G54: Final Read | H54: Readings | I54: Transfer of Supply - Non-Scheduled Day | J54: N | K54: Closed | L54: Complete | N54: 0 | O54: 0 | P54: 0 | R54: 1 | S54: 0 | T54: 1 | U54: 0 | V54: 1 | W54: 0 | X54: 0 | Y54: 0 | Z54: 0 | AA54: 0 | AB54: 0 | AC54: 0 | AD54: 0 | AE54: 0 | AF54: 0 | AG54: 0 | AH54: 0 | AI54: 0 | AJ54: 0 | AK54: 0 | AL54: 0 | AM54: 0 | AN54: 0 | AO54: 0 | AP54: 0 | AQ54: 0 | AR54: 0 | AS54: 0 | AT54: 0 | AU54: 0 | AV54: 0 | AW54: 0 | AX54: 0 | AY54: 0 | AZ54: 0 | BA54: 0 | BB54: 0 | BC54: 0 | BD54: 0 | BE54: 0 | BJ54: 1 | BK54: STD | BM54: TAS120
D55: 2015-16 | F55: Re-energisation | G55: New Reading Required | H55: Re-energisation | I55: Non-Scheduled Day | J55: N | K55: Closed | L55: Complete | N55: 0 | O55: 0 | P55: 0 | R55: 1 | S55: 0 | T55: 1 | U55: 0 | V55: 1 | W55: 0 | X55: 0 | Y55: 0 | Z55: 0 | AA55: 0 | AB55: 0 | AC55: 0 | AD55: 0 | AE55: 0 | AF55: 0 | AG55: 0 | AH55: 0 | AI55: 0 | AJ55: 0 | AK55: 0 | AL55: 0 | AM55: 0 | AN55: 0 | AO55: 0 | AP55: 0 | AQ55: 0 | AR55: 0 | AS55: 0 | AT55: 0 | AU55: 0 | AV55: 0 | AW55: 0 | AX55: 0 | AY55: 0 | AZ55: 0 | BA55: 0 | BB55: 0 | BC55: 0 | BD55: 0 | BE55: 0 | BJ55: 3 | BK55: TOU | BM55: TAS109
D56: 2015-16 | F56: Re-energisation | G56: New Reading Required | H56: Re-energisation | I56: Same Day | J56: N | K56: Closed | L56: Complete | N56: 0 | O56: 0 | P56: 0 | R56: 1 | S56: 0 | T56: 0 | U56: 1 | V56: 1 | W56: 0 | X56: 0 | Y56: 0 | Z56: 0 | AA56: 0 | AB56: 0 | AC56: 0 | AD56: 0 | AE56: 0 | AF56: 0 | AG56: 0 | AH56: 0 | AI56: 0 | AJ56: 0 | AK56: 0 | AL56: 0 | AM56: 0 | AN56: 0 | AO56: 0 | AP56: 0 | AQ56: 0 | AR56: 0 | AS56: 0 | AT56: 0 | AU56: 0 | AV56: 0 | AW56: 0 | AX56: 0 | AY56: 0 | AZ56: 0 | BA56: 0 | BB56: 0 | BC56: 0 | BD56: 0 | BE56: 0 | BJ56: 3 | BK56: STD | BM56: TAS110
D57: 2015-16 | F57: Re-energisation | G57: After Disconnection For Non-Payment | H57: Re-energisation | I57: Same Day | J57: N | K57: Closed | L57: Complete | N57: 0 | O57: 0 | P57: 1 | R57: 1 | S57: 0 | T57: 0 | U57: 1 | V57: 1 | W57: 0 | X57: 0 | Y57: 0 | Z57: 0 | AA57: 0 | AB57: 0 | AC57: 0 | AD57: 0 | AE57: 0 | AF57: 0 | AG57: 0 | AH57: 0 | AI57: 0 | AJ57: 0 | AK57: 0 | AL57: 0 | AM57: 0 | AN57: 0 | AO57: 0 | AP57: 0 | AQ57: 0 | AR57: 0 | AS57: 0 | AT57: 0 | AU57: 0 | AV57: 0 | AW57: 0 | AX57: 0 | AY57: 0 | AZ57: 0 | BA57: 0 | BB57: 0 | BC57: 0 | BD57: 0 | BE57: 0 | BJ57: 1 | BK57: Bidirect | BM57: TAS117
D58: 2015-16 | F58: Re-energisation | G58: New Reading Required | H58: Re-energisation | I58: Same Day | J58: Y | K58: Closed | L58: Complete | N58: 0 | O58: 1 | P58: 1 | R58: 1 | S58: 0 | T58: 0 | U58: 1 | V58: 1 | W58: 0 | X58: 0 | Y58: 0 | Z58: 0 | AA58: 0 | AB58: 0 | AC58: 0 | AD58: 0 | AE58: 0 | AF58: 0 | AG58: 0 | AH58: 0 | AI58: 0 | AJ58: 0 | AK58: 0 | AL58: 0 | AM58: 0 | AN58: 0 | AO58: 0 | AP58: 0 | AQ58: 0 | AR58: 0 | AS58: 0 | AT58: 0 | AU58: 0 | AV58: 0 | AW58: 0 | AX58: 0 | AY58: 0 | AZ58: 0 | BA58: 0 | BB58: 0 | BC58: 0 | BD58: 0 | BE58: 0 | BJ58: 1 | BK58: STD | BM58: TAS112
D59: 2015-16 | F59: Re-energisation | G59: After Disconnection For Non-Payment | H59: Re-energisation | I59: Same Day | J59: N | K59: Closed | L59: Complete | N59: 0 | O59: 0 | P59: 1 | R59: 1 | S59: 0 | T59: 0 | U59: 1 | V59: 1 | W59: 0 | X59: 0 | Y59: 0 | Z59: 0 | AA59: 0 | AB59: 0 | AC59: 0 | AD59: 0 | AE59: 0 | AF59: 0 | AG59: 0 | AH59: 0 | AI59: 0 | AJ59: 0 | AK59: 0 | AL59: 0 | AM59: 0 | AN59: 0 | AO59: 0 | AP59: 0 | AQ59: 0 | AR59: 0 | AS59: 0 | AT59: 0 | AU59: 0 | AV59: 0 | AW59: 0 | AX59: 0 | AY59: 0 | AZ59: 0 | BA59: 0 | BB59: 0 | BC59: 0 | BD59: 0 | BE59: 0 | BJ59: 1 | BK59: STD | BM59: TAS117
D60: 2015-16 | F60: Re-energisation | G60: New Reading Required | H60: Re-energisation | I60: Non-Scheduled Day | J60: N | K60: Closed | L60: Complete | N60: 0 | O60: 0 | P60: 0 | R60: 1 | S60: 0 | T60: 1 | U60: 0 | V60: 1 | W60: 0 | X60: 0 | Y60: 0 | Z60: 0 | AA60: 0 | AB60: 0 | AC60: 0 | AD60: 0 | AE60: 0 | AF60: 0 | AG60: 0 | AH60: 0 | AI60: 0 | AJ60: 0 | AK60: 0 | AL60: 0 | AM60: 0 | AN60: 0 | AO60: 0 | AP60: 0 | AQ60: 0 | AR60: 0 | AS60: 0 | AT60: 0 | AU60: 0 | AV60: 0 | AW60: 0 | AX60: 0 | AY60: 0 | AZ60: 0 | BA60: 0 | BB60: 0 | BC60: 0 | BD60: 0 | BE60: 0 | BJ60: 1 | BK60: STD | BM60: TAS109
D61: 2015-16 | F61: Re-energisation | G61: New Reading Required | H61: Re-energisation | I61: Same Day | J61: N | K61: Closed | L61: Incomplete | N61: 0 | O61: 0 | P61: 1 | R61: 1 | S61: 0 | T61: 0 | U61: 1 | V61: 1 | W61: 0 | X61: 0 | Y61: 0 | Z61: 0 | AA61: 0 | AB61: 0 | AC61: 0 | AD61: 0 | AE61: 0 | AF61: 0 | AG61: 0 | AH61: 0 | AI61: 0 | AJ61: 0 | AK61: 0 | AL61: 0 | AM61: 0 | AN61: 0 | AO61: 0 | AP61: 0 | AQ61: 0 | AR61: 0 | AS61: 0 | AT61: 0 | AU61: 0 | AV61: 0 | AW61: 0 | AX61: 0 | AY61: 0 | AZ61: 0 | BA61: 0 | BB61: 0 | BC61: 0 | BD61: 0 | BE61: 0 | BJ61: 1 | BK61: STD | BM61: TAS111
D62: 2015-16 | F62: Re-energisation | G62: New Reading Required | H62: Re-energisation | I62: Same Day | J62: N | K62: Closed | L62: Complete | N62: 0 | O62: 0 | P62: 0 | R62: 1 | S62: 0 | T62: 0 | U62: 1 | V62: 1 | W62: 0 | X62: 0 | Y62: 0 | Z62: 0 | AA62: 0 | AB62: 0 | AC62: 0 | AD62: 0 | AE62: 0 | AF62: 0 | AG62: 0 | AH62: 0 | AI62: 0 | AJ62: 0 | AK62: 0 | AL62: 0 | AM62: 0 | AN62: 0 | AO62: 0 | AP62: 0 | AQ62: 0 | AR62: 0 | AS62: 0 | AT62: 0 | AU62: 0 | AV62: 0 | AW62: 0 | AX62: 0 | AY62: 0 | AZ62: 0 | BA62: 0 | BB62: 0 | BC62: 0 | BD62: 0 | BE62: 0 | BJ62: 1 | BK62: STD | BM62: TAS110
D63: 2015-16 | F63: Re-energisation | G63: New Reading Required | H63: Re-energisation | I63: Same Day | J63: N | K63: Closed | L63: Complete | N63: 0 | O63: 0 | P63: 1 | R63: 1 | S63: 0 | T63: 0 | U63: 1 | V63: 1 | W63: 0 | X63: 0 | Y63: 0 | Z63: 0 | AA63: 0 | AB63: 0 | AC63: 0 | AD63: 0 | AE63: 0 | AF63: 0 | AG63: 0 | AH63: 0 | AI63: 0 | AJ63: 0 | AK63: 0 | AL63: 0 | AM63: 0 | AN63: 0 | AO63: 0 | AP63: 0 | AQ63: 0 | AR63: 0 | AS63: 0 | AT63: 0 | AU63: 0 | AV63: 0 | AW63: 0 | AX63: 0 | AY63: 0 | AZ63: 0 | BA63: 0 | BB63: 0 | BC63: 0 | BD63: 0 | BE63: 0 | BJ63: 1 | BK63: STD | BM63: TAS111
D64: 2015-16 | F64: Special Read | G64: Final Read | H64: Readings | I64: Transfer of Supply - Non-Scheduled Day | J64: N | K64: Closed | L64: Complete | N64: 0 | O64: 0 | P64: 0 | R64: 1 | S64: 0 | T64: 1 | U64: 0 | V64: 1 | W64: 0 | X64: 0 | Y64: 0 | Z64: 0 | AA64: 0 | AB64: 0 | AC64: 0 | AD64: 0 | AE64: 0 | AF64: 0 | AG64: 0 | AH64: 0 | AI64: 0 | AJ64: 0 | AK64: 0 | AL64: 0 | AM64: 0 | AN64: 0 | AO64: 0 | AP64: 0 | AQ64: 0 | AR64: 0 | AS64: 0 | AT64: 0 | AU64: 0 | AV64: 0 | AW64: 0 | AX64: 0 | AY64: 0 | AZ64: 0 | BA64: 0 | BB64: 0 | BC64: 0 | BD64: 0 | BE64: 0 | BJ64: 1 | BK64: TwoRate | BM64: TAS120
D65: 2015-16 | F65: Re-energisation | G65: New Reading Required | H65: Re-energisation | I65: Non-Scheduled Day | J65: N | K65: Closed | L65: Complete | N65: 0 | O65: 0 | P65: 0 | R65: 1 | S65: 0 | T65: 1 | U65: 0 | V65: 1 | W65: 0 | X65: 0 | Y65: 0 | Z65: 0 | AA65: 0 | AB65: 0 | AC65: 0 | AD65: 0 | AE65: 0 | AF65: 0 | AG65: 0 | AH65: 0 | AI65: 0 | AJ65: 0 | AK65: 0 | AL65: 0 | AM65: 0 | AN65: 0 | AO65: 0 | AP65: 0 | AQ65: 0 | AR65: 0 | AS65: 0 | AT65: 0 | AU65: 0 | AV65: 0 | AW65: 0 | AX65: 0 | AY65: 0 | AZ65: 0 | BA65: 0 | BB65: 0 | BC65: 0 | BD65: 0 | BE65: 0 | BJ65: 1 | BK65: TwoRate | BM65: TAS109
D66: 2015-16 | F66: Re-energisation | G66: New Reading Required | H66: Re-energisation | I66: Same Day | J66: N | K66: Closed | L66: Complete | N66: 0 | O66: 0 | P66: 0 | R66: 1 | S66: 0 | T66: 1 | U66: 0 | V66: 1 | W66: 0 | X66: 0 | Y66: 0 | Z66: 0 | AA66: 0 | AB66: 0 | AC66: 0 | AD66: 0 | AE66: 0 | AF66: 0 | AG66: 0 | AH66: 0 | AI66: 0 | AJ66: 0 | AK66: 0 | AL66: 0 | AM66: 0 | AN66: 0 | AO66: 0 | AP66: 0 | AQ66: 0 | AR66: 0 | AS66: 0 | AT66: 0 | AU66: 0 | AV66: 0 | AW66: 0 | AX66: 0 | AY66: 0 | AZ66: 0 | BA66: 0 | BB66: 0 | BC66: 0 | BD66: 0 | BE66: 0 | BJ66: 1 | BK66: STD | BM66: TAS110
D67: 2015-16 | F67: Re-energisation | G67: New Reading Required | H67: Re-energisation | I67: Non-Scheduled Day | J67: N | K67: Closed | L67: Complete | N67: 0 | O67: 0 | P67: 0 | R67: 1 | S67: 0 | T67: 1 | U67: 0 | V67: 1 | W67: 0 | X67: 0 | Y67: 0 | Z67: 0 | AA67: 0 | AB67: 0 | AC67: 0 | AD67: 0 | AE67: 0 | AF67: 0 | AG67: 0 | AH67: 0 | AI67: 0 | AJ67: 0 | AK67: 0 | AL67: 0 | AM67: 0 | AN67: 0 | AO67: 0 | AP67: 0 | AQ67: 0 | AR67: 0 | AS67: 0 | AT67: 0 | AU67: 0 | AV67: 0 | AW67: 0 | AX67: 0 | AY67: 0 | AZ67: 0 | BA67: 0 | BB67: 0 | BC67: 0 | BD67: 0 | BE67: 0 | BJ67: 1 | BK67: TwoRate | BM67: TAS109
D68: 2015-16 | F68: Re-energisation | G68: New Reading Required | H68: Re-energisation | I68: Same Day | J68: N | K68: Closed | L68: Complete | N68: 0 | O68: 0 | P68: 0 | R68: 1 | S68: 0 | T68: 1 | U68: 0 | V68: 1 | W68: 0 | X68: 0 | Y68: 0 | Z68: 0 | AA68: 0 | AB68: 0 | AC68: 0 | AD68: 0 | AE68: 0 | AF68: 0 | AG68: 0 | AH68: 0 | AI68: 0 | AJ68: 0 | AK68: 0 | AL68: 0 | AM68: 0 | AN68: 0 | AO68: 0 | AP68: 0 | AQ68: 0 | AR68: 0 | AS68: 0 | AT68: 0 | AU68: 0 | AV68: 0 | AW68: 0 | AX68: 0 | AY68: 0 | AZ68: 0 | BA68: 0 | BB68: 0 | BC68: 0 | BD68: 0 | BE68: 0 | BJ68: 3 | BK68: INTERVAL | BM68: TAS110
D69: 2015-16 | F69: Re-energisation | G69: New Reading Required | H69: Re-energisation | I69: Same Day | J69: N | K69: Closed | L69: Incomplete | N69: 0 | O69: 0 | P69: 0 | R69: 1 | S69: 0 | T69: 0 | U69: 0 | V69: 0 | W69: 0 | X69: 0 | Y69: 0 | Z69: 0 | AA69: 0 | AB69: 0 | AC69: 0 | AD69: 0 | AE69: 0 | AF69: 0 | AG69: 0 | AH69: 0 | AI69: 0 | AJ69: 0 | AK69: 0 | AL69: 0 | AM69: 0 | AN69: 0 | AO69: 0 | AP69: 0 | AQ69: 0 | AR69: 0 | AS69: 0 | AT69: 0 | AU69: 0 | AV69: 0 | AW69: 0 | AX69: 0 | AY69: 0 | AZ69: 0 | BA69: 0 | BB69: 0 | BC69: 0 | BD69: 0 | BE69: 0 | BJ69: 1 | BK69: STD | BM69: TAS110
D70: 2015-16 | F70: Re-energisation | G70: New Reading Required | H70: Re-energisation | I70: Non-Scheduled Day | J70: N | K70: Closed | L70: Complete | N70: 0 | O70: 0 | P70: 0 | R70: 1 | S70: 0 | T70: 0 | U70: 1 | V70: 1 | W70: 0 | X70: 0 | Y70: 0 | Z70: 0 | AA70: 0 | AB70: 0 | AC70: 0 | AD70: 0 | AE70: 0 | AF70: 0 | AG70: 0 | AH70: 0 | AI70: 0 | AJ70: 0 | AK70: 0 | AL70: 0 | AM70: 0 | AN70: 0 | AO70: 0 | AP70: 0 | AQ70: 0 | AR70: 0 | AS70: 0 | AT70: 0 | AU70: 0 | AV70: 0 | AW70: 0 | AX70: 0 | AY70: 0 | AZ70: 0 | BA70: 0 | BB70: 0 | BC70: 0 | BD70: 0 | BE70: 0 | BJ70: 3 | BK70: STD | BM70: TAS109
D71: 2015-16 | F71: Re-energisation | H71: Re-energisation | I71: Same Day | J71: N | K71: Closed | L71: Complete | N71: 0 | O71: 0 | P71: 1 | R71: 1 | S71: 0 | T71: 0 | U71: 1 | V71: 1 | W71: 0 | X71: 0 | Y71: 0 | Z71: 0 | AA71: 0 | AB71: 0 | AC71: 0 | AD71: 0 | AE71: 0 | AF71: 0 | AG71: 0 | AH71: 0 | AI71: 0 | AJ71: 0 | AK71: 0 | AL71: 0 | AM71: 0 | AN71: 0 | AO71: 0 | AP71: 0 | AQ71: 0 | AR71: 0 | AS71: 0 | AT71: 0 | AU71: 0 | AV71: 0 | AW71: 0 | AX71: 0 | AY71: 0 | AZ71: 0 | BA71: 0 | BB71: 0 | BC71: 0 | BD71: 0 | BE71: 0 | BJ71: 1 | BK71: STD | BM71: TAS110
D72: 2015-16 | F72: Special Read | G72: Final Read | H72: Readings | I72: Transfer of Supply - Non-Scheduled Day | J72: N | K72: Closed | L72: Complete | N72: 0 | O72: 0 | P72: 0 | R72: 1 | S72: 0 | T72: 1 | U72: 0 | V72: 1 | W72: 0 | X72: 0 | Y72: 0 | Z72: 0 | AA72: 0 | AB72: 0 | AC72: 0 | AD72: 0 | AE72: 0 | AF72: 0 | AG72: 0 | AH72: 0 | AI72: 0 | AJ72: 0 | AK72: 0 | AL72: 0 | AM72: 0 | AN72: 0 | AO72: 0 | AP72: 0 | AQ72: 0 | AR72: 0 | AS72: 0 | AT72: 0 | AU72: 0 | AV72: 0 | AW72: 0 | AX72: 0 | AY72: 0 | AZ72: 0 | BA72: 0 | BB72: 0 | BC72: 0 | BD72: 0 | BE72: 0 | BJ72: 1 | BK72: PlugIn | BM72: TAS120
D73: 2015-16 | F73: Re-energisation | G73: After Disconnection For Non-Payment | H73: Re-energisation | I73: Same Day | J73: N | K73: Closed | L73: Complete | N73: 0 | O73: 0 | P73: 0 | R73: 1 | S73: 0 | T73: 0 | U73: 1 | V73: 1 | W73: 0 | X73: 0 | Y73: 0 | Z73: 0 | AA73: 0 | AB73: 0 | AC73: 0 | AD73: 0 | AE73: 0 | AF73: 0 | AG73: 0 | AH73: 0 | AI73: 0 | AJ73: 0 | AK73: 0 | AL73: 0 | AM73: 0 | AN73: 0 | AO73: 0 | AP73: 0 | AQ73: 0 | AR73: 0 | AS73: 0 | AT73: 0 | AU73: 0 | AV73: 0 | AW73: 0 | AX73: 0 | AY73: 0 | AZ73: 0 | BA73: 0 | BB73: 0 | BC73: 0 | BD73: 0 | BE73: 0 | BJ73: 1 | BK73: STD | BM73: TAS116
D74: 2015-16 | F74: Re-energisation | G74: After Disconnection For Non-Payment | H74: Re-energisation | I74: Same Day | J74: N | K74: Closed | L74: Complete | N74: 0 | O74: 0 | P74: 0 | R74: 1 | S74: 0 | T74: 0 | U74: 1 | V74: 1 | W74: 0 | X74: 0 | Y74: 0 | Z74: 0 | AA74: 0 | AB74: 0 | AC74: 0 | AD74: 0 | AE74: 0 | AF74: 0 | AG74: 0 | AH74: 0 | AI74: 0 | AJ74: 0 | AK74: 0 | AL74: 0 | AM74: 0 | AN74: 0 | AO74: 0 | AP74: 0 | AQ74: 0 | AR74: 0 | AS74: 0 | AT74: 0 | AU74: 0 | AV74: 0 | AW74: 0 | AX74: 0 | AY74: 0 | AZ74: 0 | BA74: 0 | BB74: 0 | BC74: 0 | BD74: 0 | BE74: 0 | BJ74: 1 | BK74: STD | BM74: TAS116
D75: 2015-16 | F75: Special Read | G75: Final Read | H75: Readings | I75: Transfer of Supply - Non-Scheduled Day | J75: N | K75: Closed | L75: Complete | N75: 0 | O75: 0 | P75: 0 | R75: 1 | S75: 0 | T75: 1 | U75: 0 | V75: 1 | W75: 0 | X75: 0 | Y75: 0 | Z75: 0 | AA75: 0 | AB75: 0 | AC75: 0 | AD75: 0 | AE75: 0 | AF75: 0 | AG75: 0 | AH75: 0 | AI75: 0 | AJ75: 0 | AK75: 0 | AL75: 0 | AM75: 0 | AN75: 0 | AO75: 0 | AP75: 0 | AQ75: 0 | AR75: 0 | AS75: 0 | AT75: 0 | AU75: 0 | AV75: 0 | AW75: 0 | AX75: 0 | AY75: 0 | AZ75: 0 | BA75: 0 | BB75: 0 | BC75: 0 | BD75: 0 | BE75: 0 | BJ75: 1 | BK75: PlugIn | BM75: TAS120
D76: 2015-16 | F76: Re-energisation | G76: New Reading Required | H76: Re-energisation | I76: Non-Scheduled Day | J76: N | K76: Closed | L76: Complete | N76: 0 | O76: 0 | P76: 0 | R76: 1 | S76: 0 | T76: 1 | U76: 0 | V76: 1 | W76: 0 | X76: 0 | Y76: 0 | Z76: 0 | AA76: 0 | AB76: 0 | AC76: 0 | AD76: 0 | AE76: 0 | AF76: 0 | AG76: 0 | AH76: 0 | AI76: 0 | AJ76: 0 | AK76: 0 | AL76: 0 | AM76: 0 | AN76: 0 | AO76: 0 | AP76: 0 | AQ76: 0 | AR76: 0 | AS76: 0 | AT76: 0 | AU76: 0 | AV76: 0 | AW76: 0 | AX76: 0 | AY76: 0 | AZ76: 0 | BA76: 0 | BB76: 0 | BC76: 0 | BD76: 0 | BE76: 0 | BJ76: 1 | BK76: STD | BM76: TAS109
D77: 2015-16 | F77: Re-energisation | G77: New Reading Required | H77: Re-energisation | I77: Same Day | J77: N | K77: Closed | L77: Complete | N77: 0 | O77: 0 | P77: 0 | R77: 1 | S77: 0 | T77: 1 | U77: 0 | V77: 1 | W77: 0 | X77: 0 | Y77: 0 | Z77: 0 | AA77: 0 | AB77: 0 | AC77: 0 | AD77: 0 | AE77: 0 | AF77: 0 | AG77: 0 | AH77: 0 | AI77: 0 | AJ77: 0 | AK77: 0 | AL77: 0 | AM77: 0 | AN77: 0 | AO77: 0 | AP77: 0 | AQ77: 0 | AR77: 0 | AS77: 0 | AT77: 0 | AU77: 0 | AV77: 0 | AW77: 0 | AX77: 0 | AY77: 0 | AZ77: 0 | BA77: 0 | BB77: 0 | BC77: 0 | BD77: 0 | BE77: 0 | BJ77: 1 | BK77: STD | BM77: TAS110
D78: 2015-16 | F78: Special Read | G78: Final Read | H78: Readings | I78: Transfer of Supply - Non-Scheduled Day | J78: N | K78: Closed | L78: Complete | N78: 0 | O78: 0 | P78: 0 | R78: 1 | S78: 0 | T78: 1 | U78: 0 | V78: 1 | W78: 0 | X78: 0 | Y78: 0 | Z78: 0 | AA78: 0 | AB78: 0 | AC78: 0 | AD78: 0 | AE78: 0 | AF78: 0 | AG78: 0 | AH78: 0 | AI78: 0 | AJ78: 0 | AK78: 0 | AL78: 0 | AM78: 0 | AN78: 0 | AO78: 0 | AP78: 0 | AQ78: 0 | AR78: 0 | AS78: 0 | AT78: 0 | AU78: 0 | AV78: 0 | AW78: 0 | AX78: 0 | AY78: 0 | AZ78: 0 | BA78: 0 | BB78: 0 | BC78: 0 | BD78: 0 | BE78: 0 | BJ78: 1 | BK78: STD | BM78: TAS120
D79: 2015-16 | F79: Re-energisation | G79: New Reading Required | H79: Re-energisation | I79: Same Day | J79: N | K79: Closed | L79: Complete | N79: 0 | O79: 0 | P79: 1 | R79: 1 | S79: 0 | T79: 0 | U79: 1 | V79: 1 | W79: 0 | X79: 0 | Y79: 0 | Z79: 0 | AA79: 0 | AB79: 0 | AC79: 0 | AD79: 0 | AE79: 0 | AF79: 0 | AG79: 0 | AH79: 0 | AI79: 0 | AJ79: 0 | AK79: 0 | AL79: 0 | AM79: 0 | AN79: 0 | AO79: 0 | AP79: 0 | AQ79: 0 | AR79: 0 | AS79: 0 | AT79: 0 | AU79: 0 | AV79: 0 | AW79: 0 | AX79: 0 | AY79: 0 | AZ79: 0 | BA79: 0 | BB79: 0 | BC79: 0 | BD79: 0 | BE79: 0 | BJ79: 1 | BK79: TwoRate | BM79: TAS111
D80: 2015-16 | F80: Re-energisation | G80: New Reading Required | H80: Re-energisation | I80: Same Day | J80: N | K80: Closed | L80: Complete | N80: 0 | O80: 0 | P80: 1 | R80: 1 | S80: 0 | T80: 0 | U80: 1 | V80: 1 | W80: 0 | X80: 0 | Y80: 0 | Z80: 0 | AA80: 0 | AB80: 0 | AC80: 0 | AD80: 0 | AE80: 0 | AF80: 0 | AG80: 0 | AH80: 0 | AI80: 0 | AJ80: 0 | AK80: 0 | AL80: 0 | AM80: 0 | AN80: 0 | AO80: 0 | AP80: 0 | AQ80: 0 | AR80: 0 | AS80: 0 | AT80: 0 | AU80: 0 | AV80: 0 | AW80: 0 | AX80: 0 | AY80: 0 | AZ80: 0 | BA80: 0 | BB80: 0 | BC80: 0 | BD80: 0 | BE80: 0 | BJ80: 1 | BK80: STD | BM80: TAS111
D81: 2015-16 | F81: Re-energisation | G81: New Reading Required | H81: Re-energisation | I81: Same Day | J81: N | K81: Closed | L81: Complete | N81: 0 | O81: 0 | P81: 1 | R81: 1 | S81: 0 | T81: 0 | U81: 1 | V81: 1 | W81: 0 | X81: 0 | Y81: 0 | Z81: 0 | AA81: 0 | AB81: 0 | AC81: 0 | AD81: 0 | AE81: 0 | AF81: 0 | AG81: 0 | AH81: 0 | AI81: 0 | AJ81: 0 | AK81: 0 | AL81: 0 | AM81: 0 | AN81: 0 | AO81: 0 | AP81: 0 | AQ81: 0 | AR81: 0 | AS81: 0 | AT81: 0 | AU81: 0 | AV81: 0 | AW81: 0 | AX81: 0 | AY81: 0 | AZ81: 0 | BA81: 0 | BB81: 0 | BC81: 0 | BD81: 0 | BE81: 0 | BJ81: 1 | BK81: STD | BM81: TAS111
D82: 2015-16 | F82: Re-energisation | G82: New Reading Required | H82: Re-energisation | I82: Same Day | J82: N | K82: Closed | L82: Complete | N82: 0 | O82: 0 | P82: 0 | R82: 1 | S82: 0 | T82: 0 | U82: 1 | V82: 1 | W82: 0 | X82: 0 | Y82: 0 | Z82: 0 | AA82: 0 | AB82: 0 | AC82: 0 | AD82: 0 | AE82: 0 | AF82: 0 | AG82: 0 | AH82: 0 | AI82: 0 | AJ82: 0 | AK82: 0 | AL82: 0 | AM82: 0 | AN82: 0 | AO82: 0 | AP82: 0 | AQ82: 0 | AR82: 0 | AS82: 0 | AT82: 0 | AU82: 0 | AV82: 0 | AW82: 0 | AX82: 0 | AY82: 0 | AZ82: 0 | BA82: 0 | BB82: 0 | BC82: 0 | BD82: 0 | BE82: 0 | BJ82: 1 | BK82: TwoRate | BM82: TAS110
D83: 2015-16 | F83: Re-energisation | G83: After Disconnection For Non-Payment | H83: Re-energisation | I83: Same Day | J83: N | K83: Closed | L83: Complete | N83: 0 | O83: 0 | P83: 0 | R83: 1 | S83: 0 | T83: 0 | U83: 0 | V83: 1 | W83: 0 | X83: 0 | Y83: 0 | Z83: 0 | AA83: 0 | AB83: 0 | AC83: 0 | AD83: 0 | AE83: 0 | AF83: 0 | AG83: 0 | AH83: 0 | AI83: 0 | AJ83: 0 | AK83: 0 | AL83: 0 | AM83: 0 | AN83: 0 | AO83: 0 | AP83: 0 | AQ83: 0 | AR83: 0 | AS83: 0 | AT83: 0 | AU83: 0 | AV83: 0 | AW83: 0 | AX83: 0 | AY83: 0 | AZ83: 0 | BA83: 0 | BB83: 0 | BC83: 0 | BD83: 0 | BE83: 0 | BJ83: 1 | BK83: STD | BM83: TAS116
D84: 2015-16 | F84: Re-energisation | H84: Re-energisation | I84: Same Day | J84: N | K84: Closed | L84: Complete | N84: 0 | O84: 0 | P84: 0 | R84: 1 | S84: 0 | T84: 0 | U84: 1 | V84: 1 | W84: 0 | X84: 0 | Y84: 0 | Z84: 0 | AA84: 0 | AB84: 0 | AC84: 0 | AD84: 0 | AE84: 0 | AF84: 0 | AG84: 0 | AH84: 0 | AI84: 0 | AJ84: 0 | AK84: 0 | AL84: 0 | AM84: 0 | AN84: 0 | AO84: 0 | AP84: 0 | AQ84: 0 | AR84: 0 | AS84: 0 | AT84: 0 | AU84: 0 | AV84: 0 | AW84: 0 | AX84: 0 | AY84: 0 | AZ84: 0 | BA84: 0 | BB84: 0 | BC84: 0 | BD84: 0 | BE84: 0 | BJ84: 1 | BK84: TwoRate | BM84: TAS110
D85: 2015-16 | F85: Re-energisation | G85: New Reading Required | H85: Re-energisation | I85: Same Day | J85: N | K85: Closed | L85: Complete | N85: 0 | O85: 0 | P85: 0 | R85: 1 | S85: 0 | T85: 0 | U85: 1 | V85: 1 | W85: 0 | X85: 0 | Y85: 0 | Z85: 0 | AA85: 0 | AB85: 0 | AC85: 0 | AD85: 0 | AE85: 0 | AF85: 0 | AG85: 0 | AH85: 0 | AI85: 0 | AJ85: 0 | AK85: 0 | AL85: 0 | AM85: 0 | AN85: 0 | AO85: 0 | AP85: 0 | AQ85: 0 | AR85: 0 | AS85: 0 | AT85: 0 | AU85: 0 | AV85: 0 | AW85: 0 | AX85: 0 | AY85: 0 | AZ85: 0 | BA85: 0 | BB85: 0 | BC85: 0 | BD85: 0 | BE85: 0 | BJ85: 1 | BK85: STD | BM85: TAS110
D86: 2015-16 | F86: Re-energisation | G86: New Reading Required | H86: Re-energisation | I86: Non-Scheduled Day | J86: N | K86: Closed | L86: Complete | N86: 0 | O86: 0 | P86: 0 | R86: 1 | S86: 0 | T86: 0 | U86: 1 | V86: 1 | W86: 0 | X86: 0 | Y86: 0 | Z86: 0 | AA86: 0 | AB86: 0 | AC86: 0 | AD86: 0 | AE86: 0 | AF86: 0 | AG86: 0 | AH86: 0 | AI86: 0 | AJ86: 0 | AK86: 0 | AL86: 0 | AM86: 0 | AN86: 0 | AO86: 0 | AP86: 0 | AQ86: 0 | AR86: 0 | AS86: 0 | AT86: 0 | AU86: 0 | AV86: 0 | AW86: 0 | AX86: 0 | AY86: 0 | AZ86: 0 | BA86: 0 | BB86: 0 | BC86: 0 | BD86: 0 | BE86: 0 | BJ86: 1 | BK86: STD | BM86: TAS109
D87: 2015-16 | F87: Re-energisation | G87: New Reading Required | H87: Re-energisation | I87: Same Day | J87: N | K87: Closed | L87: Complete | N87: 0 | O87: 0 | P87: 0 | R87: 1 | S87: 0 | T87: 0 | U87: 1 | V87: 1 | W87: 0 | X87: 0 | Y87: 0 | Z87: 0 | AA87: 0 | AB87: 0 | AC87: 0 | AD87: 0 | AE87: 0 | AF87: 0 | AG87: 0 | AH87: 0 | AI87: 0 | AJ87: 0 | AK87: 0 | AL87: 0 | AM87: 0 | AN87: 0 | AO87: 0 | AP87: 0 | AQ87: 0 | AR87: 0 | AS87: 0 | AT87: 0 | AU87: 0 | AV87: 0 | AW87: 0 | AX87: 0 | AY87: 0 | AZ87: 0 | BA87: 0 | BB87: 0 | BC87: 0 | BD87: 0 | BE87: 0 | BJ87: 3 | BK87: TwoRate | BM87: TAS110
D88: 2015-16 | F88: Re-energisation | G88: New Reading Required | H88: Re-energisation | I88: Same Day | J88: N | K88: Closed | L88: Complete | N88: 0 | O88: 0 | P88: 0 | R88: 1 | S88: 0 | T88: 0 | U88: 1 | V88: 1 | W88: 0 | X88: 0 | Y88: 0 | Z88: 0 | AA88: 0 | AB88: 0 | AC88: 0 | AD88: 0 | AE88: 0 | AF88: 0 | AG88: 0 | AH88: 0 | AI88: 0 | AJ88: 0 | AK88: 0 | AL88: 0 | AM88: 0 | AN88: 0 | AO88: 0 | AP88: 0 | AQ88: 0 | AR88: 0 | AS88: 0 | AT88: 0 | AU88: 0 | AV88: 0 | AW88: 0 | AX88: 0 | AY88: 0 | AZ88: 0 | BA88: 0 | BB88: 0 | BC88: 0 | BD88: 0 | BE88: 0 | BJ88: 1 | BK88: STD | BM88: TAS110
D89: 2015-16 | F89: Re-energisation | G89: After Disconnection For Non-Payment | H89: Re-energisation | I89: Same Day | J89: N | K89: Closed | L89: Complete | N89: 0 | O89: 0 | P89: 0 | R89: 1 | S89: 0 | T89: 0 | U89: 1 | V89: 1 | W89: 0 | X89: 0 | Y89: 0 | Z89: 0 | AA89: 0 | AB89: 0 | AC89: 0 | AD89: 0 | AE89: 0 | AF89: 0 | AG89: 0 | AH89: 0 | AI89: 0 | AJ89: 0 | AK89: 0 | AL89: 0 | AM89: 0 | AN89: 0 | AO89: 0 | AP89: 0 | AQ89: 0 | AR89: 0 | AS89: 0 | AT89: 0 | AU89: 0 | AV89: 0 | AW89: 0 | AX89: 0 | AY89: 0 | AZ89: 0 | BA89: 0 | BB89: 0 | BC89: 0 | BD89: 0 | BE89: 0 | BJ89: 1 | BK89: TwoRate | BM89: TAS116
D90: 2015-16 | F90: Re-energisation | G90: New Reading Required | H90: Re-energisation | I90: Non-Scheduled Day | J90: N | K90: Closed | L90: Complete | N90: 0 | O90: 0 | P90: 0 | R90: 1 | S90: 0 | T90: 1 | U90: 0 | V90: 1 | W90: 0 | X90: 0 | Y90: 0 | Z90: 0 | AA90: 0 | AB90: 0 | AC90: 0 | AD90: 0 | AE90: 0 | AF90: 0 | AG90: 0 | AH90: 0 | AI90: 0 | AJ90: 0 | AK90: 0 | AL90: 0 | AM90: 0 | AN90: 0 | AO90: 0 | AP90: 0 | AQ90: 0 | AR90: 0 | AS90: 0 | AT90: 0 | AU90: 0 | AV90: 0 | AW90: 0 | AX90: 0 | AY90: 0 | AZ90: 0 | BA90: 0 | BB90: 0 | BC90: 0 | BD90: 0 | BE90: 0 | BJ90: 1 | BK90: TwoRate | BM90: TAS109
D91: 2015-16 | F91: Re-energisation | G91: New Reading Required | H91: Re-energisation | I91: Same Day | J91: N | K91: Closed | L91: Complete | N91: 0 | O91: 0 | P91: 0 | R91: 1 | S91: 0 | T91: 0 | U91: 1 | V91: 1 | W91: 0 | X91: 0 | Y91: 0 | Z91: 0 | AA91: 0 | AB91: 0 | AC91: 0 | AD91: 0 | AE91: 0 | AF91: 0 | AG91: 0 | AH91: 0 | AI91: 0 | AJ91: 0 | AK91: 0 | AL91: 0 | AM91: 0 | AN91: 0 | AO91: 0 | AP91: 0 | AQ91: 0 | AR91: 0 | AS91: 0 | AT91: 0 | AU91: 0 | AV91: 0 | AW91: 0 | AX91: 0 | AY91: 0 | AZ91: 0 | BA91: 0 | BB91: 0 | BC91: 0 | BD91: 0 | BE91: 0 | BJ91: 1 | BK91: STD | BM91: TAS110
D92: 2015-16 | F92: Re-energisation | G92: New Reading Required | H92: Re-energisation | I92: Same Day | J92: N | K92: Closed | L92: Complete | N92: 0 | O92: 0 | P92: 0 | R92: 1 | S92: 0 | T92: 1 | U92: 0 | V92: 1 | W92: 0 | X92: 0 | Y92: 0 | Z92: 0 | AA92: 0 | AB92: 0 | AC92: 0 | AD92: 0 | AE92: 0 | AF92: 0 | AG92: 0 | AH92: 0 | AI92: 0 | AJ92: 0 | AK92: 0 | AL92: 0 | AM92: 0 | AN92: 0 | AO92: 0 | AP92: 0 | AQ92: 0 | AR92: 0 | AS92: 0 | AT92: 0 | AU92: 0 | AV92: 0 | AW92: 0 | AX92: 0 | AY92: 0 | AZ92: 0 | BA92: 0 | BB92: 0 | BC92: 0 | BD92: 0 | BE92: 0 | BJ92: 1 | BK92: TwoRate | BM92: TAS110
D93: 2015-16 | F93: Re-energisation | G93: New Reading Required | H93: Re-energisation | I93: Same Day | J93: N | K93: Closed | L93: Complete | N93: 0 | O93: 0 | P93: 1 | R93: 1 | S93: 0 | T93: 0 | U93: 1 | V93: 1 | W93: 0 | X93: 0 | Y93: 0 | Z93: 0 | AA93: 0 | AB93: 0 | AC93: 0 | AD93: 0 | AE93: 0 | AF93: 0 | AG93: 0 | AH93: 0 | AI93: 0 | AJ93: 0 | AK93: 0 | AL93: 0 | AM93: 0 | AN93: 0 | AO93: 0 | AP93: 0 | AQ93: 0 | AR93: 0 | AS93: 0 | AT93: 0 | AU93: 0 | AV93: 0 | AW93: 0 | AX93: 0 | AY93: 0 | AZ93: 0 | BA93: 0 | BB93: 0 | BC93: 0 | BD93: 0 | BE93: 0 | BJ93: 1 | BK93: TwoRate | BM93: TAS111
D94: 2015-16 | F94: Re-energisation | G94: New Reading Required | H94: Re-energisation | I94: Non-Scheduled Day | J94: N | K94: Closed | L94: Complete | N94: 0 | O94: 0 | P94: 0 | R94: 1 | S94: 0 | T94: 1 | U94: 0 | V94: 1 | W94: 0 | X94: 0 | Y94: 0 | Z94: 0 | AA94: 0 | AB94: 0 | AC94: 0 | AD94: 0 | AE94: 0 | AF94: 0 | AG94: 0 | AH94: 0 | AI94: 0 | AJ94: 0 | AK94: 0 | AL94: 0 | AM94: 0 | AN94: 0 | AO94: 0 | AP94: 0 | AQ94: 0 | AR94: 0 | AS94: 0 | AT94: 0 | AU94: 0 | AV94: 0 | AW94: 0 | AX94: 0 | AY94: 0 | AZ94: 0 | BA94: 0 | BB94: 0 | BC94: 0 | BD94: 0 | BE94: 0 | BJ94: 1 | BK94: STD | BM94: TAS109
